Workbook

Sheet RICHIESTA
L2: S
L3: N
A6: A | B6: LOCALIZZAZIONE
B8: REGIONE | C8: =VLOOKUP(C9,LookupTable!A:J,3,FALSE) -> Lazio | E8: =VLOOKUP(C9,LookupTable!A:J,6,FALSE) -> 12 | I8: COMUNI | J8: INTERNE
B9: COMUNE | C9: Accumoli | D9: =VLOOKUP(C9,LookupTable!A:J,2,FALSE) -> RI | E9: =VLOOKUP(C9,LookupTable!A:J,10,FALSE) -> 057001 | G9: CRATERE | H9: =VLOOKUP(C9,LookupTable!A:J,4,FALSE) -> TRUE | I9: 1 | J9: 1 | K9: PRIME
B10: CENTRO STORICO | C10: FALSE | G10: CENTRO STORICO-BORGO TIPICO | H10: =C10 -> FALSE | I10: =IF(OR(H9,H10,E140),100%,50%) -> 1 | J10: =IF(OR(H9,H10),100%,50%) -> 1 | K10: SECONDE
A14: E1 | B14: DICHIARAZIONI | D14: ="RICHIESTA DI CONTRIBUTO PER "&RICHIESTA!F22&" di "&RICHIESTA!F20&" CON RIFERIMENTO ALLA ORDINANZA COMMISSARIALE "&IF(RICHIESTA!E23="L0","N.4/2016",IF(RICHIESTA!D20="P","N.13/2017","N.19/2017")) -> RICHIESTA DI CONTRIBUTO PER RIPARAZIONE CON RAFFORZAMENTO LOCALE di EDIFICIO AD USO ABITATIVO CON RIFERIMENTO ALLA ORDINANZA COMMISSARIALE N.4/2016
B15: Titolo Richiesta
C16: Tipo proprietà richiedente | E16: Privata
C17: Legittimazione | D17: =INDEX(LookupTable!P2:P6,MATCH(E17,LookupTable!Q2:Q6,0)) -> 1 | E17: Persona fisica
C18: Condominio registrato o di fatto | E18: =IF(OR(D17=3,D17=4),"S","N") -> N
C19: IVA strutture detraibile | E19: =IF(D17=5,"S","N") -> N | F19: =IF(E19="N",0%,100%) -> 0 | G19: IVA detratta (pro-rata)
C20: Destinazione d'uso prevalente | D20: =VLOOKUP($E20,LookupTable!$AL2:$AN5,2,FALSE) -> A | E20: Abitativa | F20: =VLOOKUP($E20,LookupTable!$AL2:$AN5,3,FALSE) -> EDIFICIO AD USO ABITATIVO
B22: Intervento | C22: Tipologia intervento | D22: =VLOOKUP($E22,LookupTable!$V2:$X7,2,FALSE) -> R | E22: Rafforzamento | F22: =IF(AND(E23<>"L0",E23<>"L4",E24="S"),"demolizione volontaria",VLOOKUP($E22,LookupTable!$V2:$X7,3,FALSE)) -> RIPARAZIONE CON RAFFORZAMENTO LOCALE | G22: =IF(E22="Rafforzamento",50%, IF(D20="P",-1%, IF(E22="Ricostruzione",25%,IF(OR(E22="Miglioram",E22="Adeguamento"),IF(E51="N",45%,40%),-1%)))) -> 0.5 | H22: Percentuale minima strutture
C23: Livello operativo | E23: L0
C24: Demolizione e ricostruzione | E24: =IF(OR(D22="DR"),"S","N") -> N | F24: =IF(AND(E23="L4",E24="S"),"Consigliata",IF(E23="L0","Non ammessa",IF(AND(E23<>"L4",E24="S"),"Volontaria","Non presente"))) -> Non ammessa
C25: Delocalizzazione in altro sedime | E25: N | F25: =IF(AND(E23="L4",E24="S"),"Ammessa","Vietata") -> Vietata
A46: C | B46: DATI GENERALI
G47: MAGAZZINO | H47: ABITAZIONE/ATTIVITA
C48: Riduzioni per magazzino o pertinenza esterna | F48: -0.3 | G48: =F48 -> -0.3
B50: Vincoli | D50: =SUM(D51:D58) -> 0 | E50: =IF(D50=0,"N","S") -> N | F50: =IF(OR(D23="DC",E50="N"),0,MAX(F51:F58)) -> 0 | G50: =$F50 -> 0 | H50: =$F50 -> 0
C51: Parte II del Dlgs 42/2004 (Bene culturale) | D51: =IF(E51="S",1,0) -> 0 | E51: N | F51: =IF(E51="S",CostoParametrico!F$149,0) -> 0
C52: art. 136 del Dlgs 42/2004 (Notevole interesse pubblico) | D52: 0 | E52: N | F52: =IF(E52="S",CostoParametrico!G$149,0) -> 0
C53: art. 142 del Dlgs 42/2004 (In aree di interesse paesaggistico) | D53: 0 | E53: N | F53: =IF(E53="S",CostoParametrico!H$149,0) -> 0
C54: art. 45 Dlgs 42/2004 | D54: 0 | E54: N | F54: =IF(E54="S",CostoParametrico!I$149,0) -> 0
C55: Prescrizione Tutela Indiretta | D55: 0 | E55: N | F55: 0
C56: Interesse storico | D56: 0 | E56: N | F56: 0
C57: Pregio | D57: 0 | E57: N | F57: 0
C58: Normativa regionale di settore | D58: 0 | E58: N | F58: 0
C60: TOTALE MAGGIORAZIONI | G60: =IF(D23="DC",0,SUM(G61:G102)) -> 0 | H60: =IF(D23="DC",0,SUM(H61:H102)) -> 0
C62: Ricostruzione con riduzione della superficie > 50% | E62: N | F62: =IF(AND(E24="S",E62="S"),15%,0) -> 0 | H62: =$F62 -> 0
C63: Ricostruzione con riduzione della superficie > 25% | E63: N | F63: =IF(AND(E24="S",E62="N",E63="S"),8%,0) -> 0 | H63: =$F63 -> 0
C65: Aggregato - UMI | E65: N | F65: N
C66: Numero di US in Aggregato - UMI | D66: =E66-F66 -> 0 | E66: 0 | F66: 0
C67: Aggregato coincide con Isolato | E67: N | F67: =IF(AND(D66>=8,E67="N"),17%,IF(AND(D66>=5,E67="S"),17%,IF(AND(D66>=5,E67="N",D66<8),15%,IF(AND(D66>=3,D66<5),10%,0)))) -> 0 | H67: =$F67 -> 0
C68: Aggregato contiene edifici L0 < 50% della superficie | E68: N
C69: Aggregato contiene edifici Agibili < 20% della superficie | E69: N
C70: Delocalizzazione obbligatoria | E70: N | F70: =IF(AND(E70="S",D20="A"),30%,0) -> 0
B72: Maggiorazioni al costo convenzionale
C73: Pericolosita sismica Ag * S | E73: 0 | F73: =CostoParametrico!A52 -> 0 | G73: =$F73 -> 0 | H73: 0
C74: Instabilita dinamica in fase sismica per liquefazione | E74: N | F74: =CostoParametrico!A53 -> 0 | G74: 0 | H74: 0
C75: Indagini Geofisiche | E75: N | F75: =IF(E75="S",CostoParametrico!A60,0) -> 0 | G75: 0 | H75: 0
C76: Distanza tra edifici | E76: N | F76: =IF(E76="S",CostoParametrico!A69,0) -> 0 | G76: 0 | H76: 0
C77: Smaltimento demolizioni 25% + | E77: N
C78: Smaltimento demolizioni 50% + | E78: N | F78: =CostoParametrico!A77 -> 0 | H78: =$F78 -> 0
C79: Ricostruzione Edifici uni-bifamiliari | E79: N | F79: =IF(E79="S",CostoParametrico!A85,0) -> 0 | H79: 0
C80: Accessibilita Disabili | E80: N | F80: =IF(E80="S",CostoParametrico!A106,0) -> 0 | H80: 0
C81: Murature Spesse | E81: N | F81: =IF(E81="S",CostoParametrico!A107,0) -> 0 | G81: =$F81 -> 0 | H81: 0
C82: Altezza Sotto Travi | E82: N | F82: =IF(E82="S",CostoParametrico!A113,0) -> 0 | G82: =$F82 -> 0 | H82: 0
C83: Inteferenza lavori con l'attività di impresa | E83: N | F83: =IF(AND(E83="S",E$23<>"L0",D$20="P",E24="N"),15%,0) -> 0 | H83: 0
C84: Cemento armato posato in opera | E84: N | F84: =IF(AND(E84="S",E$20="Produttiva",OR(E$23="L1",E$23="L2",E$23="L3")),10%,0) -> 0 | G84: =$F84 -> 0 | H84: 0
C85: Edificio produttivo costruito in muratura | E85: N | F85: =IF(AND(E85="S",E$20="Produttiva",OR(E$23="L1",E$23="L2",E$23="L3")),20%,0) -> 0 | G85: =$F85 -> 0 | H85: 0
C87: Edificio ad altitudine 700m + slm | E87: N
C88: Edificio ad altitudine 1000m + slm | E88: N | F88: =CostoParametrico!A156 -> 0 | G88: =$F88 -> 0 | H88: =$F88 -> 0
C90: Copertura in cemento-amianto 25%+ | E90: N
C91: Copertura in cemento-amianto 50%+ | E91: N | F91: =CostoParametrico!A166 -> 0 | G91: =$F91 -> 0 | H91: =$F91 -> 0
B93: Efficientamento energetico
C94: Riduzione 30% | E94: N | F94: =IF(AND(E94="S",E$23<>"L0",D19<>"P",OR(D22="M",D22="A")),10%,0) -> 0 | H94: =$F94 -> 0
C95: Classe energetica A | E95: N | F95: =IF(AND(E95="S",E$23="L4",D20<>"P",D22="DR"),10%,0) -> 0 | H95: =$F95 -> 0
C96: Impianti industriali di particolare complessità | E96: N | F96: =IF(AND(E96="S",E$23<>"L0",D$20="P"),15%,0) -> 0 | H96: =$F96 -> 0
B98: Altre maggiorazioni
C99: Faccia vista da trattare | E99: N | F99: =IF(AND(E99="S",E$50="N",OR(D$20="A",D$20="R")),IF(E$23<>"L0",3%,0),0) -> 0 | H99: =$F99 -> 0
C100: Solai in legno | E100: N | F100: =IF(AND(E100="S",E$50="N",OR(D$20="A",D$20="R")),IF(E$23<>"L0",2%,0),0) -> 0 | H100: =$F100 -> 0
C101: Infissi in legno | E101: N | F101: =IF(AND(E101="S",E$50="N",OR(D$20="A",D$20="R")),IF(E$23<>"L0",2%,0),0) -> 0 | H101: =$F101 -> 0 | AJ101: AMMESSE | AK101: NON AMMESSE | AL101: AMMESSE | AM101: AMMESSE | AN101: NON AMMESSE | AO101: TOTALE | AS101: IVA SUL | AT101: CONTRIBUTO | AU101: ANTICIPO DA | AV101: ASSICURAZIONE
C102: Misto pubblico-privato in Classe II | E102: N | F102: =IF(AND(E102="S",E$23<>"L0"),3%,0) -> 0 | H102: =$F102 -> 0 | P102: STRUTTURE MINIME | Q102: =G22 -> 0.5 | R102: =SpeseTecniche!D6 -> 3e-12 | S102: MAX | T102: =IF(E20="Produttiva",SpeseTecniche!D12,SpeseTecniche!D19) -> 6000 | AI102: RICHIESTA | AJ102: ISTRUTTORIA | AK102: ISTRUTTORIA | AL102: AL LORDO | AM102: CONVENZIONALE | AN102: CONVENZIONALE | AO102: ACCOLLO | AP102: ASSICURAZIONE | AQ102: CONTRIBUTO | AR102: IVA | AS102: CONTRIBUTO | AT102: IVA INCLUSA | AU102: RESTITUIRE | AV102: IVA INCLUSA
P103: STRUTTURE MISURATE | Q103: =SUM(M105:M107)/MAX(SUM(M105:M109),1) -> 1e-10 | R103: =Q105 -> 0 | S103: MIS | T103: =SUM(Q113:Q126) -> 0 | AI103: b | AJ103: c | AK103: d = b-c | AL103: DI CASSA | AM103: e = min [a,c] | AN103: f = c-e | AO103: g = d+f | AP103: h | AQ103: i = b-g-h | AR103: j | AS103: k=i*j | AT103: l=i+k | AU103: m | AV103: n
B104: Quadro Economico | E104: RICHIESTA | F104: IVA | G104: ANTICIPO | H104: IVA | L104: PESO | M104: RICHIESTO | N104: INCR-IVA | O104: RICHIESTO-IVATO | Q104: FINITURE | R104: PROVE | T104: SPESE TECNICHE | U104: ONERI | V104: RID | W104: PESO | X104: AMMESSE | Y104: AMMESSE-IVATE | Z104: ASSICURAZIONE | AA104: CONTRIBUTO | AB104: CONTR-IVATO | AC104: ASSIC-IVATA | AD104: ACCOLLO | AE104: RESTITUIRE | AF104: PAGARE | AH104: TOTALE OPERE | AI104: =SUM(AI105:AI109) -> 1e-10 | AJ104: =SUM(AJ105:AJ109) -> 1e-10 | AK104: 0 | AL104: 1e-10 | AM104: =SUM(AM105:AM109) -> 1e-33 | AN104: =SUM(AN105:AN109) -> 1e-10 | AO104: =SUM(AO105:AO109) -> 1e-10 | AP104: =SUM(AP105:AP109) -> 0 | AQ104: =SUM(AQ105:AQ109) -> 1e-33 | AS104: =SUM(AS105:AS109) -> 1e-34 | AT104: =SUM(AT105:AT109) -> 1.1e-33 | AU104: =SUM(AU105:AU109) -> 0 | AV104: =SUM(AV105:AV109) -> 0 | AW104: somma 1:5
C105: Indagini e prove | E105: 0 | F105: 10 | G105: 0 | H105: =F105 -> 10 | L105: =M105/MAX(1,M$128-M$109) -> 0 | M105: =E105 -> 0 | N105: =(1+F105/100*(1-IF($E$19="N",0,$F$19))) -> 1.1 | O105: =M105*(1+F105/100) -> 0 | Q105: =M105 -> 0 | R105: =MIN(R102:R103) -> 0 | V105: =X105/MAX($M105,1) -> 0 | W105: =(X105-Z105)/MAX(1,AW$140,X$128-X$109-(Z$128-Z$109)) -> 0 | X105: =R105 -> 0 | Y105: =X105*N105 -> 0 | Z105: =MIN(Y105,$G$140-$BA$140-SUM(Z106:Z$108*N106:N$108))/N105 -> 0 | AA105: =$W105*AW$140 -> 0 | AB105: =AA105*N105 -> 0 | AC105: =Z105*N105 -> 0 | AD105: =(O105-AB105)-AC105 -> 0 | AE105: =MAX(0,AA105-MAX(0,(M105-H105)))*(1+I105/100*(1-$F$19)) -> 0 | AF105: =AB105-AE105 -> 0 | AH105: Indagini e prove | AI105: =E105 -> 0 | AJ105: =X105 -> 0 | AK105: =MAX(0,AI105-AJ105) -> 0 | AL105: =X105 -> 0 | AM105: =AA105+Z105 -> 0 | AN105: =AL105-AM105 -> 0 | AO105: =MAX(0,AI105-AM105) -> 0 | AP105: =Z105 -> 0 | AQ105: =AM105-AP105 -> 0 | AR105: =F105/100 -> 0.1 | AS105: =AQ105*AR105 -> 0 | AT105: =AB105 -> 0 | AU105: =AE105 -> 0 | AV105: =AC105 -> 0 | AW105: 1
C106: Pronto Intervento | E106: 0 | F106: 10 | G106: 0 | H106: =F106 -> 10 | L106: =M106/MAX(1,M$128-M$109) -> 0 | M106: =E106 -> 0 | N106: =(1+F106/100*(1-IF($E$19="N",0,$F$19))) -> 1.1 | O106: =M106*(1+F106/100) -> 0 | Q106: =M106 -> 0 | R106: =Q106 -> 0 | V106: =X106/MAX($M106,1) -> 0 | W106: =(X106-Z106)/MAX(1,AW$140,X$128-X$109-(Z$128-Z$109)) -> 0 | X106: =R106 -> 0 | Y106: =X106*N106 -> 0 | Z106: =MIN(Y106,$G$140-$BA$140-SUM(Z107:Z$108*N107:N$108))/N106 -> 0 | AA106: =$W106*AW$140 -> 0 | AB106: =AA106*N106 -> 0 | AC106: =Z106*N106 -> 0 | AD106: =(O106-AB106)-AC106 -> 0 | AE106: =MAX(0,AA106-MAX(0,(M106-H106)))*(1+I106/100*(1-$F$19)) -> 0 | AF106: 0 | AH106: Pronto Intervento | AI106: =E106 -> 0 | AJ106: =X106 -> 0 | AK106: =MAX(0,AI106-AJ106) -> 0 | AL106: =X106 -> 0 | AM106: 0 | AN106: =AL106-AM106 -> 0 | AO106: 0 | AP106: 0 | AQ106: =AM106-AP106 -> 0 | AR106: =F106/100 -> 0.1 | AS106: 0 | AT106: 0 | AU106: 0 | AV106: 0 | AW106: 2
C107: Opere sulle strutture | E107: 1e-10 | F107: 10 | L107: =M107/MAX(1,M$128-M$109) -> 1e-10 | M107: 1e-10 | N107: 1.1 | O107: 1.1e-10 | Q107: =M107 -> 1e-10 | R107: =Q107 -> 1e-10 | V107: 1e-10 | W107: 1e-10 | X107: =R107 -> 1e-10 | Y107: 1.1e-10 | Z107: =MIN(Y107,$G$140-$BA$140-SUM(Z$108:Z108*N108:N$108))/N107 -> 0 | AA107: =$W107*AW$140 -> 1e-33 | AB107: 1.1e-33 | AC107: 0 | AD107: 1.1e-10 | AE107: 0 | AF107: 1.1e-33 | AH107: Opere sulle strutture | AI107: 1e-10 | AJ107: 1e-10 | AK107: 0 | AL107: 1e-10 | AM107: 1e-33 | AN107: 1e-10 | AO107: 1e-10 | AP107: 0 | AQ107: 1e-33 | AR107: =F107/100 -> 0.1 | AS107: 1e-34 | AT107: 1.1e-33 | AU107: 0 | AV107: 0 | AW107: 3
C108: Finiture parti comuni | E108: 0 | F108: 10 | L108: =M108/MAX(1,M$128-M$109) -> 0 | M108: 0 | N108: 1.1 | O108: 0 | P108: =M108/MAX(1,SUM(M$108:M$109)) -> 0 | Q108: =IF(Q$103>Q$102,M108,SUM(Q$105:Q$107)*(1-Q$102)/Q$102*P108) -> 0 | R108: =Q108 -> 0 | V108: 0 | W108: 0 | X108: =R108 -> 0 | Y108: 0 | Z108: =MIN(Y108,$G$140-$BA$140)/N108 -> 0 | AA108: =$W108*AW$140 -> 0 | AB108: 0 | AC108: 0 | AD108: 0 | AE108: 0 | AF108: 0 | AH108: Finiture parti comuni | AI108: 0 | AJ108: 0 | AK108: 0 | AL108: 0 | AM108: 0 | AN108: 0 | AO108: 0 | AP108: 0 | AQ108: 0 | AR108: =F108/100 -> 0.1 | AS108: 0 | AT108: 0 | AU108: 0 | AV108: 0 | AW108: 4
C109: Finiture interne | E109: =H140 -> 0 | M109: =AN140 -> 0 | O109: =BG140 -> 0 | P109: =M109/MAX(1,SUM(M$108:M$109)) -> 0 | Q109: =IF(Q$103>Q$102,M109,SUM(Q$105:Q$107)*(1-Q$102)/Q$102*P109) -> 0 | R109: =Q109 -> 0 | V109: 0 | X109: =R109 -> 0 | Y109: =BI140 -> 0 | Z109: =MIN(AV$140,X109) -> 0 | AA109: =AX140 -> 0 | AB109: =BC140 -> 0 | AC109: =BA140 -> 0 | AD109: =BD140 -> 0 | AE109: =MAX(0,AB109-MAX(0, SUM(H142:H241*(1+J142:J241/100*IF(K142:K241="N",1,1-$F$19))) -H109*(1+I109/100*(1-$F$19)))) -> 0 | AF109: 0 | AH109: Finiture interne | AI109: 0 | AJ109: 0 | AK109: 0 | AL109: 0 | AM109: 0 | AN109: 0 | AO109: 0 | AP109: 0 | AQ109: 0 | AS109: =SUM(BC142:BC241*J142:J241/100) -> 0 | AT109: 0 | AU109: 0 | AV109: 0 | AW109: 5
C110: Demolizioni | E110: 0 | F110: 10 | L110: =M110/MAX(1,M$128-M$109) -> 0 | M110: 0 | N110: =(1+F110/100*(1-IF($E$19="N",0,$F$19))) -> 1.1 | O110: =M110*(1+F110/100) -> 0 | Q110: =M110 -> 0 | R110: =Q110 -> 0 | U110: =M110/MAX(1,SUM(M$110:M$112)) -> 0 | V110: 0 | W110: =(X110-Z110)/MAX(1,AW$140,X$128-X$109-(Z$128-Z$109)) -> 0 | X110: =MIN(M110,IF(D22="C",10%,100%)*AL140) -> 0 | Y110: =X110*N110 -> 0 | Z110: =MIN(Y110,$G$140-$BA$140-SUM(Z$105:Z$108*N$105:N$108))/N110 -> 0 | AA110: =$W110*AW$140 -> 0 | AB110: =AA110*N110 -> 0 | AC110: =Z110*N110 -> 0 | AD110: =(O110-AB110)-AC110 -> 0 | AE110: 0 | AF110: 0 | AH110: Demolizioni | AI110: 0 | AJ110: 0 | AK110: 0 | AL110: 0 | AM110: 0 | AN110: 0 | AO110: 0 | AP110: 0 | AQ110: 0 | AR110: =F110/100 -> 0.1 | AS110: 0 | AT110: 0 | AU110: 0 | AV110: 0 | AW110: 6
C111: Acquisto Terreni | E111: 0 | L111: 0 | M111: 0 | N111: 1 | O111: 0 | U111: =M111/MAX(1,SUM(M$110:M$112)) -> 0 | V111: 0 | W111: 0 | X111: =M111 -> 0 | Y111: 0 | Z111: =MIN(Y111,$G$140-$BA$140-SUM(Z$105:Z$108*N$105:N$108)-SUM(Z$110:Z110*N$110:N110))/N111 -> 0 | AA111: 0 | AB111: 0 | AC111: 0 | AD111: 0 | AE111: 0 | AF111: 0 | AH111: Acquisto Terreni | AI111: 0 | AJ111: 0 | AK111: 0 | AL111: 0 | AM111: 0 | AN111: 0 | AO111: 0 | AP111: 0 | AQ111: 0 | AR111: =F111/100 -> 0 | AS111: 0 | AT111: 0 | AU111: 0 | AV111: 0 | AW111: 7
C112: Oneri fiscali Acquisto Terreni | E112: 0 | H112: ONERI DI CASSA | L112: 0 | M112: 0 | O112: 0 | R112: MAX | U112: =M112/MAX(1,SUM(M$110:M$112)) -> 0 | V112: 0 | W112: 0 | X112: =M112 -> 0 | Y112: 0 | Z112: =MIN(Y112,$G$140-$BA$140-SUM(Z$105:Z$108*N$105:N$108)-SUM(Z$110:Z111*N$110:N111)) -> 0 | AA112: 0 | AB112: 0 | AC112: 0 | AD112: 0 | AE112: 0 | AF112: 0 | AH112: Oneri fiscali Acquisto Terreni | AI112: 0 | AJ112: 0 | AK112: 0 | AL112: 0 | AM112: 0 | AN112: 0 | AO112: 0 | AP112: 0 | AQ112: 0 | AS112: 0 | AT112: 0 | AU112: 0 | AV112: 0 | AW112: 8
C113: Compilazione scheda AeDES | E113: 0 | F113: 22 | G113: Ordine | H113: =VLOOKUP(G113,SpeseTecniche!F$53:G$64,2,FALSE) -> 0 | L113: 0 | M113: 0 | N113: =(1+F113/100*(1-IF($E$19="N",0,$F$19))) -> 1.22 | O113: 0 | Q113: =M113/(1+H113) -> 0 | R113: =MIN(M113/(1+U113),SpeseTecniche!J33,SpeseTecniche!L4) -> 0 | S113: =M113/MAX(1,SUM(M$113)) -> 0 | T113: =ROUND(S113*R$113*(1+U113),2) -> 0 | U113: =H113 -> 0 | V113: 0 | W113: 0 | X113: =MIN(M113,T113) -> 0 | Y113: 0 | Z113: =MIN(Y113,$G$140-$BA$140-SUM(Z$105:Z$108*N$105:N$108)-SUM(Z$110:Z112*N$110:N112))/N113 -> 0 | AA113: 0 | AB113: 0 | AC113: 0 | AD113: 0 | AE113: 0 | AF113: 0 | AH113: Compilazione scheda AeDES | AI113: =E113/(1+U113) -> 0 | AJ113: =X113/(1+U113) -> 0 | AK113: =MAX(0,AI113-AJ113) -> 0 | AL113: 0 | AM113: 0 | AN113: 0 | AO113: =MAX(0,J113-AM113) -> 0 | AP113: 0 | AQ113: 0 | AR113: =F113/100 -> 0.22 | AS113: 0 | AT113: 0 | AU113: 0 | AV113: 0 | AW113: 9
C114: Progetto Architettonico | E114: 0 | F114: 22 | G114: Ordine | H114: =VLOOKUP(G114,SpeseTecniche!F$53:G$64,2,FALSE) -> 0 | L114: 0 | M114: 0 | N114: 1.22 | O114: 0 | Q114: =M114/(1+H114) -> 0 | R114: =SpeseTecniche!L$4-R113 -> 3540 | S114: =M114/(1+U114)/MAX(1,SUM(M$114:M$118/(1+U$114:U$118))) -> 0 | T114: =ROUND(S114*R$114*(1+U114),2) -> 0 | U114: =H114 -> 0 | V114: 0 | W114: 0 | X114: 0 | Y114: 0 | Z114: =MIN(Y114,$G$140-$BA$140-SUM(Z$105:Z$108*N$105:N$108)-SUM(Z$110:Z113*N$110:N113))/N114 -> 0 | AA114: 0 | AB114: 0 | AC114: 0 | AD114: 0 | AE114: 0 | AF114: 0 | AH114: Progetto Architettonico | AI114: =E114/(1+U114) -> 0 | AJ114: =X114/(1+U114) -> 0 | AK114: =MAX(0,AI114-AJ114) -> 0 | AL114: 0 | AM114: 0 | AN114: 0 | AO114: 0 | AP114: 0 | AQ114: 0 | AR114: 0.22 | AS114: 0 | AT114: 0 | AU114: 0 | AV114: 0 | AW114: 10
C115: Progetto Strutture | E115: 0 | F115: 22 | G115: Ordine | H115: =VLOOKUP(G115,SpeseTecniche!F$53:G$64,2,FALSE) -> 0 | L115: 0 | M115: 0 | N115: 1.22 | O115: 0 | Q115: 0 | S115: =M115/(1+U115)/MAX(1,SUM(M$114:M$118/(1+U$114:U$118))) -> 0 | T115: =ROUND(S115*R$114*(1+U115),2) -> 0 | U115: 0 | V115: 0 | W115: 0 | X115: 0 | Y115: 0 | Z115: =MIN(Y115,$G$140-$BA$140-SUM(Z$105:Z$108*N$105:N$108)-SUM(Z$110:Z114*N$110:N114))/N115 -> 0 | AA115: 0 | AB115: 0 | AC115: 0 | AD115: 0 | AE115: 0 | AF115: 0 | AH115: Progetto Strutture | AI115: 0 | AJ115: 0 | AK115: 0 | AL115: 0 | AM115: 0 | AN115: 0 | AO115: 0 | AP115: 0 | AQ115: 0 | AR115: 0.22 | AS115: 0 | AT115: 0 | AU115: 0 | AV115: 0 | AW115: 11
C116: Progetto impianti elettrici | E116: 0 | F116: 22 | G116: Ordine | H116: =VLOOKUP(G116,SpeseTecniche!F$53:G$64,2,FALSE) -> 0 | L116: 0 | M116: 0 | N116: 1.22 | O116: 0 | Q116: 0 | S116: =M116/(1+U116)/MAX(1,SUM(M$114:M$118/(1+U$114:U$118))) -> 0 | T116: =ROUND(S116*R$114*(1+U116),2) -> 0 | U116: 0 | V116: 0 | W116: 0 | X116: 0 | Y116: 0 | Z116: =MIN(Y116,$G$140-$BA$140-SUM(Z$105:Z$108*N$105:N$108)-SUM(Z$110:Z115*N$110:N115))/N116 -> 0 | AA116: 0 | AB116: 0 | AC116: 0 | AD116: 0 | AE116: 0 | AF116: 0 | AH116: Progetto impianti elettrici | AI116: 0 | AJ116: 0 | AK116: 0 | AL116: 0 | AM116: 0 | AN116: 0 | AO116: 0 | AP116: 0 | AQ116: 0 | AR116: 0.22 | AS116: 0 | AT116: 0 | AU116: 0 | AV116: 0 | AW116: 12
C117: Progetto impianti termici | E117: 0 | F117: 22 | G117: Ordine | H117: =VLOOKUP(G117,SpeseTecniche!F$53:G$64,2,FALSE) -> 0 | L117: 0 | M117: 0 | N117: 1.22 | O117: 0 | Q117: 0 | S117: =M117/(1+U117)/MAX(1,SUM(M$114:M$118/(1+U$114:U$118))) -> 0 | T117: =ROUND(S117*R$114*(1+U117),2) -> 0 | U117: 0 | V117: 0 | W117: 0 | X117: 0 | Y117: 0 | Z117: =MIN(Y117,$G$140-$BA$140-SUM(Z$105:Z$108*N$105:N$108)-SUM(Z$110:Z116*N$110:N116))/N117 -> 0 | AA117: 0 | AB117: 0 | AC117: 0 | AD117: 0 | AE117: 0 | AF117: 0 | AH117: Progetto impianti termici | AI117: 0 | AJ117: 0 | AK117: 0 | AL117: 0 | AM117: 0 | AN117: 0 | AO117: 0 | AP117: 0 | AQ117: 0 | AR117: 0.22 | AS117: 0 | AT117: 0 | AU117: 0 | AV117: 0 | AW117: 13
C118: Altre progettazioni | E118: 0 | F118: 22 | G118: Ordine | H118: =VLOOKUP(G118,SpeseTecniche!F$53:G$64,2,FALSE) -> 0 | L118: 0 | M118: 0 | N118: 1.22 | O118: 0 | Q118: 0 | S118: =M118/(1+U118)/MAX(1,SUM(M$114:M$118/(1+U$114:U$118))) -> 0 | T118: =ROUND(S118*R$114*(1+U118),2) -> 0 | U118: 0 | V118: 0 | W118: 0 | X118: 0 | Y118: 0 | Z118: =MIN(Y118,$G$140-$BA$140-SUM(Z$105:Z$108*N$105:N$108)-SUM(Z$110:Z117*N$110:N117))/N118 -> 0 | AA118: 0 | AB118: 0 | AC118: 0 | AD118: 0 | AE118: 0 | AF118: 0 | AH118: Altre progettazioni | AI118: 0 | AJ118: 0 | AK118: 0 | AL118: 0 | AM118: 0 | AN118: 0 | AO118: 0 | AP118: 0 | AQ118: 0 | AR118: 0.22 | AS118: 0 | AT118: 0 | AU118: 0 | AV118: 0 | AW118: 14
C119: Sicurezza Progettazione | E119: 0 | F119: 22 | G119: Ordine | H119: =VLOOKUP(G119,SpeseTecniche!F$53:G$64,2,FALSE) -> 0 | L119: 0 | M119: 0 | N119: 1.22 | O119: 0 | Q119: 0 | R119: =SpeseTecniche!L$5 -> 0 | S119: =M119/(1+U119)/MAX(1,SUM(M$119:M$120/(1+U$119:U$120))) -> 0 | T119: =ROUND(S119*R$119*(1+U119),2) -> 0 | U119: 0 | V119: 0 | W119: 0 | X119: 0 | Y119: 0 | Z119: =MIN(Y119,$G$140-$BA$140-SUM(Z$105:Z$108*N$105:N$108)-SUM(Z$110:Z118*N$110:N118))/N119 -> 0 | AA119: 0 | AB119: 0 | AC119: 0 | AD119: 0 | AE119: 0 | AF119: 0 | AH119: Sicurezza Progettazione | AI119: 0 | AJ119: 0 | AK119: 0 | AL119: 0 | AM119: 0 | AN119: 0 | AO119: 0 | AP119: 0 | AQ119: 0 | AR119: 0.22 | AS119: 0 | AT119: 0 | AU119: 0 | AV119: 0 | AW119: 15
C120: Sicurezza Esecuzione | E120: 0 | F120: 22 | G120: Ordine | H120: =VLOOKUP(G120,SpeseTecniche!F$53:G$64,2,FALSE) -> 0 | L120: 0 | M120: 0 | N120: 1.22 | O120: 0 | Q120: 0 | S120: =M120/(1+U120)/MAX(1,SUM(M$119:M$120/(1+U$119:U$120))) -> 0 | T120: =ROUND(S120*R$119*(1+U120),2) -> 0 | U120: 0 | V120: 0 | W120: 0 | X120: 0 | Y120: 0 | Z120: =MIN(Y120,$G$140-$BA$140-SUM(Z$105:Z$108*N$105:N$108)-SUM(Z$110:Z119*N$110:N119))/N120 -> 0 | AA120: 0 | AB120: 0 | AC120: 0 | AD120: 0 | AE120: 0 | AF120: 0 | AH120: Sicurezza Esecuzione | AI120: 0 | AJ120: 0 | AK120: 0 | AL120: 0 | AM120: 0 | AN120: 0 | AO120: 0 | AP120: 0 | AQ120: 0 | AR120: 0.22 | AS120: 0 | AT120: 0 | AU120: 0 | AV120: 0 | AW120: 16
C121: Direzione Lavori architettonici | E121: 0 | F121: 22 | G121: Ordine | H121: =VLOOKUP(G121,SpeseTecniche!F$53:G$64,2,FALSE) -> 0 | L121: 0 | M121: 0 | N121: 1.22 | O121: 0 | Q121: 0 | R121: =SpeseTecniche!L$6 -> 2460 | S121: =M121/(1+U121)/MAX(1,SUM(M$121:M$122/(1+U$121:U$122))) -> 0 | T121: =ROUND(S121*R$121*(1+U121),2) -> 0 | U121: 0 | V121: 0 | W121: 0 | X121: 0 | Y121: 0 | Z121: =MIN(Y121,$G$140-$BA$140-SUM(Z$105:Z$108*N$105:N$108)-SUM(Z$110:Z120*N$110:N120))/N121 -> 0 | AA121: 0 | AB121: 0 | AC121: 0 | AD121: 0 | AE121: 0 | AF121: 0 | AH121: Direzione Lavori architettonici | AI121: 0 | AJ121: 0 | AK121: 0 | AL121: 0 | AM121: 0 | AN121: 0 | AO121: 0 | AP121: 0 | AQ121: 0 | AR121: 0.22 | AS121: 0 | AT121: 0 | AU121: 0 | AV121: 0 | AW121: 17
C122: Direzione Lavori strutturali | E122: 0 | F122: 22 | G122: Ordine | H122: =VLOOKUP(G122,SpeseTecniche!F$53:G$64,2,FALSE) -> 0 | L122: 0 | M122: 0 | N122: 1.22 | O122: 0 | Q122: 0 | S122: =M122/(1+U122)/MAX(1,SUM(M$121:M$122/(1+U$121:U$122))) -> 0 | T122: =ROUND(S122*R$121*(1+U122),2) -> 0 | U122: 0 | V122: 0 | W122: 0 | X122: 0 | Y122: 0 | Z122: =MIN(Y122,$G$140-$BA$140-SUM(Z$105:Z$108*N$105:N$108)-SUM(Z$110:Z121*N$110:N121))/N122 -> 0 | AA122: 0 | AB122: 0 | AC122: 0 | AD122: 0 | AE122: 0 | AF122: 0 | AH122: Direzione Lavori strutturali | AI122: 0 | AJ122: 0 | AK122: 0 | AL122: 0 | AM122: 0 | AN122: 0 | AO122: 0 | AP122: 0 | AQ122: 0 | AR122: 0.22 | AS122: 0 | AT122: 0 | AU122: 0 | AV122: 0 | AW122: 18
C123: Collaudo | E123: 0 | F123: 22 | G123: Ordine | H123: =VLOOKUP(G123,SpeseTecniche!F$53:G$64,2,FALSE) -> 0 | L123: 0 | M123: 0 | N123: 1.22 | O123: 0 | Q123: 0 | R123: =SpeseTecniche!L$7 -> 0 | S123: =M123/(1+U123)/MAX(1,SUM(M$123:M$124/(1+U$123:U$124))) -> 0 | T123: =ROUND(S123*R$123*(1+U123),2) -> 0 | U123: 0 | V123: 0 | W123: 0 | X123: 0 | Y123: 0 | Z123: =MIN(Y123,$G$140-$BA$140-SUM(Z$105:Z$108*N$105:N$108)-SUM(Z$110:Z122*N$110:N122))/N123 -> 0 | AA123: 0 | AB123: 0 | AC123: 0 | AD123: 0 | AE123: 0 | AF123: 0 | AH123: Collaudo | AI123: 0 | AJ123: 0 | AK123: 0 | AL123: 0 | AM123: 0 | AN123: 0 | AO123: 0 | AP123: 0 | AQ123: 0 | AR123: 0.22 | AS123: 0 | AT123: 0 | AU123: 0 | AV123: 0 | AW123: 19
C124: Certificazione energetica | E124: 0 | F124: 22 | G124: Ordine | H124: =VLOOKUP(G124,SpeseTecniche!F$53:G$64,2,FALSE) -> 0 | L124: 0 | M124: 0 | N124: 1.22 | O124: 0 | Q124: 0 | S124: =M124/(1+U124)/MAX(1,SUM(M$123:M$124/(1+U$123:U$124))) -> 0 | T124: =ROUND(S124*R$123*(1+U124),2) -> 0 | U124: 0 | V124: 0 | W124: 0 | X124: 0 | Y124: 0 | Z124: =MIN(Y124,$G$140-$BA$140-SUM(Z$105:Z$108*N$105:N$108)-SUM(Z$110:Z123*N$110:N123))/N124 -> 0 | AA124: 0 | AB124: 0 | AC124: 0 | AD124: 0 | AE124: 0 | AF124: 0 | AH124: Certificazione energetica | AI124: 0 | AJ124: 0 | AK124: 0 | AL124: 0 | AM124: 0 | AN124: 0 | AO124: 0 | AP124: 0 | AQ124: 0 | AR124: 0.22 | AS124: 0 | AT124: 0 | AU124: 0 | AV124: 0 | AW124: 20
C125: Relazione geologica | E125: 0 | F125: 22 | G125: Ordine | H125: =VLOOKUP(G125,SpeseTecniche!F$53:G$64,2,FALSE) -> 0 | L125: 0 | M125: 0 | N125: 1.22 | O125: 0 | Q125: 0 | R125: =SpeseTecniche!E$32 -> 0 | S125: =SpeseTecniche!H$35 -> 0 | T125: =ROUND(S125*R$125*(1+U125),2) -> 0 | U125: 0 | V125: 0 | W125: 0 | X125: 0 | Y125: 0 | Z125: =MIN(Y125,$G$140-$BA$140-SUM(Z$105:Z$108*N$105:N$108)-SUM(Z$110:Z124*N$110:N124))/N125 -> 0 | AA125: 0 | AB125: 0 | AC125: 0 | AD125: 0 | AE125: 0 | AF125: 0 | AH125: Relazione geologica | AI125: 0 | AJ125: 0 | AK125: 0 | AL125: 0 | AM125: 0 | AN125: 0 | AO125: 0 | AP125: 0 | AQ125: 0 | AR125: 0.22 | AS125: 0 | AT125: 0 | AU125: 0 | AV125: 0 | AW125: 21
C126: Progettazioni specialistiche | E126: 0 | F126: 22 | G126: Ordine | H126: =VLOOKUP(G126,SpeseTecniche!F$53:G$64,2,FALSE) -> 0 | L126: 0 | M126: 0 | N126: 1.22 | O126: 0 | Q126: 0 | S126: =SpeseTecniche!H$36 -> 0 | T126: =ROUND(S126*R$125*(1+U126),2) -> 0 | U126: 0 | V126: 0 | W126: 0 | X126: 0 | Y126: 0 | Z126: =MIN(Y126,$G$140-$BA$140-SUM(Z$105:Z$108*N$105:N$108)-SUM(Z$110:Z125*N$110:N125))/N126 -> 0 | AA126: 0 | AB126: 0 | AC126: 0 | AD126: 0 | AE126: 0 | AF126: 0 | AH126: Progettazioni specialistiche | AI126: 0 | AJ126: 0 | AK126: 0 | AL126: 0 | AM126: 0 | AN126: 0 | AO126: 0 | AP126: 0 | AQ126: 0 | AR126: 0.22 | AS126: 0 | AT126: 0 | AU126: 0 | AV126: 0 | AW126: 22
C127: Amministratore | E127: 0 | F127: 22 | L127: 0 | M127: 0 | N127: 1.22 | O127: 0 | R127: =SpeseTecniche!D$47 -> 2e-12 | S127: =M127/MAX(1,SUM(M$127)) -> 0 | T127: =ROUND(S127*R$127,2) -> 0 | V127: 0 | W127: 0 | X127: 0 | Y127: 0 | Z127: =MIN(Y127,$G$140-$BA$140-SUM(Z$105:Z$108*N$105:N$108)-SUM(Z$110:Z126*N$110:N126))/N127 -> 0 | AA127: 0 | AB127: 0 | AC127: 0 | AD127: 0 | AE127: 0 | AF127: 0 | AH127: Amministratore | AI127: =E127 -> 0 | AJ127: 0 | AK127: 0 | AL127: 0 | AM127: 0 | AN127: 0 | AO127: 0 | AP127: 0 | AQ127: 0 | AR127: 0.22 | AS127: 0 | AT127: 0 | AU127: 0 | AV127: 0 | AW127: 23
M128: =SUM(M105:M127) -> 1e-10 | O128: =SUM(O105:O127) -> 1.1e-10 | T128: =SUM(T105:T127) -> 0 | W128: =SUM(W105:W127) -> 1e-10 | X128: =SUM(X105:X127) -> 1e-10 | Y128: =SUM(Y105:Y127) -> 1.1e-10 | Z128: =SUM(Z105:Z127) -> 0 | AA128: 1e-33 | AB128: 1.1e-33 | AC128: 0 | AD128: =SUM(AD105:AD127) -> 1.1e-10 | AE128: =SUM(AE105:AE127) -> 0 | AF128: =SUM(AF105:AF127) -> 1.1e-33 | AH128: TOTALE PRESTAZIONI PROFESSIONALI | AI128: =SUM(AI113:AI127) -> 0 | AJ128: =SUM(AJ113:AJ127) -> 0 | AK128: 0 | AL128: 0 | AM128: =SUM(AM113:AM127) -> 0 | AN128: =SUM(AN113:AN127) -> 0 | AO128: =SUM(AO113:AO127) -> 0 | AP128: =SUM(AP113:AP127) -> 0 | AQ128: =SUM(AQ113:AQ127) -> 0 | AS128: =SUM(AS113:AS127) -> 0 | AT128: =SUM(AT113:AT127) -> 0 | AU128: =SUM(AU113:AU127) -> 0 | AV128: =SUM(AV113:AV127) -> 0 | AW128: somma 9:23
B129: Altre prestazioni professionali | AH129: TOTALE GENERALE | AI129: =AI104+AI128+SUM(AI110:AI112) -> 1e-10 | AJ129: =AJ104+AJ128+SUM(AJ110:AJ112) -> 1e-10 | AK129: 0 | AL129: =AL104+AL128+SUM(AL110:AL112) -> 1e-10 | AM129: =AM104+AM128+SUM(AM110:AM112) -> 1e-33 | AN129: =AN104+AN128+SUM(AN110:AN112) -> 1e-10 | AO129: =AO104+AO128+SUM(AO110:AO112) -> 1e-10 | AP129: =AP104+AP128+SUM(AP110:AP112) -> 0 | AQ129: =AQ104+AQ128+SUM(AQ110:AQ112) -> 1e-33 | AS129: =AS104+AS128+SUM(AS110:AS112) -> 1e-34 | AT129: =AT104+AT128+SUM(AT110:AT112) -> 1.1e-33 | AU129: =AU104+AU128+SUM(AU110:AU112) -> 0 | AV129: =AV104+AV128+SUM(AV110:AV112) -> 0
B130: Prestazioni | C130: Altre prestazioni professionali | D130: =SUM(D131:D135) -> 0 | E130: =IF(D130>0,"S","N") -> N | AH130: CONVENZIONALE (a) | AL130: =AL140 -> 4e-11
C131: Accatastamento | D131: =IF(E131="S",1,0) -> 0 | E131: N
C132: Relazioni ambientali | D132: =IF(E132="S",1,0) -> 0 | E132: N
C133: Rilievo geometrico-informatico | D133: =IF(E133="S",1,0) -> 0 | E133: N
C134: Rilievo storico-critico | D134: =IF(E134="S",1,0) -> 0 | E134: N
C135: Relazione geologica | D135: =IF(E135="S",1,0) -> 0 | E135: N
I137: =SUMIF(I$142:$I238,J137,X$142:X$241) -> 1e-13 | J137: Privata | AK137: Privata | AL137: =SUMIF($I$142:$I$241,$AK137,AL$142:AL$241) -> 4e-24 | AM137: =SUMIF($I$142:$I$241,$AK137,AM$142:AM$241) -> 1e-23 | AN137: 0 | AO137: 1e-23 | AP137: 1e-23 | AQ137: 0 | AR137: 1e-23 | AT137: =SUMIF($I$142:$I$241,$AK137,AT$142:AT$241) -> 1e-23 | AU137: 0 | AV137: 0 | AW137: 1e-23 | AX137: 0 | AY137: 1e-23 | AZ137: 0 | BA137: 0 | BB137: 1.1e-23 | BC137: 0 | BD137: 0 | BE137: 0 | BF137: 1.1e-23 | BG137: 0 | BH137: 1.1e-23 | BI137: 0 | BJ137: =SUMIF($I$142:$I$241,$AK137,BJ$142:BJ$241) -> 4e-11
I138: =SUMIF(I$142:$I239,J138,X$142:X$241) -> 0 | J138: Pubblica | AK138: Pubblica | AL138: 0 | AM138: 0 | AN138: 0 | AO138: 0 | AP138: 0 | AQ138: 0 | AR138: 0 | AT138: 0 | AU138: 0 | AV138: 0 | AW138: 0 | AX138: 0 | AY138: 0 | AZ138: 0 | BA138: 0 | BB138: 0 | BC138: 0 | BD138: 0 | BE138: 0 | BF138: 0 | BG138: 0 | BH138: 0 | BI138: 0 | BJ138: 0
I139: =SUMIF(I$142:$I240,J139,X$142:X$241) -> 0 | J139: ONLUS | AK139: ONLUS | AL139: 0 | AM139: 0 | AN139: 0 | AO139: 0 | AP139: 0 | AQ139: 0 | AR139: 0 | AT139: 0 | AU139: 0 | AV139: 0 | AW139: 0 | AX139: 0 | AY139: 0 | AZ139: 0 | BA139: 0 | BB139: 0 | BC139: 0 | BD139: 0 | BE139: 0 | BF139: 0 | BG139: 0 | BH139: 0 | BI139: 0 | BJ139: 0
A140: D1 | B140: UNITA IMMOBILIARI | E140: =AND(COUNTIF(E142:E241,"S")>0,COUNTIF(X142:X241,">0")>0) -> TRUE | G140: =SUM(G142:G241) -> 0 | H140: =SUM(H142:H241) -> 0 | K140: =IF(SUMIF(K$142:K$241,"S",$A$142:$A$241)>0,"S","N") -> N | L140: =SUM(L142:L241) -> 1e-13 | M140: =SUM(M142:M241) -> 0 | N140: =SUM(N142:N241) -> 0 | O140: =SUM(O142:O241) -> 0 | V140: =SUM(V142:V241) -> 1e-13 | W140: =SUM(W142:W241) -> 0 | X140: =SUM(X142:X241) -> 1e-13 | Z140: Principale | AD140: Pertinenza esterna | AH140: =SUM(AH142:AH241*$X142:$X241) -> 4e-11 | AI140: =SUM(AI142:AI241*$X142:$X241) -> 3.3e-11 | AJ140: =SUM(AJ142:AJ241*$X142:$X241) -> 3e-11 | AK140: =SUM(AK142:AK241*$X142:$X241) -> 3e-11 | AL140: =BJ140 -> 4e-11 | AM140: =SUM(AM142:AM241) -> 1e-23 | AN140: 0 | AO140: =SUM(AO142:AO241) -> 1e-23 | AP140: =SUM(AP142:AP241) -> 1e-23 | AQ140: =SUM(AQ142:AQ241) -> 0 | AR140: =SUM(AR142:AR241) -> 1e-23 | AS140: =IF(SUMIF(AS$142:AS$241,"<1",$A$142:$A$241)>0,"S","N") -> N | AT140: =SUM(AT142:AT241) -> 1e-23 | AU140: =SUM(AU142:AU241) -> 0 | AV140: =SUM(AV142:AV241) -> 0 | AW140: =SUM(AW142:AW241) -> 1e-23 | AX140: 0 | AY140: 1e-23 | AZ140: =SUM(AZ142:AZ241) -> 0 | BA140: =SUM(BA142:BA241) -> 0 | BB140: =SUM(BB142:BB241) -> 1.1e-23 | BC140: =SUM(BC142:BC241) -> 0 | BD140: 0 | BE140: 0 | BF140: 1.1e-23 | BG140: =SUM(BG142:BG241) -> 0 | BH140: =SUM(BH142:BH241) -> 1.1e-23 | BI140: =SUM(BI142:BI241) -> 0 | BJ140: =SUM(BJ142:BJ241) -> 4e-11
A141: COMUNI | B141: INTERNI | C141: UI | D141: Edificio | E141: Principale | F141: Destinazione | G141: Importo Assicurazione | H141: Importo Finiture | I141: Proprieta | J141: IVA | K141: IVA Detraibile | L141: SuAbit | M141: SuPertInt | N141: SuPertEst | O141: SuPartiComuni | P141: Magazzino | Q141: Classe II | R141: Livello | S141: Mvincolo | T141: Mabitazione | U141: MperEst | V141: Sabitazione | W141: SperEst | X141: Sup% | Y141: IdParametrico | Z141: G1 | AA141: G2 | AB141: G3 | AC141: G4 | AD141: G1 | AE141: G2 | AF141: G3 | AG141: G4 | AH141: CP1 | AI141: CP2 | AJ141: CP3 | AK141: CP4 | AL141: Ponderale | AM141: PreCom | AN141: PreInt | AO141: PreTOT | AP141: PostCom | AQ141: PostInt | AR141: PosTOT | AS141: Param% | AT141: ContrPreAss | AU141: AssiCom | AV141: AssiInt | AW141: ContrCom | AX141: ContrInt | AY141: ConTOT | AZ141: AssComIVA | BA141: AssIntIVA | BB141: ContComIVA | BC141: ConIntIVA | BD141: AccIntIVA | BE141: AccComIVA | BF141: PreComIVA | BG141: PreIntIVA | BH141: PostComIVA | BI141: PostIntIVA | BJ141: Parametrico | BK141: IVAint
A142: =IF($E142="S",I$9,I$10) -> 1 | B142: =IF($E142="S",J$9,J$10) -> 1 | C142: 1 | D142: 1 | E142: S | F142: A - Abitativo | G142: 0 | H142: 0 | I142: Privata | J142: 10 | K142: N | L142: 1e-13 | M142: 0 | N142: 0 | O142: 0 | P142: N | Q142: N | R142: =E$23 -> L0 | S142: =$F$50 -> 0 | T142: =$H$60+IF(AND($D$20="P",OR(MID(F142,1,1)="A",MID(F142,1,1)="D")),80%,0) -> 0 | U142: =$G$60 -> 0 | V142: =SUM(L142:M142,O142) -> 1e-13 | W142: =MIN(70%*L142,N142) -> 0 | X142: =(V142+W142)/MAX(1,(V$140+W$140)) -> 1e-13 | Y142: =IF($D$22="DC",$F$22,$E$20&"-"&R142) -> Abitativa-L0 | Z142: =MAX(0,(V142)-AA142-AB142-AC142) -> 1e-13 | AA142: =MAX(0,(V142)-INDEX(CostoParametrico!$E$3:$L$18,MATCH($Y142,CostoParametrico!$D$3:$D$18,0),1)-AB142-AC142)*IF(AND($D$20="A",MID($F142,1,1)<>"A"),0%,100%) -> 0 | AB142: =MAX(0,(V142)-INDEX(CostoParametrico!$E$3:$L$18,MATCH($Y142,CostoParametrico!$D$3:$D$18,0),2)-AC142)*IF(AND($D$20="A",MID($F142,1,1)<>"A"),0%,100%) -> 0 | AC142: =MAX(0,(V142)-INDEX(CostoParametrico!$E$3:$L$18,MATCH($Y142,CostoParametrico!$D$3:$D$18,0),3))*IF(AND($D$20="A",MID($F142,1,1)<>"A"),0%,100%) -> 0 | AD142: =MAX(0,(W142)-AC142-AE142-AF142-AG142) -> 0 | AE142: =MAX(0,(V142+W142)-INDEX(CostoParametrico!$E$3:$L$18,MATCH($Y142,CostoParametrico!$D$3:$D$18,0),1)-AA142-AB142-AC142-AF142-AG142)*IF(AND($D$20="A",MID($F142,1,1)<>"A"),0%,100%) -> 0 | AF142: =MAX(0,(V142+W142)-INDEX(CostoParametrico!$E$3:$L$18,MATCH($Y142,CostoParametrico!$D$3:$D$18,0),2)-AB142-AC142-AG142)*IF(AND($D$20="A",MID(F142,1,1)<>"A"),0%,100%) -> 0 | AG142: =MAX(0,(V142+W142)-INDEX(CostoParametrico!$E$3:$L$18,MATCH($Y142,CostoParametrico!$D$3:$D$18,0),3)-AC142)*IF(AND($D$20="A",MID(F142,1,1)<>"A"),0%,100%) -> 0 | AH142: =INDEX(CostoParametrico!$E$3:$L$18,MATCH($Y142,CostoParametrico!$D$3:$D$18,0),5) -> 400 | AI142: =INDEX(CostoParametrico!$E$3:$L$18,MATCH($Y142,CostoParametrico!$D$3:$D$18,0),6) -> 330 | AJ142: =INDEX(CostoParametrico!$E$3:$L$18,MATCH($Y142,CostoParametrico!$D$3:$D$18,0),7) -> 300 | AK142: =INDEX(CostoParametrico!$E$3:$L$18,MATCH($Y142,CostoParametrico!$D$3:$D$18,0),8) -> 300 | AL142: =((1+S142+T142)*(Z142*AH$140+AA142*AI$140+AB142*AJ$140+AC142*AK$140) +(1+S142+U142)*(AD142*AH$140+AE142*AI$140+AF142*AJ$140+AG142*AK$140)) *(1+IF(P142="N",0,$G$48)) *(1+IF(AND(BM142="L4",$D$23="DR",$E$25="S",$E$70="S"),30%,0)) *IF(AND($D$20="P",MID(F142,1,1)="A"),180%,100%) -> 4e-24 | AM142: =($M$128-$M$109)*X142 -> 1e-23 | AN142: =H142*(1-M$102) -> 0 | AO142: =AM142+AN142 -> 1e-23 | AP142: =$X142*($X$128-$X$109) -> 1e-23 | AQ142: =IF($H$140>0,V$109,0)*AN142 -> 0 | AR142: =AP142+AQ142 -> 1e-23 | AS142: =MIN(1,MAX(AL142,1)/MAX(AR142,1)) -> 1 | AT142: =(AP142*A142+AQ142*B142)*AS142 -> 1e-23 | AU142: =AZ142*(Z$128-Z$109)/MAX(10^-12,AC$128-AC$109) -> 0 | AV142: =BA142/BK142 -> 0 | AW142: =MAX(0,MIN(AP142,AT142)-AU142) -> 1e-23 | AX142: =MAX(0,MIN(AQ142,AT142-AW142)-AV142) -> 0 | AY142: =MAX(0,AT142-AU142-AV142) -> 1e-23 | AZ142: =MAX(0,MIN(A142*AP142*AS142*($Y$128-$Y$109)/($X$128-$X$109),G142-BA142)) -> 0 | BA142: =MAX(0,MIN(B142*AQ142*BK142,G142)) -> 0 | BB142: =MAX(0,MIN(AP142,AT142)*($Y$128-$Y$109)/($X$128-$X$109)-AZ142) -> 1.1e-23 | BC142: =MAX(0,AX142*BK142-BA142) -> 0 | BD142: =AN142*(1+J142/100)-BC142-BA142 -> 0 | BE142: =AM142*($O$128-$O$109)/($M$128-$M$109)-(BB142+AZ142) -> 0 | BF142: =AM142*($O$128-$O$109)/($M$128-$M$109) -> 1.1e-23 | BG142: =AN142*(1+J142/100) -> 0 | BH142: =$X142*($Y$128-$Y$109) -> 1.1e-23 | BI142: =AQ142*(1+J142/100) -> 0 | BJ142: =((1+S142+T142)*(Z142*AH142+AA142*AI142+AB142*AJ142+AC142*AK142) +(1+S142+U142)*(AD142*AH142+AE142*AI142+AF142*AJ142+AG142*AK142)) *(1+IF(P142="N",0,$G$48)) *(1+IF(AND(R142="L4",$D$23="DR",$E$25="S",$E$70="S"),30%,0)) -> 4e-11 | BK142: =(1+J142/100*(1-IF(K142="N",0,IF($F$19=0,1,$F$19)))) -> 1.1
A143: 1 | B143: 1 | C143: 2 | D143: 1 | E143: N | F143: A - Abitativo | G143: 0 | H143: 0 | I143: Privata | J143: 10 | K143: N | L143: 0 | M143: 0 | N143: 0 | O143: 0 | P143: N | Q143: N | R143: =E$23 -> L0 | S143: 0 | T143: =$H$60+IF(AND($D$20="P",OR(MID(F143,1,1)="A",MID(F143,1,1)="D")),80%,0) -> 0 | U143: 0 | V143: 0 | W143: 0 | X143: =(V143+W143)/MAX(1,(V$140+W$140)) -> 0 | Y143: Abitativa-L0 | Z143: =MAX(0,(V143)-AA143-AB143-AC143) -> 0 | AA143: =MAX(0,(V143)-INDEX(CostoParametrico!$E$3:$L$18,MATCH($Y143,CostoParametrico!$D$3:$D$18,0),1)-AB143-AC143)*IF(AND($D$20="A",MID($F143,1,1)<>"A"),0%,100%) -> 0 | AB143: =MAX(0,(V143)-INDEX(CostoParametrico!$E$3:$L$18,MATCH($Y143,CostoParametrico!$D$3:$D$18,0),2)-AC143)*IF(AND($D$20="A",MID($F143,1,1)<>"A"),0%,100%) -> 0 | AC143: =MAX(0,(V143)-INDEX(CostoParametrico!$E$3:$L$18,MATCH($Y143,CostoParametrico!$D$3:$D$18,0),3))*IF(AND($D$20="A",MID($F143,1,1)<>"A"),0%,100%) -> 0 | AD143: =MAX(0,(W143)-AC143-AE143-AF143-AG143) -> 0 | AE143: =MAX(0,(V143+W143)-INDEX(CostoParametrico!$E$3:$L$18,MATCH($Y143,CostoParametrico!$D$3:$D$18,0),1)-AA143-AB143-AC143-AF143-AG143)*IF(AND($D$20="A",MID($F143,1,1)<>"A"),0%,100%) -> 0 | AF143: =MAX(0,(V143+W143)-INDEX(CostoParametrico!$E$3:$L$18,MATCH($Y143,CostoParametrico!$D$3:$D$18,0),2)-AB143-AC143-AG143)*IF(AND($D$20="A",MID(F143,1,1)<>"A"),0%,100%) -> 0 | AG143: =MAX(0,(V143+W143)-INDEX(CostoParametrico!$E$3:$L$18,MATCH($Y143,CostoParametrico!$D$3:$D$18,0),3)-AC143)*IF(AND($D$20="A",MID(F143,1,1)<>"A"),0%,100%) -> 0 | AH143: =INDEX(CostoParametrico!$E$3:$L$18,MATCH($Y143,CostoParametrico!$D$3:$D$18,0),5) -> 400 | AI143: =INDEX(CostoParametrico!$E$3:$L$18,MATCH($Y143,CostoParametrico!$D$3:$D$18,0),6) -> 330 | AJ143: =INDEX(CostoParametrico!$E$3:$L$18,MATCH($Y143,CostoParametrico!$D$3:$D$18,0),7) -> 300 | AK143: =INDEX(CostoParametrico!$E$3:$L$18,MATCH($Y143,CostoParametrico!$D$3:$D$18,0),8) -> 300 | AL143: =((1+S143+T143)*(Z143*AH$140+AA143*AI$140+AB143*AJ$140+AC143*AK$140) +(1+S143+U143)*(AD143*AH$140+AE143*AI$140+AF143*AJ$140+AG143*AK$140)) *(1+IF(P143="N",0,$G$48)) *(1+IF(AND(BM143="L4",$D$23="DR",$E$25="S",$E$70="S"),30%,0)) *IF(AND($D$20="P",MID(F143,1,1)="A"),180%,100%) -> 0 | AM143: 0 | AN143: =H143*(1-M$102) -> 0 | AO143: 0 | AP143: 0 | AQ143: =IF($H$140>0,V$109,0)*AN143 -> 0 | AR143: 0 | AS143: 1 | AT143: =(AP143*A143+AQ143*B143)*AS143 -> 0 | AU143: =AZ143*(Z$128-Z$109)/MAX(10^-12,AC$128-AC$109) -> 0 | AV143: 0 | AW143: =MAX(0,MIN(AP143,AT143)-AU143) -> 0 | AX143: =MAX(0,MIN(AQ143,AT143-AW143)-AV143) -> 0 | AY143: =MAX(0,AT143-AU143-AV143) -> 0 | AZ143: =MAX(0,MIN(A143*AP143*AS143*($Y$128-$Y$109)/($X$128-$X$109),G143-BA143)) -> 0 | BA143: =MAX(0,MIN(B143*AQ143*BK143,G143)) -> 0 | BB143: =MAX(0,MIN(AP143,AT143)*($Y$128-$Y$109)/($X$128-$X$109)-AZ143) -> 0 | BC143: =MAX(0,AX143*BK143-BA143) -> 0 | BD143: =AN143*(1+J143/100)-BC143-BA143 -> 0 | BE143: =AM143*($O$128-$O$109)/($M$128-$M$109)-(BB143+AZ143) -> 0 | BF143: =AM143*($O$128-$O$109)/($M$128-$M$109) -> 0 | BG143: 0 | BH143: =$X143*($Y$128-$Y$109) -> 0 | BI143: =AQ143*(1+J143/100) -> 0 | BJ143: =((1+S143+T143)*(Z143*AH143+AA143*AI143+AB143*AJ143+AC143*AK143) +(1+S143+U143)*(AD143*AH143+AE143*AI143+AF143*AJ143+AG143*AK143)) *(1+IF(P143="N",0,$G$48)) *(1+IF(AND(R143="L4",$D$23="DR",$E$25="S",$E$70="S"),30%,0)) -> 0 | BK143: 1.1
A144: 1 | B144: 1 | C144: 3 | D144: 1 | E144: N | F144: A - Abitativo | G144: 0 | H144: 0 | I144: Privata | J144: 10 | K144: N | L144: 0 | M144: 0 | N144: 0 | O144: 0 | P144: N | Q144: N | R144: L0 | S144: 0 | T144: 0 | U144: 0 | V144: 0 | W144: 0 | X144: 0 | Y144: Abitativa-L0 | Z144: 0 | AA144: =MAX(0,(V144)-INDEX(CostoParametrico!$E$3:$L$18,MATCH($Y144,CostoParametrico!$D$3:$D$18,0),1)-AB144-AC144)*IF(AND($D$20="A",MID($F144,1,1)<>"A"),0%,100%) -> 0 | AB144: =MAX(0,(V144)-INDEX(CostoParametrico!$E$3:$L$18,MATCH($Y144,CostoParametrico!$D$3:$D$18,0),2)-AC144)*IF(AND($D$20="A",MID($F144,1,1)<>"A"),0%,100%) -> 0 | AC144: =MAX(0,(V144)-INDEX(CostoParametrico!$E$3:$L$18,MATCH($Y144,CostoParametrico!$D$3:$D$18,0),3))*IF(AND($D$20="A",MID($F144,1,1)<>"A"),0%,100%) -> 0 | AD144: 0 | AE144: =MAX(0,(V144+W144)-INDEX(CostoParametrico!$E$3:$L$18,MATCH($Y144,CostoParametrico!$D$3:$D$18,0),1)-AA144-AB144-AC144-AF144-AG144)*IF(AND($D$20="A",MID($F144,1,1)<>"A"),0%,100%) -> 0 | AF144: =MAX(0,(V144+W144)-INDEX(CostoParametrico!$E$3:$L$18,MATCH($Y144,CostoParametrico!$D$3:$D$18,0),2)-AB144-AC144-AG144)*IF(AND($D$20="A",MID(F144,1,1)<>"A"),0%,100%) -> 0 | AG144: =MAX(0,(V144+W144)-INDEX(CostoParametrico!$E$3:$L$18,MATCH($Y144,CostoParametrico!$D$3:$D$18,0),3)-AC144)*IF(AND($D$20="A",MID(F144,1,1)<>"A"),0%,100%) -> 0 | AH144: =INDEX(CostoParametrico!$E$3:$L$18,MATCH($Y144,CostoParametrico!$D$3:$D$18,0),5) -> 400 | AI144: =INDEX(CostoParametrico!$E$3:$L$18,MATCH($Y144,CostoParametrico!$D$3:$D$18,0),6) -> 330 | AJ144: =INDEX(CostoParametrico!$E$3:$L$18,MATCH($Y144,CostoParametrico!$D$3:$D$18,0),7) -> 300 | AK144: =INDEX(CostoParametrico!$E$3:$L$18,MATCH($Y144,CostoParametrico!$D$3:$D$18,0),8) -> 300 | AL144: 0 | AM144: 0 | AN144: 0 | AO144: 0 | AP144: 0 | AQ144: 0 | AR144: 0 | AS144: 1 | AT144: 0 | AU144: 0 | AV144: 0 | AW144: 0 | AX144: 0 | AY144: 0 | AZ144: 0 | BA144: 0 | BB144: 0 | BC144: 0 | BD144: 0 | BE144: 0 | BF144: 0 | BG144: 0 | BH144: 0 | BI144: 0 | BJ144: 0 | BK144: 1.1
A145: 1 | B145: 1 | C145: 4 | D145: 1 | E145: N | F145: A - Abitativo | G145: 0 | H145: 0 | I145: Privata | J145: 10 | K145: N | L145: 0 | M145: 0 | N145: 0 | O145: 0 | P145: N | Q145: N | R145: L0 | S145: 0 | T145: 0 | U145: 0 | V145: 0 | W145: 0 | X145: 0 | Y145: Abitativa-L0 | Z145: 0 | AA145: =MAX(0,(V145)-INDEX(CostoParametrico!$E$3:$L$18,MATCH($Y145,CostoParametrico!$D$3:$D$18,0),1)-AB145-AC145)*IF(AND($D$20="A",MID($F145,1,1)<>"A"),0%,100%) -> 0 | AB145: =MAX(0,(V145)-INDEX(CostoParametrico!$E$3:$L$18,MATCH($Y145,CostoParametrico!$D$3:$D$18,0),2)-AC145)*IF(AND($D$20="A",MID($F145,1,1)<>"A"),0%,100%) -> 0 | AC145: =MAX(0,(V145)-INDEX(CostoParametrico!$E$3:$L$18,MATCH($Y145,CostoParametrico!$D$3:$D$18,0),3))*IF(AND($D$20="A",MID($F145,1,1)<>"A"),0%,100%) -> 0 | AD145: 0 | AE145: =MAX(0,(V145+W145)-INDEX(CostoParametrico!$E$3:$L$18,MATCH($Y145,CostoParametrico!$D$3:$D$18,0),1)-AA145-AB145-AC145-AF145-AG145)*IF(AND($D$20="A",MID($F145,1,1)<>"A"),0%,100%) -> 0 | AF145: =MAX(0,(V145+W145)-INDEX(CostoParametrico!$E$3:$L$18,MATCH($Y145,CostoParametrico!$D$3:$D$18,0),2)-AB145-AC145-AG145)*IF(AND($D$20="A",MID(F145,1,1)<>"A"),0%,100%) -> 0 | AG145: =MAX(0,(V145+W145)-INDEX(CostoParametrico!$E$3:$L$18,MATCH($Y145,CostoParametrico!$D$3:$D$18,0),3)-AC145)*IF(AND($D$20="A",MID(F145,1,1)<>"A"),0%,100%) -> 0 | AH145: =INDEX(CostoParametrico!$E$3:$L$18,MATCH($Y145,CostoParametrico!$D$3:$D$18,0),5) -> 400 | AI145: =INDEX(CostoParametrico!$E$3:$L$18,MATCH($Y145,CostoParametrico!$D$3:$D$18,0),6) -> 330 | AJ145: =INDEX(CostoParametrico!$E$3:$L$18,MATCH($Y145,CostoParametrico!$D$3:$D$18,0),7) -> 300 | AK145: =INDEX(CostoParametrico!$E$3:$L$18,MATCH($Y145,CostoParametrico!$D$3:$D$18,0),8) -> 300 | AL145: 0 | AM145: 0 | AN145: 0 | AO145: 0 | AP145: 0 | AQ145: 0 | AR145: 0 | AS145: 1 | AT145: 0 | AU145: 0 | AV145: 0 | AW145: 0 | AX145: 0 | AY145: 0 | AZ145: 0 | BA145: 0 | BB145: 0 | BC145: 0 | BD145: 0 | BE145: 0 | BF145: 0 | BG145: 0 | BH145: 0 | BI145: 0 | BJ145: 0 | BK145: 1.1
A146: 1 | B146: 1 | C146: 5 | D146: 1 | E146: N | F146: A - Abitativo | G146: 0 | H146: 0 | I146: Privata | J146: 10 | K146: N | L146: 0 | M146: 0 | N146: 0 | O146: 0 | P146: N | Q146: N | R146: L0 | S146: 0 | T146: 0 | U146: 0 | V146: 0 | W146: 0 | X146: 0 | Y146: Abitativa-L0 | Z146: 0 | AA146: =MAX(0,(V146)-INDEX(CostoParametrico!$E$3:$L$18,MATCH($Y146,CostoParametrico!$D$3:$D$18,0),1)-AB146-AC146)*IF(AND($D$20="A",MID($F146,1,1)<>"A"),0%,100%) -> 0 | AB146: =MAX(0,(V146)-INDEX(CostoParametrico!$E$3:$L$18,MATCH($Y146,CostoParametrico!$D$3:$D$18,0),2)-AC146)*IF(AND($D$20="A",MID($F146,1,1)<>"A"),0%,100%) -> 0 | AC146: =MAX(0,(V146)-INDEX(CostoParametrico!$E$3:$L$18,MATCH($Y146,CostoParametrico!$D$3:$D$18,0),3))*IF(AND($D$20="A",MID($F146,1,1)<>"A"),0%,100%) -> 0 | AD146: 0 | AE146: =MAX(0,(V146+W146)-INDEX(CostoParametrico!$E$3:$L$18,MATCH($Y146,CostoParametrico!$D$3:$D$18,0),1)-AA146-AB146-AC146-AF146-AG146)*IF(AND($D$20="A",MID($F146,1,1)<>"A"),0%,100%) -> 0 | AF146: =MAX(0,(V146+W146)-INDEX(CostoParametrico!$E$3:$L$18,MATCH($Y146,CostoParametrico!$D$3:$D$18,0),2)-AB146-AC146-AG146)*IF(AND($D$20="A",MID(F146,1,1)<>"A"),0%,100%) -> 0 | AG146: =MAX(0,(V146+W146)-INDEX(CostoParametrico!$E$3:$L$18,MATCH($Y146,CostoParametrico!$D$3:$D$18,0),3)-AC146)*IF(AND($D$20="A",MID(F146,1,1)<>"A"),0%,100%) -> 0 | AH146: =INDEX(CostoParametrico!$E$3:$L$18,MATCH($Y146,CostoParametrico!$D$3:$D$18,0),5) -> 400 | AI146: =INDEX(CostoParametrico!$E$3:$L$18,MATCH($Y146,CostoParametrico!$D$3:$D$18,0),6) -> 330 | AJ146: =INDEX(CostoParametrico!$E$3:$L$18,MATCH($Y146,CostoParametrico!$D$3:$D$18,0),7) -> 300 | AK146: =INDEX(CostoParametrico!$E$3:$L$18,MATCH($Y146,CostoParametrico!$D$3:$D$18,0),8) -> 300 | AL146: 0 | AM146: 0 | AN146: 0 | AO146: 0 | AP146: 0 | AQ146: 0 | AR146: 0 | AS146: 1 | AT146: 0 | AU146: 0 | AV146: 0 | AW146: 0 | AX146: 0 | AY146: 0 | AZ146: 0 | BA146: 0 | BB146: 0 | BC146: 0 | BD146: 0 | BE146: 0 | BF146: 0 | BG146: 0 | BH146: 0 | BI146: 0 | BJ146: 0 | BK146: 1.1
A147: 1 | B147: 1 | C147: 6 | D147: 1 | E147: N | F147: A - Abitativo | G147: 0 | H147: 0 | I147: Privata | J147: 10 | K147: N | L147: 0 | M147: 0 | N147: 0 | O147: 0 | P147: N | Q147: N | R147: L0 | S147: 0 | T147: 0 | U147: 0 | V147: 0 | W147: 0 | X147: 0 | Y147: Abitativa-L0 | Z147: 0 | AA147: =MAX(0,(V147)-INDEX(CostoParametrico!$E$3:$L$18,MATCH($Y147,CostoParametrico!$D$3:$D$18,0),1)-AB147-AC147)*IF(AND($D$20="A",MID($F147,1,1)<>"A"),0%,100%) -> 0 | AB147: =MAX(0,(V147)-INDEX(CostoParametrico!$E$3:$L$18,MATCH($Y147,CostoParametrico!$D$3:$D$18,0),2)-AC147)*IF(AND($D$20="A",MID($F147,1,1)<>"A"),0%,100%) -> 0 | AC147: =MAX(0,(V147)-INDEX(CostoParametrico!$E$3:$L$18,MATCH($Y147,CostoParametrico!$D$3:$D$18,0),3))*IF(AND($D$20="A",MID($F147,1,1)<>"A"),0%,100%) -> 0 | AD147: 0 | AE147: =MAX(0,(V147+W147)-INDEX(CostoParametrico!$E$3:$L$18,MATCH($Y147,CostoParametrico!$D$3:$D$18,0),1)-AA147-AB147-AC147-AF147-AG147)*IF(AND($D$20="A",MID($F147,1,1)<>"A"),0%,100%) -> 0 | AF147: =MAX(0,(V147+W147)-INDEX(CostoParametrico!$E$3:$L$18,MATCH($Y147,CostoParametrico!$D$3:$D$18,0),2)-AB147-AC147-AG147)*IF(AND($D$20="A",MID(F147,1,1)<>"A"),0%,100%) -> 0 | AG147: =MAX(0,(V147+W147)-INDEX(CostoParametrico!$E$3:$L$18,MATCH($Y147,CostoParametrico!$D$3:$D$18,0),3)-AC147)*IF(AND($D$20="A",MID(F147,1,1)<>"A"),0%,100%) -> 0 | AH147: =INDEX(CostoParametrico!$E$3:$L$18,MATCH($Y147,CostoParametrico!$D$3:$D$18,0),5) -> 400 | AI147: =INDEX(CostoParametrico!$E$3:$L$18,MATCH($Y147,CostoParametrico!$D$3:$D$18,0),6) -> 330 | AJ147: =INDEX(CostoParametrico!$E$3:$L$18,MATCH($Y147,CostoParametrico!$D$3:$D$18,0),7) -> 300 | AK147: =INDEX(CostoParametrico!$E$3:$L$18,MATCH($Y147,CostoParametrico!$D$3:$D$18,0),8) -> 300 | AL147: 0 | AM147: 0 | AN147: 0 | AO147: 0 | AP147: 0 | AQ147: 0 | AR147: 0 | AS147: 1 | AT147: 0 | AU147: 0 | AV147: 0 | AW147: 0 | AX147: 0 | AY147: 0 | AZ147: 0 | BA147: 0 | BB147: 0 | BC147: 0 | BD147: 0 | BE147: 0 | BF147: 0 | BG147: 0 | BH147: 0 | BI147: 0 | BJ147: 0 | BK147: 1.1
A148: 1 | B148: 1 | C148: 7 | D148: 1 | E148: N | F148: A - Abitativo | G148: 0 | H148: 0 | I148: Privata | J148: 10 | K148: N | L148: 0 | M148: 0 | N148: 0 | O148: 0 | P148: N | Q148: N | R148: L0 | S148: 0 | T148: 0 | U148: 0 | V148: 0 | W148: 0 | X148: 0 | Y148: Abitativa-L0 | Z148: 0 | AA148: =MAX(0,(V148)-INDEX(CostoParametrico!$E$3:$L$18,MATCH($Y148,CostoParametrico!$D$3:$D$18,0),1)-AB148-AC148)*IF(AND($D$20="A",MID($F148,1,1)<>"A"),0%,100%) -> 0 | AB148: =MAX(0,(V148)-INDEX(CostoParametrico!$E$3:$L$18,MATCH($Y148,CostoParametrico!$D$3:$D$18,0),2)-AC148)*IF(AND($D$20="A",MID($F148,1,1)<>"A"),0%,100%) -> 0 | AC148: =MAX(0,(V148)-INDEX(CostoParametrico!$E$3:$L$18,MATCH($Y148,CostoParametrico!$D$3:$D$18,0),3))*IF(AND($D$20="A",MID($F148,1,1)<>"A"),0%,100%) -> 0 | AD148: 0 | AE148: =MAX(0,(V148+W148)-INDEX(CostoParametrico!$E$3:$L$18,MATCH($Y148,CostoParametrico!$D$3:$D$18,0),1)-AA148-AB148-AC148-AF148-AG148)*IF(AND($D$20="A",MID($F148,1,1)<>"A"),0%,100%) -> 0 | AF148: =MAX(0,(V148+W148)-INDEX(CostoParametrico!$E$3:$L$18,MATCH($Y148,CostoParametrico!$D$3:$D$18,0),2)-AB148-AC148-AG148)*IF(AND($D$20="A",MID(F148,1,1)<>"A"),0%,100%) -> 0 | AG148: =MAX(0,(V148+W148)-INDEX(CostoParametrico!$E$3:$L$18,MATCH($Y148,CostoParametrico!$D$3:$D$18,0),3)-AC148)*IF(AND($D$20="A",MID(F148,1,1)<>"A"),0%,100%) -> 0 | AH148: =INDEX(CostoParametrico!$E$3:$L$18,MATCH($Y148,CostoParametrico!$D$3:$D$18,0),5) -> 400 | AI148: =INDEX(CostoParametrico!$E$3:$L$18,MATCH($Y148,CostoParametrico!$D$3:$D$18,0),6) -> 330 | AJ148: =INDEX(CostoParametrico!$E$3:$L$18,MATCH($Y148,CostoParametrico!$D$3:$D$18,0),7) -> 300 | AK148: =INDEX(CostoParametrico!$E$3:$L$18,MATCH($Y148,CostoParametrico!$D$3:$D$18,0),8) -> 300 | AL148: 0 | AM148: 0 | AN148: 0 | AO148: 0 | AP148: 0 | AQ148: 0 | AR148: 0 | AS148: 1 | AT148: 0 | AU148: 0 | AV148: 0 | AW148: 0 | AX148: 0 | AY148: 0 | AZ148: 0 | BA148: 0 | BB148: 0 | BC148: 0 | BD148: 0 | BE148: 0 | BF148: 0 | BG148: 0 | BH148: 0 | BI148: 0 | BJ148: 0 | BK148: 1.1
A149: 1 | B149: 1 | C149: 8 | D149: 1 | E149: N | F149: A - Abitativo | G149: 0 | H149: 0 | I149: Privata | J149: 10 | K149: N | L149: 0 | M149: 0 | N149: 0 | O149: 0 | P149: N | Q149: N | R149: L0 | S149: 0 | T149: 0 | U149: 0 | V149: 0 | W149: 0 | X149: 0 | Y149: Abitativa-L0 | Z149: 0 | AA149: =MAX(0,(V149)-INDEX(CostoParametrico!$E$3:$L$18,MATCH($Y149,CostoParametrico!$D$3:$D$18,0),1)-AB149-AC149)*IF(AND($D$20="A",MID($F149,1,1)<>"A"),0%,100%) -> 0 | AB149: =MAX(0,(V149)-INDEX(CostoParametrico!$E$3:$L$18,MATCH($Y149,CostoParametrico!$D$3:$D$18,0),2)-AC149)*IF(AND($D$20="A",MID($F149,1,1)<>"A"),0%,100%) -> 0 | AC149: =MAX(0,(V149)-INDEX(CostoParametrico!$E$3:$L$18,MATCH($Y149,CostoParametrico!$D$3:$D$18,0),3))*IF(AND($D$20="A",MID($F149,1,1)<>"A"),0%,100%) -> 0 | AD149: 0 | AE149: =MAX(0,(V149+W149)-INDEX(CostoParametrico!$E$3:$L$18,MATCH($Y149,CostoParametrico!$D$3:$D$18,0),1)-AA149-AB149-AC149-AF149-AG149)*IF(AND($D$20="A",MID($F149,1,1)<>"A"),0%,100%) -> 0 | AF149: =MAX(0,(V149+W149)-INDEX(CostoParametrico!$E$3:$L$18,MATCH($Y149,CostoParametrico!$D$3:$D$18,0),2)-AB149-AC149-AG149)*IF(AND($D$20="A",MID(F149,1,1)<>"A"),0%,100%) -> 0 | AG149: =MAX(0,(V149+W149)-INDEX(CostoParametrico!$E$3:$L$18,MATCH($Y149,CostoParametrico!$D$3:$D$18,0),3)-AC149)*IF(AND($D$20="A",MID(F149,1,1)<>"A"),0%,100%) -> 0 | AH149: =INDEX(CostoParametrico!$E$3:$L$18,MATCH($Y149,CostoParametrico!$D$3:$D$18,0),5) -> 400 | AI149: =INDEX(CostoParametrico!$E$3:$L$18,MATCH($Y149,CostoParametrico!$D$3:$D$18,0),6) -> 330 | AJ149: =INDEX(CostoParametrico!$E$3:$L$18,MATCH($Y149,CostoParametrico!$D$3:$D$18,0),7) -> 300 | AK149: =INDEX(CostoParametrico!$E$3:$L$18,MATCH($Y149,CostoParametrico!$D$3:$D$18,0),8) -> 300 | AL149: 0 | AM149: 0 | AN149: 0 | AO149: 0 | AP149: 0 | AQ149: 0 | AR149: 0 | AS149: 1 | AT149: 0 | AU149: 0 | AV149: 0 | AW149: 0 | AX149: 0 | AY149: 0 | AZ149: 0 | BA149: 0 | BB149: 0 | BC149: 0 | BD149: 0 | BE149: 0 | BF149: 0 | BG149: 0 | BH149: 0 | BI149: 0 | BJ149: 0 | BK149: 1.1
A150: 1 | B150: 1 | C150: 9 | D150: 1 | E150: N | F150: A - Abitativo | G150: 0 | H150: 0 | I150: Privata | J150: 10 | K150: N | L150: 0 | M150: 0 | N150: 0 | O150: 0 | P150: N | Q150: N | R150: L0 | S150: 0 | T150: 0 | U150: 0 | V150: 0 | W150: 0 | X150: 0 | Y150: Abitativa-L0 | Z150: 0 | AA150: =MAX(0,(V150)-INDEX(CostoParametrico!$E$3:$L$18,MATCH($Y150,CostoParametrico!$D$3:$D$18,0),1)-AB150-AC150)*IF(AND($D$20="A",MID($F150,1,1)<>"A"),0%,100%) -> 0 | AB150: =MAX(0,(V150)-INDEX(CostoParametrico!$E$3:$L$18,MATCH($Y150,CostoParametrico!$D$3:$D$18,0),2)-AC150)*IF(AND($D$20="A",MID($F150,1,1)<>"A"),0%,100%) -> 0 | AC150: =MAX(0,(V150)-INDEX(CostoParametrico!$E$3:$L$18,MATCH($Y150,CostoParametrico!$D$3:$D$18,0),3))*IF(AND($D$20="A",MID($F150,1,1)<>"A"),0%,100%) -> 0 | AD150: 0 | AE150: =MAX(0,(V150+W150)-INDEX(CostoParametrico!$E$3:$L$18,MATCH($Y150,CostoParametrico!$D$3:$D$18,0),1)-AA150-AB150-AC150-AF150-AG150)*IF(AND($D$20="A",MID($F150,1,1)<>"A"),0%,100%) -> 0 | AF150: =MAX(0,(V150+W150)-INDEX(CostoParametrico!$E$3:$L$18,MATCH($Y150,CostoParametrico!$D$3:$D$18,0),2)-AB150-AC150-AG150)*IF(AND($D$20="A",MID(F150,1,1)<>"A"),0%,100%) -> 0 | AG150: =MAX(0,(V150+W150)-INDEX(CostoParametrico!$E$3:$L$18,MATCH($Y150,CostoParametrico!$D$3:$D$18,0),3)-AC150)*IF(AND($D$20="A",MID(F150,1,1)<>"A"),0%,100%) -> 0 | AH150: =INDEX(CostoParametrico!$E$3:$L$18,MATCH($Y150,CostoParametrico!$D$3:$D$18,0),5) -> 400 | AI150: =INDEX(CostoParametrico!$E$3:$L$18,MATCH($Y150,CostoParametrico!$D$3:$D$18,0),6) -> 330 | AJ150: =INDEX(CostoParametrico!$E$3:$L$18,MATCH($Y150,CostoParametrico!$D$3:$D$18,0),7) -> 300 | AK150: =INDEX(CostoParametrico!$E$3:$L$18,MATCH($Y150,CostoParametrico!$D$3:$D$18,0),8) -> 300 | AL150: 0 | AM150: 0 | AN150: 0 | AO150: 0 | AP150: 0 | AQ150: 0 | AR150: 0 | AS150: 1 | AT150: 0 | AU150: 0 | AV150: 0 | AW150: 0 | AX150: 0 | AY150: 0 | AZ150: 0 | BA150: 0 | BB150: 0 | BC150: 0 | BD150: 0 | BE150: 0 | BF150: 0 | BG150: 0 | BH150: 0 | BI150: 0 | BJ150: 0 | BK150: 1.1
A151: 1 | B151: 1 | C151: 10 | D151: 1 | E151: N | F151: A - Abitativo | G151: 0 | H151: 0 | I151: Privata | J151: 10 | K151: N | L151: 0 | M151: 0 | N151: 0 | O151: 0 | P151: N | Q151: N | R151: L0 | S151: 0 | T151: 0 | U151: 0 | V151: 0 | W151: 0 | X151: 0 | Y151: Abitativa-L0 | Z151: 0 | AA151: =MAX(0,(V151)-INDEX(CostoParametrico!$E$3:$L$18,MATCH($Y151,CostoParametrico!$D$3:$D$18,0),1)-AB151-AC151)*IF(AND($D$20="A",MID($F151,1,1)<>"A"),0%,100%) -> 0 | AB151: =MAX(0,(V151)-INDEX(CostoParametrico!$E$3:$L$18,MATCH($Y151,CostoParametrico!$D$3:$D$18,0),2)-AC151)*IF(AND($D$20="A",MID($F151,1,1)<>"A"),0%,100%) -> 0 | AC151: =MAX(0,(V151)-INDEX(CostoParametrico!$E$3:$L$18,MATCH($Y151,CostoParametrico!$D$3:$D$18,0),3))*IF(AND($D$20="A",MID($F151,1,1)<>"A"),0%,100%) -> 0 | AD151: 0 | AE151: =MAX(0,(V151+W151)-INDEX(CostoParametrico!$E$3:$L$18,MATCH($Y151,CostoParametrico!$D$3:$D$18,0),1)-AA151-AB151-AC151-AF151-AG151)*IF(AND($D$20="A",MID($F151,1,1)<>"A"),0%,100%) -> 0 | AF151: =MAX(0,(V151+W151)-INDEX(CostoParametrico!$E$3:$L$18,MATCH($Y151,CostoParametrico!$D$3:$D$18,0),2)-AB151-AC151-AG151)*IF(AND($D$20="A",MID(F151,1,1)<>"A"),0%,100%) -> 0 | AG151: =MAX(0,(V151+W151)-INDEX(CostoParametrico!$E$3:$L$18,MATCH($Y151,CostoParametrico!$D$3:$D$18,0),3)-AC151)*IF(AND($D$20="A",MID(F151,1,1)<>"A"),0%,100%) -> 0 | AH151: =INDEX(CostoParametrico!$E$3:$L$18,MATCH($Y151,CostoParametrico!$D$3:$D$18,0),5) -> 400 | AI151: =INDEX(CostoParametrico!$E$3:$L$18,MATCH($Y151,CostoParametrico!$D$3:$D$18,0),6) -> 330 | AJ151: =INDEX(CostoParametrico!$E$3:$L$18,MATCH($Y151,CostoParametrico!$D$3:$D$18,0),7) -> 300 | AK151: =INDEX(CostoParametrico!$E$3:$L$18,MATCH($Y151,CostoParametrico!$D$3:$D$18,0),8) -> 300 | AL151: 0 | AM151: 0 | AN151: 0 | AO151: 0 | AP151: 0 | AQ151: 0 | AR151: 0 | AS151: 1 | AT151: 0 | AU151: 0 | AV151: 0 | AW151: 0 | AX151: 0 | AY151: 0 | AZ151: 0 | BA151: 0 | BB151: 0 | BC151: 0 | BD151: 0 | BE151: 0 | BF151: 0 | BG151: 0 | BH151: 0 | BI151: 0 | BJ151: 0 | BK151: 1.1
A152: 1 | B152: 1 | C152: 11 | D152: 1 | E152: N | F152: A - Abitativo | G152: 0 | H152: 0 | I152: Privata | J152: 10 | K152: N | L152: 0 | M152: 0 | N152: 0 | O152: 0 | P152: N | Q152: N | R152: L0 | S152: 0 | T152: 0 | U152: 0 | V152: 0 | W152: 0 | X152: 0 | Y152: Abitativa-L0 | Z152: 0 | AA152: =MAX(0,(V152)-INDEX(CostoParametrico!$E$3:$L$18,MATCH($Y152,CostoParametrico!$D$3:$D$18,0),1)-AB152-AC152)*IF(AND($D$20="A",MID($F152,1,1)<>"A"),0%,100%) -> 0 | AB152: =MAX(0,(V152)-INDEX(CostoParametrico!$E$3:$L$18,MATCH($Y152,CostoParametrico!$D$3:$D$18,0),2)-AC152)*IF(AND($D$20="A",MID($F152,1,1)<>"A"),0%,100%) -> 0 | AC152: =MAX(0,(V152)-INDEX(CostoParametrico!$E$3:$L$18,MATCH($Y152,CostoParametrico!$D$3:$D$18,0),3))*IF(AND($D$20="A",MID($F152,1,1)<>"A"),0%,100%) -> 0 | AD152: 0 | AE152: =MAX(0,(V152+W152)-INDEX(CostoParametrico!$E$3:$L$18,MATCH($Y152,CostoParametrico!$D$3:$D$18,0),1)-AA152-AB152-AC152-AF152-AG152)*IF(AND($D$20="A",MID($F152,1,1)<>"A"),0%,100%) -> 0 | AF152: =MAX(0,(V152+W152)-INDEX(CostoParametrico!$E$3:$L$18,MATCH($Y152,CostoParametrico!$D$3:$D$18,0),2)-AB152-AC152-AG152)*IF(AND($D$20="A",MID(F152,1,1)<>"A"),0%,100%) -> 0 | AG152: =MAX(0,(V152+W152)-INDEX(CostoParametrico!$E$3:$L$18,MATCH($Y152,CostoParametrico!$D$3:$D$18,0),3)-AC152)*IF(AND($D$20="A",MID(F152,1,1)<>"A"),0%,100%) -> 0 | AH152: =INDEX(CostoParametrico!$E$3:$L$18,MATCH($Y152,CostoParametrico!$D$3:$D$18,0),5) -> 400 | AI152: =INDEX(CostoParametrico!$E$3:$L$18,MATCH($Y152,CostoParametrico!$D$3:$D$18,0),6) -> 330 | AJ152: =INDEX(CostoParametrico!$E$3:$L$18,MATCH($Y152,CostoParametrico!$D$3:$D$18,0),7) -> 300 | AK152: =INDEX(CostoParametrico!$E$3:$L$18,MATCH($Y152,CostoParametrico!$D$3:$D$18,0),8) -> 300 | AL152: 0 | AM152: 0 | AN152: 0 | AO152: 0 | AP152: 0 | AQ152: 0 | AR152: 0 | AS152: 1 | AT152: 0 | AU152: 0 | AV152: 0 | AW152: 0 | AX152: 0 | AY152: 0 | AZ152: 0 | BA152: 0 | BB152: 0 | BC152: 0 | BD152: 0 | BE152: 0 | BF152: 0 | BG152: 0 | BH152: 0 | BI152: 0 | BJ152: 0 | BK152: 1.1
A153: 1 | B153: 1 | C153: 12 | D153: 1 | E153: N | F153: A - Abitativo | G153: 0 | H153: 0 | I153: Privata | J153: 10 | K153: N | L153: 0 | M153: 0 | N153: 0 | O153: 0 | P153: N | Q153: N | R153: L0 | S153: 0 | T153: 0 | U153: 0 | V153: 0 | W153: 0 | X153: 0 | Y153: Abitativa-L0 | Z153: 0 | AA153: =MAX(0,(V153)-INDEX(CostoParametrico!$E$3:$L$18,MATCH($Y153,CostoParametrico!$D$3:$D$18,0),1)-AB153-AC153)*IF(AND($D$20="A",MID($F153,1,1)<>"A"),0%,100%) -> 0 | AB153: =MAX(0,(V153)-INDEX(CostoParametrico!$E$3:$L$18,MATCH($Y153,CostoParametrico!$D$3:$D$18,0),2)-AC153)*IF(AND($D$20="A",MID($F153,1,1)<>"A"),0%,100%) -> 0 | AC153: =MAX(0,(V153)-INDEX(CostoParametrico!$E$3:$L$18,MATCH($Y153,CostoParametrico!$D$3:$D$18,0),3))*IF(AND($D$20="A",MID($F153,1,1)<>"A"),0%,100%) -> 0 | AD153: 0 | AE153: =MAX(0,(V153+W153)-INDEX(CostoParametrico!$E$3:$L$18,MATCH($Y153,CostoParametrico!$D$3:$D$18,0),1)-AA153-AB153-AC153-AF153-AG153)*IF(AND($D$20="A",MID($F153,1,1)<>"A"),0%,100%) -> 0 | AF153: =MAX(0,(V153+W153)-INDEX(CostoParametrico!$E$3:$L$18,MATCH($Y153,CostoParametrico!$D$3:$D$18,0),2)-AB153-AC153-AG153)*IF(AND($D$20="A",MID(F153,1,1)<>"A"),0%,100%) -> 0 | AG153: =MAX(0,(V153+W153)-INDEX(CostoParametrico!$E$3:$L$18,MATCH($Y153,CostoParametrico!$D$3:$D$18,0),3)-AC153)*IF(AND($D$20="A",MID(F153,1,1)<>"A"),0%,100%) -> 0 | AH153: =INDEX(CostoParametrico!$E$3:$L$18,MATCH($Y153,CostoParametrico!$D$3:$D$18,0),5) -> 400 | AI153: =INDEX(CostoParametrico!$E$3:$L$18,MATCH($Y153,CostoParametrico!$D$3:$D$18,0),6) -> 330 | AJ153: =INDEX(CostoParametrico!$E$3:$L$18,MATCH($Y153,CostoParametrico!$D$3:$D$18,0),7) -> 300 | AK153: =INDEX(CostoParametrico!$E$3:$L$18,MATCH($Y153,CostoParametrico!$D$3:$D$18,0),8) -> 300 | AL153: 0 | AM153: 0 | AN153: 0 | AO153: 0 | AP153: 0 | AQ153: 0 | AR153: 0 | AS153: 1 | AT153: 0 | AU153: 0 | AV153: 0 | AW153: 0 | AX153: 0 | AY153: 0 | AZ153: 0 | BA153: 0 | BB153: 0 | BC153: 0 | BD153: 0 | BE153: 0 | BF153: 0 | BG153: 0 | BH153: 0 | BI153: 0 | BJ153: 0 | BK153: 1.1
A154: 1 | B154: 1 | C154: 13 | D154: 1 | E154: N | F154: A - Abitativo | G154: 0 | H154: 0 | I154: Privata | J154: 10 | K154: N | L154: 0 | M154: 0 | N154: 0 | O154: 0 | P154: N | Q154: N | R154: L0 | S154: 0 | T154: 0 | U154: 0 | V154: 0 | W154: 0 | X154: 0 | Y154: Abitativa-L0 | Z154: 0 | AA154: =MAX(0,(V154)-INDEX(CostoParametrico!$E$3:$L$18,MATCH($Y154,CostoParametrico!$D$3:$D$18,0),1)-AB154-AC154)*IF(AND($D$20="A",MID($F154,1,1)<>"A"),0%,100%) -> 0 | AB154: =MAX(0,(V154)-INDEX(CostoParametrico!$E$3:$L$18,MATCH($Y154,CostoParametrico!$D$3:$D$18,0),2)-AC154)*IF(AND($D$20="A",MID($F154,1,1)<>"A"),0%,100%) -> 0 | AC154: =MAX(0,(V154)-INDEX(CostoParametrico!$E$3:$L$18,MATCH($Y154,CostoParametrico!$D$3:$D$18,0),3))*IF(AND($D$20="A",MID($F154,1,1)<>"A"),0%,100%) -> 0 | AD154: 0 | AE154: =MAX(0,(V154+W154)-INDEX(CostoParametrico!$E$3:$L$18,MATCH($Y154,CostoParametrico!$D$3:$D$18,0),1)-AA154-AB154-AC154-AF154-AG154)*IF(AND($D$20="A",MID($F154,1,1)<>"A"),0%,100%) -> 0 | AF154: =MAX(0,(V154+W154)-INDEX(CostoParametrico!$E$3:$L$18,MATCH($Y154,CostoParametrico!$D$3:$D$18,0),2)-AB154-AC154-AG154)*IF(AND($D$20="A",MID(F154,1,1)<>"A"),0%,100%) -> 0 | AG154: =MAX(0,(V154+W154)-INDEX(CostoParametrico!$E$3:$L$18,MATCH($Y154,CostoParametrico!$D$3:$D$18,0),3)-AC154)*IF(AND($D$20="A",MID(F154,1,1)<>"A"),0%,100%) -> 0 | AH154: =INDEX(CostoParametrico!$E$3:$L$18,MATCH($Y154,CostoParametrico!$D$3:$D$18,0),5) -> 400 | AI154: =INDEX(CostoParametrico!$E$3:$L$18,MATCH($Y154,CostoParametrico!$D$3:$D$18,0),6) -> 330 | AJ154: =INDEX(CostoParametrico!$E$3:$L$18,MATCH($Y154,CostoParametrico!$D$3:$D$18,0),7) -> 300 | AK154: =INDEX(CostoParametrico!$E$3:$L$18,MATCH($Y154,CostoParametrico!$D$3:$D$18,0),8) -> 300 | AL154: 0 | AM154: 0 | AN154: 0 | AO154: 0 | AP154: 0 | AQ154: 0 | AR154: 0 | AS154: 1 | AT154: 0 | AU154: 0 | AV154: 0 | AW154: 0 | AX154: 0 | AY154: 0 | AZ154: 0 | BA154: 0 | BB154: 0 | BC154: 0 | BD154: 0 | BE154: 0 | BF154: 0 | BG154: 0 | BH154: 0 | BI154: 0 | BJ154: 0 | BK154: 1.1
A155: 1 | B155: 1 | C155: 14 | D155: 1 | E155: N | F155: A - Abitativo | G155: 0 | H155: 0 | I155: Privata | J155: 10 | K155: N | L155: 0 | M155: 0 | N155: 0 | O155: 0 | P155: N | Q155: N | R155: L0 | S155: 0 | T155: 0 | U155: 0 | V155: 0 | W155: 0 | X155: 0 | Y155: Abitativa-L0 | Z155: 0 | AA155: =MAX(0,(V155)-INDEX(CostoParametrico!$E$3:$L$18,MATCH($Y155,CostoParametrico!$D$3:$D$18,0),1)-AB155-AC155)*IF(AND($D$20="A",MID($F155,1,1)<>"A"),0%,100%) -> 0 | AB155: =MAX(0,(V155)-INDEX(CostoParametrico!$E$3:$L$18,MATCH($Y155,CostoParametrico!$D$3:$D$18,0),2)-AC155)*IF(AND($D$20="A",MID($F155,1,1)<>"A"),0%,100%) -> 0 | AC155: =MAX(0,(V155)-INDEX(CostoParametrico!$E$3:$L$18,MATCH($Y155,CostoParametrico!$D$3:$D$18,0),3))*IF(AND($D$20="A",MID($F155,1,1)<>"A"),0%,100%) -> 0 | AD155: 0 | AE155: =MAX(0,(V155+W155)-INDEX(CostoParametrico!$E$3:$L$18,MATCH($Y155,CostoParametrico!$D$3:$D$18,0),1)-AA155-AB155-AC155-AF155-AG155)*IF(AND($D$20="A",MID($F155,1,1)<>"A"),0%,100%) -> 0 | AF155: =MAX(0,(V155+W155)-INDEX(CostoParametrico!$E$3:$L$18,MATCH($Y155,CostoParametrico!$D$3:$D$18,0),2)-AB155-AC155-AG155)*IF(AND($D$20="A",MID(F155,1,1)<>"A"),0%,100%) -> 0 | AG155: =MAX(0,(V155+W155)-INDEX(CostoParametrico!$E$3:$L$18,MATCH($Y155,CostoParametrico!$D$3:$D$18,0),3)-AC155)*IF(AND($D$20="A",MID(F155,1,1)<>"A"),0%,100%) -> 0 | AH155: =INDEX(CostoParametrico!$E$3:$L$18,MATCH($Y155,CostoParametrico!$D$3:$D$18,0),5) -> 400 | AI155: =INDEX(CostoParametrico!$E$3:$L$18,MATCH($Y155,CostoParametrico!$D$3:$D$18,0),6) -> 330 | AJ155: =INDEX(CostoParametrico!$E$3:$L$18,MATCH($Y155,CostoParametrico!$D$3:$D$18,0),7) -> 300 | AK155: =INDEX(CostoParametrico!$E$3:$L$18,MATCH($Y155,CostoParametrico!$D$3:$D$18,0),8) -> 300 | AL155: 0 | AM155: 0 | AN155: 0 | AO155: 0 | AP155: 0 | AQ155: 0 | AR155: 0 | AS155: 1 | AT155: 0 | AU155: 0 | AV155: 0 | AW155: 0 | AX155: 0 | AY155: 0 | AZ155: 0 | BA155: 0 | BB155: 0 | BC155: 0 | BD155: 0 | BE155: 0 | BF155: 0 | BG155: 0 | BH155: 0 | BI155: 0 | BJ155: 0 | BK155: 1.1
A156: 1 | B156: 1 | C156: 15 | D156: 1 | E156: N | F156: A - Abitativo | G156: 0 | H156: 0 | I156: Privata | J156: 10 | K156: N | L156: 0 | M156: 0 | N156: 0 | O156: 0 | P156: N | Q156: N | R156: L0 | S156: 0 | T156: 0 | U156: 0 | V156: 0 | W156: 0 | X156: 0 | Y156: Abitativa-L0 | Z156: 0 | AA156: =MAX(0,(V156)-INDEX(CostoParametrico!$E$3:$L$18,MATCH($Y156,CostoParametrico!$D$3:$D$18,0),1)-AB156-AC156)*IF(AND($D$20="A",MID($F156,1,1)<>"A"),0%,100%) -> 0 | AB156: =MAX(0,(V156)-INDEX(CostoParametrico!$E$3:$L$18,MATCH($Y156,CostoParametrico!$D$3:$D$18,0),2)-AC156)*IF(AND($D$20="A",MID($F156,1,1)<>"A"),0%,100%) -> 0 | AC156: =MAX(0,(V156)-INDEX(CostoParametrico!$E$3:$L$18,MATCH($Y156,CostoParametrico!$D$3:$D$18,0),3))*IF(AND($D$20="A",MID($F156,1,1)<>"A"),0%,100%) -> 0 | AD156: 0 | AE156: =MAX(0,(V156+W156)-INDEX(CostoParametrico!$E$3:$L$18,MATCH($Y156,CostoParametrico!$D$3:$D$18,0),1)-AA156-AB156-AC156-AF156-AG156)*IF(AND($D$20="A",MID($F156,1,1)<>"A"),0%,100%) -> 0 | AF156: =MAX(0,(V156+W156)-INDEX(CostoParametrico!$E$3:$L$18,MATCH($Y156,CostoParametrico!$D$3:$D$18,0),2)-AB156-AC156-AG156)*IF(AND($D$20="A",MID(F156,1,1)<>"A"),0%,100%) -> 0 | AG156: =MAX(0,(V156+W156)-INDEX(CostoParametrico!$E$3:$L$18,MATCH($Y156,CostoParametrico!$D$3:$D$18,0),3)-AC156)*IF(AND($D$20="A",MID(F156,1,1)<>"A"),0%,100%) -> 0 | AH156: =INDEX(CostoParametrico!$E$3:$L$18,MATCH($Y156,CostoParametrico!$D$3:$D$18,0),5) -> 400 | AI156: =INDEX(CostoParametrico!$E$3:$L$18,MATCH($Y156,CostoParametrico!$D$3:$D$18,0),6) -> 330 | AJ156: =INDEX(CostoParametrico!$E$3:$L$18,MATCH($Y156,CostoParametrico!$D$3:$D$18,0),7) -> 300 | AK156: =INDEX(CostoParametrico!$E$3:$L$18,MATCH($Y156,CostoParametrico!$D$3:$D$18,0),8) -> 300 | AL156: 0 | AM156: 0 | AN156: 0 | AO156: 0 | AP156: 0 | AQ156: 0 | AR156: 0 | AS156: 1 | AT156: 0 | AU156: 0 | AV156: 0 | AW156: 0 | AX156: 0 | AY156: 0 | AZ156: 0 | BA156: 0 | BB156: 0 | BC156: 0 | BD156: 0 | BE156: 0 | BF156: 0 | BG156: 0 | BH156: 0 | BI156: 0 | BJ156: 0 | BK156: 1.1
A157: 1 | B157: 1 | C157: 16 | D157: 1 | E157: N | F157: A - Abitativo | G157: 0 | H157: 0 | I157: Privata | J157: 10 | K157: N | L157: 0 | M157: 0 | N157: 0 | O157: 0 | P157: N | Q157: N | R157: L0 | S157: 0 | T157: 0 | U157: 0 | V157: 0 | W157: 0 | X157: 0 | Y157: Abitativa-L0 | Z157: 0 | AA157: =MAX(0,(V157)-INDEX(CostoParametrico!$E$3:$L$18,MATCH($Y157,CostoParametrico!$D$3:$D$18,0),1)-AB157-AC157)*IF(AND($D$20="A",MID($F157,1,1)<>"A"),0%,100%) -> 0 | AB157: =MAX(0,(V157)-INDEX(CostoParametrico!$E$3:$L$18,MATCH($Y157,CostoParametrico!$D$3:$D$18,0),2)-AC157)*IF(AND($D$20="A",MID($F157,1,1)<>"A"),0%,100%) -> 0 | AC157: =MAX(0,(V157)-INDEX(CostoParametrico!$E$3:$L$18,MATCH($Y157,CostoParametrico!$D$3:$D$18,0),3))*IF(AND($D$20="A",MID($F157,1,1)<>"A"),0%,100%) -> 0 | AD157: 0 | AE157: =MAX(0,(V157+W157)-INDEX(CostoParametrico!$E$3:$L$18,MATCH($Y157,CostoParametrico!$D$3:$D$18,0),1)-AA157-AB157-AC157-AF157-AG157)*IF(AND($D$20="A",MID($F157,1,1)<>"A"),0%,100%) -> 0 | AF157: =MAX(0,(V157+W157)-INDEX(CostoParametrico!$E$3:$L$18,MATCH($Y157,CostoParametrico!$D$3:$D$18,0),2)-AB157-AC157-AG157)*IF(AND($D$20="A",MID(F157,1,1)<>"A"),0%,100%) -> 0 | AG157: =MAX(0,(V157+W157)-INDEX(CostoParametrico!$E$3:$L$18,MATCH($Y157,CostoParametrico!$D$3:$D$18,0),3)-AC157)*IF(AND($D$20="A",MID(F157,1,1)<>"A"),0%,100%) -> 0 | AH157: =INDEX(CostoParametrico!$E$3:$L$18,MATCH($Y157,CostoParametrico!$D$3:$D$18,0),5) -> 400 | AI157: =INDEX(CostoParametrico!$E$3:$L$18,MATCH($Y157,CostoParametrico!$D$3:$D$18,0),6) -> 330 | AJ157: =INDEX(CostoParametrico!$E$3:$L$18,MATCH($Y157,CostoParametrico!$D$3:$D$18,0),7) -> 300 | AK157: =INDEX(CostoParametrico!$E$3:$L$18,MATCH($Y157,CostoParametrico!$D$3:$D$18,0),8) -> 300 | AL157: 0 | AM157: 0 | AN157: 0 | AO157: 0 | AP157: 0 | AQ157: 0 | AR157: 0 | AS157: 1 | AT157: 0 | AU157: 0 | AV157: 0 | AW157: 0 | AX157: 0 | AY157: 0 | AZ157: 0 | BA157: 0 | BB157: 0 | BC157: 0 | BD157: 0 | BE157: 0 | BF157: 0 | BG157: 0 | BH157: 0 | BI157: 0 | BJ157: 0 | BK157: 1.1
A158: 1 | B158: 1 | C158: 17 | D158: 1 | E158: N | F158: A - Abitativo | G158: 0 | H158: 0 | I158: Privata | J158: 10 | K158: N | L158: 0 | M158: 0 | N158: 0 | O158: 0 | P158: N | Q158: N | R158: L0 | S158: 0 | T158: 0 | U158: 0 | V158: 0 | W158: 0 | X158: 0 | Y158: Abitativa-L0 | Z158: 0 | AA158: =MAX(0,(V158)-INDEX(CostoParametrico!$E$3:$L$18,MATCH($Y158,CostoParametrico!$D$3:$D$18,0),1)-AB158-AC158)*IF(AND($D$20="A",MID($F158,1,1)<>"A"),0%,100%) -> 0 | AB158: =MAX(0,(V158)-INDEX(CostoParametrico!$E$3:$L$18,MATCH($Y158,CostoParametrico!$D$3:$D$18,0),2)-AC158)*IF(AND($D$20="A",MID($F158,1,1)<>"A"),0%,100%) -> 0 | AC158: =MAX(0,(V158)-INDEX(CostoParametrico!$E$3:$L$18,MATCH($Y158,CostoParametrico!$D$3:$D$18,0),3))*IF(AND($D$20="A",MID($F158,1,1)<>"A"),0%,100%) -> 0 | AD158: 0 | AE158: =MAX(0,(V158+W158)-INDEX(CostoParametrico!$E$3:$L$18,MATCH($Y158,CostoParametrico!$D$3:$D$18,0),1)-AA158-AB158-AC158-AF158-AG158)*IF(AND($D$20="A",MID($F158,1,1)<>"A"),0%,100%) -> 0 | AF158: =MAX(0,(V158+W158)-INDEX(CostoParametrico!$E$3:$L$18,MATCH($Y158,CostoParametrico!$D$3:$D$18,0),2)-AB158-AC158-AG158)*IF(AND($D$20="A",MID(F158,1,1)<>"A"),0%,100%) -> 0 | AG158: =MAX(0,(V158+W158)-INDEX(CostoParametrico!$E$3:$L$18,MATCH($Y158,CostoParametrico!$D$3:$D$18,0),3)-AC158)*IF(AND($D$20="A",MID(F158,1,1)<>"A"),0%,100%) -> 0 | AH158: =INDEX(CostoParametrico!$E$3:$L$18,MATCH($Y158,CostoParametrico!$D$3:$D$18,0),5) -> 400 | AI158: =INDEX(CostoParametrico!$E$3:$L$18,MATCH($Y158,CostoParametrico!$D$3:$D$18,0),6) -> 330 | AJ158: =INDEX(CostoParametrico!$E$3:$L$18,MATCH($Y158,CostoParametrico!$D$3:$D$18,0),7) -> 300 | AK158: =INDEX(CostoParametrico!$E$3:$L$18,MATCH($Y158,CostoParametrico!$D$3:$D$18,0),8) -> 300 | AL158: 0 | AM158: 0 | AN158: 0 | AO158: 0 | AP158: 0 | AQ158: 0 | AR158: 0 | AS158: 1 | AT158: 0 | AU158: 0 | AV158: 0 | AW158: 0 | AX158: 0 | AY158: 0 | AZ158: 0 | BA158: 0 | BB158: 0 | BC158: 0 | BD158: 0 | BE158: 0 | BF158: 0 | BG158: 0 | BH158: 0 | BI158: 0 | BJ158: 0 | BK158: 1.1
A159: 1 | B159: 1 | C159: 18 | D159: 1 | E159: N | F159: A - Abitativo | G159: 0 | H159: 0 | I159: Privata | J159: 10 | K159: N | L159: 0 | M159: 0 | N159: 0 | O159: 0 | P159: N | Q159: N | R159: L0 | S159: 0 | T159: 0 | U159: 0 | V159: 0 | W159: 0 | X159: 0 | Y159: Abitativa-L0 | Z159: 0 | AA159: =MAX(0,(V159)-INDEX(CostoParametrico!$E$3:$L$18,MATCH($Y159,CostoParametrico!$D$3:$D$18,0),1)-AB159-AC159)*IF(AND($D$20="A",MID($F159,1,1)<>"A"),0%,100%) -> 0 | AB159: =MAX(0,(V159)-INDEX(CostoParametrico!$E$3:$L$18,MATCH($Y159,CostoParametrico!$D$3:$D$18,0),2)-AC159)*IF(AND($D$20="A",MID($F159,1,1)<>"A"),0%,100%) -> 0 | AC159: =MAX(0,(V159)-INDEX(CostoParametrico!$E$3:$L$18,MATCH($Y159,CostoParametrico!$D$3:$D$18,0),3))*IF(AND($D$20="A",MID($F159,1,1)<>"A"),0%,100%) -> 0 | AD159: 0 | AE159: =MAX(0,(V159+W159)-INDEX(CostoParametrico!$E$3:$L$18,MATCH($Y159,CostoParametrico!$D$3:$D$18,0),1)-AA159-AB159-AC159-AF159-AG159)*IF(AND($D$20="A",MID($F159,1,1)<>"A"),0%,100%) -> 0 | AF159: =MAX(0,(V159+W159)-INDEX(CostoParametrico!$E$3:$L$18,MATCH($Y159,CostoParametrico!$D$3:$D$18,0),2)-AB159-AC159-AG159)*IF(AND($D$20="A",MID(F159,1,1)<>"A"),0%,100%) -> 0 | AG159: =MAX(0,(V159+W159)-INDEX(CostoParametrico!$E$3:$L$18,MATCH($Y159,CostoParametrico!$D$3:$D$18,0),3)-AC159)*IF(AND($D$20="A",MID(F159,1,1)<>"A"),0%,100%) -> 0 | AH159: =INDEX(CostoParametrico!$E$3:$L$18,MATCH($Y159,CostoParametrico!$D$3:$D$18,0),5) -> 400 | AI159: =INDEX(CostoParametrico!$E$3:$L$18,MATCH($Y159,CostoParametrico!$D$3:$D$18,0),6) -> 330 | AJ159: =INDEX(CostoParametrico!$E$3:$L$18,MATCH($Y159,CostoParametrico!$D$3:$D$18,0),7) -> 300 | AK159: =INDEX(CostoParametrico!$E$3:$L$18,MATCH($Y159,CostoParametrico!$D$3:$D$18,0),8) -> 300 | AL159: 0 | AM159: 0 | AN159: 0 | AO159: 0 | AP159: 0 | AQ159: 0 | AR159: 0 | AS159: 1 | AT159: 0 | AU159: 0 | AV159: 0 | AW159: 0 | AX159: 0 | AY159: 0 | AZ159: 0 | BA159: 0 | BB159: 0 | BC159: 0 | BD159: 0 | BE159: 0 | BF159: 0 | BG159: 0 | BH159: 0 | BI159: 0 | BJ159: 0 | BK159: 1.1
A160: 1 | B160: 1 | C160: 19 | D160: 1 | E160: N | F160: A - Abitativo | G160: 0 | H160: 0 | I160: Privata | J160: 10 | K160: N | L160: 0 | M160: 0 | N160: 0 | O160: 0 | P160: N | Q160: N | R160: L0 | S160: 0 | T160: 0 | U160: 0 | V160: 0 | W160: 0 | X160: 0 | Y160: Abitativa-L0 | Z160: 0 | AA160: =MAX(0,(V160)-INDEX(CostoParametrico!$E$3:$L$18,MATCH($Y160,CostoParametrico!$D$3:$D$18,0),1)-AB160-AC160)*IF(AND($D$20="A",MID($F160,1,1)<>"A"),0%,100%) -> 0 | AB160: =MAX(0,(V160)-INDEX(CostoParametrico!$E$3:$L$18,MATCH($Y160,CostoParametrico!$D$3:$D$18,0),2)-AC160)*IF(AND($D$20="A",MID($F160,1,1)<>"A"),0%,100%) -> 0 | AC160: =MAX(0,(V160)-INDEX(CostoParametrico!$E$3:$L$18,MATCH($Y160,CostoParametrico!$D$3:$D$18,0),3))*IF(AND($D$20="A",MID($F160,1,1)<>"A"),0%,100%) -> 0 | AD160: 0 | AE160: =MAX(0,(V160+W160)-INDEX(CostoParametrico!$E$3:$L$18,MATCH($Y160,CostoParametrico!$D$3:$D$18,0),1)-AA160-AB160-AC160-AF160-AG160)*IF(AND($D$20="A",MID($F160,1,1)<>"A"),0%,100%) -> 0 | AF160: =MAX(0,(V160+W160)-INDEX(CostoParametrico!$E$3:$L$18,MATCH($Y160,CostoParametrico!$D$3:$D$18,0),2)-AB160-AC160-AG160)*IF(AND($D$20="A",MID(F160,1,1)<>"A"),0%,100%) -> 0 | AG160: =MAX(0,(V160+W160)-INDEX(CostoParametrico!$E$3:$L$18,MATCH($Y160,CostoParametrico!$D$3:$D$18,0),3)-AC160)*IF(AND($D$20="A",MID(F160,1,1)<>"A"),0%,100%) -> 0 | AH160: =INDEX(CostoParametrico!$E$3:$L$18,MATCH($Y160,CostoParametrico!$D$3:$D$18,0),5) -> 400 | AI160: =INDEX(CostoParametrico!$E$3:$L$18,MATCH($Y160,CostoParametrico!$D$3:$D$18,0),6) -> 330 | AJ160: =INDEX(CostoParametrico!$E$3:$L$18,MATCH($Y160,CostoParametrico!$D$3:$D$18,0),7) -> 300 | AK160: =INDEX(CostoParametrico!$E$3:$L$18,MATCH($Y160,CostoParametrico!$D$3:$D$18,0),8) -> 300 | AL160: 0 | AM160: 0 | AN160: 0 | AO160: 0 | AP160: 0 | AQ160: 0 | AR160: 0 | AS160: 1 | AT160: 0 | AU160: 0 | AV160: 0 | AW160: 0 | AX160: 0 | AY160: 0 | AZ160: 0 | BA160: 0 | BB160: 0 | BC160: 0 | BD160: 0 | BE160: 0 | BF160: 0 | BG160: 0 | BH160: 0 | BI160: 0 | BJ160: 0 | BK160: 1.1
A161: 1 | B161: 1 | C161: 20 | D161: 1 | E161: N | F161: A - Abitativo | G161: 0 | H161: 0 | I161: Privata | J161: 10 | K161: N | L161: 0 | M161: 0 | N161: 0 | O161: 0 | P161: N | Q161: N | R161: L0 | S161: 0 | T161: 0 | U161: 0 | V161: 0 | W161: 0 | X161: 0 | Y161: Abitativa-L0 | Z161: 0 | AA161: =MAX(0,(V161)-INDEX(CostoParametrico!$E$3:$L$18,MATCH($Y161,CostoParametrico!$D$3:$D$18,0),1)-AB161-AC161)*IF(AND($D$20="A",MID($F161,1,1)<>"A"),0%,100%) -> 0 | AB161: =MAX(0,(V161)-INDEX(CostoParametrico!$E$3:$L$18,MATCH($Y161,CostoParametrico!$D$3:$D$18,0),2)-AC161)*IF(AND($D$20="A",MID($F161,1,1)<>"A"),0%,100%) -> 0 | AC161: =MAX(0,(V161)-INDEX(CostoParametrico!$E$3:$L$18,MATCH($Y161,CostoParametrico!$D$3:$D$18,0),3))*IF(AND($D$20="A",MID($F161,1,1)<>"A"),0%,100%) -> 0 | AD161: 0 | AE161: =MAX(0,(V161+W161)-INDEX(CostoParametrico!$E$3:$L$18,MATCH($Y161,CostoParametrico!$D$3:$D$18,0),1)-AA161-AB161-AC161-AF161-AG161)*IF(AND($D$20="A",MID($F161,1,1)<>"A"),0%,100%) -> 0 | AF161: =MAX(0,(V161+W161)-INDEX(CostoParametrico!$E$3:$L$18,MATCH($Y161,CostoParametrico!$D$3:$D$18,0),2)-AB161-AC161-AG161)*IF(AND($D$20="A",MID(F161,1,1)<>"A"),0%,100%) -> 0 | AG161: =MAX(0,(V161+W161)-INDEX(CostoParametrico!$E$3:$L$18,MATCH($Y161,CostoParametrico!$D$3:$D$18,0),3)-AC161)*IF(AND($D$20="A",MID(F161,1,1)<>"A"),0%,100%) -> 0 | AH161: =INDEX(CostoParametrico!$E$3:$L$18,MATCH($Y161,CostoParametrico!$D$3:$D$18,0),5) -> 400 | AI161: =INDEX(CostoParametrico!$E$3:$L$18,MATCH($Y161,CostoParametrico!$D$3:$D$18,0),6) -> 330 | AJ161: =INDEX(CostoParametrico!$E$3:$L$18,MATCH($Y161,CostoParametrico!$D$3:$D$18,0),7) -> 300 | AK161: =INDEX(CostoParametrico!$E$3:$L$18,MATCH($Y161,CostoParametrico!$D$3:$D$18,0),8) -> 300 | AL161: 0 | AM161: 0 | AN161: 0 | AO161: 0 | AP161: 0 | AQ161: 0 | AR161: 0 | AS161: 1 | AT161: 0 | AU161: 0 | AV161: 0 | AW161: 0 | AX161: 0 | AY161: 0 | AZ161: 0 | BA161: 0 | BB161: 0 | BC161: 0 | BD161: 0 | BE161: 0 | BF161: 0 | BG161: 0 | BH161: 0 | BI161: 0 | BJ161: 0 | BK161: 1.1
A162: 1 | B162: 1 | C162: 21 | D162: 1 | E162: N | F162: A - Abitativo | G162: 0 | H162: 0 | I162: Privata | J162: 10 | K162: N | L162: 0 | M162: 0 | N162: 0 | O162: 0 | P162: N | Q162: N | R162: L0 | S162: 0 | T162: 0 | U162: 0 | V162: 0 | W162: 0 | X162: 0 | Y162: Abitativa-L0 | Z162: 0 | AA162: =MAX(0,(V162)-INDEX(CostoParametrico!$E$3:$L$18,MATCH($Y162,CostoParametrico!$D$3:$D$18,0),1)-AB162-AC162)*IF(AND($D$20="A",MID($F162,1,1)<>"A"),0%,100%) -> 0 | AB162: =MAX(0,(V162)-INDEX(CostoParametrico!$E$3:$L$18,MATCH($Y162,CostoParametrico!$D$3:$D$18,0),2)-AC162)*IF(AND($D$20="A",MID($F162,1,1)<>"A"),0%,100%) -> 0 | AC162: =MAX(0,(V162)-INDEX(CostoParametrico!$E$3:$L$18,MATCH($Y162,CostoParametrico!$D$3:$D$18,0),3))*IF(AND($D$20="A",MID($F162,1,1)<>"A"),0%,100%) -> 0 | AD162: 0 | AE162: =MAX(0,(V162+W162)-INDEX(CostoParametrico!$E$3:$L$18,MATCH($Y162,CostoParametrico!$D$3:$D$18,0),1)-AA162-AB162-AC162-AF162-AG162)*IF(AND($D$20="A",MID($F162,1,1)<>"A"),0%,100%) -> 0 | AF162: =MAX(0,(V162+W162)-INDEX(CostoParametrico!$E$3:$L$18,MATCH($Y162,CostoParametrico!$D$3:$D$18,0),2)-AB162-AC162-AG162)*IF(AND($D$20="A",MID(F162,1,1)<>"A"),0%,100%) -> 0 | AG162: =MAX(0,(V162+W162)-INDEX(CostoParametrico!$E$3:$L$18,MATCH($Y162,CostoParametrico!$D$3:$D$18,0),3)-AC162)*IF(AND($D$20="A",MID(F162,1,1)<>"A"),0%,100%) -> 0 | AH162: =INDEX(CostoParametrico!$E$3:$L$18,MATCH($Y162,CostoParametrico!$D$3:$D$18,0),5) -> 400 | AI162: =INDEX(CostoParametrico!$E$3:$L$18,MATCH($Y162,CostoParametrico!$D$3:$D$18,0),6) -> 330 | AJ162: =INDEX(CostoParametrico!$E$3:$L$18,MATCH($Y162,CostoParametrico!$D$3:$D$18,0),7) -> 300 | AK162: =INDEX(CostoParametrico!$E$3:$L$18,MATCH($Y162,CostoParametrico!$D$3:$D$18,0),8) -> 300 | AL162: 0 | AM162: 0 | AN162: 0 | AO162: 0 | AP162: 0 | AQ162: 0 | AR162: 0 | AS162: 1 | AT162: 0 | AU162: 0 | AV162: 0 | AW162: 0 | AX162: 0 | AY162: 0 | AZ162: 0 | BA162: 0 | BB162: 0 | BC162: 0 | BD162: 0 | BE162: 0 | BF162: 0 | BG162: 0 | BH162: 0 | BI162: 0 | BJ162: 0 | BK162: 1.1
A163: 1 | B163: 1 | C163: 22 | D163: 1 | E163: N | F163: A - Abitativo | G163: 0 | H163: 0 | I163: Privata | J163: 10 | K163: N | L163: 0 | M163: 0 | N163: 0 | O163: 0 | P163: N | Q163: N | R163: L0 | S163: 0 | T163: 0 | U163: 0 | V163: 0 | W163: 0 | X163: 0 | Y163: Abitativa-L0 | Z163: 0 | AA163: =MAX(0,(V163)-INDEX(CostoParametrico!$E$3:$L$18,MATCH($Y163,CostoParametrico!$D$3:$D$18,0),1)-AB163-AC163)*IF(AND($D$20="A",MID($F163,1,1)<>"A"),0%,100%) -> 0 | AB163: =MAX(0,(V163)-INDEX(CostoParametrico!$E$3:$L$18,MATCH($Y163,CostoParametrico!$D$3:$D$18,0),2)-AC163)*IF(AND($D$20="A",MID($F163,1,1)<>"A"),0%,100%) -> 0 | AC163: =MAX(0,(V163)-INDEX(CostoParametrico!$E$3:$L$18,MATCH($Y163,CostoParametrico!$D$3:$D$18,0),3))*IF(AND($D$20="A",MID($F163,1,1)<>"A"),0%,100%) -> 0 | AD163: 0 | AE163: =MAX(0,(V163+W163)-INDEX(CostoParametrico!$E$3:$L$18,MATCH($Y163,CostoParametrico!$D$3:$D$18,0),1)-AA163-AB163-AC163-AF163-AG163)*IF(AND($D$20="A",MID($F163,1,1)<>"A"),0%,100%) -> 0 | AF163: =MAX(0,(V163+W163)-INDEX(CostoParametrico!$E$3:$L$18,MATCH($Y163,CostoParametrico!$D$3:$D$18,0),2)-AB163-AC163-AG163)*IF(AND($D$20="A",MID(F163,1,1)<>"A"),0%,100%) -> 0 | AG163: =MAX(0,(V163+W163)-INDEX(CostoParametrico!$E$3:$L$18,MATCH($Y163,CostoParametrico!$D$3:$D$18,0),3)-AC163)*IF(AND($D$20="A",MID(F163,1,1)<>"A"),0%,100%) -> 0 | AH163: =INDEX(CostoParametrico!$E$3:$L$18,MATCH($Y163,CostoParametrico!$D$3:$D$18,0),5) -> 400 | AI163: =INDEX(CostoParametrico!$E$3:$L$18,MATCH($Y163,CostoParametrico!$D$3:$D$18,0),6) -> 330 | AJ163: =INDEX(CostoParametrico!$E$3:$L$18,MATCH($Y163,CostoParametrico!$D$3:$D$18,0),7) -> 300 | AK163: =INDEX(CostoParametrico!$E$3:$L$18,MATCH($Y163,CostoParametrico!$D$3:$D$18,0),8) -> 300 | AL163: 0 | AM163: 0 | AN163: 0 | AO163: 0 | AP163: 0 | AQ163: 0 | AR163: 0 | AS163: 1 | AT163: 0 | AU163: 0 | AV163: 0 | AW163: 0 | AX163: 0 | AY163: 0 | AZ163: 0 | BA163: 0 | BB163: 0 | BC163: 0 | BD163: 0 | BE163: 0 | BF163: 0 | BG163: 0 | BH163: 0 | BI163: 0 | BJ163: 0 | BK163: 1.1
A164: 1 | B164: 1 | C164: 23 | D164: 1 | E164: N | F164: A - Abitativo | G164: 0 | H164: 0 | I164: Privata | J164: 10 | K164: N | L164: 0 | M164: 0 | N164: 0 | O164: 0 | P164: N | Q164: N | R164: L0 | S164: 0 | T164: 0 | U164: 0 | V164: 0 | W164: 0 | X164: 0 | Y164: Abitativa-L0 | Z164: 0 | AA164: =MAX(0,(V164)-INDEX(CostoParametrico!$E$3:$L$18,MATCH($Y164,CostoParametrico!$D$3:$D$18,0),1)-AB164-AC164)*IF(AND($D$20="A",MID($F164,1,1)<>"A"),0%,100%) -> 0 | AB164: =MAX(0,(V164)-INDEX(CostoParametrico!$E$3:$L$18,MATCH($Y164,CostoParametrico!$D$3:$D$18,0),2)-AC164)*IF(AND($D$20="A",MID($F164,1,1)<>"A"),0%,100%) -> 0 | AC164: =MAX(0,(V164)-INDEX(CostoParametrico!$E$3:$L$18,MATCH($Y164,CostoParametrico!$D$3:$D$18,0),3))*IF(AND($D$20="A",MID($F164,1,1)<>"A"),0%,100%) -> 0 | AD164: 0 | AE164: =MAX(0,(V164+W164)-INDEX(CostoParametrico!$E$3:$L$18,MATCH($Y164,CostoParametrico!$D$3:$D$18,0),1)-AA164-AB164-AC164-AF164-AG164)*IF(AND($D$20="A",MID($F164,1,1)<>"A"),0%,100%) -> 0 | AF164: =MAX(0,(V164+W164)-INDEX(CostoParametrico!$E$3:$L$18,MATCH($Y164,CostoParametrico!$D$3:$D$18,0),2)-AB164-AC164-AG164)*IF(AND($D$20="A",MID(F164,1,1)<>"A"),0%,100%) -> 0 | AG164: =MAX(0,(V164+W164)-INDEX(CostoParametrico!$E$3:$L$18,MATCH($Y164,CostoParametrico!$D$3:$D$18,0),3)-AC164)*IF(AND($D$20="A",MID(F164,1,1)<>"A"),0%,100%) -> 0 | AH164: =INDEX(CostoParametrico!$E$3:$L$18,MATCH($Y164,CostoParametrico!$D$3:$D$18,0),5) -> 400 | AI164: =INDEX(CostoParametrico!$E$3:$L$18,MATCH($Y164,CostoParametrico!$D$3:$D$18,0),6) -> 330 | AJ164: =INDEX(CostoParametrico!$E$3:$L$18,MATCH($Y164,CostoParametrico!$D$3:$D$18,0),7) -> 300 | AK164: =INDEX(CostoParametrico!$E$3:$L$18,MATCH($Y164,CostoParametrico!$D$3:$D$18,0),8) -> 300 | AL164: 0 | AM164: 0 | AN164: 0 | AO164: 0 | AP164: 0 | AQ164: 0 | AR164: 0 | AS164: 1 | AT164: 0 | AU164: 0 | AV164: 0 | AW164: 0 | AX164: 0 | AY164: 0 | AZ164: 0 | BA164: 0 | BB164: 0 | BC164: 0 | BD164: 0 | BE164: 0 | BF164: 0 | BG164: 0 | BH164: 0 | BI164: 0 | BJ164: 0 | BK164: 1.1
A165: 1 | B165: 1 | C165: 24 | D165: 1 | E165: N | F165: A - Abitativo | G165: 0 | H165: 0 | I165: Privata | J165: 10 | K165: N | L165: 0 | M165: 0 | N165: 0 | O165: 0 | P165: N | Q165: N | R165: L0 | S165: 0 | T165: 0 | U165: 0 | V165: 0 | W165: 0 | X165: 0 | Y165: Abitativa-L0 | Z165: 0 | AA165: =MAX(0,(V165)-INDEX(CostoParametrico!$E$3:$L$18,MATCH($Y165,CostoParametrico!$D$3:$D$18,0),1)-AB165-AC165)*IF(AND($D$20="A",MID($F165,1,1)<>"A"),0%,100%) -> 0 | AB165: =MAX(0,(V165)-INDEX(CostoParametrico!$E$3:$L$18,MATCH($Y165,CostoParametrico!$D$3:$D$18,0),2)-AC165)*IF(AND($D$20="A",MID($F165,1,1)<>"A"),0%,100%) -> 0 | AC165: =MAX(0,(V165)-INDEX(CostoParametrico!$E$3:$L$18,MATCH($Y165,CostoParametrico!$D$3:$D$18,0),3))*IF(AND($D$20="A",MID($F165,1,1)<>"A"),0%,100%) -> 0 | AD165: 0 | AE165: =MAX(0,(V165+W165)-INDEX(CostoParametrico!$E$3:$L$18,MATCH($Y165,CostoParametrico!$D$3:$D$18,0),1)-AA165-AB165-AC165-AF165-AG165)*IF(AND($D$20="A",MID($F165,1,1)<>"A"),0%,100%) -> 0 | AF165: =MAX(0,(V165+W165)-INDEX(CostoParametrico!$E$3:$L$18,MATCH($Y165,CostoParametrico!$D$3:$D$18,0),2)-AB165-AC165-AG165)*IF(AND($D$20="A",MID(F165,1,1)<>"A"),0%,100%) -> 0 | AG165: =MAX(0,(V165+W165)-INDEX(CostoParametrico!$E$3:$L$18,MATCH($Y165,CostoParametrico!$D$3:$D$18,0),3)-AC165)*IF(AND($D$20="A",MID(F165,1,1)<>"A"),0%,100%) -> 0 | AH165: =INDEX(CostoParametrico!$E$3:$L$18,MATCH($Y165,CostoParametrico!$D$3:$D$18,0),5) -> 400 | AI165: =INDEX(CostoParametrico!$E$3:$L$18,MATCH($Y165,CostoParametrico!$D$3:$D$18,0),6) -> 330 | AJ165: =INDEX(CostoParametrico!$E$3:$L$18,MATCH($Y165,CostoParametrico!$D$3:$D$18,0),7) -> 300 | AK165: =INDEX(CostoParametrico!$E$3:$L$18,MATCH($Y165,CostoParametrico!$D$3:$D$18,0),8) -> 300 | AL165: 0 | AM165: 0 | AN165: 0 | AO165: 0 | AP165: 0 | AQ165: 0 | AR165: 0 | AS165: 1 | AT165: 0 | AU165: 0 | AV165: 0 | AW165: 0 | AX165: 0 | AY165: 0 | AZ165: 0 | BA165: 0 | BB165: 0 | BC165: 0 | BD165: 0 | BE165: 0 | BF165: 0 | BG165: 0 | BH165: 0 | BI165: 0 | BJ165: 0 | BK165: 1.1
A166: 1 | B166: 1 | C166: 25 | D166: 1 | E166: N | F166: A - Abitativo | G166: 0 | H166: 0 | I166: Privata | J166: 10 | K166: N | L166: 0 | M166: 0 | N166: 0 | O166: 0 | P166: N | Q166: N | R166: L0 | S166: 0 | T166: 0 | U166: 0 | V166: 0 | W166: 0 | X166: 0 | Y166: Abitativa-L0 | Z166: 0 | AA166: =MAX(0,(V166)-INDEX(CostoParametrico!$E$3:$L$18,MATCH($Y166,CostoParametrico!$D$3:$D$18,0),1)-AB166-AC166)*IF(AND($D$20="A",MID($F166,1,1)<>"A"),0%,100%) -> 0 | AB166: =MAX(0,(V166)-INDEX(CostoParametrico!$E$3:$L$18,MATCH($Y166,CostoParametrico!$D$3:$D$18,0),2)-AC166)*IF(AND($D$20="A",MID($F166,1,1)<>"A"),0%,100%) -> 0 | AC166: =MAX(0,(V166)-INDEX(CostoParametrico!$E$3:$L$18,MATCH($Y166,CostoParametrico!$D$3:$D$18,0),3))*IF(AND($D$20="A",MID($F166,1,1)<>"A"),0%,100%) -> 0 | AD166: 0 | AE166: =MAX(0,(V166+W166)-INDEX(CostoParametrico!$E$3:$L$18,MATCH($Y166,CostoParametrico!$D$3:$D$18,0),1)-AA166-AB166-AC166-AF166-AG166)*IF(AND($D$20="A",MID($F166,1,1)<>"A"),0%,100%) -> 0 | AF166: =MAX(0,(V166+W166)-INDEX(CostoParametrico!$E$3:$L$18,MATCH($Y166,CostoParametrico!$D$3:$D$18,0),2)-AB166-AC166-AG166)*IF(AND($D$20="A",MID(F166,1,1)<>"A"),0%,100%) -> 0 | AG166: =MAX(0,(V166+W166)-INDEX(CostoParametrico!$E$3:$L$18,MATCH($Y166,CostoParametrico!$D$3:$D$18,0),3)-AC166)*IF(AND($D$20="A",MID(F166,1,1)<>"A"),0%,100%) -> 0 | AH166: =INDEX(CostoParametrico!$E$3:$L$18,MATCH($Y166,CostoParametrico!$D$3:$D$18,0),5) -> 400 | AI166: =INDEX(CostoParametrico!$E$3:$L$18,MATCH($Y166,CostoParametrico!$D$3:$D$18,0),6) -> 330 | AJ166: =INDEX(CostoParametrico!$E$3:$L$18,MATCH($Y166,CostoParametrico!$D$3:$D$18,0),7) -> 300 | AK166: =INDEX(CostoParametrico!$E$3:$L$18,MATCH($Y166,CostoParametrico!$D$3:$D$18,0),8) -> 300 | AL166: 0 | AM166: 0 | AN166: 0 | AO166: 0 | AP166: 0 | AQ166: 0 | AR166: 0 | AS166: 1 | AT166: 0 | AU166: 0 | AV166: 0 | AW166: 0 | AX166: 0 | AY166: 0 | AZ166: 0 | BA166: 0 | BB166: 0 | BC166: 0 | BD166: 0 | BE166: 0 | BF166: 0 | BG166: 0 | BH166: 0 | BI166: 0 | BJ166: 0 | BK166: 1.1
A167: 1 | B167: 1 | C167: 26 | D167: 1 | E167: N | F167: A - Abitativo | G167: 0 | H167: 0 | I167: Privata | J167: 10 | K167: N | L167: 0 | M167: 0 | N167: 0 | O167: 0 | P167: N | Q167: N | R167: L0 | S167: 0 | T167: 0 | U167: 0 | V167: 0 | W167: 0 | X167: 0 | Y167: Abitativa-L0 | Z167: 0 | AA167: =MAX(0,(V167)-INDEX(CostoParametrico!$E$3:$L$18,MATCH($Y167,CostoParametrico!$D$3:$D$18,0),1)-AB167-AC167)*IF(AND($D$20="A",MID($F167,1,1)<>"A"),0%,100%) -> 0 | AB167: =MAX(0,(V167)-INDEX(CostoParametrico!$E$3:$L$18,MATCH($Y167,CostoParametrico!$D$3:$D$18,0),2)-AC167)*IF(AND($D$20="A",MID($F167,1,1)<>"A"),0%,100%) -> 0 | AC167: =MAX(0,(V167)-INDEX(CostoParametrico!$E$3:$L$18,MATCH($Y167,CostoParametrico!$D$3:$D$18,0),3))*IF(AND($D$20="A",MID($F167,1,1)<>"A"),0%,100%) -> 0 | AD167: 0 | AE167: =MAX(0,(V167+W167)-INDEX(CostoParametrico!$E$3:$L$18,MATCH($Y167,CostoParametrico!$D$3:$D$18,0),1)-AA167-AB167-AC167-AF167-AG167)*IF(AND($D$20="A",MID($F167,1,1)<>"A"),0%,100%) -> 0 | AF167: =MAX(0,(V167+W167)-INDEX(CostoParametrico!$E$3:$L$18,MATCH($Y167,CostoParametrico!$D$3:$D$18,0),2)-AB167-AC167-AG167)*IF(AND($D$20="A",MID(F167,1,1)<>"A"),0%,100%) -> 0 | AG167: =MAX(0,(V167+W167)-INDEX(CostoParametrico!$E$3:$L$18,MATCH($Y167,CostoParametrico!$D$3:$D$18,0),3)-AC167)*IF(AND($D$20="A",MID(F167,1,1)<>"A"),0%,100%) -> 0 | AH167: =INDEX(CostoParametrico!$E$3:$L$18,MATCH($Y167,CostoParametrico!$D$3:$D$18,0),5) -> 400 | AI167: =INDEX(CostoParametrico!$E$3:$L$18,MATCH($Y167,CostoParametrico!$D$3:$D$18,0),6) -> 330 | AJ167: =INDEX(CostoParametrico!$E$3:$L$18,MATCH($Y167,CostoParametrico!$D$3:$D$18,0),7) -> 300 | AK167: =INDEX(CostoParametrico!$E$3:$L$18,MATCH($Y167,CostoParametrico!$D$3:$D$18,0),8) -> 300 | AL167: 0 | AM167: 0 | AN167: 0 | AO167: 0 | AP167: 0 | AQ167: 0 | AR167: 0 | AS167: 1 | AT167: 0 | AU167: 0 | AV167: 0 | AW167: 0 | AX167: 0 | AY167: 0 | AZ167: 0 | BA167: 0 | BB167: 0 | BC167: 0 | BD167: 0 | BE167: 0 | BF167: 0 | BG167: 0 | BH167: 0 | BI167: 0 | BJ167: 0 | BK167: 1.1
A168: 1 | B168: 1 | C168: 27 | D168: 1 | E168: N | F168: A - Abitativo | G168: 0 | H168: 0 | I168: Privata | J168: 10 | K168: N | L168: 0 | M168: 0 | N168: 0 | O168: 0 | P168: N | Q168: N | R168: L0 | S168: 0 | T168: 0 | U168: 0 | V168: 0 | W168: 0 | X168: 0 | Y168: Abitativa-L0 | Z168: 0 | AA168: =MAX(0,(V168)-INDEX(CostoParametrico!$E$3:$L$18,MATCH($Y168,CostoParametrico!$D$3:$D$18,0),1)-AB168-AC168)*IF(AND($D$20="A",MID($F168,1,1)<>"A"),0%,100%) -> 0 | AB168: =MAX(0,(V168)-INDEX(CostoParametrico!$E$3:$L$18,MATCH($Y168,CostoParametrico!$D$3:$D$18,0),2)-AC168)*IF(AND($D$20="A",MID($F168,1,1)<>"A"),0%,100%) -> 0 | AC168: =MAX(0,(V168)-INDEX(CostoParametrico!$E$3:$L$18,MATCH($Y168,CostoParametrico!$D$3:$D$18,0),3))*IF(AND($D$20="A",MID($F168,1,1)<>"A"),0%,100%) -> 0 | AD168: 0 | AE168: =MAX(0,(V168+W168)-INDEX(CostoParametrico!$E$3:$L$18,MATCH($Y168,CostoParametrico!$D$3:$D$18,0),1)-AA168-AB168-AC168-AF168-AG168)*IF(AND($D$20="A",MID($F168,1,1)<>"A"),0%,100%) -> 0 | AF168: =MAX(0,(V168+W168)-INDEX(CostoParametrico!$E$3:$L$18,MATCH($Y168,CostoParametrico!$D$3:$D$18,0),2)-AB168-AC168-AG168)*IF(AND($D$20="A",MID(F168,1,1)<>"A"),0%,100%) -> 0 | AG168: =MAX(0,(V168+W168)-INDEX(CostoParametrico!$E$3:$L$18,MATCH($Y168,CostoParametrico!$D$3:$D$18,0),3)-AC168)*IF(AND($D$20="A",MID(F168,1,1)<>"A"),0%,100%) -> 0 | AH168: =INDEX(CostoParametrico!$E$3:$L$18,MATCH($Y168,CostoParametrico!$D$3:$D$18,0),5) -> 400 | AI168: =INDEX(CostoParametrico!$E$3:$L$18,MATCH($Y168,CostoParametrico!$D$3:$D$18,0),6) -> 330 | AJ168: =INDEX(CostoParametrico!$E$3:$L$18,MATCH($Y168,CostoParametrico!$D$3:$D$18,0),7) -> 300 | AK168: =INDEX(CostoParametrico!$E$3:$L$18,MATCH($Y168,CostoParametrico!$D$3:$D$18,0),8) -> 300 | AL168: 0 | AM168: 0 | AN168: 0 | AO168: 0 | AP168: 0 | AQ168: 0 | AR168: 0 | AS168: 1 | AT168: 0 | AU168: 0 | AV168: 0 | AW168: 0 | AX168: 0 | AY168: 0 | AZ168: 0 | BA168: 0 | BB168: 0 | BC168: 0 | BD168: 0 | BE168: 0 | BF168: 0 | BG168: 0 | BH168: 0 | BI168: 0 | BJ168: 0 | BK168: 1.1
A169: 1 | B169: 1 | C169: 28 | D169: 1 | E169: N | F169: A - Abitativo | G169: 0 | H169: 0 | I169: Privata | J169: 10 | K169: N | L169: 0 | M169: 0 | N169: 0 | O169: 0 | P169: N | Q169: N | R169: L0 | S169: 0 | T169: 0 | U169: 0 | V169: 0 | W169: 0 | X169: 0 | Y169: Abitativa-L0 | Z169: 0 | AA169: =MAX(0,(V169)-INDEX(CostoParametrico!$E$3:$L$18,MATCH($Y169,CostoParametrico!$D$3:$D$18,0),1)-AB169-AC169)*IF(AND($D$20="A",MID($F169,1,1)<>"A"),0%,100%) -> 0 | AB169: =MAX(0,(V169)-INDEX(CostoParametrico!$E$3:$L$18,MATCH($Y169,CostoParametrico!$D$3:$D$18,0),2)-AC169)*IF(AND($D$20="A",MID($F169,1,1)<>"A"),0%,100%) -> 0 | AC169: =MAX(0,(V169)-INDEX(CostoParametrico!$E$3:$L$18,MATCH($Y169,CostoParametrico!$D$3:$D$18,0),3))*IF(AND($D$20="A",MID($F169,1,1)<>"A"),0%,100%) -> 0 | AD169: 0 | AE169: =MAX(0,(V169+W169)-INDEX(CostoParametrico!$E$3:$L$18,MATCH($Y169,CostoParametrico!$D$3:$D$18,0),1)-AA169-AB169-AC169-AF169-AG169)*IF(AND($D$20="A",MID($F169,1,1)<>"A"),0%,100%) -> 0 | AF169: =MAX(0,(V169+W169)-INDEX(CostoParametrico!$E$3:$L$18,MATCH($Y169,CostoParametrico!$D$3:$D$18,0),2)-AB169-AC169-AG169)*IF(AND($D$20="A",MID(F169,1,1)<>"A"),0%,100%) -> 0 | AG169: =MAX(0,(V169+W169)-INDEX(CostoParametrico!$E$3:$L$18,MATCH($Y169,CostoParametrico!$D$3:$D$18,0),3)-AC169)*IF(AND($D$20="A",MID(F169,1,1)<>"A"),0%,100%) -> 0 | AH169: =INDEX(CostoParametrico!$E$3:$L$18,MATCH($Y169,CostoParametrico!$D$3:$D$18,0),5) -> 400 | AI169: =INDEX(CostoParametrico!$E$3:$L$18,MATCH($Y169,CostoParametrico!$D$3:$D$18,0),6) -> 330 | AJ169: =INDEX(CostoParametrico!$E$3:$L$18,MATCH($Y169,CostoParametrico!$D$3:$D$18,0),7) -> 300 | AK169: =INDEX(CostoParametrico!$E$3:$L$18,MATCH($Y169,CostoParametrico!$D$3:$D$18,0),8) -> 300 | AL169: 0 | AM169: 0 | AN169: 0 | AO169: 0 | AP169: 0 | AQ169: 0 | AR169: 0 | AS169: 1 | AT169: 0 | AU169: 0 | AV169: 0 | AW169: 0 | AX169: 0 | AY169: 0 | AZ169: 0 | BA169: 0 | BB169: 0 | BC169: 0 | BD169: 0 | BE169: 0 | BF169: 0 | BG169: 0 | BH169: 0 | BI169: 0 | BJ169: 0 | BK169: 1.1
A170: 1 | B170: 1 | C170: 29 | D170: 1 | E170: N | F170: A - Abitativo | G170: 0 | H170: 0 | I170: Privata | J170: 10 | K170: N | L170: 0 | M170: 0 | N170: 0 | O170: 0 | P170: N | Q170: N | R170: L0 | S170: 0 | T170: 0 | U170: 0 | V170: 0 | W170: 0 | X170: 0 | Y170: Abitativa-L0 | Z170: 0 | AA170: =MAX(0,(V170)-INDEX(CostoParametrico!$E$3:$L$18,MATCH($Y170,CostoParametrico!$D$3:$D$18,0),1)-AB170-AC170)*IF(AND($D$20="A",MID($F170,1,1)<>"A"),0%,100%) -> 0 | AB170: =MAX(0,(V170)-INDEX(CostoParametrico!$E$3:$L$18,MATCH($Y170,CostoParametrico!$D$3:$D$18,0),2)-AC170)*IF(AND($D$20="A",MID($F170,1,1)<>"A"),0%,100%) -> 0 | AC170: =MAX(0,(V170)-INDEX(CostoParametrico!$E$3:$L$18,MATCH($Y170,CostoParametrico!$D$3:$D$18,0),3))*IF(AND($D$20="A",MID($F170,1,1)<>"A"),0%,100%) -> 0 | AD170: 0 | AE170: =MAX(0,(V170+W170)-INDEX(CostoParametrico!$E$3:$L$18,MATCH($Y170,CostoParametrico!$D$3:$D$18,0),1)-AA170-AB170-AC170-AF170-AG170)*IF(AND($D$20="A",MID($F170,1,1)<>"A"),0%,100%) -> 0 | AF170: =MAX(0,(V170+W170)-INDEX(CostoParametrico!$E$3:$L$18,MATCH($Y170,CostoParametrico!$D$3:$D$18,0),2)-AB170-AC170-AG170)*IF(AND($D$20="A",MID(F170,1,1)<>"A"),0%,100%) -> 0 | AG170: =MAX(0,(V170+W170)-INDEX(CostoParametrico!$E$3:$L$18,MATCH($Y170,CostoParametrico!$D$3:$D$18,0),3)-AC170)*IF(AND($D$20="A",MID(F170,1,1)<>"A"),0%,100%) -> 0 | AH170: =INDEX(CostoParametrico!$E$3:$L$18,MATCH($Y170,CostoParametrico!$D$3:$D$18,0),5) -> 400 | AI170: =INDEX(CostoParametrico!$E$3:$L$18,MATCH($Y170,CostoParametrico!$D$3:$D$18,0),6) -> 330 | AJ170: =INDEX(CostoParametrico!$E$3:$L$18,MATCH($Y170,CostoParametrico!$D$3:$D$18,0),7) -> 300 | AK170: =INDEX(CostoParametrico!$E$3:$L$18,MATCH($Y170,CostoParametrico!$D$3:$D$18,0),8) -> 300 | AL170: 0 | AM170: 0 | AN170: 0 | AO170: 0 | AP170: 0 | AQ170: 0 | AR170: 0 | AS170: 1 | AT170: 0 | AU170: 0 | AV170: 0 | AW170: 0 | AX170: 0 | AY170: 0 | AZ170: 0 | BA170: 0 | BB170: 0 | BC170: 0 | BD170: 0 | BE170: 0 | BF170: 0 | BG170: 0 | BH170: 0 | BI170: 0 | BJ170: 0 | BK170: 1.1
A171: 1 | B171: 1 | C171: 30 | D171: 1 | E171: N | F171: A - Abitativo | G171: 0 | H171: 0 | I171: Privata | J171: 10 | K171: N | L171: 0 | M171: 0 | N171: 0 | O171: 0 | P171: N | Q171: N | R171: L0 | S171: 0 | T171: 0 | U171: 0 | V171: 0 | W171: 0 | X171: 0 | Y171: Abitativa-L0 | Z171: 0 | AA171: =MAX(0,(V171)-INDEX(CostoParametrico!$E$3:$L$18,MATCH($Y171,CostoParametrico!$D$3:$D$18,0),1)-AB171-AC171)*IF(AND($D$20="A",MID($F171,1,1)<>"A"),0%,100%) -> 0 | AB171: =MAX(0,(V171)-INDEX(CostoParametrico!$E$3:$L$18,MATCH($Y171,CostoParametrico!$D$3:$D$18,0),2)-AC171)*IF(AND($D$20="A",MID($F171,1,1)<>"A"),0%,100%) -> 0 | AC171: =MAX(0,(V171)-INDEX(CostoParametrico!$E$3:$L$18,MATCH($Y171,CostoParametrico!$D$3:$D$18,0),3))*IF(AND($D$20="A",MID($F171,1,1)<>"A"),0%,100%) -> 0 | AD171: 0 | AE171: =MAX(0,(V171+W171)-INDEX(CostoParametrico!$E$3:$L$18,MATCH($Y171,CostoParametrico!$D$3:$D$18,0),1)-AA171-AB171-AC171-AF171-AG171)*IF(AND($D$20="A",MID($F171,1,1)<>"A"),0%,100%) -> 0 | AF171: =MAX(0,(V171+W171)-INDEX(CostoParametrico!$E$3:$L$18,MATCH($Y171,CostoParametrico!$D$3:$D$18,0),2)-AB171-AC171-AG171)*IF(AND($D$20="A",MID(F171,1,1)<>"A"),0%,100%) -> 0 | AG171: =MAX(0,(V171+W171)-INDEX(CostoParametrico!$E$3:$L$18,MATCH($Y171,CostoParametrico!$D$3:$D$18,0),3)-AC171)*IF(AND($D$20="A",MID(F171,1,1)<>"A"),0%,100%) -> 0 | AH171: =INDEX(CostoParametrico!$E$3:$L$18,MATCH($Y171,CostoParametrico!$D$3:$D$18,0),5) -> 400 | AI171: =INDEX(CostoParametrico!$E$3:$L$18,MATCH($Y171,CostoParametrico!$D$3:$D$18,0),6) -> 330 | AJ171: =INDEX(CostoParametrico!$E$3:$L$18,MATCH($Y171,CostoParametrico!$D$3:$D$18,0),7) -> 300 | AK171: =INDEX(CostoParametrico!$E$3:$L$18,MATCH($Y171,CostoParametrico!$D$3:$D$18,0),8) -> 300 | AL171: 0 | AM171: 0 | AN171: 0 | AO171: 0 | AP171: 0 | AQ171: 0 | AR171: 0 | AS171: 1 | AT171: 0 | AU171: 0 | AV171: 0 | AW171: 0 | AX171: 0 | AY171: 0 | AZ171: 0 | BA171: 0 | BB171: 0 | BC171: 0 | BD171: 0 | BE171: 0 | BF171: 0 | BG171: 0 | BH171: 0 | BI171: 0 | BJ171: 0 | BK171: 1.1
A172: 1 | B172: 1 | C172: 31 | D172: 1 | E172: N | F172: A - Abitativo | G172: 0 | H172: 0 | I172: Privata | J172: 10 | K172: N | L172: 0 | M172: 0 | N172: 0 | O172: 0 | P172: N | Q172: N | R172: L0 | S172: 0 | T172: 0 | U172: 0 | V172: 0 | W172: 0 | X172: 0 | Y172: Abitativa-L0 | Z172: 0 | AA172: =MAX(0,(V172)-INDEX(CostoParametrico!$E$3:$L$18,MATCH($Y172,CostoParametrico!$D$3:$D$18,0),1)-AB172-AC172)*IF(AND($D$20="A",MID($F172,1,1)<>"A"),0%,100%) -> 0 | AB172: =MAX(0,(V172)-INDEX(CostoParametrico!$E$3:$L$18,MATCH($Y172,CostoParametrico!$D$3:$D$18,0),2)-AC172)*IF(AND($D$20="A",MID($F172,1,1)<>"A"),0%,100%) -> 0 | AC172: =MAX(0,(V172)-INDEX(CostoParametrico!$E$3:$L$18,MATCH($Y172,CostoParametrico!$D$3:$D$18,0),3))*IF(AND($D$20="A",MID($F172,1,1)<>"A"),0%,100%) -> 0 | AD172: 0 | AE172: =MAX(0,(V172+W172)-INDEX(CostoParametrico!$E$3:$L$18,MATCH($Y172,CostoParametrico!$D$3:$D$18,0),1)-AA172-AB172-AC172-AF172-AG172)*IF(AND($D$20="A",MID($F172,1,1)<>"A"),0%,100%) -> 0 | AF172: =MAX(0,(V172+W172)-INDEX(CostoParametrico!$E$3:$L$18,MATCH($Y172,CostoParametrico!$D$3:$D$18,0),2)-AB172-AC172-AG172)*IF(AND($D$20="A",MID(F172,1,1)<>"A"),0%,100%) -> 0 | AG172: =MAX(0,(V172+W172)-INDEX(CostoParametrico!$E$3:$L$18,MATCH($Y172,CostoParametrico!$D$3:$D$18,0),3)-AC172)*IF(AND($D$20="A",MID(F172,1,1)<>"A"),0%,100%) -> 0 | AH172: =INDEX(CostoParametrico!$E$3:$L$18,MATCH($Y172,CostoParametrico!$D$3:$D$18,0),5) -> 400 | AI172: =INDEX(CostoParametrico!$E$3:$L$18,MATCH($Y172,CostoParametrico!$D$3:$D$18,0),6) -> 330 | AJ172: =INDEX(CostoParametrico!$E$3:$L$18,MATCH($Y172,CostoParametrico!$D$3:$D$18,0),7) -> 300 | AK172: =INDEX(CostoParametrico!$E$3:$L$18,MATCH($Y172,CostoParametrico!$D$3:$D$18,0),8) -> 300 | AL172: 0 | AM172: 0 | AN172: 0 | AO172: 0 | AP172: 0 | AQ172: 0 | AR172: 0 | AS172: 1 | AT172: 0 | AU172: 0 | AV172: 0 | AW172: 0 | AX172: 0 | AY172: 0 | AZ172: 0 | BA172: 0 | BB172: 0 | BC172: 0 | BD172: 0 | BE172: 0 | BF172: 0 | BG172: 0 | BH172: 0 | BI172: 0 | BJ172: 0 | BK172: 1.1
A173: 1 | B173: 1 | C173: 32 | D173: 1 | E173: N | F173: A - Abitativo | G173: 0 | H173: 0 | I173: Privata | J173: 10 | K173: N | L173: 0 | M173: 0 | N173: 0 | O173: 0 | P173: N | Q173: N | R173: L0 | S173: 0 | T173: 0 | U173: 0 | V173: 0 | W173: 0 | X173: 0 | Y173: Abitativa-L0 | Z173: 0 | AA173: =MAX(0,(V173)-INDEX(CostoParametrico!$E$3:$L$18,MATCH($Y173,CostoParametrico!$D$3:$D$18,0),1)-AB173-AC173)*IF(AND($D$20="A",MID($F173,1,1)<>"A"),0%,100%) -> 0 | AB173: =MAX(0,(V173)-INDEX(CostoParametrico!$E$3:$L$18,MATCH($Y173,CostoParametrico!$D$3:$D$18,0),2)-AC173)*IF(AND($D$20="A",MID($F173,1,1)<>"A"),0%,100%) -> 0 | AC173: =MAX(0,(V173)-INDEX(CostoParametrico!$E$3:$L$18,MATCH($Y173,CostoParametrico!$D$3:$D$18,0),3))*IF(AND($D$20="A",MID($F173,1,1)<>"A"),0%,100%) -> 0 | AD173: 0 | AE173: =MAX(0,(V173+W173)-INDEX(CostoParametrico!$E$3:$L$18,MATCH($Y173,CostoParametrico!$D$3:$D$18,0),1)-AA173-AB173-AC173-AF173-AG173)*IF(AND($D$20="A",MID($F173,1,1)<>"A"),0%,100%) -> 0 | AF173: =MAX(0,(V173+W173)-INDEX(CostoParametrico!$E$3:$L$18,MATCH($Y173,CostoParametrico!$D$3:$D$18,0),2)-AB173-AC173-AG173)*IF(AND($D$20="A",MID(F173,1,1)<>"A"),0%,100%) -> 0 | AG173: =MAX(0,(V173+W173)-INDEX(CostoParametrico!$E$3:$L$18,MATCH($Y173,CostoParametrico!$D$3:$D$18,0),3)-AC173)*IF(AND($D$20="A",MID(F173,1,1)<>"A"),0%,100%) -> 0 | AH173: =INDEX(CostoParametrico!$E$3:$L$18,MATCH($Y173,CostoParametrico!$D$3:$D$18,0),5) -> 400 | AI173: =INDEX(CostoParametrico!$E$3:$L$18,MATCH($Y173,CostoParametrico!$D$3:$D$18,0),6) -> 330 | AJ173: =INDEX(CostoParametrico!$E$3:$L$18,MATCH($Y173,CostoParametrico!$D$3:$D$18,0),7) -> 300 | AK173: =INDEX(CostoParametrico!$E$3:$L$18,MATCH($Y173,CostoParametrico!$D$3:$D$18,0),8) -> 300 | AL173: 0 | AM173: 0 | AN173: 0 | AO173: 0 | AP173: 0 | AQ173: 0 | AR173: 0 | AS173: 1 | AT173: 0 | AU173: 0 | AV173: 0 | AW173: 0 | AX173: 0 | AY173: 0 | AZ173: 0 | BA173: 0 | BB173: 0 | BC173: 0 | BD173: 0 | BE173: 0 | BF173: 0 | BG173: 0 | BH173: 0 | BI173: 0 | BJ173: 0 | BK173: 1.1
A174: =IF($E174="S",I$9,I$10) -> 1 | B174: =IF($E174="S",J$9,J$10) -> 1 | C174: 33 | D174: 1 | E174: N | F174: A - Abitativo | G174: 0 | H174: 0 | I174: Privata | J174: 10 | K174: N | L174: 0 | M174: 0 | N174: 0 | O174: 0 | P174: N | Q174: N | R174: L0 | S174: 0 | T174: 0 | U174: 0 | V174: =SUM(L174:M174,O174) -> 0 | W174: =MIN(70%*L174,N174) -> 0 | X174: 0 | Y174: =IF($D$22="DC",$F$22,$E$20&"-"&R174) -> Abitativa-L0 | Z174: 0 | AA174: =MAX(0,(V174)-INDEX(CostoParametrico!$E$3:$L$18,MATCH($Y174,CostoParametrico!$D$3:$D$18,0),1)-AB174-AC174)*IF(AND($D$20="A",MID($F174,1,1)<>"A"),0%,100%) -> 0 | AB174: =MAX(0,(V174)-INDEX(CostoParametrico!$E$3:$L$18,MATCH($Y174,CostoParametrico!$D$3:$D$18,0),2)-AC174)*IF(AND($D$20="A",MID($F174,1,1)<>"A"),0%,100%) -> 0 | AC174: =MAX(0,(V174)-INDEX(CostoParametrico!$E$3:$L$18,MATCH($Y174,CostoParametrico!$D$3:$D$18,0),3))*IF(AND($D$20="A",MID($F174,1,1)<>"A"),0%,100%) -> 0 | AD174: 0 | AE174: =MAX(0,(V174+W174)-INDEX(CostoParametrico!$E$3:$L$18,MATCH($Y174,CostoParametrico!$D$3:$D$18,0),1)-AA174-AB174-AC174-AF174-AG174)*IF(AND($D$20="A",MID($F174,1,1)<>"A"),0%,100%) -> 0 | AF174: =MAX(0,(V174+W174)-INDEX(CostoParametrico!$E$3:$L$18,MATCH($Y174,CostoParametrico!$D$3:$D$18,0),2)-AB174-AC174-AG174)*IF(AND($D$20="A",MID(F174,1,1)<>"A"),0%,100%) -> 0 | AG174: =MAX(0,(V174+W174)-INDEX(CostoParametrico!$E$3:$L$18,MATCH($Y174,CostoParametrico!$D$3:$D$18,0),3)-AC174)*IF(AND($D$20="A",MID(F174,1,1)<>"A"),0%,100%) -> 0 | AH174: =INDEX(CostoParametrico!$E$3:$L$18,MATCH($Y174,CostoParametrico!$D$3:$D$18,0),5) -> 400 | AI174: =INDEX(CostoParametrico!$E$3:$L$18,MATCH($Y174,CostoParametrico!$D$3:$D$18,0),6) -> 330 | AJ174: =INDEX(CostoParametrico!$E$3:$L$18,MATCH($Y174,CostoParametrico!$D$3:$D$18,0),7) -> 300 | AK174: =INDEX(CostoParametrico!$E$3:$L$18,MATCH($Y174,CostoParametrico!$D$3:$D$18,0),8) -> 300 | AL174: 0 | AM174: 0 | AN174: 0 | AO174: 0 | AP174: 0 | AQ174: 0 | AR174: 0 | AS174: 1 | AT174: 0 | AU174: 0 | AV174: 0 | AW174: 0 | AX174: 0 | AY174: 0 | AZ174: 0 | BA174: 0 | BB174: 0 | BC174: 0 | BD174: 0 | BE174: 0 | BF174: 0 | BG174: 0 | BH174: 0 | BI174: 0 | BJ174: 0 | BK174: 1.1
A175: 1 | B175: 1 | C175: 34 | D175: 1 | E175: N | F175: A - Abitativo | G175: 0 | H175: 0 | I175: Privata | J175: 10 | K175: N | L175: 0 | M175: 0 | N175: 0 | O175: 0 | P175: N | Q175: N | R175: L0 | S175: 0 | T175: 0 | U175: 0 | V175: 0 | W175: 0 | X175: 0 | Y175: Abitativa-L0 | Z175: 0 | AA175: =MAX(0,(V175)-INDEX(CostoParametrico!$E$3:$L$18,MATCH($Y175,CostoParametrico!$D$3:$D$18,0),1)-AB175-AC175)*IF(AND($D$20="A",MID($F175,1,1)<>"A"),0%,100%) -> 0 | AB175: =MAX(0,(V175)-INDEX(CostoParametrico!$E$3:$L$18,MATCH($Y175,CostoParametrico!$D$3:$D$18,0),2)-AC175)*IF(AND($D$20="A",MID($F175,1,1)<>"A"),0%,100%) -> 0 | AC175: =MAX(0,(V175)-INDEX(CostoParametrico!$E$3:$L$18,MATCH($Y175,CostoParametrico!$D$3:$D$18,0),3))*IF(AND($D$20="A",MID($F175,1,1)<>"A"),0%,100%) -> 0 | AD175: 0 | AE175: =MAX(0,(V175+W175)-INDEX(CostoParametrico!$E$3:$L$18,MATCH($Y175,CostoParametrico!$D$3:$D$18,0),1)-AA175-AB175-AC175-AF175-AG175)*IF(AND($D$20="A",MID($F175,1,1)<>"A"),0%,100%) -> 0 | AF175: =MAX(0,(V175+W175)-INDEX(CostoParametrico!$E$3:$L$18,MATCH($Y175,CostoParametrico!$D$3:$D$18,0),2)-AB175-AC175-AG175)*IF(AND($D$20="A",MID(F175,1,1)<>"A"),0%,100%) -> 0 | AG175: =MAX(0,(V175+W175)-INDEX(CostoParametrico!$E$3:$L$18,MATCH($Y175,CostoParametrico!$D$3:$D$18,0),3)-AC175)*IF(AND($D$20="A",MID(F175,1,1)<>"A"),0%,100%) -> 0 | AH175: =INDEX(CostoParametrico!$E$3:$L$18,MATCH($Y175,CostoParametrico!$D$3:$D$18,0),5) -> 400 | AI175: =INDEX(CostoParametrico!$E$3:$L$18,MATCH($Y175,CostoParametrico!$D$3:$D$18,0),6) -> 330 | AJ175: =INDEX(CostoParametrico!$E$3:$L$18,MATCH($Y175,CostoParametrico!$D$3:$D$18,0),7) -> 300 | AK175: =INDEX(CostoParametrico!$E$3:$L$18,MATCH($Y175,CostoParametrico!$D$3:$D$18,0),8) -> 300 | AL175: 0 | AM175: 0 | AN175: 0 | AO175: 0 | AP175: 0 | AQ175: 0 | AR175: 0 | AS175: 1 | AT175: 0 | AU175: 0 | AV175: 0 | AW175: 0 | AX175: 0 | AY175: 0 | AZ175: 0 | BA175: 0 | BB175: 0 | BC175: 0 | BD175: 0 | BE175: 0 | BF175: 0 | BG175: 0 | BH175: 0 | BI175: 0 | BJ175: 0 | BK175: 1.1
A176: 1 | B176: 1 | C176: 35 | D176: 1 | E176: N | F176: A - Abitativo | G176: 0 | H176: 0 | I176: Privata | J176: 10 | K176: N | L176: 0 | M176: 0 | N176: 0 | O176: 0 | P176: N | Q176: N | R176: L0 | S176: 0 | T176: 0 | U176: 0 | V176: 0 | W176: 0 | X176: 0 | Y176: Abitativa-L0 | Z176: 0 | AA176: =MAX(0,(V176)-INDEX(CostoParametrico!$E$3:$L$18,MATCH($Y176,CostoParametrico!$D$3:$D$18,0),1)-AB176-AC176)*IF(AND($D$20="A",MID($F176,1,1)<>"A"),0%,100%) -> 0 | AB176: =MAX(0,(V176)-INDEX(CostoParametrico!$E$3:$L$18,MATCH($Y176,CostoParametrico!$D$3:$D$18,0),2)-AC176)*IF(AND($D$20="A",MID($F176,1,1)<>"A"),0%,100%) -> 0 | AC176: =MAX(0,(V176)-INDEX(CostoParametrico!$E$3:$L$18,MATCH($Y176,CostoParametrico!$D$3:$D$18,0),3))*IF(AND($D$20="A",MID($F176,1,1)<>"A"),0%,100%) -> 0 | AD176: 0 | AE176: =MAX(0,(V176+W176)-INDEX(CostoParametrico!$E$3:$L$18,MATCH($Y176,CostoParametrico!$D$3:$D$18,0),1)-AA176-AB176-AC176-AF176-AG176)*IF(AND($D$20="A",MID($F176,1,1)<>"A"),0%,100%) -> 0 | AF176: =MAX(0,(V176+W176)-INDEX(CostoParametrico!$E$3:$L$18,MATCH($Y176,CostoParametrico!$D$3:$D$18,0),2)-AB176-AC176-AG176)*IF(AND($D$20="A",MID(F176,1,1)<>"A"),0%,100%) -> 0 | AG176: =MAX(0,(V176+W176)-INDEX(CostoParametrico!$E$3:$L$18,MATCH($Y176,CostoParametrico!$D$3:$D$18,0),3)-AC176)*IF(AND($D$20="A",MID(F176,1,1)<>"A"),0%,100%) -> 0 | AH176: =INDEX(CostoParametrico!$E$3:$L$18,MATCH($Y176,CostoParametrico!$D$3:$D$18,0),5) -> 400 | AI176: =INDEX(CostoParametrico!$E$3:$L$18,MATCH($Y176,CostoParametrico!$D$3:$D$18,0),6) -> 330 | AJ176: =INDEX(CostoParametrico!$E$3:$L$18,MATCH($Y176,CostoParametrico!$D$3:$D$18,0),7) -> 300 | AK176: =INDEX(CostoParametrico!$E$3:$L$18,MATCH($Y176,CostoParametrico!$D$3:$D$18,0),8) -> 300 | AL176: 0 | AM176: 0 | AN176: 0 | AO176: 0 | AP176: 0 | AQ176: 0 | AR176: 0 | AS176: 1 | AT176: 0 | AU176: 0 | AV176: 0 | AW176: 0 | AX176: 0 | AY176: 0 | AZ176: 0 | BA176: 0 | BB176: 0 | BC176: 0 | BD176: 0 | BE176: 0 | BF176: 0 | BG176: 0 | BH176: 0 | BI176: 0 | BJ176: 0 | BK176: 1.1
A177: 1 | B177: 1 | C177: 36 | D177: 1 | E177: N | F177: A - Abitativo | G177: 0 | H177: 0 | I177: Privata | J177: 10 | K177: N | L177: 0 | M177: 0 | N177: 0 | O177: 0 | P177: N | Q177: N | R177: L0 | S177: 0 | T177: 0 | U177: 0 | V177: 0 | W177: 0 | X177: 0 | Y177: Abitativa-L0 | Z177: 0 | AA177: =MAX(0,(V177)-INDEX(CostoParametrico!$E$3:$L$18,MATCH($Y177,CostoParametrico!$D$3:$D$18,0),1)-AB177-AC177)*IF(AND($D$20="A",MID($F177,1,1)<>"A"),0%,100%) -> 0 | AB177: =MAX(0,(V177)-INDEX(CostoParametrico!$E$3:$L$18,MATCH($Y177,CostoParametrico!$D$3:$D$18,0),2)-AC177)*IF(AND($D$20="A",MID($F177,1,1)<>"A"),0%,100%) -> 0 | AC177: =MAX(0,(V177)-INDEX(CostoParametrico!$E$3:$L$18,MATCH($Y177,CostoParametrico!$D$3:$D$18,0),3))*IF(AND($D$20="A",MID($F177,1,1)<>"A"),0%,100%) -> 0 | AD177: 0 | AE177: =MAX(0,(V177+W177)-INDEX(CostoParametrico!$E$3:$L$18,MATCH($Y177,CostoParametrico!$D$3:$D$18,0),1)-AA177-AB177-AC177-AF177-AG177)*IF(AND($D$20="A",MID($F177,1,1)<>"A"),0%,100%) -> 0 | AF177: =MAX(0,(V177+W177)-INDEX(CostoParametrico!$E$3:$L$18,MATCH($Y177,CostoParametrico!$D$3:$D$18,0),2)-AB177-AC177-AG177)*IF(AND($D$20="A",MID(F177,1,1)<>"A"),0%,100%) -> 0 | AG177: =MAX(0,(V177+W177)-INDEX(CostoParametrico!$E$3:$L$18,MATCH($Y177,CostoParametrico!$D$3:$D$18,0),3)-AC177)*IF(AND($D$20="A",MID(F177,1,1)<>"A"),0%,100%) -> 0 | AH177: =INDEX(CostoParametrico!$E$3:$L$18,MATCH($Y177,CostoParametrico!$D$3:$D$18,0),5) -> 400 | AI177: =INDEX(CostoParametrico!$E$3:$L$18,MATCH($Y177,CostoParametrico!$D$3:$D$18,0),6) -> 330 | AJ177: =INDEX(CostoParametrico!$E$3:$L$18,MATCH($Y177,CostoParametrico!$D$3:$D$18,0),7) -> 300 | AK177: =INDEX(CostoParametrico!$E$3:$L$18,MATCH($Y177,CostoParametrico!$D$3:$D$18,0),8) -> 300 | AL177: 0 | AM177: 0 | AN177: 0 | AO177: 0 | AP177: 0 | AQ177: 0 | AR177: 0 | AS177: 1 | AT177: 0 | AU177: 0 | AV177: 0 | AW177: 0 | AX177: 0 | AY177: 0 | AZ177: 0 | BA177: 0 | BB177: 0 | BC177: 0 | BD177: 0 | BE177: 0 | BF177: 0 | BG177: 0 | BH177: 0 | BI177: 0 | BJ177: 0 | BK177: 1.1
A178: 1 | B178: 1 | C178: 37 | D178: 1 | E178: N | F178: A - Abitativo | G178: 0 | H178: 0 | I178: Privata | J178: 10 | K178: N | L178: 0 | M178: 0 | N178: 0 | O178: 0 | P178: N | Q178: N | R178: L0 | S178: 0 | T178: 0 | U178: 0 | V178: 0 | W178: 0 | X178: 0 | Y178: Abitativa-L0 | Z178: 0 | AA178: =MAX(0,(V178)-INDEX(CostoParametrico!$E$3:$L$18,MATCH($Y178,CostoParametrico!$D$3:$D$18,0),1)-AB178-AC178)*IF(AND($D$20="A",MID($F178,1,1)<>"A"),0%,100%) -> 0 | AB178: =MAX(0,(V178)-INDEX(CostoParametrico!$E$3:$L$18,MATCH($Y178,CostoParametrico!$D$3:$D$18,0),2)-AC178)*IF(AND($D$20="A",MID($F178,1,1)<>"A"),0%,100%) -> 0 | AC178: =MAX(0,(V178)-INDEX(CostoParametrico!$E$3:$L$18,MATCH($Y178,CostoParametrico!$D$3:$D$18,0),3))*IF(AND($D$20="A",MID($F178,1,1)<>"A"),0%,100%) -> 0 | AD178: 0 | AE178: =MAX(0,(V178+W178)-INDEX(CostoParametrico!$E$3:$L$18,MATCH($Y178,CostoParametrico!$D$3:$D$18,0),1)-AA178-AB178-AC178-AF178-AG178)*IF(AND($D$20="A",MID($F178,1,1)<>"A"),0%,100%) -> 0 | AF178: =MAX(0,(V178+W178)-INDEX(CostoParametrico!$E$3:$L$18,MATCH($Y178,CostoParametrico!$D$3:$D$18,0),2)-AB178-AC178-AG178)*IF(AND($D$20="A",MID(F178,1,1)<>"A"),0%,100%) -> 0 | AG178: =MAX(0,(V178+W178)-INDEX(CostoParametrico!$E$3:$L$18,MATCH($Y178,CostoParametrico!$D$3:$D$18,0),3)-AC178)*IF(AND($D$20="A",MID(F178,1,1)<>"A"),0%,100%) -> 0 | AH178: =INDEX(CostoParametrico!$E$3:$L$18,MATCH($Y178,CostoParametrico!$D$3:$D$18,0),5) -> 400 | AI178: =INDEX(CostoParametrico!$E$3:$L$18,MATCH($Y178,CostoParametrico!$D$3:$D$18,0),6) -> 330 | AJ178: =INDEX(CostoParametrico!$E$3:$L$18,MATCH($Y178,CostoParametrico!$D$3:$D$18,0),7) -> 300 | AK178: =INDEX(CostoParametrico!$E$3:$L$18,MATCH($Y178,CostoParametrico!$D$3:$D$18,0),8) -> 300 | AL178: 0 | AM178: 0 | AN178: 0 | AO178: 0 | AP178: 0 | AQ178: 0 | AR178: 0 | AS178: 1 | AT178: 0 | AU178: 0 | AV178: 0 | AW178: 0 | AX178: 0 | AY178: 0 | AZ178: 0 | BA178: 0 | BB178: 0 | BC178: 0 | BD178: 0 | BE178: 0 | BF178: 0 | BG178: 0 | BH178: 0 | BI178: 0 | BJ178: 0 | BK178: 1.1
A179: 1 | B179: 1 | C179: 38 | D179: 1 | E179: N | F179: A - Abitativo | G179: 0 | H179: 0 | I179: Privata | J179: 10 | K179: N | L179: 0 | M179: 0 | N179: 0 | O179: 0 | P179: N | Q179: N | R179: L0 | S179: 0 | T179: 0 | U179: 0 | V179: 0 | W179: 0 | X179: 0 | Y179: Abitativa-L0 | Z179: 0 | AA179: =MAX(0,(V179)-INDEX(CostoParametrico!$E$3:$L$18,MATCH($Y179,CostoParametrico!$D$3:$D$18,0),1)-AB179-AC179)*IF(AND($D$20="A",MID($F179,1,1)<>"A"),0%,100%) -> 0 | AB179: =MAX(0,(V179)-INDEX(CostoParametrico!$E$3:$L$18,MATCH($Y179,CostoParametrico!$D$3:$D$18,0),2)-AC179)*IF(AND($D$20="A",MID($F179,1,1)<>"A"),0%,100%) -> 0 | AC179: =MAX(0,(V179)-INDEX(CostoParametrico!$E$3:$L$18,MATCH($Y179,CostoParametrico!$D$3:$D$18,0),3))*IF(AND($D$20="A",MID($F179,1,1)<>"A"),0%,100%) -> 0 | AD179: 0 | AE179: =MAX(0,(V179+W179)-INDEX(CostoParametrico!$E$3:$L$18,MATCH($Y179,CostoParametrico!$D$3:$D$18,0),1)-AA179-AB179-AC179-AF179-AG179)*IF(AND($D$20="A",MID($F179,1,1)<>"A"),0%,100%) -> 0 | AF179: =MAX(0,(V179+W179)-INDEX(CostoParametrico!$E$3:$L$18,MATCH($Y179,CostoParametrico!$D$3:$D$18,0),2)-AB179-AC179-AG179)*IF(AND($D$20="A",MID(F179,1,1)<>"A"),0%,100%) -> 0 | AG179: =MAX(0,(V179+W179)-INDEX(CostoParametrico!$E$3:$L$18,MATCH($Y179,CostoParametrico!$D$3:$D$18,0),3)-AC179)*IF(AND($D$20="A",MID(F179,1,1)<>"A"),0%,100%) -> 0 | AH179: =INDEX(CostoParametrico!$E$3:$L$18,MATCH($Y179,CostoParametrico!$D$3:$D$18,0),5) -> 400 | AI179: =INDEX(CostoParametrico!$E$3:$L$18,MATCH($Y179,CostoParametrico!$D$3:$D$18,0),6) -> 330 | AJ179: =INDEX(CostoParametrico!$E$3:$L$18,MATCH($Y179,CostoParametrico!$D$3:$D$18,0),7) -> 300 | AK179: =INDEX(CostoParametrico!$E$3:$L$18,MATCH($Y179,CostoParametrico!$D$3:$D$18,0),8) -> 300 | AL179: 0 | AM179: 0 | AN179: 0 | AO179: 0 | AP179: 0 | AQ179: 0 | AR179: 0 | AS179: 1 | AT179: 0 | AU179: 0 | AV179: 0 | AW179: 0 | AX179: 0 | AY179: 0 | AZ179: 0 | BA179: 0 | BB179: 0 | BC179: 0 | BD179: 0 | BE179: 0 | BF179: 0 | BG179: 0 | BH179: 0 | BI179: 0 | BJ179: 0 | BK179: 1.1
A180: 1 | B180: 1 | C180: 39 | D180: 1 | E180: N | F180: A - Abitativo | G180: 0 | H180: 0 | I180: Privata | J180: 10 | K180: N | L180: 0 | M180: 0 | N180: 0 | O180: 0 | P180: N | Q180: N | R180: L0 | S180: 0 | T180: 0 | U180: 0 | V180: 0 | W180: 0 | X180: 0 | Y180: Abitativa-L0 | Z180: 0 | AA180: =MAX(0,(V180)-INDEX(CostoParametrico!$E$3:$L$18,MATCH($Y180,CostoParametrico!$D$3:$D$18,0),1)-AB180-AC180)*IF(AND($D$20="A",MID($F180,1,1)<>"A"),0%,100%) -> 0 | AB180: =MAX(0,(V180)-INDEX(CostoParametrico!$E$3:$L$18,MATCH($Y180,CostoParametrico!$D$3:$D$18,0),2)-AC180)*IF(AND($D$20="A",MID($F180,1,1)<>"A"),0%,100%) -> 0 | AC180: =MAX(0,(V180)-INDEX(CostoParametrico!$E$3:$L$18,MATCH($Y180,CostoParametrico!$D$3:$D$18,0),3))*IF(AND($D$20="A",MID($F180,1,1)<>"A"),0%,100%) -> 0 | AD180: 0 | AE180: =MAX(0,(V180+W180)-INDEX(CostoParametrico!$E$3:$L$18,MATCH($Y180,CostoParametrico!$D$3:$D$18,0),1)-AA180-AB180-AC180-AF180-AG180)*IF(AND($D$20="A",MID($F180,1,1)<>"A"),0%,100%) -> 0 | AF180: =MAX(0,(V180+W180)-INDEX(CostoParametrico!$E$3:$L$18,MATCH($Y180,CostoParametrico!$D$3:$D$18,0),2)-AB180-AC180-AG180)*IF(AND($D$20="A",MID(F180,1,1)<>"A"),0%,100%) -> 0 | AG180: =MAX(0,(V180+W180)-INDEX(CostoParametrico!$E$3:$L$18,MATCH($Y180,CostoParametrico!$D$3:$D$18,0),3)-AC180)*IF(AND($D$20="A",MID(F180,1,1)<>"A"),0%,100%) -> 0 | AH180: =INDEX(CostoParametrico!$E$3:$L$18,MATCH($Y180,CostoParametrico!$D$3:$D$18,0),5) -> 400 | AI180: =INDEX(CostoParametrico!$E$3:$L$18,MATCH($Y180,CostoParametrico!$D$3:$D$18,0),6) -> 330 | AJ180: =INDEX(CostoParametrico!$E$3:$L$18,MATCH($Y180,CostoParametrico!$D$3:$D$18,0),7) -> 300 | AK180: =INDEX(CostoParametrico!$E$3:$L$18,MATCH($Y180,CostoParametrico!$D$3:$D$18,0),8) -> 300 | AL180: 0 | AM180: 0 | AN180: 0 | AO180: 0 | AP180: 0 | AQ180: 0 | AR180: 0 | AS180: 1 | AT180: 0 | AU180: 0 | AV180: 0 | AW180: 0 | AX180: 0 | AY180: 0 | AZ180: 0 | BA180: 0 | BB180: 0 | BC180: 0 | BD180: 0 | BE180: 0 | BF180: 0 | BG180: 0 | BH180: 0 | BI180: 0 | BJ180: 0 | BK180: 1.1
A181: 1 | B181: 1 | C181: 40 | D181: 1 | E181: N | F181: A - Abitativo | G181: 0 | H181: 0 | I181: Privata | J181: 10 | K181: N | L181: 0 | M181: 0 | N181: 0 | O181: 0 | P181: N | Q181: N | R181: L0 | S181: 0 | T181: 0 | U181: 0 | V181: 0 | W181: 0 | X181: 0 | Y181: Abitativa-L0 | Z181: 0 | AA181: =MAX(0,(V181)-INDEX(CostoParametrico!$E$3:$L$18,MATCH($Y181,CostoParametrico!$D$3:$D$18,0),1)-AB181-AC181)*IF(AND($D$20="A",MID($F181,1,1)<>"A"),0%,100%) -> 0 | AB181: =MAX(0,(V181)-INDEX(CostoParametrico!$E$3:$L$18,MATCH($Y181,CostoParametrico!$D$3:$D$18,0),2)-AC181)*IF(AND($D$20="A",MID($F181,1,1)<>"A"),0%,100%) -> 0 | AC181: =MAX(0,(V181)-INDEX(CostoParametrico!$E$3:$L$18,MATCH($Y181,CostoParametrico!$D$3:$D$18,0),3))*IF(AND($D$20="A",MID($F181,1,1)<>"A"),0%,100%) -> 0 | AD181: 0 | AE181: =MAX(0,(V181+W181)-INDEX(CostoParametrico!$E$3:$L$18,MATCH($Y181,CostoParametrico!$D$3:$D$18,0),1)-AA181-AB181-AC181-AF181-AG181)*IF(AND($D$20="A",MID($F181,1,1)<>"A"),0%,100%) -> 0 | AF181: =MAX(0,(V181+W181)-INDEX(CostoParametrico!$E$3:$L$18,MATCH($Y181,CostoParametrico!$D$3:$D$18,0),2)-AB181-AC181-AG181)*IF(AND($D$20="A",MID(F181,1,1)<>"A"),0%,100%) -> 0 | AG181: =MAX(0,(V181+W181)-INDEX(CostoParametrico!$E$3:$L$18,MATCH($Y181,CostoParametrico!$D$3:$D$18,0),3)-AC181)*IF(AND($D$20="A",MID(F181,1,1)<>"A"),0%,100%) -> 0 | AH181: =INDEX(CostoParametrico!$E$3:$L$18,MATCH($Y181,CostoParametrico!$D$3:$D$18,0),5) -> 400 | AI181: =INDEX(CostoParametrico!$E$3:$L$18,MATCH($Y181,CostoParametrico!$D$3:$D$18,0),6) -> 330 | AJ181: =INDEX(CostoParametrico!$E$3:$L$18,MATCH($Y181,CostoParametrico!$D$3:$D$18,0),7) -> 300 | AK181: =INDEX(CostoParametrico!$E$3:$L$18,MATCH($Y181,CostoParametrico!$D$3:$D$18,0),8) -> 300 | AL181: 0 | AM181: 0 | AN181: 0 | AO181: 0 | AP181: 0 | AQ181: 0 | AR181: 0 | AS181: 1 | AT181: 0 | AU181: 0 | AV181: 0 | AW181: 0 | AX181: 0 | AY181: 0 | AZ181: 0 | BA181: 0 | BB181: 0 | BC181: 0 | BD181: 0 | BE181: 0 | BF181: 0 | BG181: 0 | BH181: 0 | BI181: 0 | BJ181: 0 | BK181: 1.1
A182: 1 | B182: 1 | C182: 41 | D182: 1 | E182: N | F182: A - Abitativo | G182: 0 | H182: 0 | I182: Privata | J182: 10 | K182: N | L182: 0 | M182: 0 | N182: 0 | O182: 0 | P182: N | Q182: N | R182: L0 | S182: 0 | T182: 0 | U182: 0 | V182: 0 | W182: 0 | X182: 0 | Y182: Abitativa-L0 | Z182: 0 | AA182: =MAX(0,(V182)-INDEX(CostoParametrico!$E$3:$L$18,MATCH($Y182,CostoParametrico!$D$3:$D$18,0),1)-AB182-AC182)*IF(AND($D$20="A",MID($F182,1,1)<>"A"),0%,100%) -> 0 | AB182: =MAX(0,(V182)-INDEX(CostoParametrico!$E$3:$L$18,MATCH($Y182,CostoParametrico!$D$3:$D$18,0),2)-AC182)*IF(AND($D$20="A",MID($F182,1,1)<>"A"),0%,100%) -> 0 | AC182: =MAX(0,(V182)-INDEX(CostoParametrico!$E$3:$L$18,MATCH($Y182,CostoParametrico!$D$3:$D$18,0),3))*IF(AND($D$20="A",MID($F182,1,1)<>"A"),0%,100%) -> 0 | AD182: 0 | AE182: =MAX(0,(V182+W182)-INDEX(CostoParametrico!$E$3:$L$18,MATCH($Y182,CostoParametrico!$D$3:$D$18,0),1)-AA182-AB182-AC182-AF182-AG182)*IF(AND($D$20="A",MID($F182,1,1)<>"A"),0%,100%) -> 0 | AF182: =MAX(0,(V182+W182)-INDEX(CostoParametrico!$E$3:$L$18,MATCH($Y182,CostoParametrico!$D$3:$D$18,0),2)-AB182-AC182-AG182)*IF(AND($D$20="A",MID(F182,1,1)<>"A"),0%,100%) -> 0 | AG182: =MAX(0,(V182+W182)-INDEX(CostoParametrico!$E$3:$L$18,MATCH($Y182,CostoParametrico!$D$3:$D$18,0),3)-AC182)*IF(AND($D$20="A",MID(F182,1,1)<>"A"),0%,100%) -> 0 | AH182: =INDEX(CostoParametrico!$E$3:$L$18,MATCH($Y182,CostoParametrico!$D$3:$D$18,0),5) -> 400 | AI182: =INDEX(CostoParametrico!$E$3:$L$18,MATCH($Y182,CostoParametrico!$D$3:$D$18,0),6) -> 330 | AJ182: =INDEX(CostoParametrico!$E$3:$L$18,MATCH($Y182,CostoParametrico!$D$3:$D$18,0),7) -> 300 | AK182: =INDEX(CostoParametrico!$E$3:$L$18,MATCH($Y182,CostoParametrico!$D$3:$D$18,0),8) -> 300 | AL182: 0 | AM182: 0 | AN182: 0 | AO182: 0 | AP182: 0 | AQ182: 0 | AR182: 0 | AS182: 1 | AT182: 0 | AU182: 0 | AV182: 0 | AW182: 0 | AX182: 0 | AY182: 0 | AZ182: 0 | BA182: 0 | BB182: 0 | BC182: 0 | BD182: 0 | BE182: 0 | BF182: 0 | BG182: 0 | BH182: 0 | BI182: 0 | BJ182: 0 | BK182: 1.1
A183: 1 | B183: 1 | C183: 42 | D183: 1 | E183: N | F183: A - Abitativo | G183: 0 | H183: 0 | I183: Privata | J183: 10 | K183: N | L183: 0 | M183: 0 | N183: 0 | O183: 0 | P183: N | Q183: N | R183: L0 | S183: 0 | T183: 0 | U183: 0 | V183: 0 | W183: 0 | X183: 0 | Y183: Abitativa-L0 | Z183: 0 | AA183: =MAX(0,(V183)-INDEX(CostoParametrico!$E$3:$L$18,MATCH($Y183,CostoParametrico!$D$3:$D$18,0),1)-AB183-AC183)*IF(AND($D$20="A",MID($F183,1,1)<>"A"),0%,100%) -> 0 | AB183: =MAX(0,(V183)-INDEX(CostoParametrico!$E$3:$L$18,MATCH($Y183,CostoParametrico!$D$3:$D$18,0),2)-AC183)*IF(AND($D$20="A",MID($F183,1,1)<>"A"),0%,100%) -> 0 | AC183: =MAX(0,(V183)-INDEX(CostoParametrico!$E$3:$L$18,MATCH($Y183,CostoParametrico!$D$3:$D$18,0),3))*IF(AND($D$20="A",MID($F183,1,1)<>"A"),0%,100%) -> 0 | AD183: 0 | AE183: =MAX(0,(V183+W183)-INDEX(CostoParametrico!$E$3:$L$18,MATCH($Y183,CostoParametrico!$D$3:$D$18,0),1)-AA183-AB183-AC183-AF183-AG183)*IF(AND($D$20="A",MID($F183,1,1)<>"A"),0%,100%) -> 0 | AF183: =MAX(0,(V183+W183)-INDEX(CostoParametrico!$E$3:$L$18,MATCH($Y183,CostoParametrico!$D$3:$D$18,0),2)-AB183-AC183-AG183)*IF(AND($D$20="A",MID(F183,1,1)<>"A"),0%,100%) -> 0 | AG183: =MAX(0,(V183+W183)-INDEX(CostoParametrico!$E$3:$L$18,MATCH($Y183,CostoParametrico!$D$3:$D$18,0),3)-AC183)*IF(AND($D$20="A",MID(F183,1,1)<>"A"),0%,100%) -> 0 | AH183: =INDEX(CostoParametrico!$E$3:$L$18,MATCH($Y183,CostoParametrico!$D$3:$D$18,0),5) -> 400 | AI183: =INDEX(CostoParametrico!$E$3:$L$18,MATCH($Y183,CostoParametrico!$D$3:$D$18,0),6) -> 330 | AJ183: =INDEX(CostoParametrico!$E$3:$L$18,MATCH($Y183,CostoParametrico!$D$3:$D$18,0),7) -> 300 | AK183: =INDEX(CostoParametrico!$E$3:$L$18,MATCH($Y183,CostoParametrico!$D$3:$D$18,0),8) -> 300 | AL183: 0 | AM183: 0 | AN183: 0 | AO183: 0 | AP183: 0 | AQ183: 0 | AR183: 0 | AS183: 1 | AT183: 0 | AU183: 0 | AV183: 0 | AW183: 0 | AX183: 0 | AY183: 0 | AZ183: 0 | BA183: 0 | BB183: 0 | BC183: 0 | BD183: 0 | BE183: 0 | BF183: 0 | BG183: 0 | BH183: 0 | BI183: 0 | BJ183: 0 | BK183: 1.1
A184: 1 | B184: 1 | C184: 43 | D184: 1 | E184: N | F184: A - Abitativo | G184: 0 | H184: 0 | I184: Privata | J184: 10 | K184: N | L184: 0 | M184: 0 | N184: 0 | O184: 0 | P184: N | Q184: N | R184: L0 | S184: 0 | T184: 0 | U184: 0 | V184: 0 | W184: 0 | X184: 0 | Y184: Abitativa-L0 | Z184: 0 | AA184: =MAX(0,(V184)-INDEX(CostoParametrico!$E$3:$L$18,MATCH($Y184,CostoParametrico!$D$3:$D$18,0),1)-AB184-AC184)*IF(AND($D$20="A",MID($F184,1,1)<>"A"),0%,100%) -> 0 | AB184: =MAX(0,(V184)-INDEX(CostoParametrico!$E$3:$L$18,MATCH($Y184,CostoParametrico!$D$3:$D$18,0),2)-AC184)*IF(AND($D$20="A",MID($F184,1,1)<>"A"),0%,100%) -> 0 | AC184: =MAX(0,(V184)-INDEX(CostoParametrico!$E$3:$L$18,MATCH($Y184,CostoParametrico!$D$3:$D$18,0),3))*IF(AND($D$20="A",MID($F184,1,1)<>"A"),0%,100%) -> 0 | AD184: 0 | AE184: =MAX(0,(V184+W184)-INDEX(CostoParametrico!$E$3:$L$18,MATCH($Y184,CostoParametrico!$D$3:$D$18,0),1)-AA184-AB184-AC184-AF184-AG184)*IF(AND($D$20="A",MID($F184,1,1)<>"A"),0%,100%) -> 0 | AF184: =MAX(0,(V184+W184)-INDEX(CostoParametrico!$E$3:$L$18,MATCH($Y184,CostoParametrico!$D$3:$D$18,0),2)-AB184-AC184-AG184)*IF(AND($D$20="A",MID(F184,1,1)<>"A"),0%,100%) -> 0 | AG184: =MAX(0,(V184+W184)-INDEX(CostoParametrico!$E$3:$L$18,MATCH($Y184,CostoParametrico!$D$3:$D$18,0),3)-AC184)*IF(AND($D$20="A",MID(F184,1,1)<>"A"),0%,100%) -> 0 | AH184: =INDEX(CostoParametrico!$E$3:$L$18,MATCH($Y184,CostoParametrico!$D$3:$D$18,0),5) -> 400 | AI184: =INDEX(CostoParametrico!$E$3:$L$18,MATCH($Y184,CostoParametrico!$D$3:$D$18,0),6) -> 330 | AJ184: =INDEX(CostoParametrico!$E$3:$L$18,MATCH($Y184,CostoParametrico!$D$3:$D$18,0),7) -> 300 | AK184: =INDEX(CostoParametrico!$E$3:$L$18,MATCH($Y184,CostoParametrico!$D$3:$D$18,0),8) -> 300 | AL184: 0 | AM184: 0 | AN184: 0 | AO184: 0 | AP184: 0 | AQ184: 0 | AR184: 0 | AS184: 1 | AT184: 0 | AU184: 0 | AV184: 0 | AW184: 0 | AX184: 0 | AY184: 0 | AZ184: 0 | BA184: 0 | BB184: 0 | BC184: 0 | BD184: 0 | BE184: 0 | BF184: 0 | BG184: 0 | BH184: 0 | BI184: 0 | BJ184: 0 | BK184: 1.1
A185: 1 | B185: 1 | C185: 44 | D185: 1 | E185: N | F185: A - Abitativo | G185: 0 | H185: 0 | I185: Privata | J185: 10 | K185: N | L185: 0 | M185: 0 | N185: 0 | O185: 0 | P185: N | Q185: N | R185: L0 | S185: 0 | T185: 0 | U185: 0 | V185: 0 | W185: 0 | X185: 0 | Y185: Abitativa-L0 | Z185: 0 | AA185: =MAX(0,(V185)-INDEX(CostoParametrico!$E$3:$L$18,MATCH($Y185,CostoParametrico!$D$3:$D$18,0),1)-AB185-AC185)*IF(AND($D$20="A",MID($F185,1,1)<>"A"),0%,100%) -> 0 | AB185: =MAX(0,(V185)-INDEX(CostoParametrico!$E$3:$L$18,MATCH($Y185,CostoParametrico!$D$3:$D$18,0),2)-AC185)*IF(AND($D$20="A",MID($F185,1,1)<>"A"),0%,100%) -> 0 | AC185: =MAX(0,(V185)-INDEX(CostoParametrico!$E$3:$L$18,MATCH($Y185,CostoParametrico!$D$3:$D$18,0),3))*IF(AND($D$20="A",MID($F185,1,1)<>"A"),0%,100%) -> 0 | AD185: 0 | AE185: =MAX(0,(V185+W185)-INDEX(CostoParametrico!$E$3:$L$18,MATCH($Y185,CostoParametrico!$D$3:$D$18,0),1)-AA185-AB185-AC185-AF185-AG185)*IF(AND($D$20="A",MID($F185,1,1)<>"A"),0%,100%) -> 0 | AF185: =MAX(0,(V185+W185)-INDEX(CostoParametrico!$E$3:$L$18,MATCH($Y185,CostoParametrico!$D$3:$D$18,0),2)-AB185-AC185-AG185)*IF(AND($D$20="A",MID(F185,1,1)<>"A"),0%,100%) -> 0 | AG185: =MAX(0,(V185+W185)-INDEX(CostoParametrico!$E$3:$L$18,MATCH($Y185,CostoParametrico!$D$3:$D$18,0),3)-AC185)*IF(AND($D$20="A",MID(F185,1,1)<>"A"),0%,100%) -> 0 | AH185: =INDEX(CostoParametrico!$E$3:$L$18,MATCH($Y185,CostoParametrico!$D$3:$D$18,0),5) -> 400 | AI185: =INDEX(CostoParametrico!$E$3:$L$18,MATCH($Y185,CostoParametrico!$D$3:$D$18,0),6) -> 330 | AJ185: =INDEX(CostoParametrico!$E$3:$L$18,MATCH($Y185,CostoParametrico!$D$3:$D$18,0),7) -> 300 | AK185: =INDEX(CostoParametrico!$E$3:$L$18,MATCH($Y185,CostoParametrico!$D$3:$D$18,0),8) -> 300 | AL185: 0 | AM185: 0 | AN185: 0 | AO185: 0 | AP185: 0 | AQ185: 0 | AR185: 0 | AS185: 1 | AT185: 0 | AU185: 0 | AV185: 0 | AW185: 0 | AX185: 0 | AY185: 0 | AZ185: 0 | BA185: 0 | BB185: 0 | BC185: 0 | BD185: 0 | BE185: 0 | BF185: 0 | BG185: 0 | BH185: 0 | BI185: 0 | BJ185: 0 | BK185: 1.1
A186: 1 | B186: 1 | C186: 45 | D186: 1 | E186: N | F186: A - Abitativo | G186: 0 | H186: 0 | I186: Privata | J186: 10 | K186: N | L186: 0 | M186: 0 | N186: 0 | O186: 0 | P186: N | Q186: N | R186: L0 | S186: 0 | T186: 0 | U186: 0 | V186: 0 | W186: 0 | X186: 0 | Y186: Abitativa-L0 | Z186: 0 | AA186: =MAX(0,(V186)-INDEX(CostoParametrico!$E$3:$L$18,MATCH($Y186,CostoParametrico!$D$3:$D$18,0),1)-AB186-AC186)*IF(AND($D$20="A",MID($F186,1,1)<>"A"),0%,100%) -> 0 | AB186: =MAX(0,(V186)-INDEX(CostoParametrico!$E$3:$L$18,MATCH($Y186,CostoParametrico!$D$3:$D$18,0),2)-AC186)*IF(AND($D$20="A",MID($F186,1,1)<>"A"),0%,100%) -> 0 | AC186: =MAX(0,(V186)-INDEX(CostoParametrico!$E$3:$L$18,MATCH($Y186,CostoParametrico!$D$3:$D$18,0),3))*IF(AND($D$20="A",MID($F186,1,1)<>"A"),0%,100%) -> 0 | AD186: 0 | AE186: =MAX(0,(V186+W186)-INDEX(CostoParametrico!$E$3:$L$18,MATCH($Y186,CostoParametrico!$D$3:$D$18,0),1)-AA186-AB186-AC186-AF186-AG186)*IF(AND($D$20="A",MID($F186,1,1)<>"A"),0%,100%) -> 0 | AF186: =MAX(0,(V186+W186)-INDEX(CostoParametrico!$E$3:$L$18,MATCH($Y186,CostoParametrico!$D$3:$D$18,0),2)-AB186-AC186-AG186)*IF(AND($D$20="A",MID(F186,1,1)<>"A"),0%,100%) -> 0 | AG186: =MAX(0,(V186+W186)-INDEX(CostoParametrico!$E$3:$L$18,MATCH($Y186,CostoParametrico!$D$3:$D$18,0),3)-AC186)*IF(AND($D$20="A",MID(F186,1,1)<>"A"),0%,100%) -> 0 | AH186: =INDEX(CostoParametrico!$E$3:$L$18,MATCH($Y186,CostoParametrico!$D$3:$D$18,0),5) -> 400 | AI186: =INDEX(CostoParametrico!$E$3:$L$18,MATCH($Y186,CostoParametrico!$D$3:$D$18,0),6) -> 330 | AJ186: =INDEX(CostoParametrico!$E$3:$L$18,MATCH($Y186,CostoParametrico!$D$3:$D$18,0),7) -> 300 | AK186: =INDEX(CostoParametrico!$E$3:$L$18,MATCH($Y186,CostoParametrico!$D$3:$D$18,0),8) -> 300 | AL186: 0 | AM186: 0 | AN186: 0 | AO186: 0 | AP186: 0 | AQ186: 0 | AR186: 0 | AS186: 1 | AT186: 0 | AU186: 0 | AV186: 0 | AW186: 0 | AX186: 0 | AY186: 0 | AZ186: 0 | BA186: 0 | BB186: 0 | BC186: 0 | BD186: 0 | BE186: 0 | BF186: 0 | BG186: 0 | BH186: 0 | BI186: 0 | BJ186: 0 | BK186: 1.1
A187: 1 | B187: 1 | C187: 46 | D187: 1 | E187: N | F187: A - Abitativo | G187: 0 | H187: 0 | I187: Privata | J187: 10 | K187: N | L187: 0 | M187: 0 | N187: 0 | O187: 0 | P187: N | Q187: N | R187: L0 | S187: 0 | T187: 0 | U187: 0 | V187: 0 | W187: 0 | X187: 0 | Y187: Abitativa-L0 | Z187: 0 | AA187: =MAX(0,(V187)-INDEX(CostoParametrico!$E$3:$L$18,MATCH($Y187,CostoParametrico!$D$3:$D$18,0),1)-AB187-AC187)*IF(AND($D$20="A",MID($F187,1,1)<>"A"),0%,100%) -> 0 | AB187: =MAX(0,(V187)-INDEX(CostoParametrico!$E$3:$L$18,MATCH($Y187,CostoParametrico!$D$3:$D$18,0),2)-AC187)*IF(AND($D$20="A",MID($F187,1,1)<>"A"),0%,100%) -> 0 | AC187: =MAX(0,(V187)-INDEX(CostoParametrico!$E$3:$L$18,MATCH($Y187,CostoParametrico!$D$3:$D$18,0),3))*IF(AND($D$20="A",MID($F187,1,1)<>"A"),0%,100%) -> 0 | AD187: 0 | AE187: =MAX(0,(V187+W187)-INDEX(CostoParametrico!$E$3:$L$18,MATCH($Y187,CostoParametrico!$D$3:$D$18,0),1)-AA187-AB187-AC187-AF187-AG187)*IF(AND($D$20="A",MID($F187,1,1)<>"A"),0%,100%) -> 0 | AF187: =MAX(0,(V187+W187)-INDEX(CostoParametrico!$E$3:$L$18,MATCH($Y187,CostoParametrico!$D$3:$D$18,0),2)-AB187-AC187-AG187)*IF(AND($D$20="A",MID(F187,1,1)<>"A"),0%,100%) -> 0 | AG187: =MAX(0,(V187+W187)-INDEX(CostoParametrico!$E$3:$L$18,MATCH($Y187,CostoParametrico!$D$3:$D$18,0),3)-AC187)*IF(AND($D$20="A",MID(F187,1,1)<>"A"),0%,100%) -> 0 | AH187: =INDEX(CostoParametrico!$E$3:$L$18,MATCH($Y187,CostoParametrico!$D$3:$D$18,0),5) -> 400 | AI187: =INDEX(CostoParametrico!$E$3:$L$18,MATCH($Y187,CostoParametrico!$D$3:$D$18,0),6) -> 330 | AJ187: =INDEX(CostoParametrico!$E$3:$L$18,MATCH($Y187,CostoParametrico!$D$3:$D$18,0),7) -> 300 | AK187: =INDEX(CostoParametrico!$E$3:$L$18,MATCH($Y187,CostoParametrico!$D$3:$D$18,0),8) -> 300 | AL187: 0 | AM187: 0 | AN187: 0 | AO187: 0 | AP187: 0 | AQ187: 0 | AR187: 0 | AS187: 1 | AT187: 0 | AU187: 0 | AV187: 0 | AW187: 0 | AX187: 0 | AY187: 0 | AZ187: 0 | BA187: 0 | BB187: 0 | BC187: 0 | BD187: 0 | BE187: 0 | BF187: 0 | BG187: 0 | BH187: 0 | BI187: 0 | BJ187: 0 | BK187: 1.1
A188: 1 | B188: 1 | C188: 47 | D188: 1 | E188: N | F188: A - Abitativo | G188: 0 | H188: 0 | I188: Privata | J188: 10 | K188: N | L188: 0 | M188: 0 | N188: 0 | O188: 0 | P188: N | Q188: N | R188: L0 | S188: 0 | T188: 0 | U188: 0 | V188: 0 | W188: 0 | X188: 0 | Y188: Abitativa-L0 | Z188: 0 | AA188: =MAX(0,(V188)-INDEX(CostoParametrico!$E$3:$L$18,MATCH($Y188,CostoParametrico!$D$3:$D$18,0),1)-AB188-AC188)*IF(AND($D$20="A",MID($F188,1,1)<>"A"),0%,100%) -> 0 | AB188: =MAX(0,(V188)-INDEX(CostoParametrico!$E$3:$L$18,MATCH($Y188,CostoParametrico!$D$3:$D$18,0),2)-AC188)*IF(AND($D$20="A",MID($F188,1,1)<>"A"),0%,100%) -> 0 | AC188: =MAX(0,(V188)-INDEX(CostoParametrico!$E$3:$L$18,MATCH($Y188,CostoParametrico!$D$3:$D$18,0),3))*IF(AND($D$20="A",MID($F188,1,1)<>"A"),0%,100%) -> 0 | AD188: 0 | AE188: =MAX(0,(V188+W188)-INDEX(CostoParametrico!$E$3:$L$18,MATCH($Y188,CostoParametrico!$D$3:$D$18,0),1)-AA188-AB188-AC188-AF188-AG188)*IF(AND($D$20="A",MID($F188,1,1)<>"A"),0%,100%) -> 0 | AF188: =MAX(0,(V188+W188)-INDEX(CostoParametrico!$E$3:$L$18,MATCH($Y188,CostoParametrico!$D$3:$D$18,0),2)-AB188-AC188-AG188)*IF(AND($D$20="A",MID(F188,1,1)<>"A"),0%,100%) -> 0 | AG188: =MAX(0,(V188+W188)-INDEX(CostoParametrico!$E$3:$L$18,MATCH($Y188,CostoParametrico!$D$3:$D$18,0),3)-AC188)*IF(AND($D$20="A",MID(F188,1,1)<>"A"),0%,100%) -> 0 | AH188: =INDEX(CostoParametrico!$E$3:$L$18,MATCH($Y188,CostoParametrico!$D$3:$D$18,0),5) -> 400 | AI188: =INDEX(CostoParametrico!$E$3:$L$18,MATCH($Y188,CostoParametrico!$D$3:$D$18,0),6) -> 330 | AJ188: =INDEX(CostoParametrico!$E$3:$L$18,MATCH($Y188,CostoParametrico!$D$3:$D$18,0),7) -> 300 | AK188: =INDEX(CostoParametrico!$E$3:$L$18,MATCH($Y188,CostoParametrico!$D$3:$D$18,0),8) -> 300 | AL188: 0 | AM188: 0 | AN188: 0 | AO188: 0 | AP188: 0 | AQ188: 0 | AR188: 0 | AS188: 1 | AT188: 0 | AU188: 0 | AV188: 0 | AW188: 0 | AX188: 0 | AY188: 0 | AZ188: 0 | BA188: 0 | BB188: 0 | BC188: 0 | BD188: 0 | BE188: 0 | BF188: 0 | BG188: 0 | BH188: 0 | BI188: 0 | BJ188: 0 | BK188: 1.1
A189: 1 | B189: 1 | C189: 48 | D189: 1 | E189: N | F189: A - Abitativo | G189: 0 | H189: 0 | I189: Privata | J189: 10 | K189: N | L189: 0 | M189: 0 | N189: 0 | O189: 0 | P189: N | Q189: N | R189: L0 | S189: 0 | T189: 0 | U189: 0 | V189: 0 | W189: 0 | X189: 0 | Y189: Abitativa-L0 | Z189: 0 | AA189: =MAX(0,(V189)-INDEX(CostoParametrico!$E$3:$L$18,MATCH($Y189,CostoParametrico!$D$3:$D$18,0),1)-AB189-AC189)*IF(AND($D$20="A",MID($F189,1,1)<>"A"),0%,100%) -> 0 | AB189: =MAX(0,(V189)-INDEX(CostoParametrico!$E$3:$L$18,MATCH($Y189,CostoParametrico!$D$3:$D$18,0),2)-AC189)*IF(AND($D$20="A",MID($F189,1,1)<>"A"),0%,100%) -> 0 | AC189: =MAX(0,(V189)-INDEX(CostoParametrico!$E$3:$L$18,MATCH($Y189,CostoParametrico!$D$3:$D$18,0),3))*IF(AND($D$20="A",MID($F189,1,1)<>"A"),0%,100%) -> 0 | AD189: 0 | AE189: =MAX(0,(V189+W189)-INDEX(CostoParametrico!$E$3:$L$18,MATCH($Y189,CostoParametrico!$D$3:$D$18,0),1)-AA189-AB189-AC189-AF189-AG189)*IF(AND($D$20="A",MID($F189,1,1)<>"A"),0%,100%) -> 0 | AF189: =MAX(0,(V189+W189)-INDEX(CostoParametrico!$E$3:$L$18,MATCH($Y189,CostoParametrico!$D$3:$D$18,0),2)-AB189-AC189-AG189)*IF(AND($D$20="A",MID(F189,1,1)<>"A"),0%,100%) -> 0 | AG189: =MAX(0,(V189+W189)-INDEX(CostoParametrico!$E$3:$L$18,MATCH($Y189,CostoParametrico!$D$3:$D$18,0),3)-AC189)*IF(AND($D$20="A",MID(F189,1,1)<>"A"),0%,100%) -> 0 | AH189: =INDEX(CostoParametrico!$E$3:$L$18,MATCH($Y189,CostoParametrico!$D$3:$D$18,0),5) -> 400 | AI189: =INDEX(CostoParametrico!$E$3:$L$18,MATCH($Y189,CostoParametrico!$D$3:$D$18,0),6) -> 330 | AJ189: =INDEX(CostoParametrico!$E$3:$L$18,MATCH($Y189,CostoParametrico!$D$3:$D$18,0),7) -> 300 | AK189: =INDEX(CostoParametrico!$E$3:$L$18,MATCH($Y189,CostoParametrico!$D$3:$D$18,0),8) -> 300 | AL189: 0 | AM189: 0 | AN189: 0 | AO189: 0 | AP189: 0 | AQ189: 0 | AR189: 0 | AS189: 1 | AT189: 0 | AU189: 0 | AV189: 0 | AW189: 0 | AX189: 0 | AY189: 0 | AZ189: 0 | BA189: 0 | BB189: 0 | BC189: 0 | BD189: 0 | BE189: 0 | BF189: 0 | BG189: 0 | BH189: 0 | BI189: 0 | BJ189: 0 | BK189: 1.1
A190: 1 | B190: 1 | C190: 49 | D190: 1 | E190: N | F190: A - Abitativo | G190: 0 | H190: 0 | I190: Privata | J190: 10 | K190: N | L190: 0 | M190: 0 | N190: 0 | O190: 0 | P190: N | Q190: N | R190: L0 | S190: 0 | T190: 0 | U190: 0 | V190: 0 | W190: 0 | X190: 0 | Y190: Abitativa-L0 | Z190: 0 | AA190: =MAX(0,(V190)-INDEX(CostoParametrico!$E$3:$L$18,MATCH($Y190,CostoParametrico!$D$3:$D$18,0),1)-AB190-AC190)*IF(AND($D$20="A",MID($F190,1,1)<>"A"),0%,100%) -> 0 | AB190: =MAX(0,(V190)-INDEX(CostoParametrico!$E$3:$L$18,MATCH($Y190,CostoParametrico!$D$3:$D$18,0),2)-AC190)*IF(AND($D$20="A",MID($F190,1,1)<>"A"),0%,100%) -> 0 | AC190: =MAX(0,(V190)-INDEX(CostoParametrico!$E$3:$L$18,MATCH($Y190,CostoParametrico!$D$3:$D$18,0),3))*IF(AND($D$20="A",MID($F190,1,1)<>"A"),0%,100%) -> 0 | AD190: 0 | AE190: =MAX(0,(V190+W190)-INDEX(CostoParametrico!$E$3:$L$18,MATCH($Y190,CostoParametrico!$D$3:$D$18,0),1)-AA190-AB190-AC190-AF190-AG190)*IF(AND($D$20="A",MID($F190,1,1)<>"A"),0%,100%) -> 0 | AF190: =MAX(0,(V190+W190)-INDEX(CostoParametrico!$E$3:$L$18,MATCH($Y190,CostoParametrico!$D$3:$D$18,0),2)-AB190-AC190-AG190)*IF(AND($D$20="A",MID(F190,1,1)<>"A"),0%,100%) -> 0 | AG190: =MAX(0,(V190+W190)-INDEX(CostoParametrico!$E$3:$L$18,MATCH($Y190,CostoParametrico!$D$3:$D$18,0),3)-AC190)*IF(AND($D$20="A",MID(F190,1,1)<>"A"),0%,100%) -> 0 | AH190: =INDEX(CostoParametrico!$E$3:$L$18,MATCH($Y190,CostoParametrico!$D$3:$D$18,0),5) -> 400 | AI190: =INDEX(CostoParametrico!$E$3:$L$18,MATCH($Y190,CostoParametrico!$D$3:$D$18,0),6) -> 330 | AJ190: =INDEX(CostoParametrico!$E$3:$L$18,MATCH($Y190,CostoParametrico!$D$3:$D$18,0),7) -> 300 | AK190: =INDEX(CostoParametrico!$E$3:$L$18,MATCH($Y190,CostoParametrico!$D$3:$D$18,0),8) -> 300 | AL190: 0 | AM190: 0 | AN190: 0 | AO190: 0 | AP190: 0 | AQ190: 0 | AR190: 0 | AS190: 1 | AT190: 0 | AU190: 0 | AV190: 0 | AW190: 0 | AX190: 0 | AY190: 0 | AZ190: 0 | BA190: 0 | BB190: 0 | BC190: 0 | BD190: 0 | BE190: 0 | BF190: 0 | BG190: 0 | BH190: 0 | BI190: 0 | BJ190: 0 | BK190: 1.1
A191: 1 | B191: 1 | C191: 50 | D191: 1 | E191: N | F191: A - Abitativo | G191: 0 | H191: 0 | I191: Privata | J191: 10 | K191: N | L191: 0 | M191: 0 | N191: 0 | O191: 0 | P191: N | Q191: N | R191: L0 | S191: 0 | T191: 0 | U191: 0 | V191: 0 | W191: 0 | X191: 0 | Y191: Abitativa-L0 | Z191: 0 | AA191: =MAX(0,(V191)-INDEX(CostoParametrico!$E$3:$L$18,MATCH($Y191,CostoParametrico!$D$3:$D$18,0),1)-AB191-AC191)*IF(AND($D$20="A",MID($F191,1,1)<>"A"),0%,100%) -> 0 | AB191: =MAX(0,(V191)-INDEX(CostoParametrico!$E$3:$L$18,MATCH($Y191,CostoParametrico!$D$3:$D$18,0),2)-AC191)*IF(AND($D$20="A",MID($F191,1,1)<>"A"),0%,100%) -> 0 | AC191: =MAX(0,(V191)-INDEX(CostoParametrico!$E$3:$L$18,MATCH($Y191,CostoParametrico!$D$3:$D$18,0),3))*IF(AND($D$20="A",MID($F191,1,1)<>"A"),0%,100%) -> 0 | AD191: 0 | AE191: =MAX(0,(V191+W191)-INDEX(CostoParametrico!$E$3:$L$18,MATCH($Y191,CostoParametrico!$D$3:$D$18,0),1)-AA191-AB191-AC191-AF191-AG191)*IF(AND($D$20="A",MID($F191,1,1)<>"A"),0%,100%) -> 0 | AF191: =MAX(0,(V191+W191)-INDEX(CostoParametrico!$E$3:$L$18,MATCH($Y191,CostoParametrico!$D$3:$D$18,0),2)-AB191-AC191-AG191)*IF(AND($D$20="A",MID(F191,1,1)<>"A"),0%,100%) -> 0 | AG191: =MAX(0,(V191+W191)-INDEX(CostoParametrico!$E$3:$L$18,MATCH($Y191,CostoParametrico!$D$3:$D$18,0),3)-AC191)*IF(AND($D$20="A",MID(F191,1,1)<>"A"),0%,100%) -> 0 | AH191: =INDEX(CostoParametrico!$E$3:$L$18,MATCH($Y191,CostoParametrico!$D$3:$D$18,0),5) -> 400 | AI191: =INDEX(CostoParametrico!$E$3:$L$18,MATCH($Y191,CostoParametrico!$D$3:$D$18,0),6) -> 330 | AJ191: =INDEX(CostoParametrico!$E$3:$L$18,MATCH($Y191,CostoParametrico!$D$3:$D$18,0),7) -> 300 | AK191: =INDEX(CostoParametrico!$E$3:$L$18,MATCH($Y191,CostoParametrico!$D$3:$D$18,0),8) -> 300 | AL191: 0 | AM191: 0 | AN191: 0 | AO191: 0 | AP191: 0 | AQ191: 0 | AR191: 0 | AS191: 1 | AT191: 0 | AU191: 0 | AV191: 0 | AW191: 0 | AX191: 0 | AY191: 0 | AZ191: 0 | BA191: 0 | BB191: 0 | BC191: 0 | BD191: 0 | BE191: 0 | BF191: 0 | BG191: 0 | BH191: 0 | BI191: 0 | BJ191: 0 | BK191: 1.1
A192: 1 | B192: 1 | C192: 51 | D192: 1 | E192: N | F192: A - Abitativo | G192: 0 | H192: 0 | I192: Privata | J192: 10 | K192: N | L192: 0 | M192: 0 | N192: 0 | O192: 0 | P192: N | Q192: N | R192: L0 | S192: 0 | T192: 0 | U192: 0 | V192: 0 | W192: 0 | X192: 0 | Y192: Abitativa-L0 | Z192: 0 | AA192: =MAX(0,(V192)-INDEX(CostoParametrico!$E$3:$L$18,MATCH($Y192,CostoParametrico!$D$3:$D$18,0),1)-AB192-AC192)*IF(AND($D$20="A",MID($F192,1,1)<>"A"),0%,100%) -> 0 | AB192: =MAX(0,(V192)-INDEX(CostoParametrico!$E$3:$L$18,MATCH($Y192,CostoParametrico!$D$3:$D$18,0),2)-AC192)*IF(AND($D$20="A",MID($F192,1,1)<>"A"),0%,100%) -> 0 | AC192: =MAX(0,(V192)-INDEX(CostoParametrico!$E$3:$L$18,MATCH($Y192,CostoParametrico!$D$3:$D$18,0),3))*IF(AND($D$20="A",MID($F192,1,1)<>"A"),0%,100%) -> 0 | AD192: 0 | AE192: =MAX(0,(V192+W192)-INDEX(CostoParametrico!$E$3:$L$18,MATCH($Y192,CostoParametrico!$D$3:$D$18,0),1)-AA192-AB192-AC192-AF192-AG192)*IF(AND($D$20="A",MID($F192,1,1)<>"A"),0%,100%) -> 0 | AF192: =MAX(0,(V192+W192)-INDEX(CostoParametrico!$E$3:$L$18,MATCH($Y192,CostoParametrico!$D$3:$D$18,0),2)-AB192-AC192-AG192)*IF(AND($D$20="A",MID(F192,1,1)<>"A"),0%,100%) -> 0 | AG192: =MAX(0,(V192+W192)-INDEX(CostoParametrico!$E$3:$L$18,MATCH($Y192,CostoParametrico!$D$3:$D$18,0),3)-AC192)*IF(AND($D$20="A",MID(F192,1,1)<>"A"),0%,100%) -> 0 | AH192: =INDEX(CostoParametrico!$E$3:$L$18,MATCH($Y192,CostoParametrico!$D$3:$D$18,0),5) -> 400 | AI192: =INDEX(CostoParametrico!$E$3:$L$18,MATCH($Y192,CostoParametrico!$D$3:$D$18,0),6) -> 330 | AJ192: =INDEX(CostoParametrico!$E$3:$L$18,MATCH($Y192,CostoParametrico!$D$3:$D$18,0),7) -> 300 | AK192: =INDEX(CostoParametrico!$E$3:$L$18,MATCH($Y192,CostoParametrico!$D$3:$D$18,0),8) -> 300 | AL192: 0 | AM192: 0 | AN192: 0 | AO192: 0 | AP192: 0 | AQ192: 0 | AR192: 0 | AS192: 1 | AT192: 0 | AU192: 0 | AV192: 0 | AW192: 0 | AX192: 0 | AY192: 0 | AZ192: 0 | BA192: 0 | BB192: 0 | BC192: 0 | BD192: 0 | BE192: 0 | BF192: 0 | BG192: 0 | BH192: 0 | BI192: 0 | BJ192: 0 | BK192: 1.1
A193: 1 | B193: 1 | C193: 52 | D193: 1 | E193: N | F193: A - Abitativo | G193: 0 | H193: 0 | I193: Privata | J193: 10 | K193: N | L193: 0 | M193: 0 | N193: 0 | O193: 0 | P193: N | Q193: N | R193: L0 | S193: 0 | T193: 0 | U193: 0 | V193: 0 | W193: 0 | X193: 0 | Y193: Abitativa-L0 | Z193: 0 | AA193: =MAX(0,(V193)-INDEX(CostoParametrico!$E$3:$L$18,MATCH($Y193,CostoParametrico!$D$3:$D$18,0),1)-AB193-AC193)*IF(AND($D$20="A",MID($F193,1,1)<>"A"),0%,100%) -> 0 | AB193: =MAX(0,(V193)-INDEX(CostoParametrico!$E$3:$L$18,MATCH($Y193,CostoParametrico!$D$3:$D$18,0),2)-AC193)*IF(AND($D$20="A",MID($F193,1,1)<>"A"),0%,100%) -> 0 | AC193: =MAX(0,(V193)-INDEX(CostoParametrico!$E$3:$L$18,MATCH($Y193,CostoParametrico!$D$3:$D$18,0),3))*IF(AND($D$20="A",MID($F193,1,1)<>"A"),0%,100%) -> 0 | AD193: 0 | AE193: =MAX(0,(V193+W193)-INDEX(CostoParametrico!$E$3:$L$18,MATCH($Y193,CostoParametrico!$D$3:$D$18,0),1)-AA193-AB193-AC193-AF193-AG193)*IF(AND($D$20="A",MID($F193,1,1)<>"A"),0%,100%) -> 0 | AF193: =MAX(0,(V193+W193)-INDEX(CostoParametrico!$E$3:$L$18,MATCH($Y193,CostoParametrico!$D$3:$D$18,0),2)-AB193-AC193-AG193)*IF(AND($D$20="A",MID(F193,1,1)<>"A"),0%,100%) -> 0 | AG193: =MAX(0,(V193+W193)-INDEX(CostoParametrico!$E$3:$L$18,MATCH($Y193,CostoParametrico!$D$3:$D$18,0),3)-AC193)*IF(AND($D$20="A",MID(F193,1,1)<>"A"),0%,100%) -> 0 | AH193: =INDEX(CostoParametrico!$E$3:$L$18,MATCH($Y193,CostoParametrico!$D$3:$D$18,0),5) -> 400 | AI193: =INDEX(CostoParametrico!$E$3:$L$18,MATCH($Y193,CostoParametrico!$D$3:$D$18,0),6) -> 330 | AJ193: =INDEX(CostoParametrico!$E$3:$L$18,MATCH($Y193,CostoParametrico!$D$3:$D$18,0),7) -> 300 | AK193: =INDEX(CostoParametrico!$E$3:$L$18,MATCH($Y193,CostoParametrico!$D$3:$D$18,0),8) -> 300 | AL193: 0 | AM193: 0 | AN193: 0 | AO193: 0 | AP193: 0 | AQ193: 0 | AR193: 0 | AS193: 1 | AT193: 0 | AU193: 0 | AV193: 0 | AW193: 0 | AX193: 0 | AY193: 0 | AZ193: 0 | BA193: 0 | BB193: 0 | BC193: 0 | BD193: 0 | BE193: 0 | BF193: 0 | BG193: 0 | BH193: 0 | BI193: 0 | BJ193: 0 | BK193: 1.1
A194: 1 | B194: 1 | C194: 53 | D194: 1 | E194: N | F194: A - Abitativo | G194: 0 | H194: 0 | I194: Privata | J194: 10 | K194: N | L194: 0 | M194: 0 | N194: 0 | O194: 0 | P194: N | Q194: N | R194: L0 | S194: 0 | T194: 0 | U194: 0 | V194: 0 | W194: 0 | X194: 0 | Y194: Abitativa-L0 | Z194: 0 | AA194: =MAX(0,(V194)-INDEX(CostoParametrico!$E$3:$L$18,MATCH($Y194,CostoParametrico!$D$3:$D$18,0),1)-AB194-AC194)*IF(AND($D$20="A",MID($F194,1,1)<>"A"),0%,100%) -> 0 | AB194: =MAX(0,(V194)-INDEX(CostoParametrico!$E$3:$L$18,MATCH($Y194,CostoParametrico!$D$3:$D$18,0),2)-AC194)*IF(AND($D$20="A",MID($F194,1,1)<>"A"),0%,100%) -> 0 | AC194: =MAX(0,(V194)-INDEX(CostoParametrico!$E$3:$L$18,MATCH($Y194,CostoParametrico!$D$3:$D$18,0),3))*IF(AND($D$20="A",MID($F194,1,1)<>"A"),0%,100%) -> 0 | AD194: 0 | AE194: =MAX(0,(V194+W194)-INDEX(CostoParametrico!$E$3:$L$18,MATCH($Y194,CostoParametrico!$D$3:$D$18,0),1)-AA194-AB194-AC194-AF194-AG194)*IF(AND($D$20="A",MID($F194,1,1)<>"A"),0%,100%) -> 0 | AF194: =MAX(0,(V194+W194)-INDEX(CostoParametrico!$E$3:$L$18,MATCH($Y194,CostoParametrico!$D$3:$D$18,0),2)-AB194-AC194-AG194)*IF(AND($D$20="A",MID(F194,1,1)<>"A"),0%,100%) -> 0 | AG194: =MAX(0,(V194+W194)-INDEX(CostoParametrico!$E$3:$L$18,MATCH($Y194,CostoParametrico!$D$3:$D$18,0),3)-AC194)*IF(AND($D$20="A",MID(F194,1,1)<>"A"),0%,100%) -> 0 | AH194: =INDEX(CostoParametrico!$E$3:$L$18,MATCH($Y194,CostoParametrico!$D$3:$D$18,0),5) -> 400 | AI194: =INDEX(CostoParametrico!$E$3:$L$18,MATCH($Y194,CostoParametrico!$D$3:$D$18,0),6) -> 330 | AJ194: =INDEX(CostoParametrico!$E$3:$L$18,MATCH($Y194,CostoParametrico!$D$3:$D$18,0),7) -> 300 | AK194: =INDEX(CostoParametrico!$E$3:$L$18,MATCH($Y194,CostoParametrico!$D$3:$D$18,0),8) -> 300 | AL194: 0 | AM194: 0 | AN194: 0 | AO194: 0 | AP194: 0 | AQ194: 0 | AR194: 0 | AS194: 1 | AT194: 0 | AU194: 0 | AV194: 0 | AW194: 0 | AX194: 0 | AY194: 0 | AZ194: 0 | BA194: 0 | BB194: 0 | BC194: 0 | BD194: 0 | BE194: 0 | BF194: 0 | BG194: 0 | BH194: 0 | BI194: 0 | BJ194: 0 | BK194: 1.1
A195: 1 | B195: 1 | C195: 54 | D195: 1 | E195: N | F195: A - Abitativo | G195: 0 | H195: 0 | I195: Privata | J195: 10 | K195: N | L195: 0 | M195: 0 | N195: 0 | O195: 0 | P195: N | Q195: N | R195: L0 | S195: 0 | T195: 0 | U195: 0 | V195: 0 | W195: 0 | X195: 0 | Y195: Abitativa-L0 | Z195: 0 | AA195: =MAX(0,(V195)-INDEX(CostoParametrico!$E$3:$L$18,MATCH($Y195,CostoParametrico!$D$3:$D$18,0),1)-AB195-AC195)*IF(AND($D$20="A",MID($F195,1,1)<>"A"),0%,100%) -> 0 | AB195: =MAX(0,(V195)-INDEX(CostoParametrico!$E$3:$L$18,MATCH($Y195,CostoParametrico!$D$3:$D$18,0),2)-AC195)*IF(AND($D$20="A",MID($F195,1,1)<>"A"),0%,100%) -> 0 | AC195: =MAX(0,(V195)-INDEX(CostoParametrico!$E$3:$L$18,MATCH($Y195,CostoParametrico!$D$3:$D$18,0),3))*IF(AND($D$20="A",MID($F195,1,1)<>"A"),0%,100%) -> 0 | AD195: 0 | AE195: =MAX(0,(V195+W195)-INDEX(CostoParametrico!$E$3:$L$18,MATCH($Y195,CostoParametrico!$D$3:$D$18,0),1)-AA195-AB195-AC195-AF195-AG195)*IF(AND($D$20="A",MID($F195,1,1)<>"A"),0%,100%) -> 0 | AF195: =MAX(0,(V195+W195)-INDEX(CostoParametrico!$E$3:$L$18,MATCH($Y195,CostoParametrico!$D$3:$D$18,0),2)-AB195-AC195-AG195)*IF(AND($D$20="A",MID(F195,1,1)<>"A"),0%,100%) -> 0 | AG195: =MAX(0,(V195+W195)-INDEX(CostoParametrico!$E$3:$L$18,MATCH($Y195,CostoParametrico!$D$3:$D$18,0),3)-AC195)*IF(AND($D$20="A",MID(F195,1,1)<>"A"),0%,100%) -> 0 | AH195: =INDEX(CostoParametrico!$E$3:$L$18,MATCH($Y195,CostoParametrico!$D$3:$D$18,0),5) -> 400 | AI195: =INDEX(CostoParametrico!$E$3:$L$18,MATCH($Y195,CostoParametrico!$D$3:$D$18,0),6) -> 330 | AJ195: =INDEX(CostoParametrico!$E$3:$L$18,MATCH($Y195,CostoParametrico!$D$3:$D$18,0),7) -> 300 | AK195: =INDEX(CostoParametrico!$E$3:$L$18,MATCH($Y195,CostoParametrico!$D$3:$D$18,0),8) -> 300 | AL195: 0 | AM195: 0 | AN195: 0 | AO195: 0 | AP195: 0 | AQ195: 0 | AR195: 0 | AS195: 1 | AT195: 0 | AU195: 0 | AV195: 0 | AW195: 0 | AX195: 0 | AY195: 0 | AZ195: 0 | BA195: 0 | BB195: 0 | BC195: 0 | BD195: 0 | BE195: 0 | BF195: 0 | BG195: 0 | BH195: 0 | BI195: 0 | BJ195: 0 | BK195: 1.1
A196: 1 | B196: 1 | C196: 55 | D196: 1 | E196: N | F196: A - Abitativo | G196: 0 | H196: 0 | I196: Privata | J196: 10 | K196: N | L196: 0 | M196: 0 | N196: 0 | O196: 0 | P196: N | Q196: N | R196: L0 | S196: 0 | T196: 0 | U196: 0 | V196: 0 | W196: 0 | X196: 0 | Y196: Abitativa-L0 | Z196: 0 | AA196: =MAX(0,(V196)-INDEX(CostoParametrico!$E$3:$L$18,MATCH($Y196,CostoParametrico!$D$3:$D$18,0),1)-AB196-AC196)*IF(AND($D$20="A",MID($F196,1,1)<>"A"),0%,100%) -> 0 | AB196: =MAX(0,(V196)-INDEX(CostoParametrico!$E$3:$L$18,MATCH($Y196,CostoParametrico!$D$3:$D$18,0),2)-AC196)*IF(AND($D$20="A",MID($F196,1,1)<>"A"),0%,100%) -> 0 | AC196: =MAX(0,(V196)-INDEX(CostoParametrico!$E$3:$L$18,MATCH($Y196,CostoParametrico!$D$3:$D$18,0),3))*IF(AND($D$20="A",MID($F196,1,1)<>"A"),0%,100%) -> 0 | AD196: 0 | AE196: =MAX(0,(V196+W196)-INDEX(CostoParametrico!$E$3:$L$18,MATCH($Y196,CostoParametrico!$D$3:$D$18,0),1)-AA196-AB196-AC196-AF196-AG196)*IF(AND($D$20="A",MID($F196,1,1)<>"A"),0%,100%) -> 0 | AF196: =MAX(0,(V196+W196)-INDEX(CostoParametrico!$E$3:$L$18,MATCH($Y196,CostoParametrico!$D$3:$D$18,0),2)-AB196-AC196-AG196)*IF(AND($D$20="A",MID(F196,1,1)<>"A"),0%,100%) -> 0 | AG196: =MAX(0,(V196+W196)-INDEX(CostoParametrico!$E$3:$L$18,MATCH($Y196,CostoParametrico!$D$3:$D$18,0),3)-AC196)*IF(AND($D$20="A",MID(F196,1,1)<>"A"),0%,100%) -> 0 | AH196: =INDEX(CostoParametrico!$E$3:$L$18,MATCH($Y196,CostoParametrico!$D$3:$D$18,0),5) -> 400 | AI196: =INDEX(CostoParametrico!$E$3:$L$18,MATCH($Y196,CostoParametrico!$D$3:$D$18,0),6) -> 330 | AJ196: =INDEX(CostoParametrico!$E$3:$L$18,MATCH($Y196,CostoParametrico!$D$3:$D$18,0),7) -> 300 | AK196: =INDEX(CostoParametrico!$E$3:$L$18,MATCH($Y196,CostoParametrico!$D$3:$D$18,0),8) -> 300 | AL196: 0 | AM196: 0 | AN196: 0 | AO196: 0 | AP196: 0 | AQ196: 0 | AR196: 0 | AS196: 1 | AT196: 0 | AU196: 0 | AV196: 0 | AW196: 0 | AX196: 0 | AY196: 0 | AZ196: 0 | BA196: 0 | BB196: 0 | BC196: 0 | BD196: 0 | BE196: 0 | BF196: 0 | BG196: 0 | BH196: 0 | BI196: 0 | BJ196: 0 | BK196: 1.1
A197: 1 | B197: 1 | C197: 56 | D197: 1 | E197: N | F197: A - Abitativo | G197: 0 | H197: 0 | I197: Privata | J197: 10 | K197: N | L197: 0 | M197: 0 | N197: 0 | O197: 0 | P197: N | Q197: N | R197: L0 | S197: 0 | T197: 0 | U197: 0 | V197: 0 | W197: 0 | X197: 0 | Y197: Abitativa-L0 | Z197: 0 | AA197: =MAX(0,(V197)-INDEX(CostoParametrico!$E$3:$L$18,MATCH($Y197,CostoParametrico!$D$3:$D$18,0),1)-AB197-AC197)*IF(AND($D$20="A",MID($F197,1,1)<>"A"),0%,100%) -> 0 | AB197: =MAX(0,(V197)-INDEX(CostoParametrico!$E$3:$L$18,MATCH($Y197,CostoParametrico!$D$3:$D$18,0),2)-AC197)*IF(AND($D$20="A",MID($F197,1,1)<>"A"),0%,100%) -> 0 | AC197: =MAX(0,(V197)-INDEX(CostoParametrico!$E$3:$L$18,MATCH($Y197,CostoParametrico!$D$3:$D$18,0),3))*IF(AND($D$20="A",MID($F197,1,1)<>"A"),0%,100%) -> 0 | AD197: 0 | AE197: =MAX(0,(V197+W197)-INDEX(CostoParametrico!$E$3:$L$18,MATCH($Y197,CostoParametrico!$D$3:$D$18,0),1)-AA197-AB197-AC197-AF197-AG197)*IF(AND($D$20="A",MID($F197,1,1)<>"A"),0%,100%) -> 0 | AF197: =MAX(0,(V197+W197)-INDEX(CostoParametrico!$E$3:$L$18,MATCH($Y197,CostoParametrico!$D$3:$D$18,0),2)-AB197-AC197-AG197)*IF(AND($D$20="A",MID(F197,1,1)<>"A"),0%,100%) -> 0 | AG197: =MAX(0,(V197+W197)-INDEX(CostoParametrico!$E$3:$L$18,MATCH($Y197,CostoParametrico!$D$3:$D$18,0),3)-AC197)*IF(AND($D$20="A",MID(F197,1,1)<>"A"),0%,100%) -> 0 | AH197: =INDEX(CostoParametrico!$E$3:$L$18,MATCH($Y197,CostoParametrico!$D$3:$D$18,0),5) -> 400 | AI197: =INDEX(CostoParametrico!$E$3:$L$18,MATCH($Y197,CostoParametrico!$D$3:$D$18,0),6) -> 330 | AJ197: =INDEX(CostoParametrico!$E$3:$L$18,MATCH($Y197,CostoParametrico!$D$3:$D$18,0),7) -> 300 | AK197: =INDEX(CostoParametrico!$E$3:$L$18,MATCH($Y197,CostoParametrico!$D$3:$D$18,0),8) -> 300 | AL197: 0 | AM197: 0 | AN197: 0 | AO197: 0 | AP197: 0 | AQ197: 0 | AR197: 0 | AS197: 1 | AT197: 0 | AU197: 0 | AV197: 0 | AW197: 0 | AX197: 0 | AY197: 0 | AZ197: 0 | BA197: 0 | BB197: 0 | BC197: 0 | BD197: 0 | BE197: 0 | BF197: 0 | BG197: 0 | BH197: 0 | BI197: 0 | BJ197: 0 | BK197: 1.1
A198: 1 | B198: 1 | C198: 57 | D198: 1 | E198: N | F198: A - Abitativo | G198: 0 | H198: 0 | I198: Privata | J198: 10 | K198: N | L198: 0 | M198: 0 | N198: 0 | O198: 0 | P198: N | Q198: N | R198: L0 | S198: 0 | T198: 0 | U198: 0 | V198: 0 | W198: 0 | X198: 0 | Y198: Abitativa-L0 | Z198: 0 | AA198: =MAX(0,(V198)-INDEX(CostoParametrico!$E$3:$L$18,MATCH($Y198,CostoParametrico!$D$3:$D$18,0),1)-AB198-AC198)*IF(AND($D$20="A",MID($F198,1,1)<>"A"),0%,100%) -> 0 | AB198: =MAX(0,(V198)-INDEX(CostoParametrico!$E$3:$L$18,MATCH($Y198,CostoParametrico!$D$3:$D$18,0),2)-AC198)*IF(AND($D$20="A",MID($F198,1,1)<>"A"),0%,100%) -> 0 | AC198: =MAX(0,(V198)-INDEX(CostoParametrico!$E$3:$L$18,MATCH($Y198,CostoParametrico!$D$3:$D$18,0),3))*IF(AND($D$20="A",MID($F198,1,1)<>"A"),0%,100%) -> 0 | AD198: 0 | AE198: =MAX(0,(V198+W198)-INDEX(CostoParametrico!$E$3:$L$18,MATCH($Y198,CostoParametrico!$D$3:$D$18,0),1)-AA198-AB198-AC198-AF198-AG198)*IF(AND($D$20="A",MID($F198,1,1)<>"A"),0%,100%) -> 0 | AF198: =MAX(0,(V198+W198)-INDEX(CostoParametrico!$E$3:$L$18,MATCH($Y198,CostoParametrico!$D$3:$D$18,0),2)-AB198-AC198-AG198)*IF(AND($D$20="A",MID(F198,1,1)<>"A"),0%,100%) -> 0 | AG198: =MAX(0,(V198+W198)-INDEX(CostoParametrico!$E$3:$L$18,MATCH($Y198,CostoParametrico!$D$3:$D$18,0),3)-AC198)*IF(AND($D$20="A",MID(F198,1,1)<>"A"),0%,100%) -> 0 | AH198: =INDEX(CostoParametrico!$E$3:$L$18,MATCH($Y198,CostoParametrico!$D$3:$D$18,0),5) -> 400 | AI198: =INDEX(CostoParametrico!$E$3:$L$18,MATCH($Y198,CostoParametrico!$D$3:$D$18,0),6) -> 330 | AJ198: =INDEX(CostoParametrico!$E$3:$L$18,MATCH($Y198,CostoParametrico!$D$3:$D$18,0),7) -> 300 | AK198: =INDEX(CostoParametrico!$E$3:$L$18,MATCH($Y198,CostoParametrico!$D$3:$D$18,0),8) -> 300 | AL198: 0 | AM198: 0 | AN198: 0 | AO198: 0 | AP198: 0 | AQ198: 0 | AR198: 0 | AS198: 1 | AT198: 0 | AU198: 0 | AV198: 0 | AW198: 0 | AX198: 0 | AY198: 0 | AZ198: 0 | BA198: 0 | BB198: 0 | BC198: 0 | BD198: 0 | BE198: 0 | BF198: 0 | BG198: 0 | BH198: 0 | BI198: 0 | BJ198: 0 | BK198: 1.1
A199: 1 | B199: 1 | C199: 58 | D199: 1 | E199: N | F199: A - Abitativo | G199: 0 | H199: 0 | I199: Privata | J199: 10 | K199: N | L199: 0 | M199: 0 | N199: 0 | O199: 0 | P199: N | Q199: N | R199: L0 | S199: 0 | T199: 0 | U199: 0 | V199: 0 | W199: 0 | X199: 0 | Y199: Abitativa-L0 | Z199: 0 | AA199: =MAX(0,(V199)-INDEX(CostoParametrico!$E$3:$L$18,MATCH($Y199,CostoParametrico!$D$3:$D$18,0),1)-AB199-AC199)*IF(AND($D$20="A",MID($F199,1,1)<>"A"),0%,100%) -> 0 | AB199: =MAX(0,(V199)-INDEX(CostoParametrico!$E$3:$L$18,MATCH($Y199,CostoParametrico!$D$3:$D$18,0),2)-AC199)*IF(AND($D$20="A",MID($F199,1,1)<>"A"),0%,100%) -> 0 | AC199: =MAX(0,(V199)-INDEX(CostoParametrico!$E$3:$L$18,MATCH($Y199,CostoParametrico!$D$3:$D$18,0),3))*IF(AND($D$20="A",MID($F199,1,1)<>"A"),0%,100%) -> 0 | AD199: 0 | AE199: =MAX(0,(V199+W199)-INDEX(CostoParametrico!$E$3:$L$18,MATCH($Y199,CostoParametrico!$D$3:$D$18,0),1)-AA199-AB199-AC199-AF199-AG199)*IF(AND($D$20="A",MID($F199,1,1)<>"A"),0%,100%) -> 0 | AF199: =MAX(0,(V199+W199)-INDEX(CostoParametrico!$E$3:$L$18,MATCH($Y199,CostoParametrico!$D$3:$D$18,0),2)-AB199-AC199-AG199)*IF(AND($D$20="A",MID(F199,1,1)<>"A"),0%,100%) -> 0 | AG199: =MAX(0,(V199+W199)-INDEX(CostoParametrico!$E$3:$L$18,MATCH($Y199,CostoParametrico!$D$3:$D$18,0),3)-AC199)*IF(AND($D$20="A",MID(F199,1,1)<>"A"),0%,100%) -> 0 | AH199: =INDEX(CostoParametrico!$E$3:$L$18,MATCH($Y199,CostoParametrico!$D$3:$D$18,0),5) -> 400 | AI199: =INDEX(CostoParametrico!$E$3:$L$18,MATCH($Y199,CostoParametrico!$D$3:$D$18,0),6) -> 330 | AJ199: =INDEX(CostoParametrico!$E$3:$L$18,MATCH($Y199,CostoParametrico!$D$3:$D$18,0),7) -> 300 | AK199: =INDEX(CostoParametrico!$E$3:$L$18,MATCH($Y199,CostoParametrico!$D$3:$D$18,0),8) -> 300 | AL199: 0 | AM199: 0 | AN199: 0 | AO199: 0 | AP199: 0 | AQ199: 0 | AR199: 0 | AS199: 1 | AT199: 0 | AU199: 0 | AV199: 0 | AW199: 0 | AX199: 0 | AY199: 0 | AZ199: 0 | BA199: 0 | BB199: 0 | BC199: 0 | BD199: 0 | BE199: 0 | BF199: 0 | BG199: 0 | BH199: 0 | BI199: 0 | BJ199: 0 | BK199: 1.1
A200: 1 | B200: 1 | C200: 59 | D200: 1 | E200: N | F200: A - Abitativo | G200: 0 | H200: 0 | I200: Privata | J200: 10 | K200: N | L200: 0 | M200: 0 | N200: 0 | O200: 0 | P200: N | Q200: N | R200: L0 | S200: 0 | T200: 0 | U200: 0 | V200: 0 | W200: 0 | X200: 0 | Y200: Abitativa-L0 | Z200: 0 | AA200: =MAX(0,(V200)-INDEX(CostoParametrico!$E$3:$L$18,MATCH($Y200,CostoParametrico!$D$3:$D$18,0),1)-AB200-AC200)*IF(AND($D$20="A",MID($F200,1,1)<>"A"),0%,100%) -> 0 | AB200: =MAX(0,(V200)-INDEX(CostoParametrico!$E$3:$L$18,MATCH($Y200,CostoParametrico!$D$3:$D$18,0),2)-AC200)*IF(AND($D$20="A",MID($F200,1,1)<>"A"),0%,100%) -> 0 | AC200: =MAX(0,(V200)-INDEX(CostoParametrico!$E$3:$L$18,MATCH($Y200,CostoParametrico!$D$3:$D$18,0),3))*IF(AND($D$20="A",MID($F200,1,1)<>"A"),0%,100%) -> 0 | AD200: 0 | AE200: =MAX(0,(V200+W200)-INDEX(CostoParametrico!$E$3:$L$18,MATCH($Y200,CostoParametrico!$D$3:$D$18,0),1)-AA200-AB200-AC200-AF200-AG200)*IF(AND($D$20="A",MID($F200,1,1)<>"A"),0%,100%) -> 0 | AF200: =MAX(0,(V200+W200)-INDEX(CostoParametrico!$E$3:$L$18,MATCH($Y200,CostoParametrico!$D$3:$D$18,0),2)-AB200-AC200-AG200)*IF(AND($D$20="A",MID(F200,1,1)<>"A"),0%,100%) -> 0 | AG200: =MAX(0,(V200+W200)-INDEX(CostoParametrico!$E$3:$L$18,MATCH($Y200,CostoParametrico!$D$3:$D$18,0),3)-AC200)*IF(AND($D$20="A",MID(F200,1,1)<>"A"),0%,100%) -> 0 | AH200: =INDEX(CostoParametrico!$E$3:$L$18,MATCH($Y200,CostoParametrico!$D$3:$D$18,0),5) -> 400 | AI200: =INDEX(CostoParametrico!$E$3:$L$18,MATCH($Y200,CostoParametrico!$D$3:$D$18,0),6) -> 330 | AJ200: =INDEX(CostoParametrico!$E$3:$L$18,MATCH($Y200,CostoParametrico!$D$3:$D$18,0),7) -> 300 | AK200: =INDEX(CostoParametrico!$E$3:$L$18,MATCH($Y200,CostoParametrico!$D$3:$D$18,0),8) -> 300 | AL200: 0 | AM200: 0 | AN200: 0 | AO200: 0 | AP200: 0 | AQ200: 0 | AR200: 0 | AS200: 1 | AT200: 0 | AU200: 0 | AV200: 0 | AW200: 0 | AX200: 0 | AY200: 0 | AZ200: 0 | BA200: 0 | BB200: 0 | BC200: 0 | BD200: 0 | BE200: 0 | BF200: 0 | BG200: 0 | BH200: 0 | BI200: 0 | BJ200: 0 | BK200: 1.1
A201: 1 | B201: 1 | C201: 60 | D201: 1 | E201: N | F201: A - Abitativo | G201: 0 | H201: 0 | I201: Privata | J201: 10 | K201: N | L201: 0 | M201: 0 | N201: 0 | O201: 0 | P201: N | Q201: N | R201: L0 | S201: 0 | T201: 0 | U201: 0 | V201: 0 | W201: 0 | X201: 0 | Y201: Abitativa-L0 | Z201: 0 | AA201: =MAX(0,(V201)-INDEX(CostoParametrico!$E$3:$L$18,MATCH($Y201,CostoParametrico!$D$3:$D$18,0),1)-AB201-AC201)*IF(AND($D$20="A",MID($F201,1,1)<>"A"),0%,100%) -> 0 | AB201: =MAX(0,(V201)-INDEX(CostoParametrico!$E$3:$L$18,MATCH($Y201,CostoParametrico!$D$3:$D$18,0),2)-AC201)*IF(AND($D$20="A",MID($F201,1,1)<>"A"),0%,100%) -> 0 | AC201: =MAX(0,(V201)-INDEX(CostoParametrico!$E$3:$L$18,MATCH($Y201,CostoParametrico!$D$3:$D$18,0),3))*IF(AND($D$20="A",MID($F201,1,1)<>"A"),0%,100%) -> 0 | AD201: 0 | AE201: =MAX(0,(V201+W201)-INDEX(CostoParametrico!$E$3:$L$18,MATCH($Y201,CostoParametrico!$D$3:$D$18,0),1)-AA201-AB201-AC201-AF201-AG201)*IF(AND($D$20="A",MID($F201,1,1)<>"A"),0%,100%) -> 0 | AF201: =MAX(0,(V201+W201)-INDEX(CostoParametrico!$E$3:$L$18,MATCH($Y201,CostoParametrico!$D$3:$D$18,0),2)-AB201-AC201-AG201)*IF(AND($D$20="A",MID(F201,1,1)<>"A"),0%,100%) -> 0 | AG201: =MAX(0,(V201+W201)-INDEX(CostoParametrico!$E$3:$L$18,MATCH($Y201,CostoParametrico!$D$3:$D$18,0),3)-AC201)*IF(AND($D$20="A",MID(F201,1,1)<>"A"),0%,100%) -> 0 | AH201: =INDEX(CostoParametrico!$E$3:$L$18,MATCH($Y201,CostoParametrico!$D$3:$D$18,0),5) -> 400 | AI201: =INDEX(CostoParametrico!$E$3:$L$18,MATCH($Y201,CostoParametrico!$D$3:$D$18,0),6) -> 330 | AJ201: =INDEX(CostoParametrico!$E$3:$L$18,MATCH($Y201,CostoParametrico!$D$3:$D$18,0),7) -> 300 | AK201: =INDEX(CostoParametrico!$E$3:$L$18,MATCH($Y201,CostoParametrico!$D$3:$D$18,0),8) -> 300 | AL201: 0 | AM201: 0 | AN201: 0 | AO201: 0 | AP201: 0 | AQ201: 0 | AR201: 0 | AS201: 1 | AT201: 0 | AU201: 0 | AV201: 0 | AW201: 0 | AX201: 0 | AY201: 0 | AZ201: 0 | BA201: 0 | BB201: 0 | BC201: 0 | BD201: 0 | BE201: 0 | BF201: 0 | BG201: 0 | BH201: 0 | BI201: 0 | BJ201: 0 | BK201: 1.1
A202: 1 | B202: 1 | C202: 61 | D202: 1 | E202: N | F202: A - Abitativo | G202: 0 | H202: 0 | I202: Privata | J202: 10 | K202: N | L202: 0 | M202: 0 | N202: 0 | O202: 0 | P202: N | Q202: N | R202: L0 | S202: 0 | T202: 0 | U202: 0 | V202: 0 | W202: 0 | X202: 0 | Y202: Abitativa-L0 | Z202: 0 | AA202: =MAX(0,(V202)-INDEX(CostoParametrico!$E$3:$L$18,MATCH($Y202,CostoParametrico!$D$3:$D$18,0),1)-AB202-AC202)*IF(AND($D$20="A",MID($F202,1,1)<>"A"),0%,100%) -> 0 | AB202: =MAX(0,(V202)-INDEX(CostoParametrico!$E$3:$L$18,MATCH($Y202,CostoParametrico!$D$3:$D$18,0),2)-AC202)*IF(AND($D$20="A",MID($F202,1,1)<>"A"),0%,100%) -> 0 | AC202: =MAX(0,(V202)-INDEX(CostoParametrico!$E$3:$L$18,MATCH($Y202,CostoParametrico!$D$3:$D$18,0),3))*IF(AND($D$20="A",MID($F202,1,1)<>"A"),0%,100%) -> 0 | AD202: 0 | AE202: =MAX(0,(V202+W202)-INDEX(CostoParametrico!$E$3:$L$18,MATCH($Y202,CostoParametrico!$D$3:$D$18,0),1)-AA202-AB202-AC202-AF202-AG202)*IF(AND($D$20="A",MID($F202,1,1)<>"A"),0%,100%) -> 0 | AF202: =MAX(0,(V202+W202)-INDEX(CostoParametrico!$E$3:$L$18,MATCH($Y202,CostoParametrico!$D$3:$D$18,0),2)-AB202-AC202-AG202)*IF(AND($D$20="A",MID(F202,1,1)<>"A"),0%,100%) -> 0 | AG202: =MAX(0,(V202+W202)-INDEX(CostoParametrico!$E$3:$L$18,MATCH($Y202,CostoParametrico!$D$3:$D$18,0),3)-AC202)*IF(AND($D$20="A",MID(F202,1,1)<>"A"),0%,100%) -> 0 | AH202: =INDEX(CostoParametrico!$E$3:$L$18,MATCH($Y202,CostoParametrico!$D$3:$D$18,0),5) -> 400 | AI202: =INDEX(CostoParametrico!$E$3:$L$18,MATCH($Y202,CostoParametrico!$D$3:$D$18,0),6) -> 330 | AJ202: =INDEX(CostoParametrico!$E$3:$L$18,MATCH($Y202,CostoParametrico!$D$3:$D$18,0),7) -> 300 | AK202: =INDEX(CostoParametrico!$E$3:$L$18,MATCH($Y202,CostoParametrico!$D$3:$D$18,0),8) -> 300 | AL202: 0 | AM202: 0 | AN202: 0 | AO202: 0 | AP202: 0 | AQ202: 0 | AR202: 0 | AS202: 1 | AT202: 0 | AU202: 0 | AV202: 0 | AW202: 0 | AX202: 0 | AY202: 0 | AZ202: 0 | BA202: 0 | BB202: 0 | BC202: 0 | BD202: 0 | BE202: 0 | BF202: 0 | BG202: 0 | BH202: 0 | BI202: 0 | BJ202: 0 | BK202: 1.1
A203: 1 | B203: 1 | C203: 62 | D203: 1 | E203: N | F203: A - Abitativo | G203: 0 | H203: 0 | I203: Privata | J203: 10 | K203: N | L203: 0 | M203: 0 | N203: 0 | O203: 0 | P203: N | Q203: N | R203: L0 | S203: 0 | T203: 0 | U203: 0 | V203: 0 | W203: 0 | X203: 0 | Y203: Abitativa-L0 | Z203: 0 | AA203: =MAX(0,(V203)-INDEX(CostoParametrico!$E$3:$L$18,MATCH($Y203,CostoParametrico!$D$3:$D$18,0),1)-AB203-AC203)*IF(AND($D$20="A",MID($F203,1,1)<>"A"),0%,100%) -> 0 | AB203: =MAX(0,(V203)-INDEX(CostoParametrico!$E$3:$L$18,MATCH($Y203,CostoParametrico!$D$3:$D$18,0),2)-AC203)*IF(AND($D$20="A",MID($F203,1,1)<>"A"),0%,100%) -> 0 | AC203: =MAX(0,(V203)-INDEX(CostoParametrico!$E$3:$L$18,MATCH($Y203,CostoParametrico!$D$3:$D$18,0),3))*IF(AND($D$20="A",MID($F203,1,1)<>"A"),0%,100%) -> 0 | AD203: 0 | AE203: =MAX(0,(V203+W203)-INDEX(CostoParametrico!$E$3:$L$18,MATCH($Y203,CostoParametrico!$D$3:$D$18,0),1)-AA203-AB203-AC203-AF203-AG203)*IF(AND($D$20="A",MID($F203,1,1)<>"A"),0%,100%) -> 0 | AF203: =MAX(0,(V203+W203)-INDEX(CostoParametrico!$E$3:$L$18,MATCH($Y203,CostoParametrico!$D$3:$D$18,0),2)-AB203-AC203-AG203)*IF(AND($D$20="A",MID(F203,1,1)<>"A"),0%,100%) -> 0 | AG203: =MAX(0,(V203+W203)-INDEX(CostoParametrico!$E$3:$L$18,MATCH($Y203,CostoParametrico!$D$3:$D$18,0),3)-AC203)*IF(AND($D$20="A",MID(F203,1,1)<>"A"),0%,100%) -> 0 | AH203: =INDEX(CostoParametrico!$E$3:$L$18,MATCH($Y203,CostoParametrico!$D$3:$D$18,0),5) -> 400 | AI203: =INDEX(CostoParametrico!$E$3:$L$18,MATCH($Y203,CostoParametrico!$D$3:$D$18,0),6) -> 330 | AJ203: =INDEX(CostoParametrico!$E$3:$L$18,MATCH($Y203,CostoParametrico!$D$3:$D$18,0),7) -> 300 | AK203: =INDEX(CostoParametrico!$E$3:$L$18,MATCH($Y203,CostoParametrico!$D$3:$D$18,0),8) -> 300 | AL203: 0 | AM203: 0 | AN203: 0 | AO203: 0 | AP203: 0 | AQ203: 0 | AR203: 0 | AS203: 1 | AT203: 0 | AU203: 0 | AV203: 0 | AW203: 0 | AX203: 0 | AY203: 0 | AZ203: 0 | BA203: 0 | BB203: 0 | BC203: 0 | BD203: 0 | BE203: 0 | BF203: 0 | BG203: 0 | BH203: 0 | BI203: 0 | BJ203: 0 | BK203: 1.1
A204: 1 | B204: 1 | C204: 63 | D204: 1 | E204: N | F204: A - Abitativo | G204: 0 | H204: 0 | I204: Privata | J204: 10 | K204: N | L204: 0 | M204: 0 | N204: 0 | O204: 0 | P204: N | Q204: N | R204: L0 | S204: 0 | T204: 0 | U204: 0 | V204: 0 | W204: 0 | X204: 0 | Y204: Abitativa-L0 | Z204: 0 | AA204: =MAX(0,(V204)-INDEX(CostoParametrico!$E$3:$L$18,MATCH($Y204,CostoParametrico!$D$3:$D$18,0),1)-AB204-AC204)*IF(AND($D$20="A",MID($F204,1,1)<>"A"),0%,100%) -> 0 | AB204: =MAX(0,(V204)-INDEX(CostoParametrico!$E$3:$L$18,MATCH($Y204,CostoParametrico!$D$3:$D$18,0),2)-AC204)*IF(AND($D$20="A",MID($F204,1,1)<>"A"),0%,100%) -> 0 | AC204: =MAX(0,(V204)-INDEX(CostoParametrico!$E$3:$L$18,MATCH($Y204,CostoParametrico!$D$3:$D$18,0),3))*IF(AND($D$20="A",MID($F204,1,1)<>"A"),0%,100%) -> 0 | AD204: 0 | AE204: =MAX(0,(V204+W204)-INDEX(CostoParametrico!$E$3:$L$18,MATCH($Y204,CostoParametrico!$D$3:$D$18,0),1)-AA204-AB204-AC204-AF204-AG204)*IF(AND($D$20="A",MID($F204,1,1)<>"A"),0%,100%) -> 0 | AF204: =MAX(0,(V204+W204)-INDEX(CostoParametrico!$E$3:$L$18,MATCH($Y204,CostoParametrico!$D$3:$D$18,0),2)-AB204-AC204-AG204)*IF(AND($D$20="A",MID(F204,1,1)<>"A"),0%,100%) -> 0 | AG204: =MAX(0,(V204+W204)-INDEX(CostoParametrico!$E$3:$L$18,MATCH($Y204,CostoParametrico!$D$3:$D$18,0),3)-AC204)*IF(AND($D$20="A",MID(F204,1,1)<>"A"),0%,100%) -> 0 | AH204: =INDEX(CostoParametrico!$E$3:$L$18,MATCH($Y204,CostoParametrico!$D$3:$D$18,0),5) -> 400 | AI204: =INDEX(CostoParametrico!$E$3:$L$18,MATCH($Y204,CostoParametrico!$D$3:$D$18,0),6) -> 330 | AJ204: =INDEX(CostoParametrico!$E$3:$L$18,MATCH($Y204,CostoParametrico!$D$3:$D$18,0),7) -> 300 | AK204: =INDEX(CostoParametrico!$E$3:$L$18,MATCH($Y204,CostoParametrico!$D$3:$D$18,0),8) -> 300 | AL204: 0 | AM204: 0 | AN204: 0 | AO204: 0 | AP204: 0 | AQ204: 0 | AR204: 0 | AS204: 1 | AT204: 0 | AU204: 0 | AV204: 0 | AW204: 0 | AX204: 0 | AY204: 0 | AZ204: 0 | BA204: 0 | BB204: 0 | BC204: 0 | BD204: 0 | BE204: 0 | BF204: 0 | BG204: 0 | BH204: 0 | BI204: 0 | BJ204: 0 | BK204: 1.1
A205: 1 | B205: 1 | C205: 64 | D205: 1 | E205: N | F205: A - Abitativo | G205: 0 | H205: 0 | I205: Privata | J205: 10 | K205: N | L205: 0 | M205: 0 | N205: 0 | O205: 0 | P205: N | Q205: N | R205: L0 | S205: 0 | T205: 0 | U205: 0 | V205: 0 | W205: 0 | X205: 0 | Y205: Abitativa-L0 | Z205: 0 | AA205: =MAX(0,(V205)-INDEX(CostoParametrico!$E$3:$L$18,MATCH($Y205,CostoParametrico!$D$3:$D$18,0),1)-AB205-AC205)*IF(AND($D$20="A",MID($F205,1,1)<>"A"),0%,100%) -> 0 | AB205: =MAX(0,(V205)-INDEX(CostoParametrico!$E$3:$L$18,MATCH($Y205,CostoParametrico!$D$3:$D$18,0),2)-AC205)*IF(AND($D$20="A",MID($F205,1,1)<>"A"),0%,100%) -> 0 | AC205: =MAX(0,(V205)-INDEX(CostoParametrico!$E$3:$L$18,MATCH($Y205,CostoParametrico!$D$3:$D$18,0),3))*IF(AND($D$20="A",MID($F205,1,1)<>"A"),0%,100%) -> 0 | AD205: 0 | AE205: =MAX(0,(V205+W205)-INDEX(CostoParametrico!$E$3:$L$18,MATCH($Y205,CostoParametrico!$D$3:$D$18,0),1)-AA205-AB205-AC205-AF205-AG205)*IF(AND($D$20="A",MID($F205,1,1)<>"A"),0%,100%) -> 0 | AF205: =MAX(0,(V205+W205)-INDEX(CostoParametrico!$E$3:$L$18,MATCH($Y205,CostoParametrico!$D$3:$D$18,0),2)-AB205-AC205-AG205)*IF(AND($D$20="A",MID(F205,1,1)<>"A"),0%,100%) -> 0 | AG205: =MAX(0,(V205+W205)-INDEX(CostoParametrico!$E$3:$L$18,MATCH($Y205,CostoParametrico!$D$3:$D$18,0),3)-AC205)*IF(AND($D$20="A",MID(F205,1,1)<>"A"),0%,100%) -> 0 | AH205: =INDEX(CostoParametrico!$E$3:$L$18,MATCH($Y205,CostoParametrico!$D$3:$D$18,0),5) -> 400 | AI205: =INDEX(CostoParametrico!$E$3:$L$18,MATCH($Y205,CostoParametrico!$D$3:$D$18,0),6) -> 330 | AJ205: =INDEX(CostoParametrico!$E$3:$L$18,MATCH($Y205,CostoParametrico!$D$3:$D$18,0),7) -> 300 | AK205: =INDEX(CostoParametrico!$E$3:$L$18,MATCH($Y205,CostoParametrico!$D$3:$D$18,0),8) -> 300 | AL205: 0 | AM205: 0 | AN205: 0 | AO205: 0 | AP205: 0 | AQ205: 0 | AR205: 0 | AS205: 1 | AT205: 0 | AU205: 0 | AV205: 0 | AW205: 0 | AX205: 0 | AY205: 0 | AZ205: 0 | BA205: 0 | BB205: 0 | BC205: 0 | BD205: 0 | BE205: 0 | BF205: 0 | BG205: 0 | BH205: 0 | BI205: 0 | BJ205: 0 | BK205: 1.1
A206: =IF($E206="S",I$9,I$10) -> 1 | B206: =IF($E206="S",J$9,J$10) -> 1 | C206: 65 | D206: 1 | E206: N | F206: A - Abitativo | G206: 0 | H206: 0 | I206: Privata | J206: 10 | K206: N | L206: 0 | M206: 0 | N206: 0 | O206: 0 | P206: N | Q206: N | R206: L0 | S206: =$F$50 -> 0 | T206: 0 | U206: =$G$60 -> 0 | V206: =SUM(L206:M206,O206) -> 0 | W206: =MIN(70%*L206,N206) -> 0 | X206: 0 | Y206: =IF($D$22="DC",$F$22,$E$20&"-"&R206) -> Abitativa-L0 | Z206: 0 | AA206: =MAX(0,(V206)-INDEX(CostoParametrico!$E$3:$L$18,MATCH($Y206,CostoParametrico!$D$3:$D$18,0),1)-AB206-AC206)*IF(AND($D$20="A",MID($F206,1,1)<>"A"),0%,100%) -> 0 | AB206: =MAX(0,(V206)-INDEX(CostoParametrico!$E$3:$L$18,MATCH($Y206,CostoParametrico!$D$3:$D$18,0),2)-AC206)*IF(AND($D$20="A",MID($F206,1,1)<>"A"),0%,100%) -> 0 | AC206: =MAX(0,(V206)-INDEX(CostoParametrico!$E$3:$L$18,MATCH($Y206,CostoParametrico!$D$3:$D$18,0),3))*IF(AND($D$20="A",MID($F206,1,1)<>"A"),0%,100%) -> 0 | AD206: 0 | AE206: =MAX(0,(V206+W206)-INDEX(CostoParametrico!$E$3:$L$18,MATCH($Y206,CostoParametrico!$D$3:$D$18,0),1)-AA206-AB206-AC206-AF206-AG206)*IF(AND($D$20="A",MID($F206,1,1)<>"A"),0%,100%) -> 0 | AF206: =MAX(0,(V206+W206)-INDEX(CostoParametrico!$E$3:$L$18,MATCH($Y206,CostoParametrico!$D$3:$D$18,0),2)-AB206-AC206-AG206)*IF(AND($D$20="A",MID(F206,1,1)<>"A"),0%,100%) -> 0 | AG206: =MAX(0,(V206+W206)-INDEX(CostoParametrico!$E$3:$L$18,MATCH($Y206,CostoParametrico!$D$3:$D$18,0),3)-AC206)*IF(AND($D$20="A",MID(F206,1,1)<>"A"),0%,100%) -> 0 | AH206: =INDEX(CostoParametrico!$E$3:$L$18,MATCH($Y206,CostoParametrico!$D$3:$D$18,0),5) -> 400 | AI206: =INDEX(CostoParametrico!$E$3:$L$18,MATCH($Y206,CostoParametrico!$D$3:$D$18,0),6) -> 330 | AJ206: =INDEX(CostoParametrico!$E$3:$L$18,MATCH($Y206,CostoParametrico!$D$3:$D$18,0),7) -> 300 | AK206: =INDEX(CostoParametrico!$E$3:$L$18,MATCH($Y206,CostoParametrico!$D$3:$D$18,0),8) -> 300 | AL206: 0 | AM206: =($M$128-$M$109)*X206 -> 0 | AN206: 0 | AO206: =AM206+AN206 -> 0 | AP206: =$X206*($X$128-$X$109) -> 0 | AQ206: 0 | AR206: =AP206+AQ206 -> 0 | AS206: =MIN(1,MAX(AL206,1)/MAX(AR206,1)) -> 1 | AT206: 0 | AU206: 0 | AV206: =BA206/BK206 -> 0 | AW206: 0 | AX206: 0 | AY206: 0 | AZ206: 0 | BA206: 0 | BB206: 0 | BC206: 0 | BD206: 0 | BE206: 0 | BF206: 0 | BG206: =AN206*(1+J206/100) -> 0 | BH206: 0 | BI206: 0 | BJ206: 0 | BK206: =(1+J206/100*(1-IF(K206="N",0,IF($F$19=0,1,$F$19)))) -> 1.1
A207: 1 | B207: 1 | C207: 66 | D207: 1 | E207: N | F207: A - Abitativo | G207: 0 | H207: 0 | I207: Privata | J207: 10 | K207: N | L207: 0 | M207: 0 | N207: 0 | O207: 0 | P207: N | Q207: N | R207: =E$23 -> L0 | S207: 0 | T207: =$H$60+IF(AND($D$20="P",OR(MID(F207,1,1)="A",MID(F207,1,1)="D")),80%,0) -> 0 | U207: 0 | V207: 0 | W207: 0 | X207: =(V207+W207)/MAX(1,(V$140+W$140)) -> 0 | Y207: Abitativa-L0 | Z207: =MAX(0,(V207)-AA207-AB207-AC207) -> 0 | AA207: =MAX(0,(V207)-INDEX(CostoParametrico!$E$3:$L$18,MATCH($Y207,CostoParametrico!$D$3:$D$18,0),1)-AB207-AC207)*IF(AND($D$20="A",MID($F207,1,1)<>"A"),0%,100%) -> 0 | AB207: =MAX(0,(V207)-INDEX(CostoParametrico!$E$3:$L$18,MATCH($Y207,CostoParametrico!$D$3:$D$18,0),2)-AC207)*IF(AND($D$20="A",MID($F207,1,1)<>"A"),0%,100%) -> 0 | AC207: =MAX(0,(V207)-INDEX(CostoParametrico!$E$3:$L$18,MATCH($Y207,CostoParametrico!$D$3:$D$18,0),3))*IF(AND($D$20="A",MID($F207,1,1)<>"A"),0%,100%) -> 0 | AD207: =MAX(0,(W207)-AC207-AE207-AF207-AG207) -> 0 | AE207: =MAX(0,(V207+W207)-INDEX(CostoParametrico!$E$3:$L$18,MATCH($Y207,CostoParametrico!$D$3:$D$18,0),1)-AA207-AB207-AC207-AF207-AG207)*IF(AND($D$20="A",MID($F207,1,1)<>"A"),0%,100%) -> 0 | AF207: =MAX(0,(V207+W207)-INDEX(CostoParametrico!$E$3:$L$18,MATCH($Y207,CostoParametrico!$D$3:$D$18,0),2)-AB207-AC207-AG207)*IF(AND($D$20="A",MID(F207,1,1)<>"A"),0%,100%) -> 0 | AG207: =MAX(0,(V207+W207)-INDEX(CostoParametrico!$E$3:$L$18,MATCH($Y207,CostoParametrico!$D$3:$D$18,0),3)-AC207)*IF(AND($D$20="A",MID(F207,1,1)<>"A"),0%,100%) -> 0 | AH207: =INDEX(CostoParametrico!$E$3:$L$18,MATCH($Y207,CostoParametrico!$D$3:$D$18,0),5) -> 400 | AI207: =INDEX(CostoParametrico!$E$3:$L$18,MATCH($Y207,CostoParametrico!$D$3:$D$18,0),6) -> 330 | AJ207: =INDEX(CostoParametrico!$E$3:$L$18,MATCH($Y207,CostoParametrico!$D$3:$D$18,0),7) -> 300 | AK207: =INDEX(CostoParametrico!$E$3:$L$18,MATCH($Y207,CostoParametrico!$D$3:$D$18,0),8) -> 300 | AL207: =((1+S207+T207)*(Z207*AH$140+AA207*AI$140+AB207*AJ$140+AC207*AK$140) +(1+S207+U207)*(AD207*AH$140+AE207*AI$140+AF207*AJ$140+AG207*AK$140)) *(1+IF(P207="N",0,$G$48)) *(1+IF(AND(BM207="L4",$D$23="DR",$E$25="S",$E$70="S"),30%,0)) *IF(AND($D$20="P",MID(F207,1,1)="A"),180%,100%) -> 0 | AM207: 0 | AN207: =H207*(1-M$102) -> 0 | AO207: 0 | AP207: 0 | AQ207: =IF($H$140>0,V$109,0)*AN207 -> 0 | AR207: 0 | AS207: 1 | AT207: =(AP207*A207+AQ207*B207)*AS207 -> 0 | AU207: =AZ207*(Z$128-Z$109)/MAX(10^-12,AC$128-AC$109) -> 0 | AV207: 0 | AW207: =MAX(0,MIN(AP207,AT207)-AU207) -> 0 | AX207: =MAX(0,MIN(AQ207,AT207-AW207)-AV207) -> 0 | AY207: =MAX(0,AT207-AU207-AV207) -> 0 | AZ207: =MAX(0,MIN(A207*AP207*AS207*($Y$128-$Y$109)/($X$128-$X$109),G207-BA207)) -> 0 | BA207: =MAX(0,MIN(B207*AQ207*BK207,G207)) -> 0 | BB207: =MAX(0,MIN(AP207,AT207)*($Y$128-$Y$109)/($X$128-$X$109)-AZ207) -> 0 | BC207: =MAX(0,AX207*BK207-BA207) -> 0 | BD207: =AN207*(1+J207/100)-BC207-BA207 -> 0 | BE207: =AM207*($O$128-$O$109)/($M$128-$M$109)-(BB207+AZ207) -> 0 | BF207: =AM207*($O$128-$O$109)/($M$128-$M$109) -> 0 | BG207: 0 | BH207: =$X207*($Y$128-$Y$109) -> 0 | BI207: =AQ207*(1+J207/100) -> 0 | BJ207: =((1+S207+T207)*(Z207*AH207+AA207*AI207+AB207*AJ207+AC207*AK207) +(1+S207+U207)*(AD207*AH207+AE207*AI207+AF207*AJ207+AG207*AK207)) *(1+IF(P207="N",0,$G$48)) *(1+IF(AND(R207="L4",$D$23="DR",$E$25="S",$E$70="S"),30%,0)) -> 0 | BK207: 1.1
A208: 1 | B208: 1 | C208: 67 | D208: 1 | E208: N | F208: A - Abitativo | G208: 0 | H208: 0 | I208: Privata | J208: 10 | K208: N | L208: 0 | M208: 0 | N208: 0 | O208: 0 | P208: N | Q208: N | R208: L0 | S208: 0 | T208: 0 | U208: 0 | V208: 0 | W208: 0 | X208: 0 | Y208: Abitativa-L0 | Z208: 0 | AA208: =MAX(0,(V208)-INDEX(CostoParametrico!$E$3:$L$18,MATCH($Y208,CostoParametrico!$D$3:$D$18,0),1)-AB208-AC208)*IF(AND($D$20="A",MID($F208,1,1)<>"A"),0%,100%) -> 0 | AB208: =MAX(0,(V208)-INDEX(CostoParametrico!$E$3:$L$18,MATCH($Y208,CostoParametrico!$D$3:$D$18,0),2)-AC208)*IF(AND($D$20="A",MID($F208,1,1)<>"A"),0%,100%) -> 0 | AC208: =MAX(0,(V208)-INDEX(CostoParametrico!$E$3:$L$18,MATCH($Y208,CostoParametrico!$D$3:$D$18,0),3))*IF(AND($D$20="A",MID($F208,1,1)<>"A"),0%,100%) -> 0 | AD208: 0 | AE208: =MAX(0,(V208+W208)-INDEX(CostoParametrico!$E$3:$L$18,MATCH($Y208,CostoParametrico!$D$3:$D$18,0),1)-AA208-AB208-AC208-AF208-AG208)*IF(AND($D$20="A",MID($F208,1,1)<>"A"),0%,100%) -> 0 | AF208: =MAX(0,(V208+W208)-INDEX(CostoParametrico!$E$3:$L$18,MATCH($Y208,CostoParametrico!$D$3:$D$18,0),2)-AB208-AC208-AG208)*IF(AND($D$20="A",MID(F208,1,1)<>"A"),0%,100%) -> 0 | AG208: =MAX(0,(V208+W208)-INDEX(CostoParametrico!$E$3:$L$18,MATCH($Y208,CostoParametrico!$D$3:$D$18,0),3)-AC208)*IF(AND($D$20="A",MID(F208,1,1)<>"A"),0%,100%) -> 0 | AH208: =INDEX(CostoParametrico!$E$3:$L$18,MATCH($Y208,CostoParametrico!$D$3:$D$18,0),5) -> 400 | AI208: =INDEX(CostoParametrico!$E$3:$L$18,MATCH($Y208,CostoParametrico!$D$3:$D$18,0),6) -> 330 | AJ208: =INDEX(CostoParametrico!$E$3:$L$18,MATCH($Y208,CostoParametrico!$D$3:$D$18,0),7) -> 300 | AK208: =INDEX(CostoParametrico!$E$3:$L$18,MATCH($Y208,CostoParametrico!$D$3:$D$18,0),8) -> 300 | AL208: 0 | AM208: 0 | AN208: 0 | AO208: 0 | AP208: 0 | AQ208: 0 | AR208: 0 | AS208: 1 | AT208: 0 | AU208: 0 | AV208: 0 | AW208: 0 | AX208: 0 | AY208: 0 | AZ208: 0 | BA208: 0 | BB208: 0 | BC208: 0 | BD208: 0 | BE208: 0 | BF208: 0 | BG208: 0 | BH208: 0 | BI208: 0 | BJ208: 0 | BK208: 1.1
A209: 1 | B209: 1 | C209: 68 | D209: 1 | E209: N | F209: A - Abitativo | G209: 0 | H209: 0 | I209: Privata | J209: 10 | K209: N | L209: 0 | M209: 0 | N209: 0 | O209: 0 | P209: N | Q209: N | R209: L0 | S209: 0 | T209: 0 | U209: 0 | V209: 0 | W209: 0 | X209: 0 | Y209: Abitativa-L0 | Z209: 0 | AA209: =MAX(0,(V209)-INDEX(CostoParametrico!$E$3:$L$18,MATCH($Y209,CostoParametrico!$D$3:$D$18,0),1)-AB209-AC209)*IF(AND($D$20="A",MID($F209,1,1)<>"A"),0%,100%) -> 0 | AB209: =MAX(0,(V209)-INDEX(CostoParametrico!$E$3:$L$18,MATCH($Y209,CostoParametrico!$D$3:$D$18,0),2)-AC209)*IF(AND($D$20="A",MID($F209,1,1)<>"A"),0%,100%) -> 0 | AC209: =MAX(0,(V209)-INDEX(CostoParametrico!$E$3:$L$18,MATCH($Y209,CostoParametrico!$D$3:$D$18,0),3))*IF(AND($D$20="A",MID($F209,1,1)<>"A"),0%,100%) -> 0 | AD209: 0 | AE209: =MAX(0,(V209+W209)-INDEX(CostoParametrico!$E$3:$L$18,MATCH($Y209,CostoParametrico!$D$3:$D$18,0),1)-AA209-AB209-AC209-AF209-AG209)*IF(AND($D$20="A",MID($F209,1,1)<>"A"),0%,100%) -> 0 | AF209: =MAX(0,(V209+W209)-INDEX(CostoParametrico!$E$3:$L$18,MATCH($Y209,CostoParametrico!$D$3:$D$18,0),2)-AB209-AC209-AG209)*IF(AND($D$20="A",MID(F209,1,1)<>"A"),0%,100%) -> 0 | AG209: =MAX(0,(V209+W209)-INDEX(CostoParametrico!$E$3:$L$18,MATCH($Y209,CostoParametrico!$D$3:$D$18,0),3)-AC209)*IF(AND($D$20="A",MID(F209,1,1)<>"A"),0%,100%) -> 0 | AH209: =INDEX(CostoParametrico!$E$3:$L$18,MATCH($Y209,CostoParametrico!$D$3:$D$18,0),5) -> 400 | AI209: =INDEX(CostoParametrico!$E$3:$L$18,MATCH($Y209,CostoParametrico!$D$3:$D$18,0),6) -> 330 | AJ209: =INDEX(CostoParametrico!$E$3:$L$18,MATCH($Y209,CostoParametrico!$D$3:$D$18,0),7) -> 300 | AK209: =INDEX(CostoParametrico!$E$3:$L$18,MATCH($Y209,CostoParametrico!$D$3:$D$18,0),8) -> 300 | AL209: 0 | AM209: 0 | AN209: 0 | AO209: 0 | AP209: 0 | AQ209: 0 | AR209: 0 | AS209: 1 | AT209: 0 | AU209: 0 | AV209: 0 | AW209: 0 | AX209: 0 | AY209: 0 | AZ209: 0 | BA209: 0 | BB209: 0 | BC209: 0 | BD209: 0 | BE209: 0 | BF209: 0 | BG209: 0 | BH209: 0 | BI209: 0 | BJ209: 0 | BK209: 1.1
A210: 1 | B210: 1 | C210: 69 | D210: 1 | E210: N | F210: A - Abitativo | G210: 0 | H210: 0 | I210: Privata | J210: 10 | K210: N | L210: 0 | M210: 0 | N210: 0 | O210: 0 | P210: N | Q210: N | R210: L0 | S210: 0 | T210: 0 | U210: 0 | V210: 0 | W210: 0 | X210: 0 | Y210: Abitativa-L0 | Z210: 0 | AA210: =MAX(0,(V210)-INDEX(CostoParametrico!$E$3:$L$18,MATCH($Y210,CostoParametrico!$D$3:$D$18,0),1)-AB210-AC210)*IF(AND($D$20="A",MID($F210,1,1)<>"A"),0%,100%) -> 0 | AB210: =MAX(0,(V210)-INDEX(CostoParametrico!$E$3:$L$18,MATCH($Y210,CostoParametrico!$D$3:$D$18,0),2)-AC210)*IF(AND($D$20="A",MID($F210,1,1)<>"A"),0%,100%) -> 0 | AC210: =MAX(0,(V210)-INDEX(CostoParametrico!$E$3:$L$18,MATCH($Y210,CostoParametrico!$D$3:$D$18,0),3))*IF(AND($D$20="A",MID($F210,1,1)<>"A"),0%,100%) -> 0 | AD210: 0 | AE210: =MAX(0,(V210+W210)-INDEX(CostoParametrico!$E$3:$L$18,MATCH($Y210,CostoParametrico!$D$3:$D$18,0),1)-AA210-AB210-AC210-AF210-AG210)*IF(AND($D$20="A",MID($F210,1,1)<>"A"),0%,100%) -> 0 | AF210: =MAX(0,(V210+W210)-INDEX(CostoParametrico!$E$3:$L$18,MATCH($Y210,CostoParametrico!$D$3:$D$18,0),2)-AB210-AC210-AG210)*IF(AND($D$20="A",MID(F210,1,1)<>"A"),0%,100%) -> 0 | AG210: =MAX(0,(V210+W210)-INDEX(CostoParametrico!$E$3:$L$18,MATCH($Y210,CostoParametrico!$D$3:$D$18,0),3)-AC210)*IF(AND($D$20="A",MID(F210,1,1)<>"A"),0%,100%) -> 0 | AH210: =INDEX(CostoParametrico!$E$3:$L$18,MATCH($Y210,CostoParametrico!$D$3:$D$18,0),5) -> 400 | AI210: =INDEX(CostoParametrico!$E$3:$L$18,MATCH($Y210,CostoParametrico!$D$3:$D$18,0),6) -> 330 | AJ210: =INDEX(CostoParametrico!$E$3:$L$18,MATCH($Y210,CostoParametrico!$D$3:$D$18,0),7) -> 300 | AK210: =INDEX(CostoParametrico!$E$3:$L$18,MATCH($Y210,CostoParametrico!$D$3:$D$18,0),8) -> 300 | AL210: 0 | AM210: 0 | AN210: 0 | AO210: 0 | AP210: 0 | AQ210: 0 | AR210: 0 | AS210: 1 | AT210: 0 | AU210: 0 | AV210: 0 | AW210: 0 | AX210: 0 | AY210: 0 | AZ210: 0 | BA210: 0 | BB210: 0 | BC210: 0 | BD210: 0 | BE210: 0 | BF210: 0 | BG210: 0 | BH210: 0 | BI210: 0 | BJ210: 0 | BK210: 1.1
A211: 1 | B211: 1 | C211: 70 | D211: 1 | E211: N | F211: A - Abitativo | G211: 0 | H211: 0 | I211: Privata | J211: 10 | K211: N | L211: 0 | M211: 0 | N211: 0 | O211: 0 | P211: N | Q211: N | R211: L0 | S211: 0 | T211: 0 | U211: 0 | V211: 0 | W211: 0 | X211: 0 | Y211: Abitativa-L0 | Z211: 0 | AA211: =MAX(0,(V211)-INDEX(CostoParametrico!$E$3:$L$18,MATCH($Y211,CostoParametrico!$D$3:$D$18,0),1)-AB211-AC211)*IF(AND($D$20="A",MID($F211,1,1)<>"A"),0%,100%) -> 0 | AB211: =MAX(0,(V211)-INDEX(CostoParametrico!$E$3:$L$18,MATCH($Y211,CostoParametrico!$D$3:$D$18,0),2)-AC211)*IF(AND($D$20="A",MID($F211,1,1)<>"A"),0%,100%) -> 0 | AC211: =MAX(0,(V211)-INDEX(CostoParametrico!$E$3:$L$18,MATCH($Y211,CostoParametrico!$D$3:$D$18,0),3))*IF(AND($D$20="A",MID($F211,1,1)<>"A"),0%,100%) -> 0 | AD211: 0 | AE211: =MAX(0,(V211+W211)-INDEX(CostoParametrico!$E$3:$L$18,MATCH($Y211,CostoParametrico!$D$3:$D$18,0),1)-AA211-AB211-AC211-AF211-AG211)*IF(AND($D$20="A",MID($F211,1,1)<>"A"),0%,100%) -> 0 | AF211: =MAX(0,(V211+W211)-INDEX(CostoParametrico!$E$3:$L$18,MATCH($Y211,CostoParametrico!$D$3:$D$18,0),2)-AB211-AC211-AG211)*IF(AND($D$20="A",MID(F211,1,1)<>"A"),0%,100%) -> 0 | AG211: =MAX(0,(V211+W211)-INDEX(CostoParametrico!$E$3:$L$18,MATCH($Y211,CostoParametrico!$D$3:$D$18,0),3)-AC211)*IF(AND($D$20="A",MID(F211,1,1)<>"A"),0%,100%) -> 0 | AH211: =INDEX(CostoParametrico!$E$3:$L$18,MATCH($Y211,CostoParametrico!$D$3:$D$18,0),5) -> 400 | AI211: =INDEX(CostoParametrico!$E$3:$L$18,MATCH($Y211,CostoParametrico!$D$3:$D$18,0),6) -> 330 | AJ211: =INDEX(CostoParametrico!$E$3:$L$18,MATCH($Y211,CostoParametrico!$D$3:$D$18,0),7) -> 300 | AK211: =INDEX(CostoParametrico!$E$3:$L$18,MATCH($Y211,CostoParametrico!$D$3:$D$18,0),8) -> 300 | AL211: 0 | AM211: 0 | AN211: 0 | AO211: 0 | AP211: 0 | AQ211: 0 | AR211: 0 | AS211: 1 | AT211: 0 | AU211: 0 | AV211: 0 | AW211: 0 | AX211: 0 | AY211: 0 | AZ211: 0 | BA211: 0 | BB211: 0 | BC211: 0 | BD211: 0 | BE211: 0 | BF211: 0 | BG211: 0 | BH211: 0 | BI211: 0 | BJ211: 0 | BK211: 1.1
A212: 1 | B212: 1 | C212: 71 | D212: 1 | E212: N | F212: A - Abitativo | G212: 0 | H212: 0 | I212: Privata | J212: 10 | K212: N | L212: 0 | M212: 0 | N212: 0 | O212: 0 | P212: N | Q212: N | R212: L0 | S212: 0 | T212: 0 | U212: 0 | V212: 0 | W212: 0 | X212: 0 | Y212: Abitativa-L0 | Z212: 0 | AA212: =MAX(0,(V212)-INDEX(CostoParametrico!$E$3:$L$18,MATCH($Y212,CostoParametrico!$D$3:$D$18,0),1)-AB212-AC212)*IF(AND($D$20="A",MID($F212,1,1)<>"A"),0%,100%) -> 0 | AB212: =MAX(0,(V212)-INDEX(CostoParametrico!$E$3:$L$18,MATCH($Y212,CostoParametrico!$D$3:$D$18,0),2)-AC212)*IF(AND($D$20="A",MID($F212,1,1)<>"A"),0%,100%) -> 0 | AC212: =MAX(0,(V212)-INDEX(CostoParametrico!$E$3:$L$18,MATCH($Y212,CostoParametrico!$D$3:$D$18,0),3))*IF(AND($D$20="A",MID($F212,1,1)<>"A"),0%,100%) -> 0 | AD212: 0 | AE212: =MAX(0,(V212+W212)-INDEX(CostoParametrico!$E$3:$L$18,MATCH($Y212,CostoParametrico!$D$3:$D$18,0),1)-AA212-AB212-AC212-AF212-AG212)*IF(AND($D$20="A",MID($F212,1,1)<>"A"),0%,100%) -> 0 | AF212: =MAX(0,(V212+W212)-INDEX(CostoParametrico!$E$3:$L$18,MATCH($Y212,CostoParametrico!$D$3:$D$18,0),2)-AB212-AC212-AG212)*IF(AND($D$20="A",MID(F212,1,1)<>"A"),0%,100%) -> 0 | AG212: =MAX(0,(V212+W212)-INDEX(CostoParametrico!$E$3:$L$18,MATCH($Y212,CostoParametrico!$D$3:$D$18,0),3)-AC212)*IF(AND($D$20="A",MID(F212,1,1)<>"A"),0%,100%) -> 0 | AH212: =INDEX(CostoParametrico!$E$3:$L$18,MATCH($Y212,CostoParametrico!$D$3:$D$18,0),5) -> 400 | AI212: =INDEX(CostoParametrico!$E$3:$L$18,MATCH($Y212,CostoParametrico!$D$3:$D$18,0),6) -> 330 | AJ212: =INDEX(CostoParametrico!$E$3:$L$18,MATCH($Y212,CostoParametrico!$D$3:$D$18,0),7) -> 300 | AK212: =INDEX(CostoParametrico!$E$3:$L$18,MATCH($Y212,CostoParametrico!$D$3:$D$18,0),8) -> 300 | AL212: 0 | AM212: 0 | AN212: 0 | AO212: 0 | AP212: 0 | AQ212: 0 | AR212: 0 | AS212: 1 | AT212: 0 | AU212: 0 | AV212: 0 | AW212: 0 | AX212: 0 | AY212: 0 | AZ212: 0 | BA212: 0 | BB212: 0 | BC212: 0 | BD212: 0 | BE212: 0 | BF212: 0 | BG212: 0 | BH212: 0 | BI212: 0 | BJ212: 0 | BK212: 1.1
A213: 1 | B213: 1 | C213: 72 | D213: 1 | E213: N | F213: A - Abitativo | G213: 0 | H213: 0 | I213: Privata | J213: 10 | K213: N | L213: 0 | M213: 0 | N213: 0 | O213: 0 | P213: N | Q213: N | R213: L0 | S213: 0 | T213: 0 | U213: 0 | V213: 0 | W213: 0 | X213: 0 | Y213: Abitativa-L0 | Z213: 0 | AA213: =MAX(0,(V213)-INDEX(CostoParametrico!$E$3:$L$18,MATCH($Y213,CostoParametrico!$D$3:$D$18,0),1)-AB213-AC213)*IF(AND($D$20="A",MID($F213,1,1)<>"A"),0%,100%) -> 0 | AB213: =MAX(0,(V213)-INDEX(CostoParametrico!$E$3:$L$18,MATCH($Y213,CostoParametrico!$D$3:$D$18,0),2)-AC213)*IF(AND($D$20="A",MID($F213,1,1)<>"A"),0%,100%) -> 0 | AC213: =MAX(0,(V213)-INDEX(CostoParametrico!$E$3:$L$18,MATCH($Y213,CostoParametrico!$D$3:$D$18,0),3))*IF(AND($D$20="A",MID($F213,1,1)<>"A"),0%,100%) -> 0 | AD213: 0 | AE213: =MAX(0,(V213+W213)-INDEX(CostoParametrico!$E$3:$L$18,MATCH($Y213,CostoParametrico!$D$3:$D$18,0),1)-AA213-AB213-AC213-AF213-AG213)*IF(AND($D$20="A",MID($F213,1,1)<>"A"),0%,100%) -> 0 | AF213: =MAX(0,(V213+W213)-INDEX(CostoParametrico!$E$3:$L$18,MATCH($Y213,CostoParametrico!$D$3:$D$18,0),2)-AB213-AC213-AG213)*IF(AND($D$20="A",MID(F213,1,1)<>"A"),0%,100%) -> 0 | AG213: =MAX(0,(V213+W213)-INDEX(CostoParametrico!$E$3:$L$18,MATCH($Y213,CostoParametrico!$D$3:$D$18,0),3)-AC213)*IF(AND($D$20="A",MID(F213,1,1)<>"A"),0%,100%) -> 0 | AH213: =INDEX(CostoParametrico!$E$3:$L$18,MATCH($Y213,CostoParametrico!$D$3:$D$18,0),5) -> 400 | AI213: =INDEX(CostoParametrico!$E$3:$L$18,MATCH($Y213,CostoParametrico!$D$3:$D$18,0),6) -> 330 | AJ213: =INDEX(CostoParametrico!$E$3:$L$18,MATCH($Y213,CostoParametrico!$D$3:$D$18,0),7) -> 300 | AK213: =INDEX(CostoParametrico!$E$3:$L$18,MATCH($Y213,CostoParametrico!$D$3:$D$18,0),8) -> 300 | AL213: 0 | AM213: 0 | AN213: 0 | AO213: 0 | AP213: 0 | AQ213: 0 | AR213: 0 | AS213: 1 | AT213: 0 | AU213: 0 | AV213: 0 | AW213: 0 | AX213: 0 | AY213: 0 | AZ213: 0 | BA213: 0 | BB213: 0 | BC213: 0 | BD213: 0 | BE213: 0 | BF213: 0 | BG213: 0 | BH213: 0 | BI213: 0 | BJ213: 0 | BK213: 1.1
A214: 1 | B214: 1 | C214: 73 | D214: 1 | E214: N | F214: A - Abitativo | G214: 0 | H214: 0 | I214: Privata | J214: 10 | K214: N | L214: 0 | M214: 0 | N214: 0 | O214: 0 | P214: N | Q214: N | R214: L0 | S214: 0 | T214: 0 | U214: 0 | V214: 0 | W214: 0 | X214: 0 | Y214: Abitativa-L0 | Z214: 0 | AA214: =MAX(0,(V214)-INDEX(CostoParametrico!$E$3:$L$18,MATCH($Y214,CostoParametrico!$D$3:$D$18,0),1)-AB214-AC214)*IF(AND($D$20="A",MID($F214,1,1)<>"A"),0%,100%) -> 0 | AB214: =MAX(0,(V214)-INDEX(CostoParametrico!$E$3:$L$18,MATCH($Y214,CostoParametrico!$D$3:$D$18,0),2)-AC214)*IF(AND($D$20="A",MID($F214,1,1)<>"A"),0%,100%) -> 0 | AC214: =MAX(0,(V214)-INDEX(CostoParametrico!$E$3:$L$18,MATCH($Y214,CostoParametrico!$D$3:$D$18,0),3))*IF(AND($D$20="A",MID($F214,1,1)<>"A"),0%,100%) -> 0 | AD214: 0 | AE214: =MAX(0,(V214+W214)-INDEX(CostoParametrico!$E$3:$L$18,MATCH($Y214,CostoParametrico!$D$3:$D$18,0),1)-AA214-AB214-AC214-AF214-AG214)*IF(AND($D$20="A",MID($F214,1,1)<>"A"),0%,100%) -> 0 | AF214: =MAX(0,(V214+W214)-INDEX(CostoParametrico!$E$3:$L$18,MATCH($Y214,CostoParametrico!$D$3:$D$18,0),2)-AB214-AC214-AG214)*IF(AND($D$20="A",MID(F214,1,1)<>"A"),0%,100%) -> 0 | AG214: =MAX(0,(V214+W214)-INDEX(CostoParametrico!$E$3:$L$18,MATCH($Y214,CostoParametrico!$D$3:$D$18,0),3)-AC214)*IF(AND($D$20="A",MID(F214,1,1)<>"A"),0%,100%) -> 0 | AH214: =INDEX(CostoParametrico!$E$3:$L$18,MATCH($Y214,CostoParametrico!$D$3:$D$18,0),5) -> 400 | AI214: =INDEX(CostoParametrico!$E$3:$L$18,MATCH($Y214,CostoParametrico!$D$3:$D$18,0),6) -> 330 | AJ214: =INDEX(CostoParametrico!$E$3:$L$18,MATCH($Y214,CostoParametrico!$D$3:$D$18,0),7) -> 300 | AK214: =INDEX(CostoParametrico!$E$3:$L$18,MATCH($Y214,CostoParametrico!$D$3:$D$18,0),8) -> 300 | AL214: 0 | AM214: 0 | AN214: 0 | AO214: 0 | AP214: 0 | AQ214: 0 | AR214: 0 | AS214: 1 | AT214: 0 | AU214: 0 | AV214: 0 | AW214: 0 | AX214: 0 | AY214: 0 | AZ214: 0 | BA214: 0 | BB214: 0 | BC214: 0 | BD214: 0 | BE214: 0 | BF214: 0 | BG214: 0 | BH214: 0 | BI214: 0 | BJ214: 0 | BK214: 1.1
A215: 1 | B215: 1 | C215: 74 | D215: 1 | E215: N | F215: A - Abitativo | G215: 0 | H215: 0 | I215: Privata | J215: 10 | K215: N | L215: 0 | M215: 0 | N215: 0 | O215: 0 | P215: N | Q215: N | R215: L0 | S215: 0 | T215: 0 | U215: 0 | V215: 0 | W215: 0 | X215: 0 | Y215: Abitativa-L0 | Z215: 0 | AA215: =MAX(0,(V215)-INDEX(CostoParametrico!$E$3:$L$18,MATCH($Y215,CostoParametrico!$D$3:$D$18,0),1)-AB215-AC215)*IF(AND($D$20="A",MID($F215,1,1)<>"A"),0%,100%) -> 0 | AB215: =MAX(0,(V215)-INDEX(CostoParametrico!$E$3:$L$18,MATCH($Y215,CostoParametrico!$D$3:$D$18,0),2)-AC215)*IF(AND($D$20="A",MID($F215,1,1)<>"A"),0%,100%) -> 0 | AC215: =MAX(0,(V215)-INDEX(CostoParametrico!$E$3:$L$18,MATCH($Y215,CostoParametrico!$D$3:$D$18,0),3))*IF(AND($D$20="A",MID($F215,1,1)<>"A"),0%,100%) -> 0 | AD215: 0 | AE215: =MAX(0,(V215+W215)-INDEX(CostoParametrico!$E$3:$L$18,MATCH($Y215,CostoParametrico!$D$3:$D$18,0),1)-AA215-AB215-AC215-AF215-AG215)*IF(AND($D$20="A",MID($F215,1,1)<>"A"),0%,100%) -> 0 | AF215: =MAX(0,(V215+W215)-INDEX(CostoParametrico!$E$3:$L$18,MATCH($Y215,CostoParametrico!$D$3:$D$18,0),2)-AB215-AC215-AG215)*IF(AND($D$20="A",MID(F215,1,1)<>"A"),0%,100%) -> 0 | AG215: =MAX(0,(V215+W215)-INDEX(CostoParametrico!$E$3:$L$18,MATCH($Y215,CostoParametrico!$D$3:$D$18,0),3)-AC215)*IF(AND($D$20="A",MID(F215,1,1)<>"A"),0%,100%) -> 0 | AH215: =INDEX(CostoParametrico!$E$3:$L$18,MATCH($Y215,CostoParametrico!$D$3:$D$18,0),5) -> 400 | AI215: =INDEX(CostoParametrico!$E$3:$L$18,MATCH($Y215,CostoParametrico!$D$3:$D$18,0),6) -> 330 | AJ215: =INDEX(CostoParametrico!$E$3:$L$18,MATCH($Y215,CostoParametrico!$D$3:$D$18,0),7) -> 300 | AK215: =INDEX(CostoParametrico!$E$3:$L$18,MATCH($Y215,CostoParametrico!$D$3:$D$18,0),8) -> 300 | AL215: 0 | AM215: 0 | AN215: 0 | AO215: 0 | AP215: 0 | AQ215: 0 | AR215: 0 | AS215: 1 | AT215: 0 | AU215: 0 | AV215: 0 | AW215: 0 | AX215: 0 | AY215: 0 | AZ215: 0 | BA215: 0 | BB215: 0 | BC215: 0 | BD215: 0 | BE215: 0 | BF215: 0 | BG215: 0 | BH215: 0 | BI215: 0 | BJ215: 0 | BK215: 1.1
A216: 1 | B216: 1 | C216: 75 | D216: 1 | E216: N | F216: A - Abitativo | G216: 0 | H216: 0 | I216: Privata | J216: 10 | K216: N | L216: 0 | M216: 0 | N216: 0 | O216: 0 | P216: N | Q216: N | R216: L0 | S216: 0 | T216: 0 | U216: 0 | V216: 0 | W216: 0 | X216: 0 | Y216: Abitativa-L0 | Z216: 0 | AA216: =MAX(0,(V216)-INDEX(CostoParametrico!$E$3:$L$18,MATCH($Y216,CostoParametrico!$D$3:$D$18,0),1)-AB216-AC216)*IF(AND($D$20="A",MID($F216,1,1)<>"A"),0%,100%) -> 0 | AB216: =MAX(0,(V216)-INDEX(CostoParametrico!$E$3:$L$18,MATCH($Y216,CostoParametrico!$D$3:$D$18,0),2)-AC216)*IF(AND($D$20="A",MID($F216,1,1)<>"A"),0%,100%) -> 0 | AC216: =MAX(0,(V216)-INDEX(CostoParametrico!$E$3:$L$18,MATCH($Y216,CostoParametrico!$D$3:$D$18,0),3))*IF(AND($D$20="A",MID($F216,1,1)<>"A"),0%,100%) -> 0 | AD216: 0 | AE216: =MAX(0,(V216+W216)-INDEX(CostoParametrico!$E$3:$L$18,MATCH($Y216,CostoParametrico!$D$3:$D$18,0),1)-AA216-AB216-AC216-AF216-AG216)*IF(AND($D$20="A",MID($F216,1,1)<>"A"),0%,100%) -> 0 | AF216: =MAX(0,(V216+W216)-INDEX(CostoParametrico!$E$3:$L$18,MATCH($Y216,CostoParametrico!$D$3:$D$18,0),2)-AB216-AC216-AG216)*IF(AND($D$20="A",MID(F216,1,1)<>"A"),0%,100%) -> 0 | AG216: =MAX(0,(V216+W216)-INDEX(CostoParametrico!$E$3:$L$18,MATCH($Y216,CostoParametrico!$D$3:$D$18,0),3)-AC216)*IF(AND($D$20="A",MID(F216,1,1)<>"A"),0%,100%) -> 0 | AH216: =INDEX(CostoParametrico!$E$3:$L$18,MATCH($Y216,CostoParametrico!$D$3:$D$18,0),5) -> 400 | AI216: =INDEX(CostoParametrico!$E$3:$L$18,MATCH($Y216,CostoParametrico!$D$3:$D$18,0),6) -> 330 | AJ216: =INDEX(CostoParametrico!$E$3:$L$18,MATCH($Y216,CostoParametrico!$D$3:$D$18,0),7) -> 300 | AK216: =INDEX(CostoParametrico!$E$3:$L$18,MATCH($Y216,CostoParametrico!$D$3:$D$18,0),8) -> 300 | AL216: 0 | AM216: 0 | AN216: 0 | AO216: 0 | AP216: 0 | AQ216: 0 | AR216: 0 | AS216: 1 | AT216: 0 | AU216: 0 | AV216: 0 | AW216: 0 | AX216: 0 | AY216: 0 | AZ216: 0 | BA216: 0 | BB216: 0 | BC216: 0 | BD216: 0 | BE216: 0 | BF216: 0 | BG216: 0 | BH216: 0 | BI216: 0 | BJ216: 0 | BK216: 1.1
A217: 1 | B217: 1 | C217: 76 | D217: 1 | E217: N | F217: A - Abitativo | G217: 0 | H217: 0 | I217: Privata | J217: 10 | K217: N | L217: 0 | M217: 0 | N217: 0 | O217: 0 | P217: N | Q217: N | R217: L0 | S217: 0 | T217: 0 | U217: 0 | V217: 0 | W217: 0 | X217: 0 | Y217: Abitativa-L0 | Z217: 0 | AA217: =MAX(0,(V217)-INDEX(CostoParametrico!$E$3:$L$18,MATCH($Y217,CostoParametrico!$D$3:$D$18,0),1)-AB217-AC217)*IF(AND($D$20="A",MID($F217,1,1)<>"A"),0%,100%) -> 0 | AB217: =MAX(0,(V217)-INDEX(CostoParametrico!$E$3:$L$18,MATCH($Y217,CostoParametrico!$D$3:$D$18,0),2)-AC217)*IF(AND($D$20="A",MID($F217,1,1)<>"A"),0%,100%) -> 0 | AC217: =MAX(0,(V217)-INDEX(CostoParametrico!$E$3:$L$18,MATCH($Y217,CostoParametrico!$D$3:$D$18,0),3))*IF(AND($D$20="A",MID($F217,1,1)<>"A"),0%,100%) -> 0 | AD217: 0 | AE217: =MAX(0,(V217+W217)-INDEX(CostoParametrico!$E$3:$L$18,MATCH($Y217,CostoParametrico!$D$3:$D$18,0),1)-AA217-AB217-AC217-AF217-AG217)*IF(AND($D$20="A",MID($F217,1,1)<>"A"),0%,100%) -> 0 | AF217: =MAX(0,(V217+W217)-INDEX(CostoParametrico!$E$3:$L$18,MATCH($Y217,CostoParametrico!$D$3:$D$18,0),2)-AB217-AC217-AG217)*IF(AND($D$20="A",MID(F217,1,1)<>"A"),0%,100%) -> 0 | AG217: =MAX(0,(V217+W217)-INDEX(CostoParametrico!$E$3:$L$18,MATCH($Y217,CostoParametrico!$D$3:$D$18,0),3)-AC217)*IF(AND($D$20="A",MID(F217,1,1)<>"A"),0%,100%) -> 0 | AH217: =INDEX(CostoParametrico!$E$3:$L$18,MATCH($Y217,CostoParametrico!$D$3:$D$18,0),5) -> 400 | AI217: =INDEX(CostoParametrico!$E$3:$L$18,MATCH($Y217,CostoParametrico!$D$3:$D$18,0),6) -> 330 | AJ217: =INDEX(CostoParametrico!$E$3:$L$18,MATCH($Y217,CostoParametrico!$D$3:$D$18,0),7) -> 300 | AK217: =INDEX(CostoParametrico!$E$3:$L$18,MATCH($Y217,CostoParametrico!$D$3:$D$18,0),8) -> 300 | AL217: 0 | AM217: 0 | AN217: 0 | AO217: 0 | AP217: 0 | AQ217: 0 | AR217: 0 | AS217: 1 | AT217: 0 | AU217: 0 | AV217: 0 | AW217: 0 | AX217: 0 | AY217: 0 | AZ217: 0 | BA217: 0 | BB217: 0 | BC217: 0 | BD217: 0 | BE217: 0 | BF217: 0 | BG217: 0 | BH217: 0 | BI217: 0 | BJ217: 0 | BK217: 1.1
A218: 1 | B218: 1 | C218: 77 | D218: 1 | E218: N | F218: A - Abitativo | G218: 0 | H218: 0 | I218: Privata | J218: 10 | K218: N | L218: 0 | M218: 0 | N218: 0 | O218: 0 | P218: N | Q218: N | R218: L0 | S218: 0 | T218: 0 | U218: 0 | V218: 0 | W218: 0 | X218: 0 | Y218: Abitativa-L0 | Z218: 0 | AA218: =MAX(0,(V218)-INDEX(CostoParametrico!$E$3:$L$18,MATCH($Y218,CostoParametrico!$D$3:$D$18,0),1)-AB218-AC218)*IF(AND($D$20="A",MID($F218,1,1)<>"A"),0%,100%) -> 0 | AB218: =MAX(0,(V218)-INDEX(CostoParametrico!$E$3:$L$18,MATCH($Y218,CostoParametrico!$D$3:$D$18,0),2)-AC218)*IF(AND($D$20="A",MID($F218,1,1)<>"A"),0%,100%) -> 0 | AC218: =MAX(0,(V218)-INDEX(CostoParametrico!$E$3:$L$18,MATCH($Y218,CostoParametrico!$D$3:$D$18,0),3))*IF(AND($D$20="A",MID($F218,1,1)<>"A"),0%,100%) -> 0 | AD218: 0 | AE218: =MAX(0,(V218+W218)-INDEX(CostoParametrico!$E$3:$L$18,MATCH($Y218,CostoParametrico!$D$3:$D$18,0),1)-AA218-AB218-AC218-AF218-AG218)*IF(AND($D$20="A",MID($F218,1,1)<>"A"),0%,100%) -> 0 | AF218: =MAX(0,(V218+W218)-INDEX(CostoParametrico!$E$3:$L$18,MATCH($Y218,CostoParametrico!$D$3:$D$18,0),2)-AB218-AC218-AG218)*IF(AND($D$20="A",MID(F218,1,1)<>"A"),0%,100%) -> 0 | AG218: =MAX(0,(V218+W218)-INDEX(CostoParametrico!$E$3:$L$18,MATCH($Y218,CostoParametrico!$D$3:$D$18,0),3)-AC218)*IF(AND($D$20="A",MID(F218,1,1)<>"A"),0%,100%) -> 0 | AH218: =INDEX(CostoParametrico!$E$3:$L$18,MATCH($Y218,CostoParametrico!$D$3:$D$18,0),5) -> 400 | AI218: =INDEX(CostoParametrico!$E$3:$L$18,MATCH($Y218,CostoParametrico!$D$3:$D$18,0),6) -> 330 | AJ218: =INDEX(CostoParametrico!$E$3:$L$18,MATCH($Y218,CostoParametrico!$D$3:$D$18,0),7) -> 300 | AK218: =INDEX(CostoParametrico!$E$3:$L$18,MATCH($Y218,CostoParametrico!$D$3:$D$18,0),8) -> 300 | AL218: 0 | AM218: 0 | AN218: 0 | AO218: 0 | AP218: 0 | AQ218: 0 | AR218: 0 | AS218: 1 | AT218: 0 | AU218: 0 | AV218: 0 | AW218: 0 | AX218: 0 | AY218: 0 | AZ218: 0 | BA218: 0 | BB218: 0 | BC218: 0 | BD218: 0 | BE218: 0 | BF218: 0 | BG218: 0 | BH218: 0 | BI218: 0 | BJ218: 0 | BK218: 1.1
A219: 1 | B219: 1 | C219: 78 | D219: 1 | E219: N | F219: A - Abitativo | G219: 0 | H219: 0 | I219: Privata | J219: 10 | K219: N | L219: 0 | M219: 0 | N219: 0 | O219: 0 | P219: N | Q219: N | R219: L0 | S219: 0 | T219: 0 | U219: 0 | V219: 0 | W219: 0 | X219: 0 | Y219: Abitativa-L0 | Z219: 0 | AA219: =MAX(0,(V219)-INDEX(CostoParametrico!$E$3:$L$18,MATCH($Y219,CostoParametrico!$D$3:$D$18,0),1)-AB219-AC219)*IF(AND($D$20="A",MID($F219,1,1)<>"A"),0%,100%) -> 0 | AB219: =MAX(0,(V219)-INDEX(CostoParametrico!$E$3:$L$18,MATCH($Y219,CostoParametrico!$D$3:$D$18,0),2)-AC219)*IF(AND($D$20="A",MID($F219,1,1)<>"A"),0%,100%) -> 0 | AC219: =MAX(0,(V219)-INDEX(CostoParametrico!$E$3:$L$18,MATCH($Y219,CostoParametrico!$D$3:$D$18,0),3))*IF(AND($D$20="A",MID($F219,1,1)<>"A"),0%,100%) -> 0 | AD219: 0 | AE219: =MAX(0,(V219+W219)-INDEX(CostoParametrico!$E$3:$L$18,MATCH($Y219,CostoParametrico!$D$3:$D$18,0),1)-AA219-AB219-AC219-AF219-AG219)*IF(AND($D$20="A",MID($F219,1,1)<>"A"),0%,100%) -> 0 | AF219: =MAX(0,(V219+W219)-INDEX(CostoParametrico!$E$3:$L$18,MATCH($Y219,CostoParametrico!$D$3:$D$18,0),2)-AB219-AC219-AG219)*IF(AND($D$20="A",MID(F219,1,1)<>"A"),0%,100%) -> 0 | AG219: =MAX(0,(V219+W219)-INDEX(CostoParametrico!$E$3:$L$18,MATCH($Y219,CostoParametrico!$D$3:$D$18,0),3)-AC219)*IF(AND($D$20="A",MID(F219,1,1)<>"A"),0%,100%) -> 0 | AH219: =INDEX(CostoParametrico!$E$3:$L$18,MATCH($Y219,CostoParametrico!$D$3:$D$18,0),5) -> 400 | AI219: =INDEX(CostoParametrico!$E$3:$L$18,MATCH($Y219,CostoParametrico!$D$3:$D$18,0),6) -> 330 | AJ219: =INDEX(CostoParametrico!$E$3:$L$18,MATCH($Y219,CostoParametrico!$D$3:$D$18,0),7) -> 300 | AK219: =INDEX(CostoParametrico!$E$3:$L$18,MATCH($Y219,CostoParametrico!$D$3:$D$18,0),8) -> 300 | AL219: 0 | AM219: 0 | AN219: 0 | AO219: 0 | AP219: 0 | AQ219: 0 | AR219: 0 | AS219: 1 | AT219: 0 | AU219: 0 | AV219: 0 | AW219: 0 | AX219: 0 | AY219: 0 | AZ219: 0 | BA219: 0 | BB219: 0 | BC219: 0 | BD219: 0 | BE219: 0 | BF219: 0 | BG219: 0 | BH219: 0 | BI219: 0 | BJ219: 0 | BK219: 1.1
A220: 1 | B220: 1 | C220: 79 | D220: 1 | E220: N | F220: A - Abitativo | G220: 0 | H220: 0 | I220: Privata | J220: 10 | K220: N | L220: 0 | M220: 0 | N220: 0 | O220: 0 | P220: N | Q220: N | R220: L0 | S220: 0 | T220: 0 | U220: 0 | V220: 0 | W220: 0 | X220: 0 | Y220: Abitativa-L0 | Z220: 0 | AA220: =MAX(0,(V220)-INDEX(CostoParametrico!$E$3:$L$18,MATCH($Y220,CostoParametrico!$D$3:$D$18,0),1)-AB220-AC220)*IF(AND($D$20="A",MID($F220,1,1)<>"A"),0%,100%) -> 0 | AB220: =MAX(0,(V220)-INDEX(CostoParametrico!$E$3:$L$18,MATCH($Y220,CostoParametrico!$D$3:$D$18,0),2)-AC220)*IF(AND($D$20="A",MID($F220,1,1)<>"A"),0%,100%) -> 0 | AC220: =MAX(0,(V220)-INDEX(CostoParametrico!$E$3:$L$18,MATCH($Y220,CostoParametrico!$D$3:$D$18,0),3))*IF(AND($D$20="A",MID($F220,1,1)<>"A"),0%,100%) -> 0 | AD220: 0 | AE220: =MAX(0,(V220+W220)-INDEX(CostoParametrico!$E$3:$L$18,MATCH($Y220,CostoParametrico!$D$3:$D$18,0),1)-AA220-AB220-AC220-AF220-AG220)*IF(AND($D$20="A",MID($F220,1,1)<>"A"),0%,100%) -> 0 | AF220: =MAX(0,(V220+W220)-INDEX(CostoParametrico!$E$3:$L$18,MATCH($Y220,CostoParametrico!$D$3:$D$18,0),2)-AB220-AC220-AG220)*IF(AND($D$20="A",MID(F220,1,1)<>"A"),0%,100%) -> 0 | AG220: =MAX(0,(V220+W220)-INDEX(CostoParametrico!$E$3:$L$18,MATCH($Y220,CostoParametrico!$D$3:$D$18,0),3)-AC220)*IF(AND($D$20="A",MID(F220,1,1)<>"A"),0%,100%) -> 0 | AH220: =INDEX(CostoParametrico!$E$3:$L$18,MATCH($Y220,CostoParametrico!$D$3:$D$18,0),5) -> 400 | AI220: =INDEX(CostoParametrico!$E$3:$L$18,MATCH($Y220,CostoParametrico!$D$3:$D$18,0),6) -> 330 | AJ220: =INDEX(CostoParametrico!$E$3:$L$18,MATCH($Y220,CostoParametrico!$D$3:$D$18,0),7) -> 300 | AK220: =INDEX(CostoParametrico!$E$3:$L$18,MATCH($Y220,CostoParametrico!$D$3:$D$18,0),8) -> 300 | AL220: 0 | AM220: 0 | AN220: 0 | AO220: 0 | AP220: 0 | AQ220: 0 | AR220: 0 | AS220: 1 | AT220: 0 | AU220: 0 | AV220: 0 | AW220: 0 | AX220: 0 | AY220: 0 | AZ220: 0 | BA220: 0 | BB220: 0 | BC220: 0 | BD220: 0 | BE220: 0 | BF220: 0 | BG220: 0 | BH220: 0 | BI220: 0 | BJ220: 0 | BK220: 1.1
A221: 1 | B221: 1 | C221: 80 | D221: 1 | E221: N | F221: A - Abitativo | G221: 0 | H221: 0 | I221: Privata | J221: 10 | K221: N | L221: 0 | M221: 0 | N221: 0 | O221: 0 | P221: N | Q221: N | R221: L0 | S221: 0 | T221: 0 | U221: 0 | V221: 0 | W221: 0 | X221: 0 | Y221: Abitativa-L0 | Z221: 0 | AA221: =MAX(0,(V221)-INDEX(CostoParametrico!$E$3:$L$18,MATCH($Y221,CostoParametrico!$D$3:$D$18,0),1)-AB221-AC221)*IF(AND($D$20="A",MID($F221,1,1)<>"A"),0%,100%) -> 0 | AB221: =MAX(0,(V221)-INDEX(CostoParametrico!$E$3:$L$18,MATCH($Y221,CostoParametrico!$D$3:$D$18,0),2)-AC221)*IF(AND($D$20="A",MID($F221,1,1)<>"A"),0%,100%) -> 0 | AC221: =MAX(0,(V221)-INDEX(CostoParametrico!$E$3:$L$18,MATCH($Y221,CostoParametrico!$D$3:$D$18,0),3))*IF(AND($D$20="A",MID($F221,1,1)<>"A"),0%,100%) -> 0 | AD221: 0 | AE221: =MAX(0,(V221+W221)-INDEX(CostoParametrico!$E$3:$L$18,MATCH($Y221,CostoParametrico!$D$3:$D$18,0),1)-AA221-AB221-AC221-AF221-AG221)*IF(AND($D$20="A",MID($F221,1,1)<>"A"),0%,100%) -> 0 | AF221: =MAX(0,(V221+W221)-INDEX(CostoParametrico!$E$3:$L$18,MATCH($Y221,CostoParametrico!$D$3:$D$18,0),2)-AB221-AC221-AG221)*IF(AND($D$20="A",MID(F221,1,1)<>"A"),0%,100%) -> 0 | AG221: =MAX(0,(V221+W221)-INDEX(CostoParametrico!$E$3:$L$18,MATCH($Y221,CostoParametrico!$D$3:$D$18,0),3)-AC221)*IF(AND($D$20="A",MID(F221,1,1)<>"A"),0%,100%) -> 0 | AH221: =INDEX(CostoParametrico!$E$3:$L$18,MATCH($Y221,CostoParametrico!$D$3:$D$18,0),5) -> 400 | AI221: =INDEX(CostoParametrico!$E$3:$L$18,MATCH($Y221,CostoParametrico!$D$3:$D$18,0),6) -> 330 | AJ221: =INDEX(CostoParametrico!$E$3:$L$18,MATCH($Y221,CostoParametrico!$D$3:$D$18,0),7) -> 300 | AK221: =INDEX(CostoParametrico!$E$3:$L$18,MATCH($Y221,CostoParametrico!$D$3:$D$18,0),8) -> 300 | AL221: 0 | AM221: 0 | AN221: 0 | AO221: 0 | AP221: 0 | AQ221: 0 | AR221: 0 | AS221: 1 | AT221: 0 | AU221: 0 | AV221: 0 | AW221: 0 | AX221: 0 | AY221: 0 | AZ221: 0 | BA221: 0 | BB221: 0 | BC221: 0 | BD221: 0 | BE221: 0 | BF221: 0 | BG221: 0 | BH221: 0 | BI221: 0 | BJ221: 0 | BK221: 1.1
A222: 1 | B222: 1 | C222: 81 | D222: 1 | E222: N | F222: A - Abitativo | G222: 0 | H222: 0 | I222: Privata | J222: 10 | K222: N | L222: 0 | M222: 0 | N222: 0 | O222: 0 | P222: N | Q222: N | R222: L0 | S222: 0 | T222: 0 | U222: 0 | V222: 0 | W222: 0 | X222: 0 | Y222: Abitativa-L0 | Z222: 0 | AA222: =MAX(0,(V222)-INDEX(CostoParametrico!$E$3:$L$18,MATCH($Y222,CostoParametrico!$D$3:$D$18,0),1)-AB222-AC222)*IF(AND($D$20="A",MID($F222,1,1)<>"A"),0%,100%) -> 0 | AB222: =MAX(0,(V222)-INDEX(CostoParametrico!$E$3:$L$18,MATCH($Y222,CostoParametrico!$D$3:$D$18,0),2)-AC222)*IF(AND($D$20="A",MID($F222,1,1)<>"A"),0%,100%) -> 0 | AC222: =MAX(0,(V222)-INDEX(CostoParametrico!$E$3:$L$18,MATCH($Y222,CostoParametrico!$D$3:$D$18,0),3))*IF(AND($D$20="A",MID($F222,1,1)<>"A"),0%,100%) -> 0 | AD222: 0 | AE222: =MAX(0,(V222+W222)-INDEX(CostoParametrico!$E$3:$L$18,MATCH($Y222,CostoParametrico!$D$3:$D$18,0),1)-AA222-AB222-AC222-AF222-AG222)*IF(AND($D$20="A",MID($F222,1,1)<>"A"),0%,100%) -> 0 | AF222: =MAX(0,(V222+W222)-INDEX(CostoParametrico!$E$3:$L$18,MATCH($Y222,CostoParametrico!$D$3:$D$18,0),2)-AB222-AC222-AG222)*IF(AND($D$20="A",MID(F222,1,1)<>"A"),0%,100%) -> 0 | AG222: =MAX(0,(V222+W222)-INDEX(CostoParametrico!$E$3:$L$18,MATCH($Y222,CostoParametrico!$D$3:$D$18,0),3)-AC222)*IF(AND($D$20="A",MID(F222,1,1)<>"A"),0%,100%) -> 0 | AH222: =INDEX(CostoParametrico!$E$3:$L$18,MATCH($Y222,CostoParametrico!$D$3:$D$18,0),5) -> 400 | AI222: =INDEX(CostoParametrico!$E$3:$L$18,MATCH($Y222,CostoParametrico!$D$3:$D$18,0),6) -> 330 | AJ222: =INDEX(CostoParametrico!$E$3:$L$18,MATCH($Y222,CostoParametrico!$D$3:$D$18,0),7) -> 300 | AK222: =INDEX(CostoParametrico!$E$3:$L$18,MATCH($Y222,CostoParametrico!$D$3:$D$18,0),8) -> 300 | AL222: 0 | AM222: 0 | AN222: 0 | AO222: 0 | AP222: 0 | AQ222: 0 | AR222: 0 | AS222: 1 | AT222: 0 | AU222: 0 | AV222: 0 | AW222: 0 | AX222: 0 | AY222: 0 | AZ222: 0 | BA222: 0 | BB222: 0 | BC222: 0 | BD222: 0 | BE222: 0 | BF222: 0 | BG222: 0 | BH222: 0 | BI222: 0 | BJ222: 0 | BK222: 1.1
A223: 1 | B223: 1 | C223: 82 | D223: 1 | E223: N | F223: A - Abitativo | G223: 0 | H223: 0 | I223: Privata | J223: 10 | K223: N | L223: 0 | M223: 0 | N223: 0 | O223: 0 | P223: N | Q223: N | R223: L0 | S223: 0 | T223: 0 | U223: 0 | V223: 0 | W223: 0 | X223: 0 | Y223: Abitativa-L0 | Z223: 0 | AA223: =MAX(0,(V223)-INDEX(CostoParametrico!$E$3:$L$18,MATCH($Y223,CostoParametrico!$D$3:$D$18,0),1)-AB223-AC223)*IF(AND($D$20="A",MID($F223,1,1)<>"A"),0%,100%) -> 0 | AB223: =MAX(0,(V223)-INDEX(CostoParametrico!$E$3:$L$18,MATCH($Y223,CostoParametrico!$D$3:$D$18,0),2)-AC223)*IF(AND($D$20="A",MID($F223,1,1)<>"A"),0%,100%) -> 0 | AC223: =MAX(0,(V223)-INDEX(CostoParametrico!$E$3:$L$18,MATCH($Y223,CostoParametrico!$D$3:$D$18,0),3))*IF(AND($D$20="A",MID($F223,1,1)<>"A"),0%,100%) -> 0 | AD223: 0 | AE223: =MAX(0,(V223+W223)-INDEX(CostoParametrico!$E$3:$L$18,MATCH($Y223,CostoParametrico!$D$3:$D$18,0),1)-AA223-AB223-AC223-AF223-AG223)*IF(AND($D$20="A",MID($F223,1,1)<>"A"),0%,100%) -> 0 | AF223: =MAX(0,(V223+W223)-INDEX(CostoParametrico!$E$3:$L$18,MATCH($Y223,CostoParametrico!$D$3:$D$18,0),2)-AB223-AC223-AG223)*IF(AND($D$20="A",MID(F223,1,1)<>"A"),0%,100%) -> 0 | AG223: =MAX(0,(V223+W223)-INDEX(CostoParametrico!$E$3:$L$18,MATCH($Y223,CostoParametrico!$D$3:$D$18,0),3)-AC223)*IF(AND($D$20="A",MID(F223,1,1)<>"A"),0%,100%) -> 0 | AH223: =INDEX(CostoParametrico!$E$3:$L$18,MATCH($Y223,CostoParametrico!$D$3:$D$18,0),5) -> 400 | AI223: =INDEX(CostoParametrico!$E$3:$L$18,MATCH($Y223,CostoParametrico!$D$3:$D$18,0),6) -> 330 | AJ223: =INDEX(CostoParametrico!$E$3:$L$18,MATCH($Y223,CostoParametrico!$D$3:$D$18,0),7) -> 300 | AK223: =INDEX(CostoParametrico!$E$3:$L$18,MATCH($Y223,CostoParametrico!$D$3:$D$18,0),8) -> 300 | AL223: 0 | AM223: 0 | AN223: 0 | AO223: 0 | AP223: 0 | AQ223: 0 | AR223: 0 | AS223: 1 | AT223: 0 | AU223: 0 | AV223: 0 | AW223: 0 | AX223: 0 | AY223: 0 | AZ223: 0 | BA223: 0 | BB223: 0 | BC223: 0 | BD223: 0 | BE223: 0 | BF223: 0 | BG223: 0 | BH223: 0 | BI223: 0 | BJ223: 0 | BK223: 1.1
A224: 1 | B224: 1 | C224: 83 | D224: 1 | E224: N | F224: A - Abitativo | G224: 0 | H224: 0 | I224: Privata | J224: 10 | K224: N | L224: 0 | M224: 0 | N224: 0 | O224: 0 | P224: N | Q224: N | R224: L0 | S224: 0 | T224: 0 | U224: 0 | V224: 0 | W224: 0 | X224: 0 | Y224: Abitativa-L0 | Z224: 0 | AA224: =MAX(0,(V224)-INDEX(CostoParametrico!$E$3:$L$18,MATCH($Y224,CostoParametrico!$D$3:$D$18,0),1)-AB224-AC224)*IF(AND($D$20="A",MID($F224,1,1)<>"A"),0%,100%) -> 0 | AB224: =MAX(0,(V224)-INDEX(CostoParametrico!$E$3:$L$18,MATCH($Y224,CostoParametrico!$D$3:$D$18,0),2)-AC224)*IF(AND($D$20="A",MID($F224,1,1)<>"A"),0%,100%) -> 0 | AC224: =MAX(0,(V224)-INDEX(CostoParametrico!$E$3:$L$18,MATCH($Y224,CostoParametrico!$D$3:$D$18,0),3))*IF(AND($D$20="A",MID($F224,1,1)<>"A"),0%,100%) -> 0 | AD224: 0 | AE224: =MAX(0,(V224+W224)-INDEX(CostoParametrico!$E$3:$L$18,MATCH($Y224,CostoParametrico!$D$3:$D$18,0),1)-AA224-AB224-AC224-AF224-AG224)*IF(AND($D$20="A",MID($F224,1,1)<>"A"),0%,100%) -> 0 | AF224: =MAX(0,(V224+W224)-INDEX(CostoParametrico!$E$3:$L$18,MATCH($Y224,CostoParametrico!$D$3:$D$18,0),2)-AB224-AC224-AG224)*IF(AND($D$20="A",MID(F224,1,1)<>"A"),0%,100%) -> 0 | AG224: =MAX(0,(V224+W224)-INDEX(CostoParametrico!$E$3:$L$18,MATCH($Y224,CostoParametrico!$D$3:$D$18,0),3)-AC224)*IF(AND($D$20="A",MID(F224,1,1)<>"A"),0%,100%) -> 0 | AH224: =INDEX(CostoParametrico!$E$3:$L$18,MATCH($Y224,CostoParametrico!$D$3:$D$18,0),5) -> 400 | AI224: =INDEX(CostoParametrico!$E$3:$L$18,MATCH($Y224,CostoParametrico!$D$3:$D$18,0),6) -> 330 | AJ224: =INDEX(CostoParametrico!$E$3:$L$18,MATCH($Y224,CostoParametrico!$D$3:$D$18,0),7) -> 300 | AK224: =INDEX(CostoParametrico!$E$3:$L$18,MATCH($Y224,CostoParametrico!$D$3:$D$18,0),8) -> 300 | AL224: 0 | AM224: 0 | AN224: 0 | AO224: 0 | AP224: 0 | AQ224: 0 | AR224: 0 | AS224: 1 | AT224: 0 | AU224: 0 | AV224: 0 | AW224: 0 | AX224: 0 | AY224: 0 | AZ224: 0 | BA224: 0 | BB224: 0 | BC224: 0 | BD224: 0 | BE224: 0 | BF224: 0 | BG224: 0 | BH224: 0 | BI224: 0 | BJ224: 0 | BK224: 1.1
A225: 1 | B225: 1 | C225: 84 | D225: 1 | E225: N | F225: A - Abitativo | G225: 0 | H225: 0 | I225: Privata | J225: 10 | K225: N | L225: 0 | M225: 0 | N225: 0 | O225: 0 | P225: N | Q225: N | R225: L0 | S225: 0 | T225: 0 | U225: 0 | V225: 0 | W225: 0 | X225: 0 | Y225: Abitativa-L0 | Z225: 0 | AA225: =MAX(0,(V225)-INDEX(CostoParametrico!$E$3:$L$18,MATCH($Y225,CostoParametrico!$D$3:$D$18,0),1)-AB225-AC225)*IF(AND($D$20="A",MID($F225,1,1)<>"A"),0%,100%) -> 0 | AB225: =MAX(0,(V225)-INDEX(CostoParametrico!$E$3:$L$18,MATCH($Y225,CostoParametrico!$D$3:$D$18,0),2)-AC225)*IF(AND($D$20="A",MID($F225,1,1)<>"A"),0%,100%) -> 0 | AC225: =MAX(0,(V225)-INDEX(CostoParametrico!$E$3:$L$18,MATCH($Y225,CostoParametrico!$D$3:$D$18,0),3))*IF(AND($D$20="A",MID($F225,1,1)<>"A"),0%,100%) -> 0 | AD225: 0 | AE225: =MAX(0,(V225+W225)-INDEX(CostoParametrico!$E$3:$L$18,MATCH($Y225,CostoParametrico!$D$3:$D$18,0),1)-AA225-AB225-AC225-AF225-AG225)*IF(AND($D$20="A",MID($F225,1,1)<>"A"),0%,100%) -> 0 | AF225: =MAX(0,(V225+W225)-INDEX(CostoParametrico!$E$3:$L$18,MATCH($Y225,CostoParametrico!$D$3:$D$18,0),2)-AB225-AC225-AG225)*IF(AND($D$20="A",MID(F225,1,1)<>"A"),0%,100%) -> 0 | AG225: =MAX(0,(V225+W225)-INDEX(CostoParametrico!$E$3:$L$18,MATCH($Y225,CostoParametrico!$D$3:$D$18,0),3)-AC225)*IF(AND($D$20="A",MID(F225,1,1)<>"A"),0%,100%) -> 0 | AH225: =INDEX(CostoParametrico!$E$3:$L$18,MATCH($Y225,CostoParametrico!$D$3:$D$18,0),5) -> 400 | AI225: =INDEX(CostoParametrico!$E$3:$L$18,MATCH($Y225,CostoParametrico!$D$3:$D$18,0),6) -> 330 | AJ225: =INDEX(CostoParametrico!$E$3:$L$18,MATCH($Y225,CostoParametrico!$D$3:$D$18,0),7) -> 300 | AK225: =INDEX(CostoParametrico!$E$3:$L$18,MATCH($Y225,CostoParametrico!$D$3:$D$18,0),8) -> 300 | AL225: 0 | AM225: 0 | AN225: 0 | AO225: 0 | AP225: 0 | AQ225: 0 | AR225: 0 | AS225: 1 | AT225: 0 | AU225: 0 | AV225: 0 | AW225: 0 | AX225: 0 | AY225: 0 | AZ225: 0 | BA225: 0 | BB225: 0 | BC225: 0 | BD225: 0 | BE225: 0 | BF225: 0 | BG225: 0 | BH225: 0 | BI225: 0 | BJ225: 0 | BK225: 1.1
A226: 1 | B226: 1 | C226: 85 | D226: 1 | E226: N | F226: A - Abitativo | G226: 0 | H226: 0 | I226: Privata | J226: 10 | K226: N | L226: 0 | M226: 0 | N226: 0 | O226: 0 | P226: N | Q226: N | R226: L0 | S226: 0 | T226: 0 | U226: 0 | V226: 0 | W226: 0 | X226: 0 | Y226: Abitativa-L0 | Z226: 0 | AA226: =MAX(0,(V226)-INDEX(CostoParametrico!$E$3:$L$18,MATCH($Y226,CostoParametrico!$D$3:$D$18,0),1)-AB226-AC226)*IF(AND($D$20="A",MID($F226,1,1)<>"A"),0%,100%) -> 0 | AB226: =MAX(0,(V226)-INDEX(CostoParametrico!$E$3:$L$18,MATCH($Y226,CostoParametrico!$D$3:$D$18,0),2)-AC226)*IF(AND($D$20="A",MID($F226,1,1)<>"A"),0%,100%) -> 0 | AC226: =MAX(0,(V226)-INDEX(CostoParametrico!$E$3:$L$18,MATCH($Y226,CostoParametrico!$D$3:$D$18,0),3))*IF(AND($D$20="A",MID($F226,1,1)<>"A"),0%,100%) -> 0 | AD226: 0 | AE226: =MAX(0,(V226+W226)-INDEX(CostoParametrico!$E$3:$L$18,MATCH($Y226,CostoParametrico!$D$3:$D$18,0),1)-AA226-AB226-AC226-AF226-AG226)*IF(AND($D$20="A",MID($F226,1,1)<>"A"),0%,100%) -> 0 | AF226: =MAX(0,(V226+W226)-INDEX(CostoParametrico!$E$3:$L$18,MATCH($Y226,CostoParametrico!$D$3:$D$18,0),2)-AB226-AC226-AG226)*IF(AND($D$20="A",MID(F226,1,1)<>"A"),0%,100%) -> 0 | AG226: =MAX(0,(V226+W226)-INDEX(CostoParametrico!$E$3:$L$18,MATCH($Y226,CostoParametrico!$D$3:$D$18,0),3)-AC226)*IF(AND($D$20="A",MID(F226,1,1)<>"A"),0%,100%) -> 0 | AH226: =INDEX(CostoParametrico!$E$3:$L$18,MATCH($Y226,CostoParametrico!$D$3:$D$18,0),5) -> 400 | AI226: =INDEX(CostoParametrico!$E$3:$L$18,MATCH($Y226,CostoParametrico!$D$3:$D$18,0),6) -> 330 | AJ226: =INDEX(CostoParametrico!$E$3:$L$18,MATCH($Y226,CostoParametrico!$D$3:$D$18,0),7) -> 300 | AK226: =INDEX(CostoParametrico!$E$3:$L$18,MATCH($Y226,CostoParametrico!$D$3:$D$18,0),8) -> 300 | AL226: 0 | AM226: 0 | AN226: 0 | AO226: 0 | AP226: 0 | AQ226: 0 | AR226: 0 | AS226: 1 | AT226: 0 | AU226: 0 | AV226: 0 | AW226: 0 | AX226: 0 | AY226: 0 | AZ226: 0 | BA226: 0 | BB226: 0 | BC226: 0 | BD226: 0 | BE226: 0 | BF226: 0 | BG226: 0 | BH226: 0 | BI226: 0 | BJ226: 0 | BK226: 1.1
A227: 1 | B227: 1 | C227: 86 | D227: 1 | E227: N | F227: A - Abitativo | G227: 0 | H227: 0 | I227: Privata | J227: 10 | K227: N | L227: 0 | M227: 0 | N227: 0 | O227: 0 | P227: N | Q227: N | R227: L0 | S227: 0 | T227: 0 | U227: 0 | V227: 0 | W227: 0 | X227: 0 | Y227: Abitativa-L0 | Z227: 0 | AA227: =MAX(0,(V227)-INDEX(CostoParametrico!$E$3:$L$18,MATCH($Y227,CostoParametrico!$D$3:$D$18,0),1)-AB227-AC227)*IF(AND($D$20="A",MID($F227,1,1)<>"A"),0%,100%) -> 0 | AB227: =MAX(0,(V227)-INDEX(CostoParametrico!$E$3:$L$18,MATCH($Y227,CostoParametrico!$D$3:$D$18,0),2)-AC227)*IF(AND($D$20="A",MID($F227,1,1)<>"A"),0%,100%) -> 0 | AC227: =MAX(0,(V227)-INDEX(CostoParametrico!$E$3:$L$18,MATCH($Y227,CostoParametrico!$D$3:$D$18,0),3))*IF(AND($D$20="A",MID($F227,1,1)<>"A"),0%,100%) -> 0 | AD227: 0 | AE227: =MAX(0,(V227+W227)-INDEX(CostoParametrico!$E$3:$L$18,MATCH($Y227,CostoParametrico!$D$3:$D$18,0),1)-AA227-AB227-AC227-AF227-AG227)*IF(AND($D$20="A",MID($F227,1,1)<>"A"),0%,100%) -> 0 | AF227: =MAX(0,(V227+W227)-INDEX(CostoParametrico!$E$3:$L$18,MATCH($Y227,CostoParametrico!$D$3:$D$18,0),2)-AB227-AC227-AG227)*IF(AND($D$20="A",MID(F227,1,1)<>"A"),0%,100%) -> 0 | AG227: =MAX(0,(V227+W227)-INDEX(CostoParametrico!$E$3:$L$18,MATCH($Y227,CostoParametrico!$D$3:$D$18,0),3)-AC227)*IF(AND($D$20="A",MID(F227,1,1)<>"A"),0%,100%) -> 0 | AH227: =INDEX(CostoParametrico!$E$3:$L$18,MATCH($Y227,CostoParametrico!$D$3:$D$18,0),5) -> 400 | AI227: =INDEX(CostoParametrico!$E$3:$L$18,MATCH($Y227,CostoParametrico!$D$3:$D$18,0),6) -> 330 | AJ227: =INDEX(CostoParametrico!$E$3:$L$18,MATCH($Y227,CostoParametrico!$D$3:$D$18,0),7) -> 300 | AK227: =INDEX(CostoParametrico!$E$3:$L$18,MATCH($Y227,CostoParametrico!$D$3:$D$18,0),8) -> 300 | AL227: 0 | AM227: 0 | AN227: 0 | AO227: 0 | AP227: 0 | AQ227: 0 | AR227: 0 | AS227: 1 | AT227: 0 | AU227: 0 | AV227: 0 | AW227: 0 | AX227: 0 | AY227: 0 | AZ227: 0 | BA227: 0 | BB227: 0 | BC227: 0 | BD227: 0 | BE227: 0 | BF227: 0 | BG227: 0 | BH227: 0 | BI227: 0 | BJ227: 0 | BK227: 1.1
A228: 1 | B228: 1 | C228: 87 | D228: 1 | E228: N | F228: A - Abitativo | G228: 0 | H228: 0 | I228: Privata | J228: 10 | K228: N | L228: 0 | M228: 0 | N228: 0 | O228: 0 | P228: N | Q228: N | R228: L0 | S228: 0 | T228: 0 | U228: 0 | V228: 0 | W228: 0 | X228: 0 | Y228: Abitativa-L0 | Z228: 0 | AA228: =MAX(0,(V228)-INDEX(CostoParametrico!$E$3:$L$18,MATCH($Y228,CostoParametrico!$D$3:$D$18,0),1)-AB228-AC228)*IF(AND($D$20="A",MID($F228,1,1)<>"A"),0%,100%) -> 0 | AB228: =MAX(0,(V228)-INDEX(CostoParametrico!$E$3:$L$18,MATCH($Y228,CostoParametrico!$D$3:$D$18,0),2)-AC228)*IF(AND($D$20="A",MID($F228,1,1)<>"A"),0%,100%) -> 0 | AC228: =MAX(0,(V228)-INDEX(CostoParametrico!$E$3:$L$18,MATCH($Y228,CostoParametrico!$D$3:$D$18,0),3))*IF(AND($D$20="A",MID($F228,1,1)<>"A"),0%,100%) -> 0 | AD228: 0 | AE228: =MAX(0,(V228+W228)-INDEX(CostoParametrico!$E$3:$L$18,MATCH($Y228,CostoParametrico!$D$3:$D$18,0),1)-AA228-AB228-AC228-AF228-AG228)*IF(AND($D$20="A",MID($F228,1,1)<>"A"),0%,100%) -> 0 | AF228: =MAX(0,(V228+W228)-INDEX(CostoParametrico!$E$3:$L$18,MATCH($Y228,CostoParametrico!$D$3:$D$18,0),2)-AB228-AC228-AG228)*IF(AND($D$20="A",MID(F228,1,1)<>"A"),0%,100%) -> 0 | AG228: =MAX(0,(V228+W228)-INDEX(CostoParametrico!$E$3:$L$18,MATCH($Y228,CostoParametrico!$D$3:$D$18,0),3)-AC228)*IF(AND($D$20="A",MID(F228,1,1)<>"A"),0%,100%) -> 0 | AH228: =INDEX(CostoParametrico!$E$3:$L$18,MATCH($Y228,CostoParametrico!$D$3:$D$18,0),5) -> 400 | AI228: =INDEX(CostoParametrico!$E$3:$L$18,MATCH($Y228,CostoParametrico!$D$3:$D$18,0),6) -> 330 | AJ228: =INDEX(CostoParametrico!$E$3:$L$18,MATCH($Y228,CostoParametrico!$D$3:$D$18,0),7) -> 300 | AK228: =INDEX(CostoParametrico!$E$3:$L$18,MATCH($Y228,CostoParametrico!$D$3:$D$18,0),8) -> 300 | AL228: 0 | AM228: 0 | AN228: 0 | AO228: 0 | AP228: 0 | AQ228: 0 | AR228: 0 | AS228: 1 | AT228: 0 | AU228: 0 | AV228: 0 | AW228: 0 | AX228: 0 | AY228: 0 | AZ228: 0 | BA228: 0 | BB228: 0 | BC228: 0 | BD228: 0 | BE228: 0 | BF228: 0 | BG228: 0 | BH228: 0 | BI228: 0 | BJ228: 0 | BK228: 1.1
A229: 1 | B229: 1 | C229: 88 | D229: 1 | E229: N | F229: A - Abitativo | G229: 0 | H229: 0 | I229: Privata | J229: 10 | K229: N | L229: 0 | M229: 0 | N229: 0 | O229: 0 | P229: N | Q229: N | R229: L0 | S229: 0 | T229: 0 | U229: 0 | V229: 0 | W229: 0 | X229: 0 | Y229: Abitativa-L0 | Z229: 0 | AA229: =MAX(0,(V229)-INDEX(CostoParametrico!$E$3:$L$18,MATCH($Y229,CostoParametrico!$D$3:$D$18,0),1)-AB229-AC229)*IF(AND($D$20="A",MID($F229,1,1)<>"A"),0%,100%) -> 0 | AB229: =MAX(0,(V229)-INDEX(CostoParametrico!$E$3:$L$18,MATCH($Y229,CostoParametrico!$D$3:$D$18,0),2)-AC229)*IF(AND($D$20="A",MID($F229,1,1)<>"A"),0%,100%) -> 0 | AC229: =MAX(0,(V229)-INDEX(CostoParametrico!$E$3:$L$18,MATCH($Y229,CostoParametrico!$D$3:$D$18,0),3))*IF(AND($D$20="A",MID($F229,1,1)<>"A"),0%,100%) -> 0 | AD229: 0 | AE229: =MAX(0,(V229+W229)-INDEX(CostoParametrico!$E$3:$L$18,MATCH($Y229,CostoParametrico!$D$3:$D$18,0),1)-AA229-AB229-AC229-AF229-AG229)*IF(AND($D$20="A",MID($F229,1,1)<>"A"),0%,100%) -> 0 | AF229: =MAX(0,(V229+W229)-INDEX(CostoParametrico!$E$3:$L$18,MATCH($Y229,CostoParametrico!$D$3:$D$18,0),2)-AB229-AC229-AG229)*IF(AND($D$20="A",MID(F229,1,1)<>"A"),0%,100%) -> 0 | AG229: =MAX(0,(V229+W229)-INDEX(CostoParametrico!$E$3:$L$18,MATCH($Y229,CostoParametrico!$D$3:$D$18,0),3)-AC229)*IF(AND($D$20="A",MID(F229,1,1)<>"A"),0%,100%) -> 0 | AH229: =INDEX(CostoParametrico!$E$3:$L$18,MATCH($Y229,CostoParametrico!$D$3:$D$18,0),5) -> 400 | AI229: =INDEX(CostoParametrico!$E$3:$L$18,MATCH($Y229,CostoParametrico!$D$3:$D$18,0),6) -> 330 | AJ229: =INDEX(CostoParametrico!$E$3:$L$18,MATCH($Y229,CostoParametrico!$D$3:$D$18,0),7) -> 300 | AK229: =INDEX(CostoParametrico!$E$3:$L$18,MATCH($Y229,CostoParametrico!$D$3:$D$18,0),8) -> 300 | AL229: 0 | AM229: 0 | AN229: 0 | AO229: 0 | AP229: 0 | AQ229: 0 | AR229: 0 | AS229: 1 | AT229: 0 | AU229: 0 | AV229: 0 | AW229: 0 | AX229: 0 | AY229: 0 | AZ229: 0 | BA229: 0 | BB229: 0 | BC229: 0 | BD229: 0 | BE229: 0 | BF229: 0 | BG229: 0 | BH229: 0 | BI229: 0 | BJ229: 0 | BK229: 1.1
A230: 1 | B230: 1 | C230: 89 | D230: 1 | E230: N | F230: A - Abitativo | G230: 0 | H230: 0 | I230: Privata | J230: 10 | K230: N | L230: 0 | M230: 0 | N230: 0 | O230: 0 | P230: N | Q230: N | R230: L0 | S230: 0 | T230: 0 | U230: 0 | V230: 0 | W230: 0 | X230: 0 | Y230: Abitativa-L0 | Z230: 0 | AA230: =MAX(0,(V230)-INDEX(CostoParametrico!$E$3:$L$18,MATCH($Y230,CostoParametrico!$D$3:$D$18,0),1)-AB230-AC230)*IF(AND($D$20="A",MID($F230,1,1)<>"A"),0%,100%) -> 0 | AB230: =MAX(0,(V230)-INDEX(CostoParametrico!$E$3:$L$18,MATCH($Y230,CostoParametrico!$D$3:$D$18,0),2)-AC230)*IF(AND($D$20="A",MID($F230,1,1)<>"A"),0%,100%) -> 0 | AC230: =MAX(0,(V230)-INDEX(CostoParametrico!$E$3:$L$18,MATCH($Y230,CostoParametrico!$D$3:$D$18,0),3))*IF(AND($D$20="A",MID($F230,1,1)<>"A"),0%,100%) -> 0 | AD230: 0 | AE230: =MAX(0,(V230+W230)-INDEX(CostoParametrico!$E$3:$L$18,MATCH($Y230,CostoParametrico!$D$3:$D$18,0),1)-AA230-AB230-AC230-AF230-AG230)*IF(AND($D$20="A",MID($F230,1,1)<>"A"),0%,100%) -> 0 | AF230: =MAX(0,(V230+W230)-INDEX(CostoParametrico!$E$3:$L$18,MATCH($Y230,CostoParametrico!$D$3:$D$18,0),2)-AB230-AC230-AG230)*IF(AND($D$20="A",MID(F230,1,1)<>"A"),0%,100%) -> 0 | AG230: =MAX(0,(V230+W230)-INDEX(CostoParametrico!$E$3:$L$18,MATCH($Y230,CostoParametrico!$D$3:$D$18,0),3)-AC230)*IF(AND($D$20="A",MID(F230,1,1)<>"A"),0%,100%) -> 0 | AH230: =INDEX(CostoParametrico!$E$3:$L$18,MATCH($Y230,CostoParametrico!$D$3:$D$18,0),5) -> 400 | AI230: =INDEX(CostoParametrico!$E$3:$L$18,MATCH($Y230,CostoParametrico!$D$3:$D$18,0),6) -> 330 | AJ230: =INDEX(CostoParametrico!$E$3:$L$18,MATCH($Y230,CostoParametrico!$D$3:$D$18,0),7) -> 300 | AK230: =INDEX(CostoParametrico!$E$3:$L$18,MATCH($Y230,CostoParametrico!$D$3:$D$18,0),8) -> 300 | AL230: 0 | AM230: 0 | AN230: 0 | AO230: 0 | AP230: 0 | AQ230: 0 | AR230: 0 | AS230: 1 | AT230: 0 | AU230: 0 | AV230: 0 | AW230: 0 | AX230: 0 | AY230: 0 | AZ230: 0 | BA230: 0 | BB230: 0 | BC230: 0 | BD230: 0 | BE230: 0 | BF230: 0 | BG230: 0 | BH230: 0 | BI230: 0 | BJ230: 0 | BK230: 1.1
A231: 1 | B231: 1 | C231: 90 | D231: 1 | E231: N | F231: A - Abitativo | G231: 0 | H231: 0 | I231: Privata | J231: 10 | K231: N | L231: 0 | M231: 0 | N231: 0 | O231: 0 | P231: N | Q231: N | R231: L0 | S231: 0 | T231: 0 | U231: 0 | V231: 0 | W231: 0 | X231: 0 | Y231: Abitativa-L0 | Z231: 0 | AA231: =MAX(0,(V231)-INDEX(CostoParametrico!$E$3:$L$18,MATCH($Y231,CostoParametrico!$D$3:$D$18,0),1)-AB231-AC231)*IF(AND($D$20="A",MID($F231,1,1)<>"A"),0%,100%) -> 0 | AB231: =MAX(0,(V231)-INDEX(CostoParametrico!$E$3:$L$18,MATCH($Y231,CostoParametrico!$D$3:$D$18,0),2)-AC231)*IF(AND($D$20="A",MID($F231,1,1)<>"A"),0%,100%) -> 0 | AC231: =MAX(0,(V231)-INDEX(CostoParametrico!$E$3:$L$18,MATCH($Y231,CostoParametrico!$D$3:$D$18,0),3))*IF(AND($D$20="A",MID($F231,1,1)<>"A"),0%,100%) -> 0 | AD231: 0 | AE231: =MAX(0,(V231+W231)-INDEX(CostoParametrico!$E$3:$L$18,MATCH($Y231,CostoParametrico!$D$3:$D$18,0),1)-AA231-AB231-AC231-AF231-AG231)*IF(AND($D$20="A",MID($F231,1,1)<>"A"),0%,100%) -> 0 | AF231: =MAX(0,(V231+W231)-INDEX(CostoParametrico!$E$3:$L$18,MATCH($Y231,CostoParametrico!$D$3:$D$18,0),2)-AB231-AC231-AG231)*IF(AND($D$20="A",MID(F231,1,1)<>"A"),0%,100%) -> 0 | AG231: =MAX(0,(V231+W231)-INDEX(CostoParametrico!$E$3:$L$18,MATCH($Y231,CostoParametrico!$D$3:$D$18,0),3)-AC231)*IF(AND($D$20="A",MID(F231,1,1)<>"A"),0%,100%) -> 0 | AH231: =INDEX(CostoParametrico!$E$3:$L$18,MATCH($Y231,CostoParametrico!$D$3:$D$18,0),5) -> 400 | AI231: =INDEX(CostoParametrico!$E$3:$L$18,MATCH($Y231,CostoParametrico!$D$3:$D$18,0),6) -> 330 | AJ231: =INDEX(CostoParametrico!$E$3:$L$18,MATCH($Y231,CostoParametrico!$D$3:$D$18,0),7) -> 300 | AK231: =INDEX(CostoParametrico!$E$3:$L$18,MATCH($Y231,CostoParametrico!$D$3:$D$18,0),8) -> 300 | AL231: 0 | AM231: 0 | AN231: 0 | AO231: 0 | AP231: 0 | AQ231: 0 | AR231: 0 | AS231: 1 | AT231: 0 | AU231: 0 | AV231: 0 | AW231: 0 | AX231: 0 | AY231: 0 | AZ231: 0 | BA231: 0 | BB231: 0 | BC231: 0 | BD231: 0 | BE231: 0 | BF231: 0 | BG231: 0 | BH231: 0 | BI231: 0 | BJ231: 0 | BK231: 1.1
A232: 1 | B232: 1 | C232: 91 | D232: 1 | E232: N | F232: A - Abitativo | G232: 0 | H232: 0 | I232: Privata | J232: 10 | K232: N | L232: 0 | M232: 0 | N232: 0 | O232: 0 | P232: N | Q232: N | R232: L0 | S232: 0 | T232: 0 | U232: 0 | V232: 0 | W232: 0 | X232: 0 | Y232: Abitativa-L0 | Z232: 0 | AA232: =MAX(0,(V232)-INDEX(CostoParametrico!$E$3:$L$18,MATCH($Y232,CostoParametrico!$D$3:$D$18,0),1)-AB232-AC232)*IF(AND($D$20="A",MID($F232,1,1)<>"A"),0%,100%) -> 0 | AB232: =MAX(0,(V232)-INDEX(CostoParametrico!$E$3:$L$18,MATCH($Y232,CostoParametrico!$D$3:$D$18,0),2)-AC232)*IF(AND($D$20="A",MID($F232,1,1)<>"A"),0%,100%) -> 0 | AC232: =MAX(0,(V232)-INDEX(CostoParametrico!$E$3:$L$18,MATCH($Y232,CostoParametrico!$D$3:$D$18,0),3))*IF(AND($D$20="A",MID($F232,1,1)<>"A"),0%,100%) -> 0 | AD232: 0 | AE232: =MAX(0,(V232+W232)-INDEX(CostoParametrico!$E$3:$L$18,MATCH($Y232,CostoParametrico!$D$3:$D$18,0),1)-AA232-AB232-AC232-AF232-AG232)*IF(AND($D$20="A",MID($F232,1,1)<>"A"),0%,100%) -> 0 | AF232: =MAX(0,(V232+W232)-INDEX(CostoParametrico!$E$3:$L$18,MATCH($Y232,CostoParametrico!$D$3:$D$18,0),2)-AB232-AC232-AG232)*IF(AND($D$20="A",MID(F232,1,1)<>"A"),0%,100%) -> 0 | AG232: =MAX(0,(V232+W232)-INDEX(CostoParametrico!$E$3:$L$18,MATCH($Y232,CostoParametrico!$D$3:$D$18,0),3)-AC232)*IF(AND($D$20="A",MID(F232,1,1)<>"A"),0%,100%) -> 0 | AH232: =INDEX(CostoParametrico!$E$3:$L$18,MATCH($Y232,CostoParametrico!$D$3:$D$18,0),5) -> 400 | AI232: =INDEX(CostoParametrico!$E$3:$L$18,MATCH($Y232,CostoParametrico!$D$3:$D$18,0),6) -> 330 | AJ232: =INDEX(CostoParametrico!$E$3:$L$18,MATCH($Y232,CostoParametrico!$D$3:$D$18,0),7) -> 300 | AK232: =INDEX(CostoParametrico!$E$3:$L$18,MATCH($Y232,CostoParametrico!$D$3:$D$18,0),8) -> 300 | AL232: 0 | AM232: 0 | AN232: 0 | AO232: 0 | AP232: 0 | AQ232: 0 | AR232: 0 | AS232: 1 | AT232: 0 | AU232: 0 | AV232: 0 | AW232: 0 | AX232: 0 | AY232: 0 | AZ232: 0 | BA232: 0 | BB232: 0 | BC232: 0 | BD232: 0 | BE232: 0 | BF232: 0 | BG232: 0 | BH232: 0 | BI232: 0 | BJ232: 0 | BK232: 1.1
A233: 1 | B233: 1 | C233: 92 | D233: 1 | E233: N | F233: A - Abitativo | G233: 0 | H233: 0 | I233: Privata | J233: 10 | K233: N | L233: 0 | M233: 0 | N233: 0 | O233: 0 | P233: N | Q233: N | R233: L0 | S233: 0 | T233: 0 | U233: 0 | V233: 0 | W233: 0 | X233: 0 | Y233: Abitativa-L0 | Z233: 0 | AA233: =MAX(0,(V233)-INDEX(CostoParametrico!$E$3:$L$18,MATCH($Y233,CostoParametrico!$D$3:$D$18,0),1)-AB233-AC233)*IF(AND($D$20="A",MID($F233,1,1)<>"A"),0%,100%) -> 0 | AB233: =MAX(0,(V233)-INDEX(CostoParametrico!$E$3:$L$18,MATCH($Y233,CostoParametrico!$D$3:$D$18,0),2)-AC233)*IF(AND($D$20="A",MID($F233,1,1)<>"A"),0%,100%) -> 0 | AC233: =MAX(0,(V233)-INDEX(CostoParametrico!$E$3:$L$18,MATCH($Y233,CostoParametrico!$D$3:$D$18,0),3))*IF(AND($D$20="A",MID($F233,1,1)<>"A"),0%,100%) -> 0 | AD233: 0 | AE233: =MAX(0,(V233+W233)-INDEX(CostoParametrico!$E$3:$L$18,MATCH($Y233,CostoParametrico!$D$3:$D$18,0),1)-AA233-AB233-AC233-AF233-AG233)*IF(AND($D$20="A",MID($F233,1,1)<>"A"),0%,100%) -> 0 | AF233: =MAX(0,(V233+W233)-INDEX(CostoParametrico!$E$3:$L$18,MATCH($Y233,CostoParametrico!$D$3:$D$18,0),2)-AB233-AC233-AG233)*IF(AND($D$20="A",MID(F233,1,1)<>"A"),0%,100%) -> 0 | AG233: =MAX(0,(V233+W233)-INDEX(CostoParametrico!$E$3:$L$18,MATCH($Y233,CostoParametrico!$D$3:$D$18,0),3)-AC233)*IF(AND($D$20="A",MID(F233,1,1)<>"A"),0%,100%) -> 0 | AH233: =INDEX(CostoParametrico!$E$3:$L$18,MATCH($Y233,CostoParametrico!$D$3:$D$18,0),5) -> 400 | AI233: =INDEX(CostoParametrico!$E$3:$L$18,MATCH($Y233,CostoParametrico!$D$3:$D$18,0),6) -> 330 | AJ233: =INDEX(CostoParametrico!$E$3:$L$18,MATCH($Y233,CostoParametrico!$D$3:$D$18,0),7) -> 300 | AK233: =INDEX(CostoParametrico!$E$3:$L$18,MATCH($Y233,CostoParametrico!$D$3:$D$18,0),8) -> 300 | AL233: 0 | AM233: 0 | AN233: 0 | AO233: 0 | AP233: 0 | AQ233: 0 | AR233: 0 | AS233: 1 | AT233: 0 | AU233: 0 | AV233: 0 | AW233: 0 | AX233: 0 | AY233: 0 | AZ233: 0 | BA233: 0 | BB233: 0 | BC233: 0 | BD233: 0 | BE233: 0 | BF233: 0 | BG233: 0 | BH233: 0 | BI233: 0 | BJ233: 0 | BK233: 1.1
A234: 1 | B234: 1 | C234: 93 | D234: 1 | E234: N | F234: A - Abitativo | G234: 0 | H234: 0 | I234: Privata | J234: 10 | K234: N | L234: 0 | M234: 0 | N234: 0 | O234: 0 | P234: N | Q234: N | R234: L0 | S234: 0 | T234: 0 | U234: 0 | V234: 0 | W234: 0 | X234: 0 | Y234: Abitativa-L0 | Z234: 0 | AA234: =MAX(0,(V234)-INDEX(CostoParametrico!$E$3:$L$18,MATCH($Y234,CostoParametrico!$D$3:$D$18,0),1)-AB234-AC234)*IF(AND($D$20="A",MID($F234,1,1)<>"A"),0%,100%) -> 0 | AB234: =MAX(0,(V234)-INDEX(CostoParametrico!$E$3:$L$18,MATCH($Y234,CostoParametrico!$D$3:$D$18,0),2)-AC234)*IF(AND($D$20="A",MID($F234,1,1)<>"A"),0%,100%) -> 0 | AC234: =MAX(0,(V234)-INDEX(CostoParametrico!$E$3:$L$18,MATCH($Y234,CostoParametrico!$D$3:$D$18,0),3))*IF(AND($D$20="A",MID($F234,1,1)<>"A"),0%,100%) -> 0 | AD234: 0 | AE234: =MAX(0,(V234+W234)-INDEX(CostoParametrico!$E$3:$L$18,MATCH($Y234,CostoParametrico!$D$3:$D$18,0),1)-AA234-AB234-AC234-AF234-AG234)*IF(AND($D$20="A",MID($F234,1,1)<>"A"),0%,100%) -> 0 | AF234: =MAX(0,(V234+W234)-INDEX(CostoParametrico!$E$3:$L$18,MATCH($Y234,CostoParametrico!$D$3:$D$18,0),2)-AB234-AC234-AG234)*IF(AND($D$20="A",MID(F234,1,1)<>"A"),0%,100%) -> 0 | AG234: =MAX(0,(V234+W234)-INDEX(CostoParametrico!$E$3:$L$18,MATCH($Y234,CostoParametrico!$D$3:$D$18,0),3)-AC234)*IF(AND($D$20="A",MID(F234,1,1)<>"A"),0%,100%) -> 0 | AH234: =INDEX(CostoParametrico!$E$3:$L$18,MATCH($Y234,CostoParametrico!$D$3:$D$18,0),5) -> 400 | AI234: =INDEX(CostoParametrico!$E$3:$L$18,MATCH($Y234,CostoParametrico!$D$3:$D$18,0),6) -> 330 | AJ234: =INDEX(CostoParametrico!$E$3:$L$18,MATCH($Y234,CostoParametrico!$D$3:$D$18,0),7) -> 300 | AK234: =INDEX(CostoParametrico!$E$3:$L$18,MATCH($Y234,CostoParametrico!$D$3:$D$18,0),8) -> 300 | AL234: 0 | AM234: 0 | AN234: 0 | AO234: 0 | AP234: 0 | AQ234: 0 | AR234: 0 | AS234: 1 | AT234: 0 | AU234: 0 | AV234: 0 | AW234: 0 | AX234: 0 | AY234: 0 | AZ234: 0 | BA234: 0 | BB234: 0 | BC234: 0 | BD234: 0 | BE234: 0 | BF234: 0 | BG234: 0 | BH234: 0 | BI234: 0 | BJ234: 0 | BK234: 1.1
A235: 1 | B235: 1 | C235: 94 | D235: 1 | E235: N | F235: A - Abitativo | G235: 0 | H235: 0 | I235: Privata | J235: 10 | K235: N | L235: 0 | M235: 0 | N235: 0 | O235: 0 | P235: N | Q235: N | R235: L0 | S235: 0 | T235: 0 | U235: 0 | V235: 0 | W235: 0 | X235: 0 | Y235: Abitativa-L0 | Z235: 0 | AA235: =MAX(0,(V235)-INDEX(CostoParametrico!$E$3:$L$18,MATCH($Y235,CostoParametrico!$D$3:$D$18,0),1)-AB235-AC235)*IF(AND($D$20="A",MID($F235,1,1)<>"A"),0%,100%) -> 0 | AB235: =MAX(0,(V235)-INDEX(CostoParametrico!$E$3:$L$18,MATCH($Y235,CostoParametrico!$D$3:$D$18,0),2)-AC235)*IF(AND($D$20="A",MID($F235,1,1)<>"A"),0%,100%) -> 0 | AC235: =MAX(0,(V235)-INDEX(CostoParametrico!$E$3:$L$18,MATCH($Y235,CostoParametrico!$D$3:$D$18,0),3))*IF(AND($D$20="A",MID($F235,1,1)<>"A"),0%,100%) -> 0 | AD235: 0 | AE235: =MAX(0,(V235+W235)-INDEX(CostoParametrico!$E$3:$L$18,MATCH($Y235,CostoParametrico!$D$3:$D$18,0),1)-AA235-AB235-AC235-AF235-AG235)*IF(AND($D$20="A",MID($F235,1,1)<>"A"),0%,100%) -> 0 | AF235: =MAX(0,(V235+W235)-INDEX(CostoParametrico!$E$3:$L$18,MATCH($Y235,CostoParametrico!$D$3:$D$18,0),2)-AB235-AC235-AG235)*IF(AND($D$20="A",MID(F235,1,1)<>"A"),0%,100%) -> 0 | AG235: =MAX(0,(V235+W235)-INDEX(CostoParametrico!$E$3:$L$18,MATCH($Y235,CostoParametrico!$D$3:$D$18,0),3)-AC235)*IF(AND($D$20="A",MID(F235,1,1)<>"A"),0%,100%) -> 0 | AH235: =INDEX(CostoParametrico!$E$3:$L$18,MATCH($Y235,CostoParametrico!$D$3:$D$18,0),5) -> 400 | AI235: =INDEX(CostoParametrico!$E$3:$L$18,MATCH($Y235,CostoParametrico!$D$3:$D$18,0),6) -> 330 | AJ235: =INDEX(CostoParametrico!$E$3:$L$18,MATCH($Y235,CostoParametrico!$D$3:$D$18,0),7) -> 300 | AK235: =INDEX(CostoParametrico!$E$3:$L$18,MATCH($Y235,CostoParametrico!$D$3:$D$18,0),8) -> 300 | AL235: 0 | AM235: 0 | AN235: 0 | AO235: 0 | AP235: 0 | AQ235: 0 | AR235: 0 | AS235: 1 | AT235: 0 | AU235: 0 | AV235: 0 | AW235: 0 | AX235: 0 | AY235: 0 | AZ235: 0 | BA235: 0 | BB235: 0 | BC235: 0 | BD235: 0 | BE235: 0 | BF235: 0 | BG235: 0 | BH235: 0 | BI235: 0 | BJ235: 0 | BK235: 1.1
A236: 1 | B236: 1 | C236: 95 | D236: 1 | E236: N | F236: A - Abitativo | G236: 0 | H236: 0 | I236: Privata | J236: 10 | K236: N | L236: 0 | M236: 0 | N236: 0 | O236: 0 | P236: N | Q236: N | R236: L0 | S236: 0 | T236: 0 | U236: 0 | V236: 0 | W236: 0 | X236: 0 | Y236: Abitativa-L0 | Z236: 0 | AA236: =MAX(0,(V236)-INDEX(CostoParametrico!$E$3:$L$18,MATCH($Y236,CostoParametrico!$D$3:$D$18,0),1)-AB236-AC236)*IF(AND($D$20="A",MID($F236,1,1)<>"A"),0%,100%) -> 0 | AB236: =MAX(0,(V236)-INDEX(CostoParametrico!$E$3:$L$18,MATCH($Y236,CostoParametrico!$D$3:$D$18,0),2)-AC236)*IF(AND($D$20="A",MID($F236,1,1)<>"A"),0%,100%) -> 0 | AC236: =MAX(0,(V236)-INDEX(CostoParametrico!$E$3:$L$18,MATCH($Y236,CostoParametrico!$D$3:$D$18,0),3))*IF(AND($D$20="A",MID($F236,1,1)<>"A"),0%,100%) -> 0 | AD236: 0 | AE236: =MAX(0,(V236+W236)-INDEX(CostoParametrico!$E$3:$L$18,MATCH($Y236,CostoParametrico!$D$3:$D$18,0),1)-AA236-AB236-AC236-AF236-AG236)*IF(AND($D$20="A",MID($F236,1,1)<>"A"),0%,100%) -> 0 | AF236: =MAX(0,(V236+W236)-INDEX(CostoParametrico!$E$3:$L$18,MATCH($Y236,CostoParametrico!$D$3:$D$18,0),2)-AB236-AC236-AG236)*IF(AND($D$20="A",MID(F236,1,1)<>"A"),0%,100%) -> 0 | AG236: =MAX(0,(V236+W236)-INDEX(CostoParametrico!$E$3:$L$18,MATCH($Y236,CostoParametrico!$D$3:$D$18,0),3)-AC236)*IF(AND($D$20="A",MID(F236,1,1)<>"A"),0%,100%) -> 0 | AH236: =INDEX(CostoParametrico!$E$3:$L$18,MATCH($Y236,CostoParametrico!$D$3:$D$18,0),5) -> 400 | AI236: =INDEX(CostoParametrico!$E$3:$L$18,MATCH($Y236,CostoParametrico!$D$3:$D$18,0),6) -> 330 | AJ236: =INDEX(CostoParametrico!$E$3:$L$18,MATCH($Y236,CostoParametrico!$D$3:$D$18,0),7) -> 300 | AK236: =INDEX(CostoParametrico!$E$3:$L$18,MATCH($Y236,CostoParametrico!$D$3:$D$18,0),8) -> 300 | AL236: 0 | AM236: 0 | AN236: 0 | AO236: 0 | AP236: 0 | AQ236: 0 | AR236: 0 | AS236: 1 | AT236: 0 | AU236: 0 | AV236: 0 | AW236: 0 | AX236: 0 | AY236: 0 | AZ236: 0 | BA236: 0 | BB236: 0 | BC236: 0 | BD236: 0 | BE236: 0 | BF236: 0 | BG236: 0 | BH236: 0 | BI236: 0 | BJ236: 0 | BK236: 1.1
A237: 1 | B237: 1 | C237: 96 | D237: 1 | E237: N | F237: A - Abitativo | G237: 0 | H237: 0 | I237: Privata | J237: 10 | K237: N | L237: 0 | M237: 0 | N237: 0 | O237: 0 | P237: N | Q237: N | R237: L0 | S237: 0 | T237: 0 | U237: 0 | V237: 0 | W237: 0 | X237: 0 | Y237: Abitativa-L0 | Z237: 0 | AA237: =MAX(0,(V237)-INDEX(CostoParametrico!$E$3:$L$18,MATCH($Y237,CostoParametrico!$D$3:$D$18,0),1)-AB237-AC237)*IF(AND($D$20="A",MID($F237,1,1)<>"A"),0%,100%) -> 0 | AB237: =MAX(0,(V237)-INDEX(CostoParametrico!$E$3:$L$18,MATCH($Y237,CostoParametrico!$D$3:$D$18,0),2)-AC237)*IF(AND($D$20="A",MID($F237,1,1)<>"A"),0%,100%) -> 0 | AC237: =MAX(0,(V237)-INDEX(CostoParametrico!$E$3:$L$18,MATCH($Y237,CostoParametrico!$D$3:$D$18,0),3))*IF(AND($D$20="A",MID($F237,1,1)<>"A"),0%,100%) -> 0 | AD237: 0 | AE237: =MAX(0,(V237+W237)-INDEX(CostoParametrico!$E$3:$L$18,MATCH($Y237,CostoParametrico!$D$3:$D$18,0),1)-AA237-AB237-AC237-AF237-AG237)*IF(AND($D$20="A",MID($F237,1,1)<>"A"),0%,100%) -> 0 | AF237: =MAX(0,(V237+W237)-INDEX(CostoParametrico!$E$3:$L$18,MATCH($Y237,CostoParametrico!$D$3:$D$18,0),2)-AB237-AC237-AG237)*IF(AND($D$20="A",MID(F237,1,1)<>"A"),0%,100%) -> 0 | AG237: =MAX(0,(V237+W237)-INDEX(CostoParametrico!$E$3:$L$18,MATCH($Y237,CostoParametrico!$D$3:$D$18,0),3)-AC237)*IF(AND($D$20="A",MID(F237,1,1)<>"A"),0%,100%) -> 0 | AH237: =INDEX(CostoParametrico!$E$3:$L$18,MATCH($Y237,CostoParametrico!$D$3:$D$18,0),5) -> 400 | AI237: =INDEX(CostoParametrico!$E$3:$L$18,MATCH($Y237,CostoParametrico!$D$3:$D$18,0),6) -> 330 | AJ237: =INDEX(CostoParametrico!$E$3:$L$18,MATCH($Y237,CostoParametrico!$D$3:$D$18,0),7) -> 300 | AK237: =INDEX(CostoParametrico!$E$3:$L$18,MATCH($Y237,CostoParametrico!$D$3:$D$18,0),8) -> 300 | AL237: 0 | AM237: 0 | AN237: 0 | AO237: 0 | AP237: 0 | AQ237: 0 | AR237: 0 | AS237: 1 | AT237: 0 | AU237: 0 | AV237: 0 | AW237: 0 | AX237: 0 | AY237: 0 | AZ237: 0 | BA237: 0 | BB237: 0 | BC237: 0 | BD237: 0 | BE237: 0 | BF237: 0 | BG237: 0 | BH237: 0 | BI237: 0 | BJ237: 0 | BK237: 1.1
A238: 1 | B238: 1 | C238: 97 | D238: 1 | E238: N | F238: A - Abitativo | G238: 0 | H238: 0 | I238: Privata | J238: 10 | K238: N | L238: 0 | M238: 0 | N238: 0 | O238: 0 | P238: N | Q238: N | R238: L0 | S238: 0 | T238: 0 | U238: 0 | V238: 0 | W238: 0 | X238: 0 | Y238: Abitativa-L0 | Z238: 0 | AA238: =MAX(0,(V238)-INDEX(CostoParametrico!$E$3:$L$18,MATCH($Y238,CostoParametrico!$D$3:$D$18,0),1)-AB238-AC238)*IF(AND($D$20="A",MID($F238,1,1)<>"A"),0%,100%) -> 0 | AB238: =MAX(0,(V238)-INDEX(CostoParametrico!$E$3:$L$18,MATCH($Y238,CostoParametrico!$D$3:$D$18,0),2)-AC238)*IF(AND($D$20="A",MID($F238,1,1)<>"A"),0%,100%) -> 0 | AC238: =MAX(0,(V238)-INDEX(CostoParametrico!$E$3:$L$18,MATCH($Y238,CostoParametrico!$D$3:$D$18,0),3))*IF(AND($D$20="A",MID($F238,1,1)<>"A"),0%,100%) -> 0 | AD238: 0 | AE238: =MAX(0,(V238+W238)-INDEX(CostoParametrico!$E$3:$L$18,MATCH($Y238,CostoParametrico!$D$3:$D$18,0),1)-AA238-AB238-AC238-AF238-AG238)*IF(AND($D$20="A",MID($F238,1,1)<>"A"),0%,100%) -> 0 | AF238: =MAX(0,(V238+W238)-INDEX(CostoParametrico!$E$3:$L$18,MATCH($Y238,CostoParametrico!$D$3:$D$18,0),2)-AB238-AC238-AG238)*IF(AND($D$20="A",MID(F238,1,1)<>"A"),0%,100%) -> 0 | AG238: =MAX(0,(V238+W238)-INDEX(CostoParametrico!$E$3:$L$18,MATCH($Y238,CostoParametrico!$D$3:$D$18,0),3)-AC238)*IF(AND($D$20="A",MID(F238,1,1)<>"A"),0%,100%) -> 0 | AH238: =INDEX(CostoParametrico!$E$3:$L$18,MATCH($Y238,CostoParametrico!$D$3:$D$18,0),5) -> 400 | AI238: =INDEX(CostoParametrico!$E$3:$L$18,MATCH($Y238,CostoParametrico!$D$3:$D$18,0),6) -> 330 | AJ238: =INDEX(CostoParametrico!$E$3:$L$18,MATCH($Y238,CostoParametrico!$D$3:$D$18,0),7) -> 300 | AK238: =INDEX(CostoParametrico!$E$3:$L$18,MATCH($Y238,CostoParametrico!$D$3:$D$18,0),8) -> 300 | AL238: 0 | AM238: 0 | AN238: 0 | AO238: 0 | AP238: 0 | AQ238: 0 | AR238: 0 | AS238: 1 | AT238: 0 | AU238: 0 | AV238: 0 | AW238: 0 | AX238: 0 | AY238: 0 | AZ238: 0 | BA238: 0 | BB238: 0 | BC238: 0 | BD238: 0 | BE238: 0 | BF238: 0 | BG238: 0 | BH238: 0 | BI238: 0 | BJ238: 0 | BK238: 1.1
... 3 more rows

Sheet CONTRIBUTO
A1: =RICHIESTA!E18 -> N
B25: TABELLA A
B26: ALLOCAZIONE DEL CONTRIBUTO PER BENEFICIARIO | O26: REALE | T26: ARROTONDATO
B27: UNITA IMMOBILIARE | D27: UI% | E27: US% | F27: COSTO INTERVENTO | G27: ASSICURAZIONE | H27: ACCOLLO | I27: CONTRIBUTO | J27: TIPO | O27: COSTO | P27: ASSICURAZIONE | Q27: ACCOLLO | R27: CONTRIBUTO | T27: COSTO | U27: ASSICURAZIONE | V27: ACCOLLO | W27: CONTRIBUTO
A28: PC | B28: PARTI COMUNI | D28: 1 | E28: 1 | F28: =T28 -> 0 | G28: 0 | H28: 0 | I28: =W28+IF($A1="N",0,I172-W129) -> 0 | O28: =IF($A1="N",0,RICHIESTA!$O$128-RICHIESTA!$O$109) -> 0 | P28: =IF($A1="N",0,RICHIESTA!AZ$140) -> 0 | Q28: =O28-R28-P28 -> 0 | R28: =IF($A1="N",0,RICHIESTA!$AB$128-RICHIESTA!$AB$109) -> 0 | T28: =ROUND(O28,2) -> 0 | U28: =ROUND(P28,2) -> 0 | V28: =T28-W28-U28 -> 0 | W28: =ROUND(R28,2) -> 0
A29: =RICHIESTA!C142 -> 1 | B29: ="UNITA IMMOBILIARE "&A29 -> UNITA IMMOBILIARE 1 | D29: 1 | E29: =INDEX(RICHIESTA!$X$142:$X$241,MATCH(A29,RICHIESTA!$C$142:$C$241,0)) -> 1e-13 | F29: 0 | G29: 0 | H29: 0 | I29: =W29 -> 0 | J29: =INDEX(RICHIESTA!$I$142:$I$241,MATCH(A29,RICHIESTA!$C$142:$C$241,0)) -> Privata | O29: =$D29*(INDEX(RICHIESTA!$BG$142:$BG$241,MATCH($A29,RICHIESTA!$C$142:$C$241,0)) +$E29*IF($A$1="N",RICHIESTA!$O$128-RICHIESTA!$O$109,0)) -> 1.1e-23 | P29: =$D29*(INDEX(RICHIESTA!$BA$142:$BA$241,MATCH($A29,RICHIESTA!$C$142:$C$241,0)) +IF($A$1="N",INDEX(RICHIESTA!$AU$142:$AU$241,MATCH($A29,RICHIESTA!$C$142:$C$241,0))/MAX(RICHIESTA!$AU$140,10^-9)*(RICHIESTA!$AC$128-RICHIESTA!$AC$109),0)) -> 0 | Q29: =O29-R29-P29 -> 0 | R29: =$D29*(INDEX(RICHIESTA!$BC$142:$BC$241,MATCH($A29,RICHIESTA!$C$142:$C$241,0)) +IF($A$1="N",INDEX(RICHIESTA!$BB$142:$BB$241,MATCH($A29,RICHIESTA!$C$142:$C$241,0)),0)) -> 1.1e-23 | T29: =ROUND(O29,2) -> 0 | U29: =ROUND(P29,2) -> 0 | V29: =T29-W29-U29 -> 0 | W29: =ROUND(R29,2) -> 0
A30: =RICHIESTA!C143 -> 2 | B30: ="UNITA IMMOBILIARE "&A30 -> UNITA IMMOBILIARE 2 | D30: 1 | E30: =INDEX(RICHIESTA!$X$142:$X$241,MATCH(A30,RICHIESTA!$C$142:$C$241,0)) -> 0 | F30: =T30 -> 0 | G30: =U30 -> 0 | H30: =V30 -> 0 | I30: =W30 -> 0 | J30: =INDEX(RICHIESTA!$I$142:$I$241,MATCH(A30,RICHIESTA!$C$142:$C$241,0)) -> Privata | O30: =$D30*(INDEX(RICHIESTA!$BG$142:$BG$241,MATCH($A30,RICHIESTA!$C$142:$C$241,0)) +$E30*IF($A$1="N",RICHIESTA!$O$128-RICHIESTA!$O$109,0)) -> 0 | P30: =$D30*(INDEX(RICHIESTA!$BA$142:$BA$241,MATCH($A30,RICHIESTA!$C$142:$C$241,0)) +IF($A$1="N",INDEX(RICHIESTA!$AU$142:$AU$241,MATCH($A30,RICHIESTA!$C$142:$C$241,0))/MAX(RICHIESTA!$AU$140,10^-9)*(RICHIESTA!$AC$128-RICHIESTA!$AC$109),0)) -> 0 | Q30: =O30-R30-P30 -> 0 | R30: =$D30*(INDEX(RICHIESTA!$BC$142:$BC$241,MATCH($A30,RICHIESTA!$C$142:$C$241,0)) +IF($A$1="N",INDEX(RICHIESTA!$BB$142:$BB$241,MATCH($A30,RICHIESTA!$C$142:$C$241,0)),0)) -> 0 | T30: =ROUND(O30,2) -> 0 | U30: =ROUND(P30,2) -> 0 | V30: =T30-W30-U30 -> 0 | W30: =ROUND(R30,2) -> 0
A31: =RICHIESTA!C144 -> 3 | B31: UNITA IMMOBILIARE 3 | D31: 1 | E31: =INDEX(RICHIESTA!$X$142:$X$241,MATCH(A31,RICHIESTA!$C$142:$C$241,0)) -> 0 | F31: 0 | G31: 0 | H31: 0 | I31: 0 | J31: =INDEX(RICHIESTA!$I$142:$I$241,MATCH(A31,RICHIESTA!$C$142:$C$241,0)) -> Privata | O31: =$D31*(INDEX(RICHIESTA!$BG$142:$BG$241,MATCH($A31,RICHIESTA!$C$142:$C$241,0)) +$E31*IF($A$1="N",RICHIESTA!$O$128-RICHIESTA!$O$109,0)) -> 0 | P31: =$D31*(INDEX(RICHIESTA!$BA$142:$BA$241,MATCH($A31,RICHIESTA!$C$142:$C$241,0)) +IF($A$1="N",INDEX(RICHIESTA!$AU$142:$AU$241,MATCH($A31,RICHIESTA!$C$142:$C$241,0))/MAX(RICHIESTA!$AU$140,10^-9)*(RICHIESTA!$AC$128-RICHIESTA!$AC$109),0)) -> 0 | Q31: 0 | R31: =$D31*(INDEX(RICHIESTA!$BC$142:$BC$241,MATCH($A31,RICHIESTA!$C$142:$C$241,0)) +IF($A$1="N",INDEX(RICHIESTA!$BB$142:$BB$241,MATCH($A31,RICHIESTA!$C$142:$C$241,0)),0)) -> 0 | T31: 0 | U31: 0 | V31: 0 | W31: 0
A32: =RICHIESTA!C145 -> 4 | B32: UNITA IMMOBILIARE 4 | D32: 1 | E32: =INDEX(RICHIESTA!$X$142:$X$241,MATCH(A32,RICHIESTA!$C$142:$C$241,0)) -> 0 | F32: 0 | G32: 0 | H32: 0 | I32: 0 | J32: =INDEX(RICHIESTA!$I$142:$I$241,MATCH(A32,RICHIESTA!$C$142:$C$241,0)) -> Privata | O32: =$D32*(INDEX(RICHIESTA!$BG$142:$BG$241,MATCH($A32,RICHIESTA!$C$142:$C$241,0)) +$E32*IF($A$1="N",RICHIESTA!$O$128-RICHIESTA!$O$109,0)) -> 0 | P32: =$D32*(INDEX(RICHIESTA!$BA$142:$BA$241,MATCH($A32,RICHIESTA!$C$142:$C$241,0)) +IF($A$1="N",INDEX(RICHIESTA!$AU$142:$AU$241,MATCH($A32,RICHIESTA!$C$142:$C$241,0))/MAX(RICHIESTA!$AU$140,10^-9)*(RICHIESTA!$AC$128-RICHIESTA!$AC$109),0)) -> 0 | Q32: 0 | R32: =$D32*(INDEX(RICHIESTA!$BC$142:$BC$241,MATCH($A32,RICHIESTA!$C$142:$C$241,0)) +IF($A$1="N",INDEX(RICHIESTA!$BB$142:$BB$241,MATCH($A32,RICHIESTA!$C$142:$C$241,0)),0)) -> 0 | T32: 0 | U32: 0 | V32: 0 | W32: 0
A33: =RICHIESTA!C146 -> 5 | B33: UNITA IMMOBILIARE 5 | D33: 1 | E33: =INDEX(RICHIESTA!$X$142:$X$241,MATCH(A33,RICHIESTA!$C$142:$C$241,0)) -> 0 | F33: 0 | G33: 0 | H33: 0 | I33: 0 | J33: =INDEX(RICHIESTA!$I$142:$I$241,MATCH(A33,RICHIESTA!$C$142:$C$241,0)) -> Privata | O33: =$D33*(INDEX(RICHIESTA!$BG$142:$BG$241,MATCH($A33,RICHIESTA!$C$142:$C$241,0)) +$E33*IF($A$1="N",RICHIESTA!$O$128-RICHIESTA!$O$109,0)) -> 0 | P33: =$D33*(INDEX(RICHIESTA!$BA$142:$BA$241,MATCH($A33,RICHIESTA!$C$142:$C$241,0)) +IF($A$1="N",INDEX(RICHIESTA!$AU$142:$AU$241,MATCH($A33,RICHIESTA!$C$142:$C$241,0))/MAX(RICHIESTA!$AU$140,10^-9)*(RICHIESTA!$AC$128-RICHIESTA!$AC$109),0)) -> 0 | Q33: 0 | R33: =$D33*(INDEX(RICHIESTA!$BC$142:$BC$241,MATCH($A33,RICHIESTA!$C$142:$C$241,0)) +IF($A$1="N",INDEX(RICHIESTA!$BB$142:$BB$241,MATCH($A33,RICHIESTA!$C$142:$C$241,0)),0)) -> 0 | T33: 0 | U33: 0 | V33: 0 | W33: 0
A34: =RICHIESTA!C147 -> 6 | B34: UNITA IMMOBILIARE 6 | D34: 1 | E34: =INDEX(RICHIESTA!$X$142:$X$241,MATCH(A34,RICHIESTA!$C$142:$C$241,0)) -> 0 | F34: 0 | G34: 0 | H34: 0 | I34: 0 | J34: =INDEX(RICHIESTA!$I$142:$I$241,MATCH(A34,RICHIESTA!$C$142:$C$241,0)) -> Privata | O34: =$D34*(INDEX(RICHIESTA!$BG$142:$BG$241,MATCH($A34,RICHIESTA!$C$142:$C$241,0)) +$E34*IF($A$1="N",RICHIESTA!$O$128-RICHIESTA!$O$109,0)) -> 0 | P34: =$D34*(INDEX(RICHIESTA!$BA$142:$BA$241,MATCH($A34,RICHIESTA!$C$142:$C$241,0)) +IF($A$1="N",INDEX(RICHIESTA!$AU$142:$AU$241,MATCH($A34,RICHIESTA!$C$142:$C$241,0))/MAX(RICHIESTA!$AU$140,10^-9)*(RICHIESTA!$AC$128-RICHIESTA!$AC$109),0)) -> 0 | Q34: 0 | R34: =$D34*(INDEX(RICHIESTA!$BC$142:$BC$241,MATCH($A34,RICHIESTA!$C$142:$C$241,0)) +IF($A$1="N",INDEX(RICHIESTA!$BB$142:$BB$241,MATCH($A34,RICHIESTA!$C$142:$C$241,0)),0)) -> 0 | T34: 0 | U34: 0 | V34: 0 | W34: 0
A35: =RICHIESTA!C148 -> 7 | B35: UNITA IMMOBILIARE 7 | D35: 1 | E35: =INDEX(RICHIESTA!$X$142:$X$241,MATCH(A35,RICHIESTA!$C$142:$C$241,0)) -> 0 | F35: 0 | G35: 0 | H35: 0 | I35: 0 | J35: =INDEX(RICHIESTA!$I$142:$I$241,MATCH(A35,RICHIESTA!$C$142:$C$241,0)) -> Privata | O35: =$D35*(INDEX(RICHIESTA!$BG$142:$BG$241,MATCH($A35,RICHIESTA!$C$142:$C$241,0)) +$E35*IF($A$1="N",RICHIESTA!$O$128-RICHIESTA!$O$109,0)) -> 0 | P35: =$D35*(INDEX(RICHIESTA!$BA$142:$BA$241,MATCH($A35,RICHIESTA!$C$142:$C$241,0)) +IF($A$1="N",INDEX(RICHIESTA!$AU$142:$AU$241,MATCH($A35,RICHIESTA!$C$142:$C$241,0))/MAX(RICHIESTA!$AU$140,10^-9)*(RICHIESTA!$AC$128-RICHIESTA!$AC$109),0)) -> 0 | Q35: 0 | R35: =$D35*(INDEX(RICHIESTA!$BC$142:$BC$241,MATCH($A35,RICHIESTA!$C$142:$C$241,0)) +IF($A$1="N",INDEX(RICHIESTA!$BB$142:$BB$241,MATCH($A35,RICHIESTA!$C$142:$C$241,0)),0)) -> 0 | T35: 0 | U35: 0 | V35: 0 | W35: 0
A36: =RICHIESTA!C149 -> 8 | B36: UNITA IMMOBILIARE 8 | D36: 1 | E36: =INDEX(RICHIESTA!$X$142:$X$241,MATCH(A36,RICHIESTA!$C$142:$C$241,0)) -> 0 | F36: 0 | G36: 0 | H36: 0 | I36: 0 | J36: =INDEX(RICHIESTA!$I$142:$I$241,MATCH(A36,RICHIESTA!$C$142:$C$241,0)) -> Privata | O36: =$D36*(INDEX(RICHIESTA!$BG$142:$BG$241,MATCH($A36,RICHIESTA!$C$142:$C$241,0)) +$E36*IF($A$1="N",RICHIESTA!$O$128-RICHIESTA!$O$109,0)) -> 0 | P36: =$D36*(INDEX(RICHIESTA!$BA$142:$BA$241,MATCH($A36,RICHIESTA!$C$142:$C$241,0)) +IF($A$1="N",INDEX(RICHIESTA!$AU$142:$AU$241,MATCH($A36,RICHIESTA!$C$142:$C$241,0))/MAX(RICHIESTA!$AU$140,10^-9)*(RICHIESTA!$AC$128-RICHIESTA!$AC$109),0)) -> 0 | Q36: 0 | R36: =$D36*(INDEX(RICHIESTA!$BC$142:$BC$241,MATCH($A36,RICHIESTA!$C$142:$C$241,0)) +IF($A$1="N",INDEX(RICHIESTA!$BB$142:$BB$241,MATCH($A36,RICHIESTA!$C$142:$C$241,0)),0)) -> 0 | T36: 0 | U36: 0 | V36: 0 | W36: 0
A37: =RICHIESTA!C150 -> 9 | B37: UNITA IMMOBILIARE 9 | D37: 1 | E37: =INDEX(RICHIESTA!$X$142:$X$241,MATCH(A37,RICHIESTA!$C$142:$C$241,0)) -> 0 | F37: 0 | G37: 0 | H37: 0 | I37: 0 | J37: =INDEX(RICHIESTA!$I$142:$I$241,MATCH(A37,RICHIESTA!$C$142:$C$241,0)) -> Privata | O37: =$D37*(INDEX(RICHIESTA!$BG$142:$BG$241,MATCH($A37,RICHIESTA!$C$142:$C$241,0)) +$E37*IF($A$1="N",RICHIESTA!$O$128-RICHIESTA!$O$109,0)) -> 0 | P37: =$D37*(INDEX(RICHIESTA!$BA$142:$BA$241,MATCH($A37,RICHIESTA!$C$142:$C$241,0)) +IF($A$1="N",INDEX(RICHIESTA!$AU$142:$AU$241,MATCH($A37,RICHIESTA!$C$142:$C$241,0))/MAX(RICHIESTA!$AU$140,10^-9)*(RICHIESTA!$AC$128-RICHIESTA!$AC$109),0)) -> 0 | Q37: 0 | R37: =$D37*(INDEX(RICHIESTA!$BC$142:$BC$241,MATCH($A37,RICHIESTA!$C$142:$C$241,0)) +IF($A$1="N",INDEX(RICHIESTA!$BB$142:$BB$241,MATCH($A37,RICHIESTA!$C$142:$C$241,0)),0)) -> 0 | T37: 0 | U37: 0 | V37: 0 | W37: 0
A38: =RICHIESTA!C151 -> 10 | B38: UNITA IMMOBILIARE 10 | D38: 1 | E38: =INDEX(RICHIESTA!$X$142:$X$241,MATCH(A38,RICHIESTA!$C$142:$C$241,0)) -> 0 | F38: 0 | G38: 0 | H38: 0 | I38: 0 | J38: =INDEX(RICHIESTA!$I$142:$I$241,MATCH(A38,RICHIESTA!$C$142:$C$241,0)) -> Privata | O38: =$D38*(INDEX(RICHIESTA!$BG$142:$BG$241,MATCH($A38,RICHIESTA!$C$142:$C$241,0)) +$E38*IF($A$1="N",RICHIESTA!$O$128-RICHIESTA!$O$109,0)) -> 0 | P38: =$D38*(INDEX(RICHIESTA!$BA$142:$BA$241,MATCH($A38,RICHIESTA!$C$142:$C$241,0)) +IF($A$1="N",INDEX(RICHIESTA!$AU$142:$AU$241,MATCH($A38,RICHIESTA!$C$142:$C$241,0))/MAX(RICHIESTA!$AU$140,10^-9)*(RICHIESTA!$AC$128-RICHIESTA!$AC$109),0)) -> 0 | Q38: 0 | R38: =$D38*(INDEX(RICHIESTA!$BC$142:$BC$241,MATCH($A38,RICHIESTA!$C$142:$C$241,0)) +IF($A$1="N",INDEX(RICHIESTA!$BB$142:$BB$241,MATCH($A38,RICHIESTA!$C$142:$C$241,0)),0)) -> 0 | T38: 0 | U38: 0 | V38: 0 | W38: 0
A39: =RICHIESTA!C152 -> 11 | B39: UNITA IMMOBILIARE 11 | D39: 1 | E39: =INDEX(RICHIESTA!$X$142:$X$241,MATCH(A39,RICHIESTA!$C$142:$C$241,0)) -> 0 | F39: 0 | G39: 0 | H39: 0 | I39: 0 | J39: =INDEX(RICHIESTA!$I$142:$I$241,MATCH(A39,RICHIESTA!$C$142:$C$241,0)) -> Privata | O39: =$D39*(INDEX(RICHIESTA!$BG$142:$BG$241,MATCH($A39,RICHIESTA!$C$142:$C$241,0)) +$E39*IF($A$1="N",RICHIESTA!$O$128-RICHIESTA!$O$109,0)) -> 0 | P39: =$D39*(INDEX(RICHIESTA!$BA$142:$BA$241,MATCH($A39,RICHIESTA!$C$142:$C$241,0)) +IF($A$1="N",INDEX(RICHIESTA!$AU$142:$AU$241,MATCH($A39,RICHIESTA!$C$142:$C$241,0))/MAX(RICHIESTA!$AU$140,10^-9)*(RICHIESTA!$AC$128-RICHIESTA!$AC$109),0)) -> 0 | Q39: 0 | R39: =$D39*(INDEX(RICHIESTA!$BC$142:$BC$241,MATCH($A39,RICHIESTA!$C$142:$C$241,0)) +IF($A$1="N",INDEX(RICHIESTA!$BB$142:$BB$241,MATCH($A39,RICHIESTA!$C$142:$C$241,0)),0)) -> 0 | T39: 0 | U39: 0 | V39: 0 | W39: 0
A40: =RICHIESTA!C153 -> 12 | B40: UNITA IMMOBILIARE 12 | D40: 1 | E40: =INDEX(RICHIESTA!$X$142:$X$241,MATCH(A40,RICHIESTA!$C$142:$C$241,0)) -> 0 | F40: 0 | G40: 0 | H40: 0 | I40: 0 | J40: =INDEX(RICHIESTA!$I$142:$I$241,MATCH(A40,RICHIESTA!$C$142:$C$241,0)) -> Privata | O40: =$D40*(INDEX(RICHIESTA!$BG$142:$BG$241,MATCH($A40,RICHIESTA!$C$142:$C$241,0)) +$E40*IF($A$1="N",RICHIESTA!$O$128-RICHIESTA!$O$109,0)) -> 0 | P40: =$D40*(INDEX(RICHIESTA!$BA$142:$BA$241,MATCH($A40,RICHIESTA!$C$142:$C$241,0)) +IF($A$1="N",INDEX(RICHIESTA!$AU$142:$AU$241,MATCH($A40,RICHIESTA!$C$142:$C$241,0))/MAX(RICHIESTA!$AU$140,10^-9)*(RICHIESTA!$AC$128-RICHIESTA!$AC$109),0)) -> 0 | Q40: 0 | R40: =$D40*(INDEX(RICHIESTA!$BC$142:$BC$241,MATCH($A40,RICHIESTA!$C$142:$C$241,0)) +IF($A$1="N",INDEX(RICHIESTA!$BB$142:$BB$241,MATCH($A40,RICHIESTA!$C$142:$C$241,0)),0)) -> 0 | T40: 0 | U40: 0 | V40: 0 | W40: 0
A41: =RICHIESTA!C154 -> 13 | B41: UNITA IMMOBILIARE 13 | D41: 1 | E41: =INDEX(RICHIESTA!$X$142:$X$241,MATCH(A41,RICHIESTA!$C$142:$C$241,0)) -> 0 | F41: 0 | G41: 0 | H41: 0 | I41: 0 | J41: =INDEX(RICHIESTA!$I$142:$I$241,MATCH(A41,RICHIESTA!$C$142:$C$241,0)) -> Privata | O41: =$D41*(INDEX(RICHIESTA!$BG$142:$BG$241,MATCH($A41,RICHIESTA!$C$142:$C$241,0)) +$E41*IF($A$1="N",RICHIESTA!$O$128-RICHIESTA!$O$109,0)) -> 0 | P41: =$D41*(INDEX(RICHIESTA!$BA$142:$BA$241,MATCH($A41,RICHIESTA!$C$142:$C$241,0)) +IF($A$1="N",INDEX(RICHIESTA!$AU$142:$AU$241,MATCH($A41,RICHIESTA!$C$142:$C$241,0))/MAX(RICHIESTA!$AU$140,10^-9)*(RICHIESTA!$AC$128-RICHIESTA!$AC$109),0)) -> 0 | Q41: 0 | R41: =$D41*(INDEX(RICHIESTA!$BC$142:$BC$241,MATCH($A41,RICHIESTA!$C$142:$C$241,0)) +IF($A$1="N",INDEX(RICHIESTA!$BB$142:$BB$241,MATCH($A41,RICHIESTA!$C$142:$C$241,0)),0)) -> 0 | T41: 0 | U41: 0 | V41: 0 | W41: 0
A42: =RICHIESTA!C155 -> 14 | B42: UNITA IMMOBILIARE 14 | D42: 1 | E42: =INDEX(RICHIESTA!$X$142:$X$241,MATCH(A42,RICHIESTA!$C$142:$C$241,0)) -> 0 | F42: 0 | G42: 0 | H42: 0 | I42: 0 | J42: =INDEX(RICHIESTA!$I$142:$I$241,MATCH(A42,RICHIESTA!$C$142:$C$241,0)) -> Privata | O42: =$D42*(INDEX(RICHIESTA!$BG$142:$BG$241,MATCH($A42,RICHIESTA!$C$142:$C$241,0)) +$E42*IF($A$1="N",RICHIESTA!$O$128-RICHIESTA!$O$109,0)) -> 0 | P42: =$D42*(INDEX(RICHIESTA!$BA$142:$BA$241,MATCH($A42,RICHIESTA!$C$142:$C$241,0)) +IF($A$1="N",INDEX(RICHIESTA!$AU$142:$AU$241,MATCH($A42,RICHIESTA!$C$142:$C$241,0))/MAX(RICHIESTA!$AU$140,10^-9)*(RICHIESTA!$AC$128-RICHIESTA!$AC$109),0)) -> 0 | Q42: 0 | R42: =$D42*(INDEX(RICHIESTA!$BC$142:$BC$241,MATCH($A42,RICHIESTA!$C$142:$C$241,0)) +IF($A$1="N",INDEX(RICHIESTA!$BB$142:$BB$241,MATCH($A42,RICHIESTA!$C$142:$C$241,0)),0)) -> 0 | T42: 0 | U42: 0 | V42: 0 | W42: 0
A43: =RICHIESTA!C156 -> 15 | B43: UNITA IMMOBILIARE 15 | D43: 1 | E43: =INDEX(RICHIESTA!$X$142:$X$241,MATCH(A43,RICHIESTA!$C$142:$C$241,0)) -> 0 | F43: 0 | G43: 0 | H43: 0 | I43: 0 | J43: =INDEX(RICHIESTA!$I$142:$I$241,MATCH(A43,RICHIESTA!$C$142:$C$241,0)) -> Privata | O43: =$D43*(INDEX(RICHIESTA!$BG$142:$BG$241,MATCH($A43,RICHIESTA!$C$142:$C$241,0)) +$E43*IF($A$1="N",RICHIESTA!$O$128-RICHIESTA!$O$109,0)) -> 0 | P43: =$D43*(INDEX(RICHIESTA!$BA$142:$BA$241,MATCH($A43,RICHIESTA!$C$142:$C$241,0)) +IF($A$1="N",INDEX(RICHIESTA!$AU$142:$AU$241,MATCH($A43,RICHIESTA!$C$142:$C$241,0))/MAX(RICHIESTA!$AU$140,10^-9)*(RICHIESTA!$AC$128-RICHIESTA!$AC$109),0)) -> 0 | Q43: 0 | R43: =$D43*(INDEX(RICHIESTA!$BC$142:$BC$241,MATCH($A43,RICHIESTA!$C$142:$C$241,0)) +IF($A$1="N",INDEX(RICHIESTA!$BB$142:$BB$241,MATCH($A43,RICHIESTA!$C$142:$C$241,0)),0)) -> 0 | T43: 0 | U43: 0 | V43: 0 | W43: 0
A44: =RICHIESTA!C157 -> 16 | B44: UNITA IMMOBILIARE 16 | D44: 1 | E44: =INDEX(RICHIESTA!$X$142:$X$241,MATCH(A44,RICHIESTA!$C$142:$C$241,0)) -> 0 | F44: 0 | G44: 0 | H44: 0 | I44: 0 | J44: =INDEX(RICHIESTA!$I$142:$I$241,MATCH(A44,RICHIESTA!$C$142:$C$241,0)) -> Privata | O44: =$D44*(INDEX(RICHIESTA!$BG$142:$BG$241,MATCH($A44,RICHIESTA!$C$142:$C$241,0)) +$E44*IF($A$1="N",RICHIESTA!$O$128-RICHIESTA!$O$109,0)) -> 0 | P44: =$D44*(INDEX(RICHIESTA!$BA$142:$BA$241,MATCH($A44,RICHIESTA!$C$142:$C$241,0)) +IF($A$1="N",INDEX(RICHIESTA!$AU$142:$AU$241,MATCH($A44,RICHIESTA!$C$142:$C$241,0))/MAX(RICHIESTA!$AU$140,10^-9)*(RICHIESTA!$AC$128-RICHIESTA!$AC$109),0)) -> 0 | Q44: 0 | R44: =$D44*(INDEX(RICHIESTA!$BC$142:$BC$241,MATCH($A44,RICHIESTA!$C$142:$C$241,0)) +IF($A$1="N",INDEX(RICHIESTA!$BB$142:$BB$241,MATCH($A44,RICHIESTA!$C$142:$C$241,0)),0)) -> 0 | T44: 0 | U44: 0 | V44: 0 | W44: 0
A45: =RICHIESTA!C158 -> 17 | B45: UNITA IMMOBILIARE 17 | D45: 1 | E45: =INDEX(RICHIESTA!$X$142:$X$241,MATCH(A45,RICHIESTA!$C$142:$C$241,0)) -> 0 | F45: 0 | G45: 0 | H45: 0 | I45: 0 | J45: =INDEX(RICHIESTA!$I$142:$I$241,MATCH(A45,RICHIESTA!$C$142:$C$241,0)) -> Privata | O45: =$D45*(INDEX(RICHIESTA!$BG$142:$BG$241,MATCH($A45,RICHIESTA!$C$142:$C$241,0)) +$E45*IF($A$1="N",RICHIESTA!$O$128-RICHIESTA!$O$109,0)) -> 0 | P45: =$D45*(INDEX(RICHIESTA!$BA$142:$BA$241,MATCH($A45,RICHIESTA!$C$142:$C$241,0)) +IF($A$1="N",INDEX(RICHIESTA!$AU$142:$AU$241,MATCH($A45,RICHIESTA!$C$142:$C$241,0))/MAX(RICHIESTA!$AU$140,10^-9)*(RICHIESTA!$AC$128-RICHIESTA!$AC$109),0)) -> 0 | Q45: 0 | R45: =$D45*(INDEX(RICHIESTA!$BC$142:$BC$241,MATCH($A45,RICHIESTA!$C$142:$C$241,0)) +IF($A$1="N",INDEX(RICHIESTA!$BB$142:$BB$241,MATCH($A45,RICHIESTA!$C$142:$C$241,0)),0)) -> 0 | T45: 0 | U45: 0 | V45: 0 | W45: 0
A46: =RICHIESTA!C159 -> 18 | B46: UNITA IMMOBILIARE 18 | D46: 1 | E46: =INDEX(RICHIESTA!$X$142:$X$241,MATCH(A46,RICHIESTA!$C$142:$C$241,0)) -> 0 | F46: 0 | G46: 0 | H46: 0 | I46: 0 | J46: =INDEX(RICHIESTA!$I$142:$I$241,MATCH(A46,RICHIESTA!$C$142:$C$241,0)) -> Privata | O46: =$D46*(INDEX(RICHIESTA!$BG$142:$BG$241,MATCH($A46,RICHIESTA!$C$142:$C$241,0)) +$E46*IF($A$1="N",RICHIESTA!$O$128-RICHIESTA!$O$109,0)) -> 0 | P46: =$D46*(INDEX(RICHIESTA!$BA$142:$BA$241,MATCH($A46,RICHIESTA!$C$142:$C$241,0)) +IF($A$1="N",INDEX(RICHIESTA!$AU$142:$AU$241,MATCH($A46,RICHIESTA!$C$142:$C$241,0))/MAX(RICHIESTA!$AU$140,10^-9)*(RICHIESTA!$AC$128-RICHIESTA!$AC$109),0)) -> 0 | Q46: 0 | R46: =$D46*(INDEX(RICHIESTA!$BC$142:$BC$241,MATCH($A46,RICHIESTA!$C$142:$C$241,0)) +IF($A$1="N",INDEX(RICHIESTA!$BB$142:$BB$241,MATCH($A46,RICHIESTA!$C$142:$C$241,0)),0)) -> 0 | T46: 0 | U46: 0 | V46: 0 | W46: 0
A47: =RICHIESTA!C160 -> 19 | B47: UNITA IMMOBILIARE 19 | D47: 1 | E47: =INDEX(RICHIESTA!$X$142:$X$241,MATCH(A47,RICHIESTA!$C$142:$C$241,0)) -> 0 | F47: 0 | G47: 0 | H47: 0 | I47: 0 | J47: =INDEX(RICHIESTA!$I$142:$I$241,MATCH(A47,RICHIESTA!$C$142:$C$241,0)) -> Privata | O47: =$D47*(INDEX(RICHIESTA!$BG$142:$BG$241,MATCH($A47,RICHIESTA!$C$142:$C$241,0)) +$E47*IF($A$1="N",RICHIESTA!$O$128-RICHIESTA!$O$109,0)) -> 0 | P47: =$D47*(INDEX(RICHIESTA!$BA$142:$BA$241,MATCH($A47,RICHIESTA!$C$142:$C$241,0)) +IF($A$1="N",INDEX(RICHIESTA!$AU$142:$AU$241,MATCH($A47,RICHIESTA!$C$142:$C$241,0))/MAX(RICHIESTA!$AU$140,10^-9)*(RICHIESTA!$AC$128-RICHIESTA!$AC$109),0)) -> 0 | Q47: 0 | R47: =$D47*(INDEX(RICHIESTA!$BC$142:$BC$241,MATCH($A47,RICHIESTA!$C$142:$C$241,0)) +IF($A$1="N",INDEX(RICHIESTA!$BB$142:$BB$241,MATCH($A47,RICHIESTA!$C$142:$C$241,0)),0)) -> 0 | T47: 0 | U47: 0 | V47: 0 | W47: 0
A48: =RICHIESTA!C161 -> 20 | B48: UNITA IMMOBILIARE 20 | D48: 1 | E48: =INDEX(RICHIESTA!$X$142:$X$241,MATCH(A48,RICHIESTA!$C$142:$C$241,0)) -> 0 | F48: 0 | G48: 0 | H48: 0 | I48: 0 | J48: =INDEX(RICHIESTA!$I$142:$I$241,MATCH(A48,RICHIESTA!$C$142:$C$241,0)) -> Privata | O48: =$D48*(INDEX(RICHIESTA!$BG$142:$BG$241,MATCH($A48,RICHIESTA!$C$142:$C$241,0)) +$E48*IF($A$1="N",RICHIESTA!$O$128-RICHIESTA!$O$109,0)) -> 0 | P48: =$D48*(INDEX(RICHIESTA!$BA$142:$BA$241,MATCH($A48,RICHIESTA!$C$142:$C$241,0)) +IF($A$1="N",INDEX(RICHIESTA!$AU$142:$AU$241,MATCH($A48,RICHIESTA!$C$142:$C$241,0))/MAX(RICHIESTA!$AU$140,10^-9)*(RICHIESTA!$AC$128-RICHIESTA!$AC$109),0)) -> 0 | Q48: 0 | R48: =$D48*(INDEX(RICHIESTA!$BC$142:$BC$241,MATCH($A48,RICHIESTA!$C$142:$C$241,0)) +IF($A$1="N",INDEX(RICHIESTA!$BB$142:$BB$241,MATCH($A48,RICHIESTA!$C$142:$C$241,0)),0)) -> 0 | T48: 0 | U48: 0 | V48: 0 | W48: 0
A49: =RICHIESTA!C162 -> 21 | B49: UNITA IMMOBILIARE 21 | D49: 1 | E49: =INDEX(RICHIESTA!$X$142:$X$241,MATCH(A49,RICHIESTA!$C$142:$C$241,0)) -> 0 | F49: 0 | G49: 0 | H49: 0 | I49: 0 | J49: =INDEX(RICHIESTA!$I$142:$I$241,MATCH(A49,RICHIESTA!$C$142:$C$241,0)) -> Privata | O49: =$D49*(INDEX(RICHIESTA!$BG$142:$BG$241,MATCH($A49,RICHIESTA!$C$142:$C$241,0)) +$E49*IF($A$1="N",RICHIESTA!$O$128-RICHIESTA!$O$109,0)) -> 0 | P49: =$D49*(INDEX(RICHIESTA!$BA$142:$BA$241,MATCH($A49,RICHIESTA!$C$142:$C$241,0)) +IF($A$1="N",INDEX(RICHIESTA!$AU$142:$AU$241,MATCH($A49,RICHIESTA!$C$142:$C$241,0))/MAX(RICHIESTA!$AU$140,10^-9)*(RICHIESTA!$AC$128-RICHIESTA!$AC$109),0)) -> 0 | Q49: 0 | R49: =$D49*(INDEX(RICHIESTA!$BC$142:$BC$241,MATCH($A49,RICHIESTA!$C$142:$C$241,0)) +IF($A$1="N",INDEX(RICHIESTA!$BB$142:$BB$241,MATCH($A49,RICHIESTA!$C$142:$C$241,0)),0)) -> 0 | T49: 0 | U49: 0 | V49: 0 | W49: 0
A50: =RICHIESTA!C163 -> 22 | B50: UNITA IMMOBILIARE 22 | D50: 1 | E50: =INDEX(RICHIESTA!$X$142:$X$241,MATCH(A50,RICHIESTA!$C$142:$C$241,0)) -> 0 | F50: 0 | G50: 0 | H50: 0 | I50: 0 | J50: =INDEX(RICHIESTA!$I$142:$I$241,MATCH(A50,RICHIESTA!$C$142:$C$241,0)) -> Privata | O50: =$D50*(INDEX(RICHIESTA!$BG$142:$BG$241,MATCH($A50,RICHIESTA!$C$142:$C$241,0)) +$E50*IF($A$1="N",RICHIESTA!$O$128-RICHIESTA!$O$109,0)) -> 0 | P50: =$D50*(INDEX(RICHIESTA!$BA$142:$BA$241,MATCH($A50,RICHIESTA!$C$142:$C$241,0)) +IF($A$1="N",INDEX(RICHIESTA!$AU$142:$AU$241,MATCH($A50,RICHIESTA!$C$142:$C$241,0))/MAX(RICHIESTA!$AU$140,10^-9)*(RICHIESTA!$AC$128-RICHIESTA!$AC$109),0)) -> 0 | Q50: 0 | R50: =$D50*(INDEX(RICHIESTA!$BC$142:$BC$241,MATCH($A50,RICHIESTA!$C$142:$C$241,0)) +IF($A$1="N",INDEX(RICHIESTA!$BB$142:$BB$241,MATCH($A50,RICHIESTA!$C$142:$C$241,0)),0)) -> 0 | T50: 0 | U50: 0 | V50: 0 | W50: 0
A51: =RICHIESTA!C164 -> 23 | B51: UNITA IMMOBILIARE 23 | D51: 1 | E51: =INDEX(RICHIESTA!$X$142:$X$241,MATCH(A51,RICHIESTA!$C$142:$C$241,0)) -> 0 | F51: 0 | G51: 0 | H51: 0 | I51: 0 | J51: =INDEX(RICHIESTA!$I$142:$I$241,MATCH(A51,RICHIESTA!$C$142:$C$241,0)) -> Privata | O51: =$D51*(INDEX(RICHIESTA!$BG$142:$BG$241,MATCH($A51,RICHIESTA!$C$142:$C$241,0)) +$E51*IF($A$1="N",RICHIESTA!$O$128-RICHIESTA!$O$109,0)) -> 0 | P51: =$D51*(INDEX(RICHIESTA!$BA$142:$BA$241,MATCH($A51,RICHIESTA!$C$142:$C$241,0)) +IF($A$1="N",INDEX(RICHIESTA!$AU$142:$AU$241,MATCH($A51,RICHIESTA!$C$142:$C$241,0))/MAX(RICHIESTA!$AU$140,10^-9)*(RICHIESTA!$AC$128-RICHIESTA!$AC$109),0)) -> 0 | Q51: 0 | R51: =$D51*(INDEX(RICHIESTA!$BC$142:$BC$241,MATCH($A51,RICHIESTA!$C$142:$C$241,0)) +IF($A$1="N",INDEX(RICHIESTA!$BB$142:$BB$241,MATCH($A51,RICHIESTA!$C$142:$C$241,0)),0)) -> 0 | T51: 0 | U51: 0 | V51: 0 | W51: 0
A52: =RICHIESTA!C165 -> 24 | B52: UNITA IMMOBILIARE 24 | D52: 1 | E52: =INDEX(RICHIESTA!$X$142:$X$241,MATCH(A52,RICHIESTA!$C$142:$C$241,0)) -> 0 | F52: 0 | G52: 0 | H52: 0 | I52: 0 | J52: =INDEX(RICHIESTA!$I$142:$I$241,MATCH(A52,RICHIESTA!$C$142:$C$241,0)) -> Privata | O52: =$D52*(INDEX(RICHIESTA!$BG$142:$BG$241,MATCH($A52,RICHIESTA!$C$142:$C$241,0)) +$E52*IF($A$1="N",RICHIESTA!$O$128-RICHIESTA!$O$109,0)) -> 0 | P52: =$D52*(INDEX(RICHIESTA!$BA$142:$BA$241,MATCH($A52,RICHIESTA!$C$142:$C$241,0)) +IF($A$1="N",INDEX(RICHIESTA!$AU$142:$AU$241,MATCH($A52,RICHIESTA!$C$142:$C$241,0))/MAX(RICHIESTA!$AU$140,10^-9)*(RICHIESTA!$AC$128-RICHIESTA!$AC$109),0)) -> 0 | Q52: 0 | R52: =$D52*(INDEX(RICHIESTA!$BC$142:$BC$241,MATCH($A52,RICHIESTA!$C$142:$C$241,0)) +IF($A$1="N",INDEX(RICHIESTA!$BB$142:$BB$241,MATCH($A52,RICHIESTA!$C$142:$C$241,0)),0)) -> 0 | T52: 0 | U52: 0 | V52: 0 | W52: 0
A53: =RICHIESTA!C166 -> 25 | B53: UNITA IMMOBILIARE 25 | D53: 1 | E53: =INDEX(RICHIESTA!$X$142:$X$241,MATCH(A53,RICHIESTA!$C$142:$C$241,0)) -> 0 | F53: 0 | G53: 0 | H53: 0 | I53: 0 | J53: =INDEX(RICHIESTA!$I$142:$I$241,MATCH(A53,RICHIESTA!$C$142:$C$241,0)) -> Privata | O53: =$D53*(INDEX(RICHIESTA!$BG$142:$BG$241,MATCH($A53,RICHIESTA!$C$142:$C$241,0)) +$E53*IF($A$1="N",RICHIESTA!$O$128-RICHIESTA!$O$109,0)) -> 0 | P53: =$D53*(INDEX(RICHIESTA!$BA$142:$BA$241,MATCH($A53,RICHIESTA!$C$142:$C$241,0)) +IF($A$1="N",INDEX(RICHIESTA!$AU$142:$AU$241,MATCH($A53,RICHIESTA!$C$142:$C$241,0))/MAX(RICHIESTA!$AU$140,10^-9)*(RICHIESTA!$AC$128-RICHIESTA!$AC$109),0)) -> 0 | Q53: 0 | R53: =$D53*(INDEX(RICHIESTA!$BC$142:$BC$241,MATCH($A53,RICHIESTA!$C$142:$C$241,0)) +IF($A$1="N",INDEX(RICHIESTA!$BB$142:$BB$241,MATCH($A53,RICHIESTA!$C$142:$C$241,0)),0)) -> 0 | T53: 0 | U53: 0 | V53: 0 | W53: 0
A54: =RICHIESTA!C167 -> 26 | B54: UNITA IMMOBILIARE 26 | D54: 1 | E54: =INDEX(RICHIESTA!$X$142:$X$241,MATCH(A54,RICHIESTA!$C$142:$C$241,0)) -> 0 | F54: 0 | G54: 0 | H54: 0 | I54: 0 | J54: =INDEX(RICHIESTA!$I$142:$I$241,MATCH(A54,RICHIESTA!$C$142:$C$241,0)) -> Privata | O54: =$D54*(INDEX(RICHIESTA!$BG$142:$BG$241,MATCH($A54,RICHIESTA!$C$142:$C$241,0)) +$E54*IF($A$1="N",RICHIESTA!$O$128-RICHIESTA!$O$109,0)) -> 0 | P54: =$D54*(INDEX(RICHIESTA!$BA$142:$BA$241,MATCH($A54,RICHIESTA!$C$142:$C$241,0)) +IF($A$1="N",INDEX(RICHIESTA!$AU$142:$AU$241,MATCH($A54,RICHIESTA!$C$142:$C$241,0))/MAX(RICHIESTA!$AU$140,10^-9)*(RICHIESTA!$AC$128-RICHIESTA!$AC$109),0)) -> 0 | Q54: 0 | R54: =$D54*(INDEX(RICHIESTA!$BC$142:$BC$241,MATCH($A54,RICHIESTA!$C$142:$C$241,0)) +IF($A$1="N",INDEX(RICHIESTA!$BB$142:$BB$241,MATCH($A54,RICHIESTA!$C$142:$C$241,0)),0)) -> 0 | T54: 0 | U54: 0 | V54: 0 | W54: 0
A55: =RICHIESTA!C168 -> 27 | B55: UNITA IMMOBILIARE 27 | D55: 1 | E55: =INDEX(RICHIESTA!$X$142:$X$241,MATCH(A55,RICHIESTA!$C$142:$C$241,0)) -> 0 | F55: 0 | G55: 0 | H55: 0 | I55: 0 | J55: =INDEX(RICHIESTA!$I$142:$I$241,MATCH(A55,RICHIESTA!$C$142:$C$241,0)) -> Privata | O55: =$D55*(INDEX(RICHIESTA!$BG$142:$BG$241,MATCH($A55,RICHIESTA!$C$142:$C$241,0)) +$E55*IF($A$1="N",RICHIESTA!$O$128-RICHIESTA!$O$109,0)) -> 0 | P55: =$D55*(INDEX(RICHIESTA!$BA$142:$BA$241,MATCH($A55,RICHIESTA!$C$142:$C$241,0)) +IF($A$1="N",INDEX(RICHIESTA!$AU$142:$AU$241,MATCH($A55,RICHIESTA!$C$142:$C$241,0))/MAX(RICHIESTA!$AU$140,10^-9)*(RICHIESTA!$AC$128-RICHIESTA!$AC$109),0)) -> 0 | Q55: 0 | R55: =$D55*(INDEX(RICHIESTA!$BC$142:$BC$241,MATCH($A55,RICHIESTA!$C$142:$C$241,0)) +IF($A$1="N",INDEX(RICHIESTA!$BB$142:$BB$241,MATCH($A55,RICHIESTA!$C$142:$C$241,0)),0)) -> 0 | T55: 0 | U55: 0 | V55: 0 | W55: 0
A56: =RICHIESTA!C169 -> 28 | B56: UNITA IMMOBILIARE 28 | D56: 1 | E56: =INDEX(RICHIESTA!$X$142:$X$241,MATCH(A56,RICHIESTA!$C$142:$C$241,0)) -> 0 | F56: 0 | G56: 0 | H56: 0 | I56: 0 | J56: =INDEX(RICHIESTA!$I$142:$I$241,MATCH(A56,RICHIESTA!$C$142:$C$241,0)) -> Privata | O56: =$D56*(INDEX(RICHIESTA!$BG$142:$BG$241,MATCH($A56,RICHIESTA!$C$142:$C$241,0)) +$E56*IF($A$1="N",RICHIESTA!$O$128-RICHIESTA!$O$109,0)) -> 0 | P56: =$D56*(INDEX(RICHIESTA!$BA$142:$BA$241,MATCH($A56,RICHIESTA!$C$142:$C$241,0)) +IF($A$1="N",INDEX(RICHIESTA!$AU$142:$AU$241,MATCH($A56,RICHIESTA!$C$142:$C$241,0))/MAX(RICHIESTA!$AU$140,10^-9)*(RICHIESTA!$AC$128-RICHIESTA!$AC$109),0)) -> 0 | Q56: 0 | R56: =$D56*(INDEX(RICHIESTA!$BC$142:$BC$241,MATCH($A56,RICHIESTA!$C$142:$C$241,0)) +IF($A$1="N",INDEX(RICHIESTA!$BB$142:$BB$241,MATCH($A56,RICHIESTA!$C$142:$C$241,0)),0)) -> 0 | T56: 0 | U56: 0 | V56: 0 | W56: 0
A57: =RICHIESTA!C170 -> 29 | B57: UNITA IMMOBILIARE 29 | D57: 1 | E57: =INDEX(RICHIESTA!$X$142:$X$241,MATCH(A57,RICHIESTA!$C$142:$C$241,0)) -> 0 | F57: 0 | G57: 0 | H57: 0 | I57: 0 | J57: =INDEX(RICHIESTA!$I$142:$I$241,MATCH(A57,RICHIESTA!$C$142:$C$241,0)) -> Privata | O57: =$D57*(INDEX(RICHIESTA!$BG$142:$BG$241,MATCH($A57,RICHIESTA!$C$142:$C$241,0)) +$E57*IF($A$1="N",RICHIESTA!$O$128-RICHIESTA!$O$109,0)) -> 0 | P57: =$D57*(INDEX(RICHIESTA!$BA$142:$BA$241,MATCH($A57,RICHIESTA!$C$142:$C$241,0)) +IF($A$1="N",INDEX(RICHIESTA!$AU$142:$AU$241,MATCH($A57,RICHIESTA!$C$142:$C$241,0))/MAX(RICHIESTA!$AU$140,10^-9)*(RICHIESTA!$AC$128-RICHIESTA!$AC$109),0)) -> 0 | Q57: 0 | R57: =$D57*(INDEX(RICHIESTA!$BC$142:$BC$241,MATCH($A57,RICHIESTA!$C$142:$C$241,0)) +IF($A$1="N",INDEX(RICHIESTA!$BB$142:$BB$241,MATCH($A57,RICHIESTA!$C$142:$C$241,0)),0)) -> 0 | T57: 0 | U57: 0 | V57: 0 | W57: 0
A58: =RICHIESTA!C171 -> 30 | B58: UNITA IMMOBILIARE 30 | D58: 1 | E58: =INDEX(RICHIESTA!$X$142:$X$241,MATCH(A58,RICHIESTA!$C$142:$C$241,0)) -> 0 | F58: 0 | G58: 0 | H58: 0 | I58: 0 | J58: =INDEX(RICHIESTA!$I$142:$I$241,MATCH(A58,RICHIESTA!$C$142:$C$241,0)) -> Privata | O58: =$D58*(INDEX(RICHIESTA!$BG$142:$BG$241,MATCH($A58,RICHIESTA!$C$142:$C$241,0)) +$E58*IF($A$1="N",RICHIESTA!$O$128-RICHIESTA!$O$109,0)) -> 0 | P58: =$D58*(INDEX(RICHIESTA!$BA$142:$BA$241,MATCH($A58,RICHIESTA!$C$142:$C$241,0)) +IF($A$1="N",INDEX(RICHIESTA!$AU$142:$AU$241,MATCH($A58,RICHIESTA!$C$142:$C$241,0))/MAX(RICHIESTA!$AU$140,10^-9)*(RICHIESTA!$AC$128-RICHIESTA!$AC$109),0)) -> 0 | Q58: 0 | R58: =$D58*(INDEX(RICHIESTA!$BC$142:$BC$241,MATCH($A58,RICHIESTA!$C$142:$C$241,0)) +IF($A$1="N",INDEX(RICHIESTA!$BB$142:$BB$241,MATCH($A58,RICHIESTA!$C$142:$C$241,0)),0)) -> 0 | T58: 0 | U58: 0 | V58: 0 | W58: 0
A59: =RICHIESTA!C172 -> 31 | B59: UNITA IMMOBILIARE 31 | D59: 1 | E59: =INDEX(RICHIESTA!$X$142:$X$241,MATCH(A59,RICHIESTA!$C$142:$C$241,0)) -> 0 | F59: 0 | G59: 0 | H59: 0 | I59: 0 | J59: =INDEX(RICHIESTA!$I$142:$I$241,MATCH(A59,RICHIESTA!$C$142:$C$241,0)) -> Privata | O59: =$D59*(INDEX(RICHIESTA!$BG$142:$BG$241,MATCH($A59,RICHIESTA!$C$142:$C$241,0)) +$E59*IF($A$1="N",RICHIESTA!$O$128-RICHIESTA!$O$109,0)) -> 0 | P59: =$D59*(INDEX(RICHIESTA!$BA$142:$BA$241,MATCH($A59,RICHIESTA!$C$142:$C$241,0)) +IF($A$1="N",INDEX(RICHIESTA!$AU$142:$AU$241,MATCH($A59,RICHIESTA!$C$142:$C$241,0))/MAX(RICHIESTA!$AU$140,10^-9)*(RICHIESTA!$AC$128-RICHIESTA!$AC$109),0)) -> 0 | Q59: 0 | R59: =$D59*(INDEX(RICHIESTA!$BC$142:$BC$241,MATCH($A59,RICHIESTA!$C$142:$C$241,0)) +IF($A$1="N",INDEX(RICHIESTA!$BB$142:$BB$241,MATCH($A59,RICHIESTA!$C$142:$C$241,0)),0)) -> 0 | T59: 0 | U59: 0 | V59: 0 | W59: 0
A60: =RICHIESTA!C173 -> 32 | B60: UNITA IMMOBILIARE 32 | D60: 1 | E60: =INDEX(RICHIESTA!$X$142:$X$241,MATCH(A60,RICHIESTA!$C$142:$C$241,0)) -> 0 | F60: 0 | G60: 0 | H60: 0 | I60: 0 | J60: =INDEX(RICHIESTA!$I$142:$I$241,MATCH(A60,RICHIESTA!$C$142:$C$241,0)) -> Privata | O60: =$D60*(INDEX(RICHIESTA!$BG$142:$BG$241,MATCH($A60,RICHIESTA!$C$142:$C$241,0)) +$E60*IF($A$1="N",RICHIESTA!$O$128-RICHIESTA!$O$109,0)) -> 0 | P60: =$D60*(INDEX(RICHIESTA!$BA$142:$BA$241,MATCH($A60,RICHIESTA!$C$142:$C$241,0)) +IF($A$1="N",INDEX(RICHIESTA!$AU$142:$AU$241,MATCH($A60,RICHIESTA!$C$142:$C$241,0))/MAX(RICHIESTA!$AU$140,10^-9)*(RICHIESTA!$AC$128-RICHIESTA!$AC$109),0)) -> 0 | Q60: 0 | R60: =$D60*(INDEX(RICHIESTA!$BC$142:$BC$241,MATCH($A60,RICHIESTA!$C$142:$C$241,0)) +IF($A$1="N",INDEX(RICHIESTA!$BB$142:$BB$241,MATCH($A60,RICHIESTA!$C$142:$C$241,0)),0)) -> 0 | T60: 0 | U60: 0 | V60: 0 | W60: 0
A61: =RICHIESTA!C174 -> 33 | B61: UNITA IMMOBILIARE 33 | D61: 1 | E61: =INDEX(RICHIESTA!$X$142:$X$241,MATCH(A61,RICHIESTA!$C$142:$C$241,0)) -> 0 | F61: 0 | G61: 0 | H61: 0 | I61: 0 | J61: =INDEX(RICHIESTA!$I$142:$I$241,MATCH(A61,RICHIESTA!$C$142:$C$241,0)) -> Privata | O61: =$D61*(INDEX(RICHIESTA!$BG$142:$BG$241,MATCH($A61,RICHIESTA!$C$142:$C$241,0)) +$E61*IF($A$1="N",RICHIESTA!$O$128-RICHIESTA!$O$109,0)) -> 0 | P61: =$D61*(INDEX(RICHIESTA!$BA$142:$BA$241,MATCH($A61,RICHIESTA!$C$142:$C$241,0)) +IF($A$1="N",INDEX(RICHIESTA!$AU$142:$AU$241,MATCH($A61,RICHIESTA!$C$142:$C$241,0))/MAX(RICHIESTA!$AU$140,10^-9)*(RICHIESTA!$AC$128-RICHIESTA!$AC$109),0)) -> 0 | Q61: 0 | R61: =$D61*(INDEX(RICHIESTA!$BC$142:$BC$241,MATCH($A61,RICHIESTA!$C$142:$C$241,0)) +IF($A$1="N",INDEX(RICHIESTA!$BB$142:$BB$241,MATCH($A61,RICHIESTA!$C$142:$C$241,0)),0)) -> 0 | T61: 0 | U61: 0 | V61: 0 | W61: 0
A62: =RICHIESTA!C175 -> 34 | B62: UNITA IMMOBILIARE 34 | D62: 1 | E62: =INDEX(RICHIESTA!$X$142:$X$241,MATCH(A62,RICHIESTA!$C$142:$C$241,0)) -> 0 | F62: 0 | G62: 0 | H62: 0 | I62: 0 | J62: =INDEX(RICHIESTA!$I$142:$I$241,MATCH(A62,RICHIESTA!$C$142:$C$241,0)) -> Privata | O62: =$D62*(INDEX(RICHIESTA!$BG$142:$BG$241,MATCH($A62,RICHIESTA!$C$142:$C$241,0)) +$E62*IF($A$1="N",RICHIESTA!$O$128-RICHIESTA!$O$109,0)) -> 0 | P62: =$D62*(INDEX(RICHIESTA!$BA$142:$BA$241,MATCH($A62,RICHIESTA!$C$142:$C$241,0)) +IF($A$1="N",INDEX(RICHIESTA!$AU$142:$AU$241,MATCH($A62,RICHIESTA!$C$142:$C$241,0))/MAX(RICHIESTA!$AU$140,10^-9)*(RICHIESTA!$AC$128-RICHIESTA!$AC$109),0)) -> 0 | Q62: 0 | R62: =$D62*(INDEX(RICHIESTA!$BC$142:$BC$241,MATCH($A62,RICHIESTA!$C$142:$C$241,0)) +IF($A$1="N",INDEX(RICHIESTA!$BB$142:$BB$241,MATCH($A62,RICHIESTA!$C$142:$C$241,0)),0)) -> 0 | T62: 0 | U62: 0 | V62: 0 | W62: 0
A63: =RICHIESTA!C176 -> 35 | B63: UNITA IMMOBILIARE 35 | D63: 1 | E63: =INDEX(RICHIESTA!$X$142:$X$241,MATCH(A63,RICHIESTA!$C$142:$C$241,0)) -> 0 | F63: 0 | G63: 0 | H63: 0 | I63: 0 | J63: =INDEX(RICHIESTA!$I$142:$I$241,MATCH(A63,RICHIESTA!$C$142:$C$241,0)) -> Privata | O63: =$D63*(INDEX(RICHIESTA!$BG$142:$BG$241,MATCH($A63,RICHIESTA!$C$142:$C$241,0)) +$E63*IF($A$1="N",RICHIESTA!$O$128-RICHIESTA!$O$109,0)) -> 0 | P63: =$D63*(INDEX(RICHIESTA!$BA$142:$BA$241,MATCH($A63,RICHIESTA!$C$142:$C$241,0)) +IF($A$1="N",INDEX(RICHIESTA!$AU$142:$AU$241,MATCH($A63,RICHIESTA!$C$142:$C$241,0))/MAX(RICHIESTA!$AU$140,10^-9)*(RICHIESTA!$AC$128-RICHIESTA!$AC$109),0)) -> 0 | Q63: 0 | R63: =$D63*(INDEX(RICHIESTA!$BC$142:$BC$241,MATCH($A63,RICHIESTA!$C$142:$C$241,0)) +IF($A$1="N",INDEX(RICHIESTA!$BB$142:$BB$241,MATCH($A63,RICHIESTA!$C$142:$C$241,0)),0)) -> 0 | T63: 0 | U63: 0 | V63: 0 | W63: 0
A64: =RICHIESTA!C177 -> 36 | B64: UNITA IMMOBILIARE 36 | D64: 1 | E64: =INDEX(RICHIESTA!$X$142:$X$241,MATCH(A64,RICHIESTA!$C$142:$C$241,0)) -> 0 | F64: 0 | G64: 0 | H64: 0 | I64: 0 | J64: =INDEX(RICHIESTA!$I$142:$I$241,MATCH(A64,RICHIESTA!$C$142:$C$241,0)) -> Privata | O64: =$D64*(INDEX(RICHIESTA!$BG$142:$BG$241,MATCH($A64,RICHIESTA!$C$142:$C$241,0)) +$E64*IF($A$1="N",RICHIESTA!$O$128-RICHIESTA!$O$109,0)) -> 0 | P64: =$D64*(INDEX(RICHIESTA!$BA$142:$BA$241,MATCH($A64,RICHIESTA!$C$142:$C$241,0)) +IF($A$1="N",INDEX(RICHIESTA!$AU$142:$AU$241,MATCH($A64,RICHIESTA!$C$142:$C$241,0))/MAX(RICHIESTA!$AU$140,10^-9)*(RICHIESTA!$AC$128-RICHIESTA!$AC$109),0)) -> 0 | Q64: 0 | R64: =$D64*(INDEX(RICHIESTA!$BC$142:$BC$241,MATCH($A64,RICHIESTA!$C$142:$C$241,0)) +IF($A$1="N",INDEX(RICHIESTA!$BB$142:$BB$241,MATCH($A64,RICHIESTA!$C$142:$C$241,0)),0)) -> 0 | T64: 0 | U64: 0 | V64: 0 | W64: 0
A65: =RICHIESTA!C178 -> 37 | B65: UNITA IMMOBILIARE 37 | D65: 1 | E65: =INDEX(RICHIESTA!$X$142:$X$241,MATCH(A65,RICHIESTA!$C$142:$C$241,0)) -> 0 | F65: 0 | G65: 0 | H65: 0 | I65: 0 | J65: =INDEX(RICHIESTA!$I$142:$I$241,MATCH(A65,RICHIESTA!$C$142:$C$241,0)) -> Privata | O65: =$D65*(INDEX(RICHIESTA!$BG$142:$BG$241,MATCH($A65,RICHIESTA!$C$142:$C$241,0)) +$E65*IF($A$1="N",RICHIESTA!$O$128-RICHIESTA!$O$109,0)) -> 0 | P65: =$D65*(INDEX(RICHIESTA!$BA$142:$BA$241,MATCH($A65,RICHIESTA!$C$142:$C$241,0)) +IF($A$1="N",INDEX(RICHIESTA!$AU$142:$AU$241,MATCH($A65,RICHIESTA!$C$142:$C$241,0))/MAX(RICHIESTA!$AU$140,10^-9)*(RICHIESTA!$AC$128-RICHIESTA!$AC$109),0)) -> 0 | Q65: 0 | R65: =$D65*(INDEX(RICHIESTA!$BC$142:$BC$241,MATCH($A65,RICHIESTA!$C$142:$C$241,0)) +IF($A$1="N",INDEX(RICHIESTA!$BB$142:$BB$241,MATCH($A65,RICHIESTA!$C$142:$C$241,0)),0)) -> 0 | T65: 0 | U65: 0 | V65: 0 | W65: 0
A66: =RICHIESTA!C179 -> 38 | B66: UNITA IMMOBILIARE 38 | D66: 1 | E66: =INDEX(RICHIESTA!$X$142:$X$241,MATCH(A66,RICHIESTA!$C$142:$C$241,0)) -> 0 | F66: 0 | G66: 0 | H66: 0 | I66: 0 | J66: =INDEX(RICHIESTA!$I$142:$I$241,MATCH(A66,RICHIESTA!$C$142:$C$241,0)) -> Privata | O66: =$D66*(INDEX(RICHIESTA!$BG$142:$BG$241,MATCH($A66,RICHIESTA!$C$142:$C$241,0)) +$E66*IF($A$1="N",RICHIESTA!$O$128-RICHIESTA!$O$109,0)) -> 0 | P66: =$D66*(INDEX(RICHIESTA!$BA$142:$BA$241,MATCH($A66,RICHIESTA!$C$142:$C$241,0)) +IF($A$1="N",INDEX(RICHIESTA!$AU$142:$AU$241,MATCH($A66,RICHIESTA!$C$142:$C$241,0))/MAX(RICHIESTA!$AU$140,10^-9)*(RICHIESTA!$AC$128-RICHIESTA!$AC$109),0)) -> 0 | Q66: 0 | R66: =$D66*(INDEX(RICHIESTA!$BC$142:$BC$241,MATCH($A66,RICHIESTA!$C$142:$C$241,0)) +IF($A$1="N",INDEX(RICHIESTA!$BB$142:$BB$241,MATCH($A66,RICHIESTA!$C$142:$C$241,0)),0)) -> 0 | T66: 0 | U66: 0 | V66: 0 | W66: 0
A67: =RICHIESTA!C180 -> 39 | B67: UNITA IMMOBILIARE 39 | D67: 1 | E67: =INDEX(RICHIESTA!$X$142:$X$241,MATCH(A67,RICHIESTA!$C$142:$C$241,0)) -> 0 | F67: 0 | G67: 0 | H67: 0 | I67: 0 | J67: =INDEX(RICHIESTA!$I$142:$I$241,MATCH(A67,RICHIESTA!$C$142:$C$241,0)) -> Privata | O67: =$D67*(INDEX(RICHIESTA!$BG$142:$BG$241,MATCH($A67,RICHIESTA!$C$142:$C$241,0)) +$E67*IF($A$1="N",RICHIESTA!$O$128-RICHIESTA!$O$109,0)) -> 0 | P67: =$D67*(INDEX(RICHIESTA!$BA$142:$BA$241,MATCH($A67,RICHIESTA!$C$142:$C$241,0)) +IF($A$1="N",INDEX(RICHIESTA!$AU$142:$AU$241,MATCH($A67,RICHIESTA!$C$142:$C$241,0))/MAX(RICHIESTA!$AU$140,10^-9)*(RICHIESTA!$AC$128-RICHIESTA!$AC$109),0)) -> 0 | Q67: 0 | R67: =$D67*(INDEX(RICHIESTA!$BC$142:$BC$241,MATCH($A67,RICHIESTA!$C$142:$C$241,0)) +IF($A$1="N",INDEX(RICHIESTA!$BB$142:$BB$241,MATCH($A67,RICHIESTA!$C$142:$C$241,0)),0)) -> 0 | T67: 0 | U67: 0 | V67: 0 | W67: 0
A68: =RICHIESTA!C181 -> 40 | B68: UNITA IMMOBILIARE 40 | D68: 1 | E68: =INDEX(RICHIESTA!$X$142:$X$241,MATCH(A68,RICHIESTA!$C$142:$C$241,0)) -> 0 | F68: 0 | G68: 0 | H68: 0 | I68: 0 | J68: =INDEX(RICHIESTA!$I$142:$I$241,MATCH(A68,RICHIESTA!$C$142:$C$241,0)) -> Privata | O68: =$D68*(INDEX(RICHIESTA!$BG$142:$BG$241,MATCH($A68,RICHIESTA!$C$142:$C$241,0)) +$E68*IF($A$1="N",RICHIESTA!$O$128-RICHIESTA!$O$109,0)) -> 0 | P68: =$D68*(INDEX(RICHIESTA!$BA$142:$BA$241,MATCH($A68,RICHIESTA!$C$142:$C$241,0)) +IF($A$1="N",INDEX(RICHIESTA!$AU$142:$AU$241,MATCH($A68,RICHIESTA!$C$142:$C$241,0))/MAX(RICHIESTA!$AU$140,10^-9)*(RICHIESTA!$AC$128-RICHIESTA!$AC$109),0)) -> 0 | Q68: 0 | R68: =$D68*(INDEX(RICHIESTA!$BC$142:$BC$241,MATCH($A68,RICHIESTA!$C$142:$C$241,0)) +IF($A$1="N",INDEX(RICHIESTA!$BB$142:$BB$241,MATCH($A68,RICHIESTA!$C$142:$C$241,0)),0)) -> 0 | T68: 0 | U68: 0 | V68: 0 | W68: 0
A69: =RICHIESTA!C182 -> 41 | B69: UNITA IMMOBILIARE 41 | D69: 1 | E69: =INDEX(RICHIESTA!$X$142:$X$241,MATCH(A69,RICHIESTA!$C$142:$C$241,0)) -> 0 | F69: 0 | G69: 0 | H69: 0 | I69: 0 | J69: =INDEX(RICHIESTA!$I$142:$I$241,MATCH(A69,RICHIESTA!$C$142:$C$241,0)) -> Privata | O69: =$D69*(INDEX(RICHIESTA!$BG$142:$BG$241,MATCH($A69,RICHIESTA!$C$142:$C$241,0)) +$E69*IF($A$1="N",RICHIESTA!$O$128-RICHIESTA!$O$109,0)) -> 0 | P69: =$D69*(INDEX(RICHIESTA!$BA$142:$BA$241,MATCH($A69,RICHIESTA!$C$142:$C$241,0)) +IF($A$1="N",INDEX(RICHIESTA!$AU$142:$AU$241,MATCH($A69,RICHIESTA!$C$142:$C$241,0))/MAX(RICHIESTA!$AU$140,10^-9)*(RICHIESTA!$AC$128-RICHIESTA!$AC$109),0)) -> 0 | Q69: 0 | R69: =$D69*(INDEX(RICHIESTA!$BC$142:$BC$241,MATCH($A69,RICHIESTA!$C$142:$C$241,0)) +IF($A$1="N",INDEX(RICHIESTA!$BB$142:$BB$241,MATCH($A69,RICHIESTA!$C$142:$C$241,0)),0)) -> 0 | T69: 0 | U69: 0 | V69: 0 | W69: 0
A70: =RICHIESTA!C183 -> 42 | B70: UNITA IMMOBILIARE 42 | D70: 1 | E70: =INDEX(RICHIESTA!$X$142:$X$241,MATCH(A70,RICHIESTA!$C$142:$C$241,0)) -> 0 | F70: 0 | G70: 0 | H70: 0 | I70: 0 | J70: =INDEX(RICHIESTA!$I$142:$I$241,MATCH(A70,RICHIESTA!$C$142:$C$241,0)) -> Privata | O70: =$D70*(INDEX(RICHIESTA!$BG$142:$BG$241,MATCH($A70,RICHIESTA!$C$142:$C$241,0)) +$E70*IF($A$1="N",RICHIESTA!$O$128-RICHIESTA!$O$109,0)) -> 0 | P70: =$D70*(INDEX(RICHIESTA!$BA$142:$BA$241,MATCH($A70,RICHIESTA!$C$142:$C$241,0)) +IF($A$1="N",INDEX(RICHIESTA!$AU$142:$AU$241,MATCH($A70,RICHIESTA!$C$142:$C$241,0))/MAX(RICHIESTA!$AU$140,10^-9)*(RICHIESTA!$AC$128-RICHIESTA!$AC$109),0)) -> 0 | Q70: 0 | R70: =$D70*(INDEX(RICHIESTA!$BC$142:$BC$241,MATCH($A70,RICHIESTA!$C$142:$C$241,0)) +IF($A$1="N",INDEX(RICHIESTA!$BB$142:$BB$241,MATCH($A70,RICHIESTA!$C$142:$C$241,0)),0)) -> 0 | T70: 0 | U70: 0 | V70: 0 | W70: 0
A71: =RICHIESTA!C184 -> 43 | B71: UNITA IMMOBILIARE 43 | D71: 1 | E71: =INDEX(RICHIESTA!$X$142:$X$241,MATCH(A71,RICHIESTA!$C$142:$C$241,0)) -> 0 | F71: 0 | G71: 0 | H71: 0 | I71: 0 | J71: =INDEX(RICHIESTA!$I$142:$I$241,MATCH(A71,RICHIESTA!$C$142:$C$241,0)) -> Privata | O71: =$D71*(INDEX(RICHIESTA!$BG$142:$BG$241,MATCH($A71,RICHIESTA!$C$142:$C$241,0)) +$E71*IF($A$1="N",RICHIESTA!$O$128-RICHIESTA!$O$109,0)) -> 0 | P71: =$D71*(INDEX(RICHIESTA!$BA$142:$BA$241,MATCH($A71,RICHIESTA!$C$142:$C$241,0)) +IF($A$1="N",INDEX(RICHIESTA!$AU$142:$AU$241,MATCH($A71,RICHIESTA!$C$142:$C$241,0))/MAX(RICHIESTA!$AU$140,10^-9)*(RICHIESTA!$AC$128-RICHIESTA!$AC$109),0)) -> 0 | Q71: 0 | R71: =$D71*(INDEX(RICHIESTA!$BC$142:$BC$241,MATCH($A71,RICHIESTA!$C$142:$C$241,0)) +IF($A$1="N",INDEX(RICHIESTA!$BB$142:$BB$241,MATCH($A71,RICHIESTA!$C$142:$C$241,0)),0)) -> 0 | T71: 0 | U71: 0 | V71: 0 | W71: 0
A72: =RICHIESTA!C185 -> 44 | B72: UNITA IMMOBILIARE 44 | D72: 1 | E72: =INDEX(RICHIESTA!$X$142:$X$241,MATCH(A72,RICHIESTA!$C$142:$C$241,0)) -> 0 | F72: 0 | G72: 0 | H72: 0 | I72: 0 | J72: =INDEX(RICHIESTA!$I$142:$I$241,MATCH(A72,RICHIESTA!$C$142:$C$241,0)) -> Privata | O72: =$D72*(INDEX(RICHIESTA!$BG$142:$BG$241,MATCH($A72,RICHIESTA!$C$142:$C$241,0)) +$E72*IF($A$1="N",RICHIESTA!$O$128-RICHIESTA!$O$109,0)) -> 0 | P72: =$D72*(INDEX(RICHIESTA!$BA$142:$BA$241,MATCH($A72,RICHIESTA!$C$142:$C$241,0)) +IF($A$1="N",INDEX(RICHIESTA!$AU$142:$AU$241,MATCH($A72,RICHIESTA!$C$142:$C$241,0))/MAX(RICHIESTA!$AU$140,10^-9)*(RICHIESTA!$AC$128-RICHIESTA!$AC$109),0)) -> 0 | Q72: 0 | R72: =$D72*(INDEX(RICHIESTA!$BC$142:$BC$241,MATCH($A72,RICHIESTA!$C$142:$C$241,0)) +IF($A$1="N",INDEX(RICHIESTA!$BB$142:$BB$241,MATCH($A72,RICHIESTA!$C$142:$C$241,0)),0)) -> 0 | T72: 0 | U72: 0 | V72: 0 | W72: 0
A73: =RICHIESTA!C186 -> 45 | B73: UNITA IMMOBILIARE 45 | D73: 1 | E73: =INDEX(RICHIESTA!$X$142:$X$241,MATCH(A73,RICHIESTA!$C$142:$C$241,0)) -> 0 | F73: 0 | G73: 0 | H73: 0 | I73: 0 | J73: =INDEX(RICHIESTA!$I$142:$I$241,MATCH(A73,RICHIESTA!$C$142:$C$241,0)) -> Privata | O73: =$D73*(INDEX(RICHIESTA!$BG$142:$BG$241,MATCH($A73,RICHIESTA!$C$142:$C$241,0)) +$E73*IF($A$1="N",RICHIESTA!$O$128-RICHIESTA!$O$109,0)) -> 0 | P73: =$D73*(INDEX(RICHIESTA!$BA$142:$BA$241,MATCH($A73,RICHIESTA!$C$142:$C$241,0)) +IF($A$1="N",INDEX(RICHIESTA!$AU$142:$AU$241,MATCH($A73,RICHIESTA!$C$142:$C$241,0))/MAX(RICHIESTA!$AU$140,10^-9)*(RICHIESTA!$AC$128-RICHIESTA!$AC$109),0)) -> 0 | Q73: 0 | R73: =$D73*(INDEX(RICHIESTA!$BC$142:$BC$241,MATCH($A73,RICHIESTA!$C$142:$C$241,0)) +IF($A$1="N",INDEX(RICHIESTA!$BB$142:$BB$241,MATCH($A73,RICHIESTA!$C$142:$C$241,0)),0)) -> 0 | T73: 0 | U73: 0 | V73: 0 | W73: 0
A74: =RICHIESTA!C187 -> 46 | B74: UNITA IMMOBILIARE 46 | D74: 1 | E74: =INDEX(RICHIESTA!$X$142:$X$241,MATCH(A74,RICHIESTA!$C$142:$C$241,0)) -> 0 | F74: 0 | G74: 0 | H74: 0 | I74: 0 | J74: =INDEX(RICHIESTA!$I$142:$I$241,MATCH(A74,RICHIESTA!$C$142:$C$241,0)) -> Privata | O74: =$D74*(INDEX(RICHIESTA!$BG$142:$BG$241,MATCH($A74,RICHIESTA!$C$142:$C$241,0)) +$E74*IF($A$1="N",RICHIESTA!$O$128-RICHIESTA!$O$109,0)) -> 0 | P74: =$D74*(INDEX(RICHIESTA!$BA$142:$BA$241,MATCH($A74,RICHIESTA!$C$142:$C$241,0)) +IF($A$1="N",INDEX(RICHIESTA!$AU$142:$AU$241,MATCH($A74,RICHIESTA!$C$142:$C$241,0))/MAX(RICHIESTA!$AU$140,10^-9)*(RICHIESTA!$AC$128-RICHIESTA!$AC$109),0)) -> 0 | Q74: 0 | R74: =$D74*(INDEX(RICHIESTA!$BC$142:$BC$241,MATCH($A74,RICHIESTA!$C$142:$C$241,0)) +IF($A$1="N",INDEX(RICHIESTA!$BB$142:$BB$241,MATCH($A74,RICHIESTA!$C$142:$C$241,0)),0)) -> 0 | T74: 0 | U74: 0 | V74: 0 | W74: 0
A75: =RICHIESTA!C188 -> 47 | B75: UNITA IMMOBILIARE 47 | D75: 1 | E75: =INDEX(RICHIESTA!$X$142:$X$241,MATCH(A75,RICHIESTA!$C$142:$C$241,0)) -> 0 | F75: 0 | G75: 0 | H75: 0 | I75: 0 | J75: =INDEX(RICHIESTA!$I$142:$I$241,MATCH(A75,RICHIESTA!$C$142:$C$241,0)) -> Privata | O75: =$D75*(INDEX(RICHIESTA!$BG$142:$BG$241,MATCH($A75,RICHIESTA!$C$142:$C$241,0)) +$E75*IF($A$1="N",RICHIESTA!$O$128-RICHIESTA!$O$109,0)) -> 0 | P75: =$D75*(INDEX(RICHIESTA!$BA$142:$BA$241,MATCH($A75,RICHIESTA!$C$142:$C$241,0)) +IF($A$1="N",INDEX(RICHIESTA!$AU$142:$AU$241,MATCH($A75,RICHIESTA!$C$142:$C$241,0))/MAX(RICHIESTA!$AU$140,10^-9)*(RICHIESTA!$AC$128-RICHIESTA!$AC$109),0)) -> 0 | Q75: 0 | R75: =$D75*(INDEX(RICHIESTA!$BC$142:$BC$241,MATCH($A75,RICHIESTA!$C$142:$C$241,0)) +IF($A$1="N",INDEX(RICHIESTA!$BB$142:$BB$241,MATCH($A75,RICHIESTA!$C$142:$C$241,0)),0)) -> 0 | T75: 0 | U75: 0 | V75: 0 | W75: 0
A76: =RICHIESTA!C189 -> 48 | B76: UNITA IMMOBILIARE 48 | D76: 1 | E76: =INDEX(RICHIESTA!$X$142:$X$241,MATCH(A76,RICHIESTA!$C$142:$C$241,0)) -> 0 | F76: 0 | G76: 0 | H76: 0 | I76: 0 | J76: =INDEX(RICHIESTA!$I$142:$I$241,MATCH(A76,RICHIESTA!$C$142:$C$241,0)) -> Privata | O76: =$D76*(INDEX(RICHIESTA!$BG$142:$BG$241,MATCH($A76,RICHIESTA!$C$142:$C$241,0)) +$E76*IF($A$1="N",RICHIESTA!$O$128-RICHIESTA!$O$109,0)) -> 0 | P76: =$D76*(INDEX(RICHIESTA!$BA$142:$BA$241,MATCH($A76,RICHIESTA!$C$142:$C$241,0)) +IF($A$1="N",INDEX(RICHIESTA!$AU$142:$AU$241,MATCH($A76,RICHIESTA!$C$142:$C$241,0))/MAX(RICHIESTA!$AU$140,10^-9)*(RICHIESTA!$AC$128-RICHIESTA!$AC$109),0)) -> 0 | Q76: 0 | R76: =$D76*(INDEX(RICHIESTA!$BC$142:$BC$241,MATCH($A76,RICHIESTA!$C$142:$C$241,0)) +IF($A$1="N",INDEX(RICHIESTA!$BB$142:$BB$241,MATCH($A76,RICHIESTA!$C$142:$C$241,0)),0)) -> 0 | T76: 0 | U76: 0 | V76: 0 | W76: 0
A77: =RICHIESTA!C190 -> 49 | B77: UNITA IMMOBILIARE 49 | D77: 1 | E77: =INDEX(RICHIESTA!$X$142:$X$241,MATCH(A77,RICHIESTA!$C$142:$C$241,0)) -> 0 | F77: 0 | G77: 0 | H77: 0 | I77: 0 | J77: =INDEX(RICHIESTA!$I$142:$I$241,MATCH(A77,RICHIESTA!$C$142:$C$241,0)) -> Privata | O77: =$D77*(INDEX(RICHIESTA!$BG$142:$BG$241,MATCH($A77,RICHIESTA!$C$142:$C$241,0)) +$E77*IF($A$1="N",RICHIESTA!$O$128-RICHIESTA!$O$109,0)) -> 0 | P77: =$D77*(INDEX(RICHIESTA!$BA$142:$BA$241,MATCH($A77,RICHIESTA!$C$142:$C$241,0)) +IF($A$1="N",INDEX(RICHIESTA!$AU$142:$AU$241,MATCH($A77,RICHIESTA!$C$142:$C$241,0))/MAX(RICHIESTA!$AU$140,10^-9)*(RICHIESTA!$AC$128-RICHIESTA!$AC$109),0)) -> 0 | Q77: 0 | R77: =$D77*(INDEX(RICHIESTA!$BC$142:$BC$241,MATCH($A77,RICHIESTA!$C$142:$C$241,0)) +IF($A$1="N",INDEX(RICHIESTA!$BB$142:$BB$241,MATCH($A77,RICHIESTA!$C$142:$C$241,0)),0)) -> 0 | T77: 0 | U77: 0 | V77: 0 | W77: 0
A78: =RICHIESTA!C191 -> 50 | B78: UNITA IMMOBILIARE 50 | D78: 1 | E78: =INDEX(RICHIESTA!$X$142:$X$241,MATCH(A78,RICHIESTA!$C$142:$C$241,0)) -> 0 | F78: 0 | G78: 0 | H78: 0 | I78: 0 | J78: =INDEX(RICHIESTA!$I$142:$I$241,MATCH(A78,RICHIESTA!$C$142:$C$241,0)) -> Privata | O78: =$D78*(INDEX(RICHIESTA!$BG$142:$BG$241,MATCH($A78,RICHIESTA!$C$142:$C$241,0)) +$E78*IF($A$1="N",RICHIESTA!$O$128-RICHIESTA!$O$109,0)) -> 0 | P78: =$D78*(INDEX(RICHIESTA!$BA$142:$BA$241,MATCH($A78,RICHIESTA!$C$142:$C$241,0)) +IF($A$1="N",INDEX(RICHIESTA!$AU$142:$AU$241,MATCH($A78,RICHIESTA!$C$142:$C$241,0))/MAX(RICHIESTA!$AU$140,10^-9)*(RICHIESTA!$AC$128-RICHIESTA!$AC$109),0)) -> 0 | Q78: 0 | R78: =$D78*(INDEX(RICHIESTA!$BC$142:$BC$241,MATCH($A78,RICHIESTA!$C$142:$C$241,0)) +IF($A$1="N",INDEX(RICHIESTA!$BB$142:$BB$241,MATCH($A78,RICHIESTA!$C$142:$C$241,0)),0)) -> 0 | T78: 0 | U78: 0 | V78: 0 | W78: 0
A79: =RICHIESTA!C192 -> 51 | B79: UNITA IMMOBILIARE 51 | D79: 1 | E79: =INDEX(RICHIESTA!$X$142:$X$241,MATCH(A79,RICHIESTA!$C$142:$C$241,0)) -> 0 | F79: 0 | G79: 0 | H79: 0 | I79: 0 | J79: =INDEX(RICHIESTA!$I$142:$I$241,MATCH(A79,RICHIESTA!$C$142:$C$241,0)) -> Privata | O79: =$D79*(INDEX(RICHIESTA!$BG$142:$BG$241,MATCH($A79,RICHIESTA!$C$142:$C$241,0)) +$E79*IF($A$1="N",RICHIESTA!$O$128-RICHIESTA!$O$109,0)) -> 0 | P79: =$D79*(INDEX(RICHIESTA!$BA$142:$BA$241,MATCH($A79,RICHIESTA!$C$142:$C$241,0)) +IF($A$1="N",INDEX(RICHIESTA!$AU$142:$AU$241,MATCH($A79,RICHIESTA!$C$142:$C$241,0))/MAX(RICHIESTA!$AU$140,10^-9)*(RICHIESTA!$AC$128-RICHIESTA!$AC$109),0)) -> 0 | Q79: 0 | R79: =$D79*(INDEX(RICHIESTA!$BC$142:$BC$241,MATCH($A79,RICHIESTA!$C$142:$C$241,0)) +IF($A$1="N",INDEX(RICHIESTA!$BB$142:$BB$241,MATCH($A79,RICHIESTA!$C$142:$C$241,0)),0)) -> 0 | T79: 0 | U79: 0 | V79: 0 | W79: 0
A80: =RICHIESTA!C193 -> 52 | B80: UNITA IMMOBILIARE 52 | D80: 1 | E80: =INDEX(RICHIESTA!$X$142:$X$241,MATCH(A80,RICHIESTA!$C$142:$C$241,0)) -> 0 | F80: 0 | G80: 0 | H80: 0 | I80: 0 | J80: =INDEX(RICHIESTA!$I$142:$I$241,MATCH(A80,RICHIESTA!$C$142:$C$241,0)) -> Privata | O80: =$D80*(INDEX(RICHIESTA!$BG$142:$BG$241,MATCH($A80,RICHIESTA!$C$142:$C$241,0)) +$E80*IF($A$1="N",RICHIESTA!$O$128-RICHIESTA!$O$109,0)) -> 0 | P80: =$D80*(INDEX(RICHIESTA!$BA$142:$BA$241,MATCH($A80,RICHIESTA!$C$142:$C$241,0)) +IF($A$1="N",INDEX(RICHIESTA!$AU$142:$AU$241,MATCH($A80,RICHIESTA!$C$142:$C$241,0))/MAX(RICHIESTA!$AU$140,10^-9)*(RICHIESTA!$AC$128-RICHIESTA!$AC$109),0)) -> 0 | Q80: 0 | R80: =$D80*(INDEX(RICHIESTA!$BC$142:$BC$241,MATCH($A80,RICHIESTA!$C$142:$C$241,0)) +IF($A$1="N",INDEX(RICHIESTA!$BB$142:$BB$241,MATCH($A80,RICHIESTA!$C$142:$C$241,0)),0)) -> 0 | T80: 0 | U80: 0 | V80: 0 | W80: 0
A81: =RICHIESTA!C194 -> 53 | B81: UNITA IMMOBILIARE 53 | D81: 1 | E81: =INDEX(RICHIESTA!$X$142:$X$241,MATCH(A81,RICHIESTA!$C$142:$C$241,0)) -> 0 | F81: 0 | G81: 0 | H81: 0 | I81: 0 | J81: =INDEX(RICHIESTA!$I$142:$I$241,MATCH(A81,RICHIESTA!$C$142:$C$241,0)) -> Privata | O81: =$D81*(INDEX(RICHIESTA!$BG$142:$BG$241,MATCH($A81,RICHIESTA!$C$142:$C$241,0)) +$E81*IF($A$1="N",RICHIESTA!$O$128-RICHIESTA!$O$109,0)) -> 0 | P81: =$D81*(INDEX(RICHIESTA!$BA$142:$BA$241,MATCH($A81,RICHIESTA!$C$142:$C$241,0)) +IF($A$1="N",INDEX(RICHIESTA!$AU$142:$AU$241,MATCH($A81,RICHIESTA!$C$142:$C$241,0))/MAX(RICHIESTA!$AU$140,10^-9)*(RICHIESTA!$AC$128-RICHIESTA!$AC$109),0)) -> 0 | Q81: 0 | R81: =$D81*(INDEX(RICHIESTA!$BC$142:$BC$241,MATCH($A81,RICHIESTA!$C$142:$C$241,0)) +IF($A$1="N",INDEX(RICHIESTA!$BB$142:$BB$241,MATCH($A81,RICHIESTA!$C$142:$C$241,0)),0)) -> 0 | T81: 0 | U81: 0 | V81: 0 | W81: 0
A82: =RICHIESTA!C195 -> 54 | B82: UNITA IMMOBILIARE 54 | D82: 1 | E82: =INDEX(RICHIESTA!$X$142:$X$241,MATCH(A82,RICHIESTA!$C$142:$C$241,0)) -> 0 | F82: 0 | G82: 0 | H82: 0 | I82: 0 | J82: =INDEX(RICHIESTA!$I$142:$I$241,MATCH(A82,RICHIESTA!$C$142:$C$241,0)) -> Privata | O82: =$D82*(INDEX(RICHIESTA!$BG$142:$BG$241,MATCH($A82,RICHIESTA!$C$142:$C$241,0)) +$E82*IF($A$1="N",RICHIESTA!$O$128-RICHIESTA!$O$109,0)) -> 0 | P82: =$D82*(INDEX(RICHIESTA!$BA$142:$BA$241,MATCH($A82,RICHIESTA!$C$142:$C$241,0)) +IF($A$1="N",INDEX(RICHIESTA!$AU$142:$AU$241,MATCH($A82,RICHIESTA!$C$142:$C$241,0))/MAX(RICHIESTA!$AU$140,10^-9)*(RICHIESTA!$AC$128-RICHIESTA!$AC$109),0)) -> 0 | Q82: 0 | R82: =$D82*(INDEX(RICHIESTA!$BC$142:$BC$241,MATCH($A82,RICHIESTA!$C$142:$C$241,0)) +IF($A$1="N",INDEX(RICHIESTA!$BB$142:$BB$241,MATCH($A82,RICHIESTA!$C$142:$C$241,0)),0)) -> 0 | T82: 0 | U82: 0 | V82: 0 | W82: 0
A83: =RICHIESTA!C196 -> 55 | B83: UNITA IMMOBILIARE 55 | D83: 1 | E83: =INDEX(RICHIESTA!$X$142:$X$241,MATCH(A83,RICHIESTA!$C$142:$C$241,0)) -> 0 | F83: 0 | G83: 0 | H83: 0 | I83: 0 | J83: =INDEX(RICHIESTA!$I$142:$I$241,MATCH(A83,RICHIESTA!$C$142:$C$241,0)) -> Privata | O83: =$D83*(INDEX(RICHIESTA!$BG$142:$BG$241,MATCH($A83,RICHIESTA!$C$142:$C$241,0)) +$E83*IF($A$1="N",RICHIESTA!$O$128-RICHIESTA!$O$109,0)) -> 0 | P83: =$D83*(INDEX(RICHIESTA!$BA$142:$BA$241,MATCH($A83,RICHIESTA!$C$142:$C$241,0)) +IF($A$1="N",INDEX(RICHIESTA!$AU$142:$AU$241,MATCH($A83,RICHIESTA!$C$142:$C$241,0))/MAX(RICHIESTA!$AU$140,10^-9)*(RICHIESTA!$AC$128-RICHIESTA!$AC$109),0)) -> 0 | Q83: 0 | R83: =$D83*(INDEX(RICHIESTA!$BC$142:$BC$241,MATCH($A83,RICHIESTA!$C$142:$C$241,0)) +IF($A$1="N",INDEX(RICHIESTA!$BB$142:$BB$241,MATCH($A83,RICHIESTA!$C$142:$C$241,0)),0)) -> 0 | T83: 0 | U83: 0 | V83: 0 | W83: 0
A84: =RICHIESTA!C197 -> 56 | B84: UNITA IMMOBILIARE 56 | D84: 1 | E84: =INDEX(RICHIESTA!$X$142:$X$241,MATCH(A84,RICHIESTA!$C$142:$C$241,0)) -> 0 | F84: 0 | G84: 0 | H84: 0 | I84: 0 | J84: =INDEX(RICHIESTA!$I$142:$I$241,MATCH(A84,RICHIESTA!$C$142:$C$241,0)) -> Privata | O84: =$D84*(INDEX(RICHIESTA!$BG$142:$BG$241,MATCH($A84,RICHIESTA!$C$142:$C$241,0)) +$E84*IF($A$1="N",RICHIESTA!$O$128-RICHIESTA!$O$109,0)) -> 0 | P84: =$D84*(INDEX(RICHIESTA!$BA$142:$BA$241,MATCH($A84,RICHIESTA!$C$142:$C$241,0)) +IF($A$1="N",INDEX(RICHIESTA!$AU$142:$AU$241,MATCH($A84,RICHIESTA!$C$142:$C$241,0))/MAX(RICHIESTA!$AU$140,10^-9)*(RICHIESTA!$AC$128-RICHIESTA!$AC$109),0)) -> 0 | Q84: 0 | R84: =$D84*(INDEX(RICHIESTA!$BC$142:$BC$241,MATCH($A84,RICHIESTA!$C$142:$C$241,0)) +IF($A$1="N",INDEX(RICHIESTA!$BB$142:$BB$241,MATCH($A84,RICHIESTA!$C$142:$C$241,0)),0)) -> 0 | T84: 0 | U84: 0 | V84: 0 | W84: 0
A85: =RICHIESTA!C198 -> 57 | B85: UNITA IMMOBILIARE 57 | D85: 1 | E85: =INDEX(RICHIESTA!$X$142:$X$241,MATCH(A85,RICHIESTA!$C$142:$C$241,0)) -> 0 | F85: 0 | G85: 0 | H85: 0 | I85: 0 | J85: =INDEX(RICHIESTA!$I$142:$I$241,MATCH(A85,RICHIESTA!$C$142:$C$241,0)) -> Privata | O85: =$D85*(INDEX(RICHIESTA!$BG$142:$BG$241,MATCH($A85,RICHIESTA!$C$142:$C$241,0)) +$E85*IF($A$1="N",RICHIESTA!$O$128-RICHIESTA!$O$109,0)) -> 0 | P85: =$D85*(INDEX(RICHIESTA!$BA$142:$BA$241,MATCH($A85,RICHIESTA!$C$142:$C$241,0)) +IF($A$1="N",INDEX(RICHIESTA!$AU$142:$AU$241,MATCH($A85,RICHIESTA!$C$142:$C$241,0))/MAX(RICHIESTA!$AU$140,10^-9)*(RICHIESTA!$AC$128-RICHIESTA!$AC$109),0)) -> 0 | Q85: 0 | R85: =$D85*(INDEX(RICHIESTA!$BC$142:$BC$241,MATCH($A85,RICHIESTA!$C$142:$C$241,0)) +IF($A$1="N",INDEX(RICHIESTA!$BB$142:$BB$241,MATCH($A85,RICHIESTA!$C$142:$C$241,0)),0)) -> 0 | T85: 0 | U85: 0 | V85: 0 | W85: 0
A86: =RICHIESTA!C199 -> 58 | B86: UNITA IMMOBILIARE 58 | D86: 1 | E86: =INDEX(RICHIESTA!$X$142:$X$241,MATCH(A86,RICHIESTA!$C$142:$C$241,0)) -> 0 | F86: 0 | G86: 0 | H86: 0 | I86: 0 | J86: =INDEX(RICHIESTA!$I$142:$I$241,MATCH(A86,RICHIESTA!$C$142:$C$241,0)) -> Privata | O86: =$D86*(INDEX(RICHIESTA!$BG$142:$BG$241,MATCH($A86,RICHIESTA!$C$142:$C$241,0)) +$E86*IF($A$1="N",RICHIESTA!$O$128-RICHIESTA!$O$109,0)) -> 0 | P86: =$D86*(INDEX(RICHIESTA!$BA$142:$BA$241,MATCH($A86,RICHIESTA!$C$142:$C$241,0)) +IF($A$1="N",INDEX(RICHIESTA!$AU$142:$AU$241,MATCH($A86,RICHIESTA!$C$142:$C$241,0))/MAX(RICHIESTA!$AU$140,10^-9)*(RICHIESTA!$AC$128-RICHIESTA!$AC$109),0)) -> 0 | Q86: 0 | R86: =$D86*(INDEX(RICHIESTA!$BC$142:$BC$241,MATCH($A86,RICHIESTA!$C$142:$C$241,0)) +IF($A$1="N",INDEX(RICHIESTA!$BB$142:$BB$241,MATCH($A86,RICHIESTA!$C$142:$C$241,0)),0)) -> 0 | T86: 0 | U86: 0 | V86: 0 | W86: 0
A87: =RICHIESTA!C200 -> 59 | B87: UNITA IMMOBILIARE 59 | D87: 1 | E87: =INDEX(RICHIESTA!$X$142:$X$241,MATCH(A87,RICHIESTA!$C$142:$C$241,0)) -> 0 | F87: 0 | G87: 0 | H87: 0 | I87: 0 | J87: =INDEX(RICHIESTA!$I$142:$I$241,MATCH(A87,RICHIESTA!$C$142:$C$241,0)) -> Privata | O87: =$D87*(INDEX(RICHIESTA!$BG$142:$BG$241,MATCH($A87,RICHIESTA!$C$142:$C$241,0)) +$E87*IF($A$1="N",RICHIESTA!$O$128-RICHIESTA!$O$109,0)) -> 0 | P87: =$D87*(INDEX(RICHIESTA!$BA$142:$BA$241,MATCH($A87,RICHIESTA!$C$142:$C$241,0)) +IF($A$1="N",INDEX(RICHIESTA!$AU$142:$AU$241,MATCH($A87,RICHIESTA!$C$142:$C$241,0))/MAX(RICHIESTA!$AU$140,10^-9)*(RICHIESTA!$AC$128-RICHIESTA!$AC$109),0)) -> 0 | Q87: 0 | R87: =$D87*(INDEX(RICHIESTA!$BC$142:$BC$241,MATCH($A87,RICHIESTA!$C$142:$C$241,0)) +IF($A$1="N",INDEX(RICHIESTA!$BB$142:$BB$241,MATCH($A87,RICHIESTA!$C$142:$C$241,0)),0)) -> 0 | T87: 0 | U87: 0 | V87: 0 | W87: 0
A88: =RICHIESTA!C201 -> 60 | B88: UNITA IMMOBILIARE 60 | D88: 1 | E88: =INDEX(RICHIESTA!$X$142:$X$241,MATCH(A88,RICHIESTA!$C$142:$C$241,0)) -> 0 | F88: 0 | G88: 0 | H88: 0 | I88: 0 | J88: =INDEX(RICHIESTA!$I$142:$I$241,MATCH(A88,RICHIESTA!$C$142:$C$241,0)) -> Privata | O88: =$D88*(INDEX(RICHIESTA!$BG$142:$BG$241,MATCH($A88,RICHIESTA!$C$142:$C$241,0)) +$E88*IF($A$1="N",RICHIESTA!$O$128-RICHIESTA!$O$109,0)) -> 0 | P88: =$D88*(INDEX(RICHIESTA!$BA$142:$BA$241,MATCH($A88,RICHIESTA!$C$142:$C$241,0)) +IF($A$1="N",INDEX(RICHIESTA!$AU$142:$AU$241,MATCH($A88,RICHIESTA!$C$142:$C$241,0))/MAX(RICHIESTA!$AU$140,10^-9)*(RICHIESTA!$AC$128-RICHIESTA!$AC$109),0)) -> 0 | Q88: 0 | R88: =$D88*(INDEX(RICHIESTA!$BC$142:$BC$241,MATCH($A88,RICHIESTA!$C$142:$C$241,0)) +IF($A$1="N",INDEX(RICHIESTA!$BB$142:$BB$241,MATCH($A88,RICHIESTA!$C$142:$C$241,0)),0)) -> 0 | T88: 0 | U88: 0 | V88: 0 | W88: 0
A89: =RICHIESTA!C202 -> 61 | B89: UNITA IMMOBILIARE 61 | D89: 1 | E89: =INDEX(RICHIESTA!$X$142:$X$241,MATCH(A89,RICHIESTA!$C$142:$C$241,0)) -> 0 | F89: 0 | G89: 0 | H89: 0 | I89: 0 | J89: =INDEX(RICHIESTA!$I$142:$I$241,MATCH(A89,RICHIESTA!$C$142:$C$241,0)) -> Privata | O89: =$D89*(INDEX(RICHIESTA!$BG$142:$BG$241,MATCH($A89,RICHIESTA!$C$142:$C$241,0)) +$E89*IF($A$1="N",RICHIESTA!$O$128-RICHIESTA!$O$109,0)) -> 0 | P89: =$D89*(INDEX(RICHIESTA!$BA$142:$BA$241,MATCH($A89,RICHIESTA!$C$142:$C$241,0)) +IF($A$1="N",INDEX(RICHIESTA!$AU$142:$AU$241,MATCH($A89,RICHIESTA!$C$142:$C$241,0))/MAX(RICHIESTA!$AU$140,10^-9)*(RICHIESTA!$AC$128-RICHIESTA!$AC$109),0)) -> 0 | Q89: 0 | R89: =$D89*(INDEX(RICHIESTA!$BC$142:$BC$241,MATCH($A89,RICHIESTA!$C$142:$C$241,0)) +IF($A$1="N",INDEX(RICHIESTA!$BB$142:$BB$241,MATCH($A89,RICHIESTA!$C$142:$C$241,0)),0)) -> 0 | T89: 0 | U89: 0 | V89: 0 | W89: 0
A90: =RICHIESTA!C203 -> 62 | B90: UNITA IMMOBILIARE 62 | D90: 1 | E90: =INDEX(RICHIESTA!$X$142:$X$241,MATCH(A90,RICHIESTA!$C$142:$C$241,0)) -> 0 | F90: 0 | G90: 0 | H90: 0 | I90: 0 | J90: =INDEX(RICHIESTA!$I$142:$I$241,MATCH(A90,RICHIESTA!$C$142:$C$241,0)) -> Privata | O90: =$D90*(INDEX(RICHIESTA!$BG$142:$BG$241,MATCH($A90,RICHIESTA!$C$142:$C$241,0)) +$E90*IF($A$1="N",RICHIESTA!$O$128-RICHIESTA!$O$109,0)) -> 0 | P90: =$D90*(INDEX(RICHIESTA!$BA$142:$BA$241,MATCH($A90,RICHIESTA!$C$142:$C$241,0)) +IF($A$1="N",INDEX(RICHIESTA!$AU$142:$AU$241,MATCH($A90,RICHIESTA!$C$142:$C$241,0))/MAX(RICHIESTA!$AU$140,10^-9)*(RICHIESTA!$AC$128-RICHIESTA!$AC$109),0)) -> 0 | Q90: 0 | R90: =$D90*(INDEX(RICHIESTA!$BC$142:$BC$241,MATCH($A90,RICHIESTA!$C$142:$C$241,0)) +IF($A$1="N",INDEX(RICHIESTA!$BB$142:$BB$241,MATCH($A90,RICHIESTA!$C$142:$C$241,0)),0)) -> 0 | T90: 0 | U90: 0 | V90: 0 | W90: 0
A91: =RICHIESTA!C204 -> 63 | B91: UNITA IMMOBILIARE 63 | D91: 1 | E91: =INDEX(RICHIESTA!$X$142:$X$241,MATCH(A91,RICHIESTA!$C$142:$C$241,0)) -> 0 | F91: 0 | G91: 0 | H91: 0 | I91: 0 | J91: =INDEX(RICHIESTA!$I$142:$I$241,MATCH(A91,RICHIESTA!$C$142:$C$241,0)) -> Privata | O91: =$D91*(INDEX(RICHIESTA!$BG$142:$BG$241,MATCH($A91,RICHIESTA!$C$142:$C$241,0)) +$E91*IF($A$1="N",RICHIESTA!$O$128-RICHIESTA!$O$109,0)) -> 0 | P91: =$D91*(INDEX(RICHIESTA!$BA$142:$BA$241,MATCH($A91,RICHIESTA!$C$142:$C$241,0)) +IF($A$1="N",INDEX(RICHIESTA!$AU$142:$AU$241,MATCH($A91,RICHIESTA!$C$142:$C$241,0))/MAX(RICHIESTA!$AU$140,10^-9)*(RICHIESTA!$AC$128-RICHIESTA!$AC$109),0)) -> 0 | Q91: 0 | R91: =$D91*(INDEX(RICHIESTA!$BC$142:$BC$241,MATCH($A91,RICHIESTA!$C$142:$C$241,0)) +IF($A$1="N",INDEX(RICHIESTA!$BB$142:$BB$241,MATCH($A91,RICHIESTA!$C$142:$C$241,0)),0)) -> 0 | T91: 0 | U91: 0 | V91: 0 | W91: 0
A92: =RICHIESTA!C205 -> 64 | B92: UNITA IMMOBILIARE 64 | D92: 1 | E92: =INDEX(RICHIESTA!$X$142:$X$241,MATCH(A92,RICHIESTA!$C$142:$C$241,0)) -> 0 | F92: 0 | G92: 0 | H92: 0 | I92: 0 | J92: =INDEX(RICHIESTA!$I$142:$I$241,MATCH(A92,RICHIESTA!$C$142:$C$241,0)) -> Privata | O92: =$D92*(INDEX(RICHIESTA!$BG$142:$BG$241,MATCH($A92,RICHIESTA!$C$142:$C$241,0)) +$E92*IF($A$1="N",RICHIESTA!$O$128-RICHIESTA!$O$109,0)) -> 0 | P92: =$D92*(INDEX(RICHIESTA!$BA$142:$BA$241,MATCH($A92,RICHIESTA!$C$142:$C$241,0)) +IF($A$1="N",INDEX(RICHIESTA!$AU$142:$AU$241,MATCH($A92,RICHIESTA!$C$142:$C$241,0))/MAX(RICHIESTA!$AU$140,10^-9)*(RICHIESTA!$AC$128-RICHIESTA!$AC$109),0)) -> 0 | Q92: 0 | R92: =$D92*(INDEX(RICHIESTA!$BC$142:$BC$241,MATCH($A92,RICHIESTA!$C$142:$C$241,0)) +IF($A$1="N",INDEX(RICHIESTA!$BB$142:$BB$241,MATCH($A92,RICHIESTA!$C$142:$C$241,0)),0)) -> 0 | T92: 0 | U92: 0 | V92: 0 | W92: 0
A93: =RICHIESTA!C206 -> 65 | B93: UNITA IMMOBILIARE 65 | D93: 1 | E93: =INDEX(RICHIESTA!$X$142:$X$241,MATCH(A93,RICHIESTA!$C$142:$C$241,0)) -> 0 | F93: 0 | G93: 0 | H93: 0 | I93: 0 | J93: =INDEX(RICHIESTA!$I$142:$I$241,MATCH(A93,RICHIESTA!$C$142:$C$241,0)) -> Privata | O93: =$D93*(INDEX(RICHIESTA!$BG$142:$BG$241,MATCH($A93,RICHIESTA!$C$142:$C$241,0)) +$E93*IF($A$1="N",RICHIESTA!$O$128-RICHIESTA!$O$109,0)) -> 0 | P93: =$D93*(INDEX(RICHIESTA!$BA$142:$BA$241,MATCH($A93,RICHIESTA!$C$142:$C$241,0)) +IF($A$1="N",INDEX(RICHIESTA!$AU$142:$AU$241,MATCH($A93,RICHIESTA!$C$142:$C$241,0))/MAX(RICHIESTA!$AU$140,10^-9)*(RICHIESTA!$AC$128-RICHIESTA!$AC$109),0)) -> 0 | Q93: 0 | R93: =$D93*(INDEX(RICHIESTA!$BC$142:$BC$241,MATCH($A93,RICHIESTA!$C$142:$C$241,0)) +IF($A$1="N",INDEX(RICHIESTA!$BB$142:$BB$241,MATCH($A93,RICHIESTA!$C$142:$C$241,0)),0)) -> 0 | T93: 0 | U93: 0 | V93: 0 | W93: 0
A94: =RICHIESTA!C207 -> 66 | B94: ="UNITA IMMOBILIARE "&A94 -> UNITA IMMOBILIARE 66 | D94: 1 | E94: =INDEX(RICHIESTA!$X$142:$X$241,MATCH(A94,RICHIESTA!$C$142:$C$241,0)) -> 0 | F94: =T94 -> 0 | G94: =U94 -> 0 | H94: =V94 -> 0 | I94: =W94 -> 0 | J94: =INDEX(RICHIESTA!$I$142:$I$241,MATCH(A94,RICHIESTA!$C$142:$C$241,0)) -> Privata | O94: =$D94*(INDEX(RICHIESTA!$BG$142:$BG$241,MATCH($A94,RICHIESTA!$C$142:$C$241,0)) +$E94*IF($A$1="N",RICHIESTA!$O$128-RICHIESTA!$O$109,0)) -> 0 | P94: =$D94*(INDEX(RICHIESTA!$BA$142:$BA$241,MATCH($A94,RICHIESTA!$C$142:$C$241,0)) +IF($A$1="N",INDEX(RICHIESTA!$AU$142:$AU$241,MATCH($A94,RICHIESTA!$C$142:$C$241,0))/MAX(RICHIESTA!$AU$140,10^-9)*(RICHIESTA!$AC$128-RICHIESTA!$AC$109),0)) -> 0 | Q94: =O94-R94-P94 -> 0 | R94: =$D94*(INDEX(RICHIESTA!$BC$142:$BC$241,MATCH($A94,RICHIESTA!$C$142:$C$241,0)) +IF($A$1="N",INDEX(RICHIESTA!$BB$142:$BB$241,MATCH($A94,RICHIESTA!$C$142:$C$241,0)),0)) -> 0 | T94: =ROUND(O94,2) -> 0 | U94: =ROUND(P94,2) -> 0 | V94: =T94-W94-U94 -> 0 | W94: =ROUND(R94,2) -> 0
A95: =RICHIESTA!C208 -> 67 | B95: UNITA IMMOBILIARE 67 | D95: 1 | E95: =INDEX(RICHIESTA!$X$142:$X$241,MATCH(A95,RICHIESTA!$C$142:$C$241,0)) -> 0 | F95: 0 | G95: 0 | H95: 0 | I95: 0 | J95: =INDEX(RICHIESTA!$I$142:$I$241,MATCH(A95,RICHIESTA!$C$142:$C$241,0)) -> Privata | O95: =$D95*(INDEX(RICHIESTA!$BG$142:$BG$241,MATCH($A95,RICHIESTA!$C$142:$C$241,0)) +$E95*IF($A$1="N",RICHIESTA!$O$128-RICHIESTA!$O$109,0)) -> 0 | P95: =$D95*(INDEX(RICHIESTA!$BA$142:$BA$241,MATCH($A95,RICHIESTA!$C$142:$C$241,0)) +IF($A$1="N",INDEX(RICHIESTA!$AU$142:$AU$241,MATCH($A95,RICHIESTA!$C$142:$C$241,0))/MAX(RICHIESTA!$AU$140,10^-9)*(RICHIESTA!$AC$128-RICHIESTA!$AC$109),0)) -> 0 | Q95: 0 | R95: =$D95*(INDEX(RICHIESTA!$BC$142:$BC$241,MATCH($A95,RICHIESTA!$C$142:$C$241,0)) +IF($A$1="N",INDEX(RICHIESTA!$BB$142:$BB$241,MATCH($A95,RICHIESTA!$C$142:$C$241,0)),0)) -> 0 | T95: 0 | U95: 0 | V95: 0 | W95: 0
A96: =RICHIESTA!C209 -> 68 | B96: UNITA IMMOBILIARE 68 | D96: 1 | E96: =INDEX(RICHIESTA!$X$142:$X$241,MATCH(A96,RICHIESTA!$C$142:$C$241,0)) -> 0 | F96: 0 | G96: 0 | H96: 0 | I96: 0 | J96: =INDEX(RICHIESTA!$I$142:$I$241,MATCH(A96,RICHIESTA!$C$142:$C$241,0)) -> Privata | O96: =$D96*(INDEX(RICHIESTA!$BG$142:$BG$241,MATCH($A96,RICHIESTA!$C$142:$C$241,0)) +$E96*IF($A$1="N",RICHIESTA!$O$128-RICHIESTA!$O$109,0)) -> 0 | P96: =$D96*(INDEX(RICHIESTA!$BA$142:$BA$241,MATCH($A96,RICHIESTA!$C$142:$C$241,0)) +IF($A$1="N",INDEX(RICHIESTA!$AU$142:$AU$241,MATCH($A96,RICHIESTA!$C$142:$C$241,0))/MAX(RICHIESTA!$AU$140,10^-9)*(RICHIESTA!$AC$128-RICHIESTA!$AC$109),0)) -> 0 | Q96: 0 | R96: =$D96*(INDEX(RICHIESTA!$BC$142:$BC$241,MATCH($A96,RICHIESTA!$C$142:$C$241,0)) +IF($A$1="N",INDEX(RICHIESTA!$BB$142:$BB$241,MATCH($A96,RICHIESTA!$C$142:$C$241,0)),0)) -> 0 | T96: 0 | U96: 0 | V96: 0 | W96: 0
A97: =RICHIESTA!C210 -> 69 | B97: UNITA IMMOBILIARE 69 | D97: 1 | E97: =INDEX(RICHIESTA!$X$142:$X$241,MATCH(A97,RICHIESTA!$C$142:$C$241,0)) -> 0 | F97: 0 | G97: 0 | H97: 0 | I97: 0 | J97: =INDEX(RICHIESTA!$I$142:$I$241,MATCH(A97,RICHIESTA!$C$142:$C$241,0)) -> Privata | O97: =$D97*(INDEX(RICHIESTA!$BG$142:$BG$241,MATCH($A97,RICHIESTA!$C$142:$C$241,0)) +$E97*IF($A$1="N",RICHIESTA!$O$128-RICHIESTA!$O$109,0)) -> 0 | P97: =$D97*(INDEX(RICHIESTA!$BA$142:$BA$241,MATCH($A97,RICHIESTA!$C$142:$C$241,0)) +IF($A$1="N",INDEX(RICHIESTA!$AU$142:$AU$241,MATCH($A97,RICHIESTA!$C$142:$C$241,0))/MAX(RICHIESTA!$AU$140,10^-9)*(RICHIESTA!$AC$128-RICHIESTA!$AC$109),0)) -> 0 | Q97: 0 | R97: =$D97*(INDEX(RICHIESTA!$BC$142:$BC$241,MATCH($A97,RICHIESTA!$C$142:$C$241,0)) +IF($A$1="N",INDEX(RICHIESTA!$BB$142:$BB$241,MATCH($A97,RICHIESTA!$C$142:$C$241,0)),0)) -> 0 | T97: 0 | U97: 0 | V97: 0 | W97: 0
A98: =RICHIESTA!C211 -> 70 | B98: UNITA IMMOBILIARE 70 | D98: 1 | E98: =INDEX(RICHIESTA!$X$142:$X$241,MATCH(A98,RICHIESTA!$C$142:$C$241,0)) -> 0 | F98: 0 | G98: 0 | H98: 0 | I98: 0 | J98: =INDEX(RICHIESTA!$I$142:$I$241,MATCH(A98,RICHIESTA!$C$142:$C$241,0)) -> Privata | O98: =$D98*(INDEX(RICHIESTA!$BG$142:$BG$241,MATCH($A98,RICHIESTA!$C$142:$C$241,0)) +$E98*IF($A$1="N",RICHIESTA!$O$128-RICHIESTA!$O$109,0)) -> 0 | P98: =$D98*(INDEX(RICHIESTA!$BA$142:$BA$241,MATCH($A98,RICHIESTA!$C$142:$C$241,0)) +IF($A$1="N",INDEX(RICHIESTA!$AU$142:$AU$241,MATCH($A98,RICHIESTA!$C$142:$C$241,0))/MAX(RICHIESTA!$AU$140,10^-9)*(RICHIESTA!$AC$128-RICHIESTA!$AC$109),0)) -> 0 | Q98: 0 | R98: =$D98*(INDEX(RICHIESTA!$BC$142:$BC$241,MATCH($A98,RICHIESTA!$C$142:$C$241,0)) +IF($A$1="N",INDEX(RICHIESTA!$BB$142:$BB$241,MATCH($A98,RICHIESTA!$C$142:$C$241,0)),0)) -> 0 | T98: 0 | U98: 0 | V98: 0 | W98: 0
A99: =RICHIESTA!C212 -> 71 | B99: UNITA IMMOBILIARE 71 | D99: 1 | E99: =INDEX(RICHIESTA!$X$142:$X$241,MATCH(A99,RICHIESTA!$C$142:$C$241,0)) -> 0 | F99: 0 | G99: 0 | H99: 0 | I99: 0 | J99: =INDEX(RICHIESTA!$I$142:$I$241,MATCH(A99,RICHIESTA!$C$142:$C$241,0)) -> Privata | O99: =$D99*(INDEX(RICHIESTA!$BG$142:$BG$241,MATCH($A99,RICHIESTA!$C$142:$C$241,0)) +$E99*IF($A$1="N",RICHIESTA!$O$128-RICHIESTA!$O$109,0)) -> 0 | P99: =$D99*(INDEX(RICHIESTA!$BA$142:$BA$241,MATCH($A99,RICHIESTA!$C$142:$C$241,0)) +IF($A$1="N",INDEX(RICHIESTA!$AU$142:$AU$241,MATCH($A99,RICHIESTA!$C$142:$C$241,0))/MAX(RICHIESTA!$AU$140,10^-9)*(RICHIESTA!$AC$128-RICHIESTA!$AC$109),0)) -> 0 | Q99: 0 | R99: =$D99*(INDEX(RICHIESTA!$BC$142:$BC$241,MATCH($A99,RICHIESTA!$C$142:$C$241,0)) +IF($A$1="N",INDEX(RICHIESTA!$BB$142:$BB$241,MATCH($A99,RICHIESTA!$C$142:$C$241,0)),0)) -> 0 | T99: 0 | U99: 0 | V99: 0 | W99: 0
A100: =RICHIESTA!C213 -> 72 | B100: UNITA IMMOBILIARE 72 | D100: 1 | E100: =INDEX(RICHIESTA!$X$142:$X$241,MATCH(A100,RICHIESTA!$C$142:$C$241,0)) -> 0 | F100: 0 | G100: 0 | H100: 0 | I100: 0 | J100: =INDEX(RICHIESTA!$I$142:$I$241,MATCH(A100,RICHIESTA!$C$142:$C$241,0)) -> Privata | O100: =$D100*(INDEX(RICHIESTA!$BG$142:$BG$241,MATCH($A100,RICHIESTA!$C$142:$C$241,0)) +$E100*IF($A$1="N",RICHIESTA!$O$128-RICHIESTA!$O$109,0)) -> 0 | P100: =$D100*(INDEX(RICHIESTA!$BA$142:$BA$241,MATCH($A100,RICHIESTA!$C$142:$C$241,0)) +IF($A$1="N",INDEX(RICHIESTA!$AU$142:$AU$241,MATCH($A100,RICHIESTA!$C$142:$C$241,0))/MAX(RICHIESTA!$AU$140,10^-9)*(RICHIESTA!$AC$128-RICHIESTA!$AC$109),0)) -> 0 | Q100: 0 | R100: =$D100*(INDEX(RICHIESTA!$BC$142:$BC$241,MATCH($A100,RICHIESTA!$C$142:$C$241,0)) +IF($A$1="N",INDEX(RICHIESTA!$BB$142:$BB$241,MATCH($A100,RICHIESTA!$C$142:$C$241,0)),0)) -> 0 | T100: 0 | U100: 0 | V100: 0 | W100: 0
A101: =RICHIESTA!C214 -> 73 | B101: UNITA IMMOBILIARE 73 | D101: 1 | E101: =INDEX(RICHIESTA!$X$142:$X$241,MATCH(A101,RICHIESTA!$C$142:$C$241,0)) -> 0 | F101: 0 | G101: 0 | H101: 0 | I101: 0 | J101: =INDEX(RICHIESTA!$I$142:$I$241,MATCH(A101,RICHIESTA!$C$142:$C$241,0)) -> Privata | O101: =$D101*(INDEX(RICHIESTA!$BG$142:$BG$241,MATCH($A101,RICHIESTA!$C$142:$C$241,0)) +$E101*IF($A$1="N",RICHIESTA!$O$128-RICHIESTA!$O$109,0)) -> 0 | P101: =$D101*(INDEX(RICHIESTA!$BA$142:$BA$241,MATCH($A101,RICHIESTA!$C$142:$C$241,0)) +IF($A$1="N",INDEX(RICHIESTA!$AU$142:$AU$241,MATCH($A101,RICHIESTA!$C$142:$C$241,0))/MAX(RICHIESTA!$AU$140,10^-9)*(RICHIESTA!$AC$128-RICHIESTA!$AC$109),0)) -> 0 | Q101: 0 | R101: =$D101*(INDEX(RICHIESTA!$BC$142:$BC$241,MATCH($A101,RICHIESTA!$C$142:$C$241,0)) +IF($A$1="N",INDEX(RICHIESTA!$BB$142:$BB$241,MATCH($A101,RICHIESTA!$C$142:$C$241,0)),0)) -> 0 | T101: 0 | U101: 0 | V101: 0 | W101: 0
A102: =RICHIESTA!C215 -> 74 | B102: UNITA IMMOBILIARE 74 | D102: 1 | E102: =INDEX(RICHIESTA!$X$142:$X$241,MATCH(A102,RICHIESTA!$C$142:$C$241,0)) -> 0 | F102: 0 | G102: 0 | H102: 0 | I102: 0 | J102: =INDEX(RICHIESTA!$I$142:$I$241,MATCH(A102,RICHIESTA!$C$142:$C$241,0)) -> Privata | O102: =$D102*(INDEX(RICHIESTA!$BG$142:$BG$241,MATCH($A102,RICHIESTA!$C$142:$C$241,0)) +$E102*IF($A$1="N",RICHIESTA!$O$128-RICHIESTA!$O$109,0)) -> 0 | P102: =$D102*(INDEX(RICHIESTA!$BA$142:$BA$241,MATCH($A102,RICHIESTA!$C$142:$C$241,0)) +IF($A$1="N",INDEX(RICHIESTA!$AU$142:$AU$241,MATCH($A102,RICHIESTA!$C$142:$C$241,0))/MAX(RICHIESTA!$AU$140,10^-9)*(RICHIESTA!$AC$128-RICHIESTA!$AC$109),0)) -> 0 | Q102: 0 | R102: =$D102*(INDEX(RICHIESTA!$BC$142:$BC$241,MATCH($A102,RICHIESTA!$C$142:$C$241,0)) +IF($A$1="N",INDEX(RICHIESTA!$BB$142:$BB$241,MATCH($A102,RICHIESTA!$C$142:$C$241,0)),0)) -> 0 | T102: 0 | U102: 0 | V102: 0 | W102: 0
A103: =RICHIESTA!C216 -> 75 | B103: UNITA IMMOBILIARE 75 | D103: 1 | E103: =INDEX(RICHIESTA!$X$142:$X$241,MATCH(A103,RICHIESTA!$C$142:$C$241,0)) -> 0 | F103: 0 | G103: 0 | H103: 0 | I103: 0 | J103: =INDEX(RICHIESTA!$I$142:$I$241,MATCH(A103,RICHIESTA!$C$142:$C$241,0)) -> Privata | O103: =$D103*(INDEX(RICHIESTA!$BG$142:$BG$241,MATCH($A103,RICHIESTA!$C$142:$C$241,0)) +$E103*IF($A$1="N",RICHIESTA!$O$128-RICHIESTA!$O$109,0)) -> 0 | P103: =$D103*(INDEX(RICHIESTA!$BA$142:$BA$241,MATCH($A103,RICHIESTA!$C$142:$C$241,0)) +IF($A$1="N",INDEX(RICHIESTA!$AU$142:$AU$241,MATCH($A103,RICHIESTA!$C$142:$C$241,0))/MAX(RICHIESTA!$AU$140,10^-9)*(RICHIESTA!$AC$128-RICHIESTA!$AC$109),0)) -> 0 | Q103: 0 | R103: =$D103*(INDEX(RICHIESTA!$BC$142:$BC$241,MATCH($A103,RICHIESTA!$C$142:$C$241,0)) +IF($A$1="N",INDEX(RICHIESTA!$BB$142:$BB$241,MATCH($A103,RICHIESTA!$C$142:$C$241,0)),0)) -> 0 | T103: 0 | U103: 0 | V103: 0 | W103: 0
A104: =RICHIESTA!C217 -> 76 | B104: UNITA IMMOBILIARE 76 | D104: 1 | E104: =INDEX(RICHIESTA!$X$142:$X$241,MATCH(A104,RICHIESTA!$C$142:$C$241,0)) -> 0 | F104: 0 | G104: 0 | H104: 0 | I104: 0 | J104: =INDEX(RICHIESTA!$I$142:$I$241,MATCH(A104,RICHIESTA!$C$142:$C$241,0)) -> Privata | O104: =$D104*(INDEX(RICHIESTA!$BG$142:$BG$241,MATCH($A104,RICHIESTA!$C$142:$C$241,0)) +$E104*IF($A$1="N",RICHIESTA!$O$128-RICHIESTA!$O$109,0)) -> 0 | P104: =$D104*(INDEX(RICHIESTA!$BA$142:$BA$241,MATCH($A104,RICHIESTA!$C$142:$C$241,0)) +IF($A$1="N",INDEX(RICHIESTA!$AU$142:$AU$241,MATCH($A104,RICHIESTA!$C$142:$C$241,0))/MAX(RICHIESTA!$AU$140,10^-9)*(RICHIESTA!$AC$128-RICHIESTA!$AC$109),0)) -> 0 | Q104: 0 | R104: =$D104*(INDEX(RICHIESTA!$BC$142:$BC$241,MATCH($A104,RICHIESTA!$C$142:$C$241,0)) +IF($A$1="N",INDEX(RICHIESTA!$BB$142:$BB$241,MATCH($A104,RICHIESTA!$C$142:$C$241,0)),0)) -> 0 | T104: 0 | U104: 0 | V104: 0 | W104: 0
A105: =RICHIESTA!C218 -> 77 | B105: UNITA IMMOBILIARE 77 | D105: 1 | E105: =INDEX(RICHIESTA!$X$142:$X$241,MATCH(A105,RICHIESTA!$C$142:$C$241,0)) -> 0 | F105: 0 | G105: 0 | H105: 0 | I105: 0 | J105: =INDEX(RICHIESTA!$I$142:$I$241,MATCH(A105,RICHIESTA!$C$142:$C$241,0)) -> Privata | O105: =$D105*(INDEX(RICHIESTA!$BG$142:$BG$241,MATCH($A105,RICHIESTA!$C$142:$C$241,0)) +$E105*IF($A$1="N",RICHIESTA!$O$128-RICHIESTA!$O$109,0)) -> 0 | P105: =$D105*(INDEX(RICHIESTA!$BA$142:$BA$241,MATCH($A105,RICHIESTA!$C$142:$C$241,0)) +IF($A$1="N",INDEX(RICHIESTA!$AU$142:$AU$241,MATCH($A105,RICHIESTA!$C$142:$C$241,0))/MAX(RICHIESTA!$AU$140,10^-9)*(RICHIESTA!$AC$128-RICHIESTA!$AC$109),0)) -> 0 | Q105: 0 | R105: =$D105*(INDEX(RICHIESTA!$BC$142:$BC$241,MATCH($A105,RICHIESTA!$C$142:$C$241,0)) +IF($A$1="N",INDEX(RICHIESTA!$BB$142:$BB$241,MATCH($A105,RICHIESTA!$C$142:$C$241,0)),0)) -> 0 | T105: 0 | U105: 0 | V105: 0 | W105: 0
